Workbook

Sheet COVER
C2: Cover
C4: NAVIGATION
C6: COMMENTS
C9: Bonneville Power Administration
C10: 6P Energy Conservation Standards Savings Model
C11: CENTRAL AC
C13: Product Description
C14: A residential central air conditioner is an important part of a home’s central heating and cooling system that provides cooled air to the conditioned space through ductwork. The air conditioner uses a blower, which for split systems may be contained in the furnace, to propel circulation air over the outside of a heat exchanger (i.e., evaporator coil), transferring heat from warm circulation air to the cool refrigerant. The cooled air is then distributed via ductwork to the conditioned space, while a compressor is used to further raise the refrigerant temperature before the refrigerant transfers heat to the atmosphere through another heat exchanger (i.e., condenser coil). Split system air conditioners are comprised of an indoor unit, which contains the evaporator coil and indoor blower, and an outdoor unit, often referred to as the condenser, which contains the compressor, condenser coil, and a condenser fan to blow ambient air over the coil. Packaged systems contain all of these components in a single unit. EPCA defines a “central air conditioner” as “a product, other than a packaged terminal air conditioner, which is powered by single-phase electric current, air cooled, rated below 65,000 Btu per hour, not contained within the same cabinet as a furnace, the rated capacity of which is above 225,000 Btu per hour, and is a heat pump or a cooling only unit.” (42 U.S.C. 6291(21)(A)-(E)) DOE has incorporated this definition into its regulations at 10 CFR 430.2.
C16: Standard Compliance Year
C17: 2015, per DOE Notice (Amending Compliance Dates) published October 31, 2011 (Federal Register, 76 FR 67037)
C18: Available at: http://www.regulations.gov/#!documentDetail;D=EERE-2011-BT-STD-0011-0058
C20: Major changes from previous rulemaking (2009 effective standard)
C21: Same overall structure as Standards in Federal Register 67 FR 36368. Higher standards for certain product classes
C22: Available at: http://www.regulations.gov/#!documentDetail;D=EERE-2006-STD-0089-0300
C24: 6P Baseline
C25: 2002 DOE Amended Standards (Federal Register 67 FR 36368) are reflected in the 6P Baseline.
C27: Prepared By:
C28: Navigant Consulting | D28: Cadeo Group
C29: One Market Street | Spear Street Tower, Suite 1200 | D29: 840 First Street, Suite 300
C30: San Francisco, CA 94105 | D30: Washington, DC 20002

Sheet Definitions
C2: Definitions
C4: NAVIGATION
C6: COMMENTS
C9: Average Megawatt (aMW) | D9: The average number of megawatts over a specified time period
C10: Adjustment to 6P Baseline | D10: Adjustment to reconcile the 6P projected energy consumption and the modeled consumption calculated using best available data.
C11: Department of Energy Aggregate Lifecycle Savings | D11: Sum of 'Total First Year Savings'. This accounts for the cumulative savings in accordance with DOE Carbon Accounting Practices.
C12: Department of Energy Notice of Proposed Rulemaking (DOE NOPR) | D12: Federal Register notice detailing analyses conducted by the DOE to establish proposed energy conservation standards.
C13: Efficiency Level (EL) | D13: The discrete efficiency ratings of a product. Each efficiency level is associated with a different UEC.
C14: Efficiency Level Distribution | D14: The mix of various equipment efficiencies shipped in a given year.
C15: Incremental Savings | D15: Savings due to the higher standards for units installed in a particular year. First year savings are highest following the standards compliance year while the stock turns over, after which first year savings are only attributed to shipments associated with new construction.
C16: Governmental Regulatory Impact Model (GRIM) | D16: The industry cash flow model used by DOE to assess impacts on manufacturers due to proposed energy conservation standards
C17: Installed Unit Energy Consumption (Installed UEC) | D17: The average annual unit energy consumption of all installed units in a given year.
C18: Market Unit Energy Consumption (Market UEC) | D18: The average annual unit energy consumption of units shipped in a given year.
C19: National Impact Analysis (NIA) | D19: The energy impact analysis used by DOE to calculate energy savings associated with each standard.
C20: Pre-case | D20: The case representing 6P baseline assumptions where energy consumption due to the product accounts for shipment and shipment UEC by year, without the affect of standards announced following the development of the 6P.
C21: Post-case | D21: The case in which standards are implemented. If the 6P already captured the analyzed standard, the post-case will be the same as the pre-case.
C22: Product Class | D22: Product classificiation determined by product configuration, size, application, location, and other attributes that contribute to consumer utility. DOE is allowed to establish different standards for each product class.
C23: Product Class Distribution | D23: Market share/mix of each product class shipped in a given year.
C24: Product Lifetime | D24: The average time a given class of products stays in the field as part of the installed stock. Some products will last longer (delaying replacement) whereas others will fail and be retired earlier (accelerating replacement), but the lifetime represents the market average.
C25: Shipments | D25: Sales of products. This may be presented by product class, efficiency distribution, or delineated by other metrics. Shipments may be attributed to new construction and/or replacements and retrofits.
C26: Sixth Power Plan (6P) | D26: The Pacific Northwest Resource Plan published by the Northwest Power Conservation Council. The 6P timeframe is from 2010-2015.
C27: Sixth Power Plan Baseline (6P Baseline) | D27: The 6P assumes equipment efficiency and shipment units in the region. When available, the 6P assumptions are the baseline for each standard impact analysis.
C28: Standard Compliance Year | D28: The year when the appliance standard goes into effect.
C29: Stock | D29: All units installed in previous years which remain in operation.
C30: Technical Support Document (TSD) | D30: TSDs are published by the DOE as companion documents to Federal Register notices (e.g., ANOPRs/preliminary analyses and NOPRs). The TSDs include technical detail that supports the notices. The final rule TSD includes the discussion of the Manufacturer Impact Analysis (MIA) and National Impact Analysis (NIA).
C31: Cumulative Savings | D31: The sum of first year savings from 2010 through 2034
C32: Trial Standard Level (TSL) | D32: A proposed efficiency standard evaluated by DOE during the NOPR and Final Rule phase analyses. A TSL may specify different standard efficiency levels for each product class included in the rulemaking.

Sheet Notes
C2: NOTES
C4: NAVIGATION
C6: COMMENTS
C9: Notes
C11: In earlier iterations of this model, the UECs were based on the national average UECs from the 2014 DOE Final Rule and scaled based on the estimated cooling load in the Pacific Northwest.
C12: This version of the model replaces those values with output from the Simplified Energy Enthalpy Model (SEEM), which contains data specific to the region. More information on SEEM can be found here: http://rtf.nwcouncil.org/measures/support/seem/

Sheet Comments
C2: Comments
C4: NAVIGATION
C7: Tab | D7: Comment
C8: Example | D8: Please use this space to document your comments as you review the model. We look forward to receiving your feedback. Thank you.

Sheet Navigation
C2: NAVIGATION
C4: COMMENTS
C7: INFORMATION TABS | E7: INPUT TABS | G7: UEC CALCULATIONS | I7: RESULTS | K7: CHARTS
C9: COVER | E9: PRODUCT CLASSES
C11: DEFINITIONS | E11: EFFICIENCY LEVELS
C13: NOTES | E13: DATA BY BUILDING TYPE | G13: UEC DEVELOPMENT
C15: COMMENTS | G15: ANNUAL SEER
E16: NATIONAL SHIPMENTS
C17: NAVIGATION
C19: CENTRAL RESIDENTIAL MODEL (EXTERNAL) | E19: SHIPMENTS AND STOCK - SF | G19: UEC - SF | I19: RESULTS - SF | K19: CHARTS - SF
E23: SHIPMENTS AND STOCK - MF | G23: UEC - MF | I23: RESULTS - MF | K23: CHARTS - MF
E27: SHIPMENTS AND STOCK - MH | G27: UEC - MH | I27: RESULTS - MH | K27: CHARTS - MH
E31: 6P UEC DEVELOPMENT | I31: RESULTS - TH | K31: CHARTS - ALL
E33: CONSTANTS
I35: SUMMARY RESULTS

Sheet Product Classes
C2: Selection of Product Classes for Model
C4: NAVIGATION
C6: COMMENTS
C9: All Product Classes (PCs) | D9: 2011 DOE Final Rule PCs 1 | E9: DOE Representative PCs 2 | F9: 6P PCs 3 | H9: Model PCs | I9: Rationale 3
C10: Split system air conditioners (Coil Only) | D10: PC1 | E10: PC1 | F10: 6P CAC | H10: PC1
C11: Split system air conditioners (Blower Coil) | E11: PC2 | F11: 6P CAC | H11: PC2
C12: Split system heat pumps | D12: PC2 | E12: PC3 | F12: 6P Heat Pump | I12: Heat pumps are included in separate model
C13: Single package air conditioners | D13: PC3 | E13: PC4 | F13: 6P CAC | H13: PC3
C14: Single package heat pumps | D14: PC4 | E14: PC5 | F14: 6P Heat Pump | I14: Heat pumps are included in separate model
C15: Small duct, high velocity systems | D15: PC5 | F15: 6P CAC | I15: Non-analyzed product class by DOE (niche product)
C16: Space constrained products- air conditioners | D16: PC6a | F16: 6P CAC | I16: Non-analyzed product class by DOE (niche product)
C17: Space constrained products- heat pumps | D17: PC6b | F17: 6P Heat Pump | I17: Non-analyzed product class by DOE (niche product)
C19: Sources
C20: 1. 2011 DOE Direct Final Rule: Table I.1—Amended Energy Conservation Standards for Furnace, Central Air Conditioner, and Heat Pump Energy Efficiency (http://www.regulations.gov/#!documentDetail;D=EERE-2011-BT-STD-0011-0001)
C21: 2. 2011 DOE Direct Final Rule: Supporting Documents - Furnace Fan and Central Air Conditioner and Heat Pump GRIM (Assumptions (INPUT) - Tab, Range E7:F11) (http://www.regulations.gov/#!documentDetail;D=EERE-2011-BT-STD-0011-0010)
C22: 3. 6P Supply Curve Files: New and Existing Single Family & Manufactured Home HVAC Conversions and Upgrades to High Efficiency Heat Pumps (Use and Savings Assumptions, Column A) (https://www.nwcouncil.org/energy/powerplan/6/supply-curves)

Sheet Efficiency Levels
C2: Efficiency Levels and Standards for Each Product Class
C4: NAVIGATION
C6: COMMENTS
C9: PC1 | D9: =OFFSET('Product Classes'!$C$9,MATCH(C9,'Product Classes'!$H$10:$H$16,0),0) -> Split system air conditioners (Coil Only)
C11: Model ELs | D11: SEER 1 | E11: Standard Compliance Year 2
C12: EL0 | D12: 13 | E12: 2015
C13: EL1 | D13: 13.5
C14: EL2 | D14: 14
C15: EL3 | D15: 14.5
C16: EL4 | D16: 15
C17: EL5 | D17: 15.5
C18: EL6 | D18: 16
C19: EL7 | D19: 16.5
C20: EL8 | D20: 17
C22: Sources | D22: 1. 2011 DOE Direct Final Rule: Supporting Documents - Furnace Fan and Central Air Conditioner and Heat Pump GRIM (Assumptions (INPUT) - Tab, Range C45:K45)
D23: 2. 2011 DOE Direct Final Rule: Table I.1—Amended Energy Conservation Standards for Furnace, Central Air Conditioner, and Heat Pump Energy Efficiency
C27: PC2 | D27: =OFFSET('Product Classes'!$C$9,MATCH(C27,'Product Classes'!$H$10:$H$16,0),0) -> Split system air conditioners (Blower Coil)
C29: Model ELs | D29: SEER 1 | E29: Standard Compliance Year 2
C30: EL0 | D30: 13 | E30: 2015
C31: EL1 | D31: 13.5
C32: EL2 | D32: 14
C33: EL3 | D33: 14.5
C34: EL4 | D34: 15
C35: EL5 | D35: 15.5
C36: EL6 | D36: 16
C37: EL7 | D37: 16.5
C38: EL8 | D38: 17
C39: EL9 | D39: 18
C40: EL10 | D40: 19
C41: EL11 | D41: 20
C42: EL12 | D42: 21
C43: EL13 | D43: 22
C44: EL14 | D44: 23
C45: EL15 | D45: 24.5
C47: Sources | D47: 1. 2011 DOE Direct Final Rule: Supporting Documents - Furnace Fan and Central Air Conditioner and Heat Pump GRIM (Assumptions (INPUT) - Tab, Range C46:R46)
D48: 2. 2011 DOE Direct Final Rule: Table I.1—Amended Energy Conservation Standards for Furnace, Central Air Conditioner, and Heat Pump Energy Efficiency
C52: PC3 | D52: =OFFSET('Product Classes'!$C$9,MATCH(C52,'Product Classes'!$H$10:$H$16,0),0) -> Single package air conditioners
C54: Model ELs | D54: SEER 1 | E54: Standard Compliance Year 2
C55: EL0 | D55: 13
C56: EL1 | D56: 13.5
C57: EL2 | D57: 14 | E57: 2015
C58: EL3 | D58: 14.5
C59: EL4 | D59: 15
C60: EL5 | D60: 15.5
C61: EL6 | D61: 16
C62: EL7 | D62: 16.5
C64: Sources | D64: 1. 2011 DOE Direct Final Rule: Supporting Documents - Furnace Fan and Central Air Conditioner and Heat Pump GRIM (Assumptions (INPUT) - Tab, Range C48:J48)
D65: 2. 2011 DOE Direct Final Rule: Table I.1—Amended Energy Conservation Standards for Furnace, Central Air Conditioner, and Heat Pump Energy Efficiency

Sheet Data by Building Type
C2: Data by Building Type
C4: NAVIGATION
C6: COMMENTS
C9: =MODEL_NAME -> CENTRAL AC | D9: Single Family | E9: Multi-Family | F9: Manufactured Homes | G9: Total Homes | H9: Source
C10: Lifetime (years) | D10: =ROUND(INDEX([1]!LIFETIMES_TABLE, MATCH($C$9,[1]!APPLIANCES,0), MATCH(D$9,[1]!LIFETIMES_HOUSING_TYPE,0)),0) -> 19 | E10: =ROUND(INDEX([1]!LIFETIMES_TABLE, MATCH($C$9,[1]!APPLIANCES,0), MATCH(E$9,[1]!LIFETIMES_HOUSING_TYPE,0)),0) -> 19 | F10: =ROUND(INDEX([1]!LIFETIMES_TABLE, MATCH($C$9,[1]!APPLIANCES,0), MATCH(F$9,[1]!LIFETIMES_HOUSING_TYPE,0)),0) -> 19 | G10: =ROUND(INDEX([1]!LIFETIMES_TABLE, MATCH($C$9,[1]!APPLIANCES,0), MATCH(G$9,[1]!LIFETIMES_HOUSING_TYPE,0)),0) -> 19 | H10: DOE Central Air Conditioners and Heat Pumps 2011 Final Rule, Technical Support Document Chapter 8: Lifecycle Cost Analysis, Section 8.2.3.5 Lifetime (page 8-59)
C14: Historical Efficiency Data (by vintage of unit) | D14: Single Family 1 | E14: Multi-Family | F14: Manufactured Homes 2 | H14: Sources & Assumptions
C15: SEER (1990 - 1999) | D15: 10.3 | E15: =D15 -> 10.3 | F15: 10.4 | H15: 1. RBSA 2012-Single Family: Table 63: Average Cooling Efficiency (SEER) for Central AC Systems by Vintage (page 63)
C16: SEER (2000 - 2005) | D16: 10.9 | E16: =D16 -> 10.9 | F16: 10.1 | H16: 2. RBSA 2012-Manufactured Homes: Table 43: Average Cooling Efficiency (SEER) for Post-1989 Central AC Systems by Vintage (page 46)
C17: SEER (2006 and later) | D17: 13.4 | E17: 13.4 | F17: 13 | H17: * Multi-Family Residential Central AC units are believed to look more like Single Family type units as these are typically placed in duplexes and triplexes.
C21: Cooling Zone Allocation | D21: Single Family 1 | E21: Multi-Family | F21: Manufactured Homes 2 | H21: Sources
C22: Cooling Zone 1 (%) | D22: 0.6426932965 | E22: =D22 -> 0.6426932965 | F22: 0.6339569466 | H22: 1. Extracted from Raw Data in the RBSA Single Family Databases
C23: Cooling Zone 2 (%) | D23: 0.2528316115 | E23: =D23 -> 0.2528316115 | F23: 0.2485982075 | H23: 2. Extracted from Raw Data in the RBSA Manufactured Homes Databases
C24: Cooling Zone 3 (%) | D24: 0.104475092 | E24: 0.104475092 | F24: 0.1174448458 | H24: RBSA Raw Data Files available here: http://neea.org/resource-center/regional-data-resources/residential-building-stock-assessment
C28: Single Family Cooling Energy Use (kWh) | P28: 498.82 | Q28: 464.25 | R28: 429.69 | S28: 395.13 | T28: 355.40 | U28: 315.67
C29: SEER | D29: Cooling Zone 1 | E29: Cooling Zone 2 | F29: Cooling Zone 3 | H29: Sources | P29: 1,110.41 | Q29: 1,041.13 | R29: 971.84 | S29: 902.56 | T29: 811.68 | U29: 720.81
C30: 10 | D30: 498.82 | E30: 1110.41 | F30: 2016.65 | H30: Values extracted from the Single Family Representative Building Types in Simplified Energy Enthalpy Model (SEEM) | P30: 2,016.65 | Q30: 1,900.55 | R30: 1,784.44 | S30: 1,668.34 | T30: 1,508.26 | U30: 1,348.18
C31: 11 | D31: 464.25 | E31: 1041.13 | F31: 1900.55 | H31: More information and supporting materials for SEEM are available here: http://rtf.nwcouncil.org/measures/support/seem/
C32: 12 | D32: 429.69 | E32: 971.84 | F32: 1784.44 | H32: * These values are also used for Multi-Family Residential Central AC units as they are believed to look more like Single Family type units typically placed in duplexes and triplexes. | P32: 498.82 | Q32: 464.25 | R32: 429.69 | S32: 395.13 | T32: 355.40 | U32: 315.67
C33: 13 | D33: 395.13 | E33: 902.56 | F33: 1668.34 | P33: 1,110.41 | Q33: 1,041.13 | R33: 971.84 | S33: 902.56 | T33: 811.68 | U33: 720.81
C34: 14 | D34: 355.4 | E34: 811.68 | F34: 1508.26 | P34: 2,016.65 | Q34: 1,900.55 | R34: 1,784.44 | S34: 1,668.34 | T34: 1,508.26 | U34: 1,348.18
C35: 15 | D35: 315.67 | E35: 720.81 | F35: 1348.18
C39: Cooling Energy Use (by Zone) | D39: Single Family 1 | E39: Multi-Family | F39: Manufactured Homes 1 | H39: Sources
C40: Cooling Zone 1 (kWh/year) | D40: 301.0747422 | E40: =D40 -> 301.0747422 | F40: 385.4814586 | H40: 1. 6P Supply Curve Files: New and Existing Single Family & Manufactured Home HVAC Conversions and Upgrades to High Efficiency Heat Pumps - 'Use and Savings Assumptions' Tab (Ranges C6:C8 and L6:L8)
C41: Cooling Zone 2 (kWh/year) | D41: 642.6122225 | E41: =D41 -> 642.6122225 | F41: 495.8217053
C42: Cooling Zone 3 (kWh/year) | D42: 1089.444811 | E42: 1089.444811 | F42: 848.3511124
C46: Manufactured Homes Cooling Energy Use (kWh)
C47: SEER | D47: Cooling Zone 1 | E47: Cooling Zone 2 | F47: Cooling Zone 3 | H47: Sources
C48: 10 | D48: =AVERAGE($F$15:$F$17)/AVERAGE($D$15:$D$17)*$F$40/$D$40*D30 -> 618.3604958 | E48: =AVERAGE($F$15:$F$17)/AVERAGE($D$15:$D$17)*$F$41/$D$41*E30 -> 829.5233696 | F48: =AVERAGE($F$15:$F$17)/AVERAGE($D$15:$D$17)*$F$42/$D$42*F30 -> 1520.441229 | H48: Calculated based on the ratio of UEC between manufactured homes and single family homes in the 6P while correcting for differences in average historical efficiency between the two housing types
C49: 11 | D49: =AVERAGE($F$15:$F$17)/AVERAGE($D$15:$D$17)*$F$40/$D$40*D31 -> 575.5059143 | E49: =AVERAGE($F$15:$F$17)/AVERAGE($D$15:$D$17)*$F$41/$D$41*E31 -> 777.768271 | F49: =AVERAGE($F$15:$F$17)/AVERAGE($D$15:$D$17)*$F$42/$D$42*F31 -> 1432.908327
C50: 12 | D50: 532.6637293 | E50: 726.0057019 | F50: 1345.367886
C51: 13 | D51: 489.8215443 | E51: 674.2506033 | F51: 1257.834984
C52: 14 | D52: 440.5703866 | E52: 606.3593885 | F52: 1137.143624
C53: 15 | D53: 391.3192288 | E53: 538.4756441 | F53: 1016.452263

Sheet National Shipments
C2: National Shipments
C4: NAVIGATION
C6: COMMENTS
C9: PRE-CASE SHIPMENTS
C11: ='Product Classes'!H10&" - "&OFFSET('Product Classes'!$C$9,MATCH('Product Classes'!H10,MODEL_PCS,0),0) -> PC1 - Split system air conditioners (Coil Only) | E11: Shipments in Millions
C13: Efficiency Level | D13: SEER | E13: 2010 | F13: =E13+1 -> 2011 | G13: 2012 | H13: 2013 | I13: 2014 | J13: 2015 | K13: 2016 | L13: 2017 | M13: 2018 | N13: 2019 | O13: 2020 | P13: 2021 | Q13: 2022 | R13: 2023 | S13: 2024 | T13: 2025 | U13: 2026 | V13: 2027 | W13: 2028 | X13: 2029 | Y13: 2030 | Z13: 2031 | AA13: 2032 | AB13: 2033 | AC13: 2034
C14: EL0 | D14: 13 | E14: 0.9212968735 | F14: 0.9028222779 | G14: 0.9444966714 | H14: 0.9671202763 | I14: 0.9842570012 | J14: 1.006708397 | K14: 1.028257396 | L14: 0.328857332 | M14: 0 | N14: 0 | O14: 0 | P14: 0 | Q14: 0 | R14: 0 | S14: 0 | T14: 0 | U14: 0 | V14: 0 | W14: 0 | X14: 0 | Y14: 0 | Z14: 0 | AA14: 0 | AB14: 0 | AC14: 0
C15: EL1 | D15: 13.5 | E15: 1.804206377 | F15: 1.768026961 | G15: 1.849639315 | H15: 1.893943874 | I15: 1.927503294 | J15: 1.971470611 | K15: 2.013670735 | L15: 2.758497966 | M15: 2.805591901 | N15: 2.173042477 | O15: 1.51212611 | P15: 0.826523627 | Q15: 0.1314854062 | R15: 0 | S15: 0 | T15: 0 | U15: 0 | V15: 0 | W15: 0 | X15: 0 | Y15: 0 | Z15: 0 | AA15: 0 | AB15: 0 | AC15: 0
C16: EL2 | D16: 14 | E16: 0.1535494789 | F16: 0.1504703797 | G16: 0.1574161119 | H16: 0.1611867127 | I16: 0.1640428335 | J16: 0.1677847329 | K16: 0.1713762327 | L16: 0.1739355098 | M16: 0.5033048351 | N16: 1.184668896 | O16: 1.883196179 | P16: 2.583010104 | Q16: 3.296834302 | R16: 2.878298378 | S16: 2.185809938 | T16: 1.478907971 | U16: 0.7500757795 | V16: 0.00352461888 | W16: 0.002863405996 | X16: 0.002896165312 | Y16: 0.002928600026 | Z16: 0.002960118426 | AA16: 0.00299239252 | AB16: 0.003024181931 | AC16: 0.003055596396
C17: EL3 | D17: 14.5 | E17: 0.2783084305 | F17: 0.2727275631 | G17: 0.2853167028 | H17: 0.2921509168 | I17: 0.2973276358 | J17: 0.3041098284 | K17: 0.3106194219 | L17: 0.3152581115 | M17: 0.3198600179 | N17: 0.3245787661 | O17: 0.3282144879 | P17: 0.3295882607 | Q17: 0.3314042384 | R17: 0.9103242541 | S17: 1.638330059 | T17: 2.388508971 | U17: 3.153000255 | V17: 3.926021728 | W17: 3.801377912 | X17: 3.684746525 | Y17: 3.576022024 | Z17: 3.463169876 | AA17: 3.353754207 | AB17: 3.368592286 | AC17: 3.403584402
C18: EL4 | D18: 15 | E18: 0.2207273759 | F18: 0.2163011708 | G18: 0.2262856609 | H18: 0.2317058995 | I18: 0.2358115732 | J18: 0.2411905535 | K18: 0.2463533346 | L18: 0.2500322953 | M18: 0.2536820831 | N18: 0.2574245386 | O18: 0.2603080422 | P18: 0.2613975861 | Q18: 0.2628378443 | R18: 0.2648581171 | S18: 0.267341094 | T18: 0.2703665339 | U18: 0.2728594188 | V18: 0.274709927 | W18: 0.4209481092 | X18: 0.5648529124 | Y18: 0.7126695145 | Z18: 0.8533254218 | AA18: 0.9844710765 | AB18: 0.8803912832 | AC18: 0.740994488
C19: EL5 | D19: 15.5 | E19: 0.07677473946 | F19: 0.07523518983 | G19: 0.07870805595 | H19: 0.08059335636 | I19: 0.08202141676 | J19: 0.08389236644 | K19: 0.08568811637 | L19: 0.08696775488 | M19: 0.08823724631 | N19: 0.08953896996 | O19: 0.09054192771 | P19: 0.0909208995 | Q19: 0.09142185888 | R19: 0.09212456249 | S19: 0.09298820662 | T19: 0.09404053354 | U19: 0.09490762393 | V19: 0.09555127894 | W19: 0.09602703245 | X19: 0.09664762733 | Y19: 0.09753682134 | Z19: 0.09816944127 | AA19: 0.09866403808 | AB19: 0.2204925422 | AC19: 0.3638943998
C20: EL6 | D20: 16 | E20: 0.2687115881 | F20: 0.2633231644 | G20: 0.2754781958 | H20: 0.2820767473 | I20: 0.2870749587 | J20: 0.2936232826 | K20: 0.2999084073 | L20: 0.3043871421 | M20: 0.3088303621 | N20: 0.3133863949 | O20: 0.316896747 | P20: 0.3182231483 | Q20: 0.3199765061 | R20: 0.3224359687 | S20: 0.3254587232 | T20: 0.3291418674 | U20: 0.3321766838 | V20: 0.3344294763 | W20: 0.3360946136 | X20: 0.3382666956 | Y20: 0.3413788747 | Z20: 0.3435930444 | AA20: 0.3453241333 | AB20: 0.3478611339 | AC20: 0.3508966911
C21: EL7 | D21: 16.5 | E21: 0.01919368487 | F21: 0.01880879746 | G21: 0.01967701399 | H21: 0.02014833909 | I21: 0.02050535419 | J21: 0.02097309161 | K21: 0.02142202909 | L21: 0.02174193872 | M21: 0.02205931158 | N21: 0.02238474249 | O21: 0.02263548193 | P21: 0.02273022488 | Q21: 0.02285546472 | R21: 0.02303114062 | S21: 0.02324705165 | T21: 0.02351013339 | U21: 0.02372690598 | V21: 0.02388781974 | W21: 0.02400675811 | X21: 0.02416190683 | Y21: 0.02438420533 | Z21: 0.02454236032 | AA21: 0.02466600952 | AB21: 0.02484722385 | AC21: 0.02506404937
C22: EL8 | D22: 17 | E22: 0 | F22: 0 | G22: 0 | H22: 0 | I22: 0 | J22: 0 | K22: 0 | L22: 0 | M22: 0 | N22: 0 | O22: 0 | P22: 0 | Q22: 0 | R22: 0 | S22: 0 | T22: 0 | U22: 0 | V22: 0 | W22: 0 | X22: 0 | Y22: 0 | Z22: 0 | AA22: 0 | AB22: 0 | AC22: 0
C23: TOTAL | E23: =SUM(E14:E22) -> 3.742768549 | F23: 3.667715504 | G23: 3.837017728 | H23: 3.928926123 | I23: 3.998544067 | J23: 4.089752864 | K23: 4.177295673 | L23: 4.239678051 | M23: 4.301565758 | N23: 4.365024786 | O23: 4.413918976 | P23: 4.432393851 | Q23: 4.45681562 | R23: 4.491072421 | S23: 4.533175072 | T23: 4.58447601 | U23: 4.626746667 | V23: 4.658124848 | W23: 4.681317832 | X23: 4.711571832 | Y23: 4.75492004 | Z23: 4.785760262 | AA23: 4.809871857 | AB23: 4.845208651 | AC23: 4.887489626
C25: ='Product Classes'!H11&" - "&OFFSET('Product Classes'!$C$9,MATCH('Product Classes'!H11,MODEL_PCS,0),0) -> PC2 - Split system air conditioners (Blower Coil) | E25: Shipments in Millions
C27: Efficiency Level | D27: SEER | E27: 2010 | F27: =E27+1 -> 2011 | G27: 2012 | H27: 2013 | I27: 2014 | J27: 2015 | K27: 2016 | L27: 2017 | M27: 2018 | N27: 2019 | O27: 2020 | P27: 2021 | Q27: 2022 | R27: 2023 | S27: 2024 | T27: 2025 | U27: 2026 | V27: 2027 | W27: 2028 | X27: 2029 | Y27: 2030 | Z27: 2031 | AA27: 2032 | AB27: 2033 | AC27: 2034
C28: EL0 | D28: 13 | E28: 0.07677473946 | F28: 0.07523518983 | G28: 0.07870805595 | H28: 0.08059335636 | I28: 0.08202141676 | J28: 0.08389236644 | K28: 0.08568811637 | L28: 0.009233912145 | M28: 0 | N28: 0 | O28: 0 | P28: 0 | Q28: 0 | R28: 0 | S28: 0 | T28: 0 | U28: 0 | V28: 0 | W28: 0 | X28: 0 | Y28: 0 | Z28: 0 | AA28: 0 | AB28: 0 | AC28: 0
C29: EL1 | D29: 13.5 | E29: 0.1503505314 | F29: 0.1473355801 | G29: 0.1541366096 | H29: 0.1578286562 | I29: 0.1606252745 | J29: 0.1642892176 | K29: 0.1678058946 | L29: 0.2480456961 | M29: 0.1910991215 | N29: 0.112998498 | O29: 0.03198541907 | P29: 0 | Q29: 0 | R29: 0 | S29: 0 | T29: 0 | U29: 0 | V29: 0 | W29: 0 | X29: 0 | Y29: 0 | Z29: 0 | AA29: 0 | AB29: 0 | AC29: 0
C30: EL2 | D30: 14 | E30: 0.01279578991 | F30: 0.0125391983 | G30: 0.01311800933 | H30: 0.01343222606 | I30: 0.01367023613 | J30: 0.01398206107 | K30: 0.01428135273 | L30: 0.01449462581 | M30: 0.08464227319 | N30: 0.1668107832 | O30: 0.250958105 | P30: 0.2331669169 | Q30: 0.1504516295 | R30: 0.06649422654 | S30: 0 | T30: 0 | U30: 0 | V30: 0 | W30: 0 | X30: 0 | Y30: 0 | Z30: 0 | AA30: 0 | AB30: 0 | AC30: 0
C31: EL3 | D31: 14.5 | E31: 0.02319236921 | F31: 0.02272729693 | G31: 0.0237763919 | H31: 0.02434590973 | I31: 0.02477730298 | J31: 0.0253424857 | K31: 0.02588495182 | L31: 0.02627150929 | M31: 0.02665500149 | N31: 0.02704823051 | O31: 0.02735120733 | P31: 0.07842658248 | Q31: 0.1628586994 | R31: 0.2492243262 | S31: 0.2994089943 | T31: 0.2149495713 | U31: 0.1277833638 | V31: 0.03840083443 | W31: 0 | X31: 0 | Y31: 0 | Z31: 0 | AA31: 0 | AB31: 0 | AC31: 0
C32: EL4 | D32: 15 | E32: 0.018393948 | F32: 0.01802509756 | G32: 0.0188571384 | H32: 0.01930882496 | I32: 0.01965096443 | J32: 0.02009921279 | K32: 0.02052944455 | L32: 0.02083602461 | M32: 0.0211401736 | N32: 0.02145204489 | O32: 0.02169233685 | P32: 0.02178313217 | Q32: 0.02190315369 | R32: 0.02207150976 | S32: 0.04154776333 | T32: 0.1298657184 | U32: 0.2202112573 | V32: 0.311953855 | W32: 0.2994909991 | X32: 0.2091292794 | Y32: 0.11739174 | Z32: 0.02336264241 | AA32: 0 | AB32: 0 | AC32: 0
C33: EL5 | D33: 15.5 | E33: 0.006397894955 | F33: 0.006269599152 | G33: 0.006559004663 | H33: 0.00671611303 | I33: 0.006835118064 | J33: 0.006991030537 | K33: 0.007140676364 | L33: 0.007247312907 | M33: 0.007353103859 | N33: 0.007461580831 | O33: 0.007545160643 | P33: 0.007576741626 | Q33: 0.007618488241 | R33: 0.007677046875 | S33: 0.007749017219 | T33: 0.007836711129 | U33: 0.007908968661 | V33: 0.007962606579 | W33: 0.06061037259 | X33: 0.1532993231 | Y33: 0.2483713401 | Z33: 0.3447727624 | AA33: 0.2976754928 | AB33: 0.2028299186 | AC33: 0.1061792583
C34: EL6 | D34: 16 | E34: 0.02239263234 | F34: 0.02194359703 | G34: 0.02295651632 | H34: 0.02350639561 | I34: 0.02392291322 | J34: 0.02446860688 | K34: 0.02499236728 | L34: 0.02536559518 | M34: 0.02573586351 | N34: 0.02611553291 | O34: 0.02640806225 | P34: 0.02651859569 | Q34: 0.02666470884 | R34: 0.02686966406 | S34: 0.02712156026 | T34: 0.02742848895 | U34: 0.02768139032 | V34: 0.02786912303 | W34: 0.02800788447 | X34: 0.0281888913 | Y34: 0.02844823956 | Z34: 0.0286327537 | AA34: 0.1010916611 | AB34: 0.198866867 | AC34: 0.2990228731
C35: EL7 | D35: 16.5 | E35: 0.001599473739 | F35: 0.001567399788 | G35: 0.001639751166 | H35: 0.001679028258 | I35: 0.001708779516 | J35: 0.001747757634 | K35: 0.001785169091 | L35: 0.001811828227 | M35: 0.001838275965 | N35: 0.001865395208 | O35: 0.001886290161 | P35: 0.001894185406 | Q35: 0.00190462206 | R35: 0.001919261719 | S35: 0.001937254305 | T35: 0.001959177782 | U35: 0.001977242165 | V35: 0.001990651645 | W35: 0.002000563176 | X35: 0.002013492236 | Y35: 0.002032017111 | Z35: 0.002045196693 | AA35: 0.002055500793 | AB35: 0.002070601987 | AC35: 0.00208867078
C36: EL8 | D36: 17 | E36: 0.04158631721 | F36: 0.04075239449 | G36: 0.04263353031 | H36: 0.0436547347 | I36: 0.04442826741 | J36: 0.04544169849 | K36: 0.04641439637 | L36: 0.0471075339 | M36: 0.04779517509 | N36: 0.0485002754 | O36: 0.04904354418 | P36: 0.04924882057 | Q36: 0.04952017356 | R36: 0.04990080469 | S36: 0.05036861192 | T36: 0.05093862234 | U36: 0.0514082963 | V36: 0.05175694276 | W36: 0.05201464258 | X36: 0.05235079814 | Y36: 0.05283244489 | Z36: 0.05317511402 | AA36: 0.05344302063 | AB36: 0.05383565167 | AC36: 0.05430544029
C37: EL9 | D37: 18 | E37: 0.02911042205 | F37: 0.02852667614 | G37: 0.02984347121 | H37: 0.03055831429 | I37: 0.03109978719 | J37: 0.03180918894 | K37: 0.03249007746 | L37: 0.03297527373 | M37: 0.03345662256 | N37: 0.03395019278 | O37: 0.03433048092 | P37: 0.0344741744 | Q37: 0.0346641215 | R37: 0.03493056328 | S37: 0.03525802834 | T37: 0.03565703564 | U37: 0.03598580741 | V37: 0.03622985993 | W37: 0.0364102498 | X37: 0.0366455587 | Y37: 0.03698271142 | Z37: 0.03722257982 | AA37: 0.03741011444 | AB37: 0.03768495617 | AC37: 0.0380138082
C38: EL10 | D38: 19 | E38: 0.01247589516 | F38: 0.01222571835 | G38: 0.01279005909 | H38: 0.01309642041 | I38: 0.01332848022 | J38: 0.01363250955 | K38: 0.01392431891 | L38: 0.01413226017 | M38: 0.01433855253 | N38: 0.01455008262 | O38: 0.01471306325 | P38: 0.01477464617 | Q38: 0.01485605207 | R38: 0.01497024141 | S38: 0.01511058358 | T38: 0.0152815867 | U38: 0.01542248889 | V38: 0.01552708283 | W38: 0.01560439277 | X38: 0.01570523944 | Y38: 0.01584973347 | Z38: 0.01595253421 | AA38: 0.01603290619 | AB38: 0.0161506955 | AC38: 0.01629163209
C39: EL11 | D39: 20 | E39: 0.008317263442 | F39: 0.008150478898 | G39: 0.008526706061 | H39: 0.008730946939 | I39: 0.008885653483 | J39: 0.009088339698 | K39: 0.009282879274 | L39: 0.009421506779 | M39: 0.009559035017 | N39: 0.00970005508 | O39: 0.009808708836 | P39: 0.009849764114 | Q39: 0.009904034713 | R39: 0.009980160937 | S39: 0.01007372238 | T39: 0.01018772447 | U39: 0.01028165926 | V39: 0.01035138855 | W39: 0.01040292852 | X39: 0.01047015963 | Y39: 0.01056648898 | Z39: 0.0106350228 | AA39: 0.01068860413 | AB39: 0.01076713033 | AC39: 0.01086108806
C40: EL12 | D40: 21 | E40: 0.008317263442 | F40: 0.008150478898 | G40: 0.008526706061 | H40: 0.008730946939 | I40: 0.008885653483 | J40: 0.009088339698 | K40: 0.009282879274 | L40: 0.009421506779 | M40: 0.009559035017 | N40: 0.00970005508 | O40: 0.009808708836 | P40: 0.009849764114 | Q40: 0.009904034713 | R40: 0.009980160937 | S40: 0.01007372238 | T40: 0.01018772447 | U40: 0.01028165926 | V40: 0.01035138855 | W40: 0.01040292852 | X40: 0.01047015963 | Y40: 0.01056648898 | Z40: 0.0106350228 | AA40: 0.01068860413 | AB40: 0.01076713033 | AC40: 0.01086108806
C41: EL13 | D41: 22 | E41: 0.004158631721 | F41: 0.004075239449 | G41: 0.004263353031 | H41: 0.00436547347 | I41: 0.004442826741 | J41: 0.004544169849 | K41: 0.004641439637 | L41: 0.00471075339 | M41: 0.004779517509 | N41: 0.00485002754 | O41: 0.004904354418 | P41: 0.004924882057 | Q41: 0.004952017356 | R41: 0.004990080469 | S41: 0.005036861192 | T41: 0.005093862234 | U41: 0.00514082963 | V41: 0.005175694276 | W41: 0.005201464258 | X41: 0.005235079814 | Y41: 0.005283244489 | Z41: 0.005317511402 | AA41: 0.005344302063 | AB41: 0.005383565167 | AC41: 0.005430544029
C42: EL14 | D42: 23 | E42: 0 | F42: 0 | G42: 0 | H42: 0 | I42: 0 | J42: 0 | K42: 0 | L42: 0 | M42: 0 | N42: 0 | O42: 0 | P42: 0 | Q42: 0 | R42: 0 | S42: 0 | T42: 0 | U42: 0 | V42: 0 | W42: 0 | X42: 0 | Y42: 0 | Z42: 0 | AA42: 0 | AB42: 0 | AC42: 0
C43: EL15 | D43: 24.5 | E43: 0 | F43: 0 | G43: 0 | H43: 0 | I43: 0 | J43: 0 | K43: 0 | L43: 0 | M43: 0 | N43: 0 | O43: 0 | P43: 0 | Q43: 0 | R43: 0 | S43: 0 | T43: 0 | U43: 0 | V43: 0 | W43: 0 | X43: 0 | Y43: 0 | Z43: 0 | AA43: 0 | AB43: 0 | AC43: 0
C44: TOTAL | E44: =SUM(E28:E43) -> 0.4158631721 | F44: 0.4075239449 | G44: 0.4263353031 | H44: 0.436547347 | I44: 0.4442826741 | J44: 0.4544169849 | K44: 0.4641439637 | L44: 0.471075339 | M44: 0.4779517509 | N44: 0.485002754 | O44: 0.4904354418 | P44: 0.4924882057 | Q44: 0.4952017356 | R44: 0.4990080469 | S44: 0.5036861192 | T44: 0.5093862234 | U44: 0.514082963 | V44: 0.5175694276 | W44: 0.5201464258 | X44: 0.5235079814 | Y44: 0.5283244489 | Z44: 0.5317511402 | AA44: 0.5344302063 | AB44: 0.5383565167 | AC44: 0.5430544029
C46: ='Product Classes'!H13&" - "&OFFSET('Product Classes'!$C$9,MATCH('Product Classes'!H13,MODEL_PCS,0),0) -> PC3 - Single package air conditioners | E46: Shipments in Millions
C48: Efficiency Level | D48: SEER | E48: 2010 | F48: =E48+1 -> 2011 | G48: 2012 | H48: 2013 | I48: 2014 | J48: 2015 | K48: 2016 | L48: 2017 | M48: 2018 | N48: 2019 | O48: 2020 | P48: 2021 | Q48: 2022 | R48: 2023 | S48: 2024 | T48: 2025 | U48: 2026 | V48: 2027 | W48: 2028 | X48: 2029 | Y48: 2030 | Z48: 2031 | AA48: 2032 | AB48: 2033 | AC48: 2034
C49: EL0 | D49: 13 | E49: 0.2635918624 | F49: 0.254048502 | G49: 0.2625512724 | H49: 0.2667346276 | I49: 0.2696947962 | J49: 0.2739156945 | K49: 0.2779759561 | L49: 0.1966441724 | M49: 0.1127957192 | N49: 0.02670365946 | O49: 0 | P49: 0 | Q49: 0 | R49: 0 | S49: 0 | T49: 0 | U49: 0 | V49: 0 | W49: 0 | X49: 0 | Y49: 0 | Z49: 0 | AA49: 0 | AB49: 0 | AC49: 0
C50: EL1 | D50: 13.5 | E50: 0.08408033887 | F50: 0.08103620479 | G50: 0.08374841226 | H50: 0.08508281582 | I50: 0.08602704824 | J50: 0.08737342728 | K50: 0.08866856654 | L50: 0.1735468194 | M50: 0.260977858 | N50: 0.3508466893 | O50: 0.3187250296 | P50: 0.2299541133 | Q50: 0.1404692881 | R50: 0.04992866344 | S50: 0 | T50: 0 | U50: 0 | V50: 0 | W50: 0 | X50: 0 | Y50: 0 | Z50: 0 | AA50: 0 | AB50: 0 | AC50: 0
C51: EL2 | D51: 14 | E51: 0.06011744229 | F51: 0.05794088642 | G51: 0.05988011477 | H51: 0.06083421331 | I51: 0.06150933949 | J51: 0.0624720005 | K51: 0.06339802507 | L51: 0.06401125977 | M51: 0.06463073947 | N51: 0.06528379669 | O51: 0.1273575354 | P51: 0.2168095843 | Q51: 0.3075871371 | R51: 0.4003682912 | S51: 0.4110654754 | T51: 0.320635602 | U51: 0.2275790036 | V51: 0.1322748469 | W51: 0.03528192342 | X51: 0 | Y51: 0 | Z51: 0 | AA51: 0 | AB51: 0 | AC51: 0
C52: EL3 | D52: 14.5 | E52: 0.008408033887 | F52: 0.008103620479 | G52: 0.008374841226 | H52: 0.008508281582 | I52: 0.008602704824 | J52: 0.008737342728 | K52: 0.008866856654 | L52: 0.008952623744 | M52: 0.009039264261 | N52: 0.009130600936 | O52: 0.009197578659 | P52: 0.009211622631 | Q52: 0.00923827681 | R52: 0.009284473292 | S52: 0.05158797888 | T52: 0.1459901608 | U52: 0.2422851004 | V52: 0.3399197509 | W52: 0.4385697093 | X52: 0.4130128865 | Y52: 0.3160198629 | Z52: 0.2163433594 | AA52: 0.1147800208 | AB52: 0.01170660837 | AC52: 0
C53: EL4 | D53: 15 | E53: 0.004204016943 | F53: 0.004051810239 | G53: 0.004187420613 | H53: 0.004254140791 | I53: 0.004301352412 | J53: 0.004368671364 | K53: 0.004433428327 | L53: 0.004476311872 | M53: 0.004519632131 | N53: 0.004565300468 | O53: 0.00459878933 | P53: 0.004605811316 | Q53: 0.004619138405 | R53: 0.004642236646 | S53: 0.004673267215 | T53: 0.004713391544 | U53: 0.00474610206 | V53: 0.004769642402 | W53: 0.004786380129 | X53: 0.06798586311 | Y53: 0.1685635738 | Z53: 0.270724882 | AA53: 0.3742115633 | AB53: 0.4802267681 | AC53: 0.4020486693
C54: EL5 | D54: 15.5 | E54: 0 | F54: 0 | G54: 0 | H54: 0 | I54: 0 | J54: 0 | K54: 0 | L54: 0 | M54: 0 | N54: 0 | O54: 0 | P54: 0 | Q54: 0 | R54: 0 | S54: 0 | T54: 0 | U54: 0 | V54: 0 | W54: 0 | X54: 0 | Y54: 0 | Z54: 0 | AA54: 0 | AB54: 0 | AC54: 0.09346867809
C55: EL6 | D55: 16 | E55: 0 | F55: 0 | G55: 0 | H55: 0 | I55: 0 | J55: 0 | K55: 0 | L55: 0 | M55: 0 | N55: 0 | O55: 0 | P55: 0 | Q55: 0 | R55: 0 | S55: 0 | T55: 0 | U55: 0 | V55: 0 | W55: 0 | X55: 0 | Y55: 0 | Z55: 0 | AA55: 0 | AB55: 0 | AC55: 0
C56: EL7 | D56: 16.5 | E56: 0 | F56: 0 | G56: 0 | H56: 0 | I56: 0 | J56: 0 | K56: 0 | L56: 0 | M56: 0 | N56: 0 | O56: 0 | P56: 0 | Q56: 0 | R56: 0 | S56: 0 | T56: 0 | U56: 0 | V56: 0 | W56: 0 | X56: 0 | Y56: 0 | Z56: 0 | AA56: 0 | AB56: 0 | AC56: 0
C57: TOTAL | E57: =SUM(E49:E56) -> 0.4204016943 | F57: 0.4051810239 | G57: 0.4187420613 | H57: 0.4254140791 | I57: 0.4301352412 | J57: 0.4368671364 | K57: 0.4433428327 | L57: 0.4476311872 | M57: 0.4519632131 | N57: 0.4565300468 | O57: 0.459878933 | P57: 0.4605811316 | Q57: 0.4619138405 | R57: 0.4642236646 | S57: 0.4673267215 | T57: 0.4713391544 | U57: 0.474610206 | V57: 0.4769642402 | W57: 0.4786380129 | X57: 0.4809987496 | Y57: 0.4845834367 | Z57: 0.4870682414 | AA57: 0.4889915841 | AB57: 0.4919333765 | AC57: 0.4955173474
C59: Shipment Weighted SEER | D59: SEER | E59: =(SUMPRODUCT($D14:$D22,E14:E22)+SUMPRODUCT($D28:$D43,E28:E43)+SUMPRODUCT($D49:$D56,E49:E56))/SUM(E14:E22,E28:E43,E49:E56) -> 13.85176381 | F59: =(SUMPRODUCT($D14:$D22,F14:F22)+SUMPRODUCT($D28:$D43,F28:F43)+SUMPRODUCT($D49:$D56,F49:F56))/SUM(F14:F22,F28:F43,F49:F56) -> 13.85261066 | G59: =(SUMPRODUCT($D14:$D22,G14:G22)+SUMPRODUCT($D28:$D43,G28:G43)+SUMPRODUCT($D49:$D56,G49:G56))/SUM(G14:G22,G28:G43,G49:G56) -> 13.85322526 | H59: 13.85361795 | I59: 13.85394202 | J59: 13.85428885 | K59: 13.85460627 | L59: 13.93981996 | M59: 14.01895433 | N59: 14.09851135 | O59: 14.17847343 | P59: 14.25882904 | Q59: 14.33963166 | R59: 14.42088822 | S59: 14.50259857 | T59: 14.58476646 | U59: 14.66737805 | V59: 14.7504377 | W59: 14.77990416 | X59: 14.80899367 | Y59: 14.83818554 | Z59: 14.86681162 | AA59: 14.89468061 | AB59: 14.92290776 | AC59: 14.95154904
C61: Sources | D61: 2011 DOE Central ACs and Heat Pumps Final Rule GRIM, 'Shipment Assumptions (INPUT)' tab, Base Case Shipments (Ranges B8:J32, B50:Q74, and B134:I158) (http://www.regulations.gov/#!documentDetail;D=EERE-2011-BT-STD-0011-0010)
C65: POST-CASE SHIPMENTS
C67: ='Product Classes'!H10&" - "&OFFSET('Product Classes'!$C$9,MATCH('Product Classes'!H10,MODEL_PCS,0),0) -> PC1 - Split system air conditioners (Coil Only) | E67: Shipments in Millions
C69: Efficiency Level | D69: SEER | E69: 2010 | F69: =E69+1 -> 2011 | G69: =F69+1 -> 2012 | H69: =G69+1 -> 2013 | I69: =H69+1 -> 2014 | J69: =I69+1 -> 2015 | K69: =J69+1 -> 2016 | L69: =K69+1 -> 2017 | M69: =L69+1 -> 2018 | N69: =M69+1 -> 2019 | O69: =N69+1 -> 2020 | P69: =O69+1 -> 2021 | Q69: =P69+1 -> 2022 | R69: =Q69+1 -> 2023 | S69: =R69+1 -> 2024 | T69: =S69+1 -> 2025 | U69: =T69+1 -> 2026 | V69: =U69+1 -> 2027 | W69: =V69+1 -> 2028 | X69: =W69+1 -> 2029 | Y69: =X69+1 -> 2030 | Z69: =Y69+1 -> 2031 | AA69: =Z69+1 -> 2032 | AB69: =AA69+1 -> 2033 | AC69: =AB69+1 -> 2034
C70: EL0 | D70: 13 | E70: 0.9212968735 | F70: 0.9028222779 | G70: 0.9444966714 | H70: 0.9671202763 | I70: 0.9842570012 | J70: 1.006708397 | K70: 1.028257396 | L70: 0.328857332 | M70: 0 | N70: 0 | O70: 0 | P70: 0 | Q70: 0 | R70: 0 | S70: 0 | T70: 0 | U70: 0 | V70: 0 | W70: 0 | X70: 0 | Y70: 0 | Z70: 0 | AA70: 0 | AB70: 0 | AC70: 0
C71: EL1 | D71: 13.5 | E71: 1.804206377 | F71: 1.768026961 | G71: 1.849639315 | H71: 1.893943874 | I71: 1.927503294 | J71: 1.971470611 | K71: 2.013670735 | L71: 2.758497966 | M71: 2.805591901 | N71: 2.173042477 | O71: 1.51212611 | P71: 0.826523627 | Q71: 0.1314854062 | R71: 0 | S71: 0 | T71: 0 | U71: 0 | V71: 0 | W71: 0 | X71: 0 | Y71: 0 | Z71: 0 | AA71: 0 | AB71: 0 | AC71: 0
C72: EL2 | D72: 14 | E72: 0.1535494789 | F72: 0.1504703797 | G72: 0.1574161119 | H72: 0.1611867127 | I72: 0.1640428335 | J72: 0.1677847329 | K72: 0.1713762327 | L72: 0.1739355098 | M72: 0.5033048351 | N72: 1.184668896 | O72: 1.883196179 | P72: 2.583010104 | Q72: 3.296834302 | R72: 2.878298378 | S72: 2.185809938 | T72: 1.478907971 | U72: 0.7500757795 | V72: 0.00352461888 | W72: 0.002863405996 | X72: 0.002896165312 | Y72: 0.002928600026 | Z72: 0.002960118426 | AA72: 0.00299239252 | AB72: 0.003024181931 | AC72: 0.003055596396
C73: EL3 | D73: 14.5 | E73: 0.2783084305 | F73: 0.2727275631 | G73: 0.2853167028 | H73: 0.2921509168 | I73: 0.2973276358 | J73: 0.3041098284 | K73: 0.3106194219 | L73: 0.3152581115 | M73: 0.3198600179 | N73: 0.3245787661 | O73: 0.3282144879 | P73: 0.3295882607 | Q73: 0.3314042384 | R73: 0.9103242541 | S73: 1.638330059 | T73: 2.388508971 | U73: 3.153000255 | V73: 3.926021728 | W73: 3.801377912 | X73: 3.684746525 | Y73: 3.576022024 | Z73: 3.463169876 | AA73: 3.353754207 | AB73: 3.368592286 | AC73: 3.403584402
C74: EL4 | D74: 15 | E74: 0.2207273759 | F74: 0.2163011708 | G74: 0.2262856609 | H74: 0.2317058995 | I74: 0.2358115732 | J74: 0.2411905535 | K74: 0.2463533346 | L74: 0.2500322953 | M74: 0.2536820831 | N74: 0.2574245386 | O74: 0.2603080422 | P74: 0.2613975861 | Q74: 0.2628378443 | R74: 0.2648581171 | S74: 0.267341094 | T74: 0.2703665339 | U74: 0.2728594188 | V74: 0.274709927 | W74: 0.4209481092 | X74: 0.5648529124 | Y74: 0.7126695145 | Z74: 0.8533254218 | AA74: 0.9844710765 | AB74: 0.8803912832 | AC74: 0.740994488
C75: EL5 | D75: 15.5 | E75: 0.07677473946 | F75: 0.07523518983 | G75: 0.07870805595 | H75: 0.08059335636 | I75: 0.08202141676 | J75: 0.08389236644 | K75: 0.08568811637 | L75: 0.08696775488 | M75: 0.08823724631 | N75: 0.08953896996 | O75: 0.09054192771 | P75: 0.0909208995 | Q75: 0.09142185888 | R75: 0.09212456249 | S75: 0.09298820662 | T75: 0.09404053354 | U75: 0.09490762393 | V75: 0.09555127894 | W75: 0.09602703245 | X75: 0.09664762733 | Y75: 0.09753682134 | Z75: 0.09816944127 | AA75: 0.09866403808 | AB75: 0.2204925422 | AC75: 0.3638943998
C76: EL6 | D76: 16 | E76: 0.2687115881 | F76: 0.2633231644 | G76: 0.2754781958 | H76: 0.2820767473 | I76: 0.2870749587 | J76: 0.2936232826 | K76: 0.2999084073 | L76: 0.3043871421 | M76: 0.3088303621 | N76: 0.3133863949 | O76: 0.316896747 | P76: 0.3182231483 | Q76: 0.3199765061 | R76: 0.3224359687 | S76: 0.3254587232 | T76: 0.3291418674 | U76: 0.3321766838 | V76: 0.3344294763 | W76: 0.3360946136 | X76: 0.3382666956 | Y76: 0.3413788747 | Z76: 0.3435930444 | AA76: 0.3453241333 | AB76: 0.3478611339 | AC76: 0.3508966911
C77: EL7 | D77: 16.5 | E77: 0.01919368487 | F77: 0.01880879746 | G77: 0.01967701399 | H77: 0.02014833909 | I77: 0.02050535419 | J77: 0.02097309161 | K77: 0.02142202909 | L77: 0.02174193872 | M77: 0.02205931158 | N77: 0.02238474249 | O77: 0.02263548193 | P77: 0.02273022488 | Q77: 0.02285546472 | R77: 0.02303114062 | S77: 0.02324705165 | T77: 0.02351013339 | U77: 0.02372690598 | V77: 0.02388781974 | W77: 0.02400675811 | X77: 0.02416190683 | Y77: 0.02438420533 | Z77: 0.02454236032 | AA77: 0.02466600952 | AB77: 0.02484722385 | AC77: 0.02506404937
C78: EL8 | D78: 17 | E78: 0 | F78: 0 | G78: 0 | H78: 0 | I78: 0 | J78: 0 | K78: 0 | L78: 0 | M78: 0 | N78: 0 | O78: 0 | P78: 0 | Q78: 0 | R78: 0 | S78: 0 | T78: 0 | U78: 0 | V78: 0 | W78: 0 | X78: 0 | Y78: 0 | Z78: 0 | AA78: 0 | AB78: 0 | AC78: 0
C79: TOTAL | E79: =SUM(E70:E78) -> 3.742768549 | F79: 3.667715504 | G79: 3.837017728 | H79: 3.928926123 | I79: 3.998544067 | J79: 4.089752864 | K79: 4.177295673 | L79: 4.239678051 | M79: 4.301565758 | N79: 4.365024786 | O79: 4.413918976 | P79: 4.432393851 | Q79: 4.45681562 | R79: 4.491072421 | S79: 4.533175072 | T79: 4.58447601 | U79: 4.626746667 | V79: 4.658124848 | W79: 4.681317832 | X79: 4.711571832 | Y79: 4.75492004 | Z79: 4.785760262 | AA79: 4.809871857 | AB79: 4.845208651 | AC79: 4.887489626
C81: ='Product Classes'!H11&" - "&OFFSET('Product Classes'!$C$9,MATCH('Product Classes'!H11,MODEL_PCS,0),0) -> PC2 - Split system air conditioners (Blower Coil) | E81: Shipments in Millions
C83: Efficiency Level | D83: SEER | E83: 2010 | F83: =E83+1 -> 2011 | G83: =F83+1 -> 2012 | H83: =G83+1 -> 2013 | I83: =H83+1 -> 2014 | J83: =I83+1 -> 2015 | K83: =J83+1 -> 2016 | L83: =K83+1 -> 2017 | M83: =L83+1 -> 2018 | N83: =M83+1 -> 2019 | O83: =N83+1 -> 2020 | P83: =O83+1 -> 2021 | Q83: =P83+1 -> 2022 | R83: =Q83+1 -> 2023 | S83: =R83+1 -> 2024 | T83: =S83+1 -> 2025 | U83: =T83+1 -> 2026 | V83: =U83+1 -> 2027 | W83: =V83+1 -> 2028 | X83: =W83+1 -> 2029 | Y83: =X83+1 -> 2030 | Z83: =Y83+1 -> 2031 | AA83: =Z83+1 -> 2032 | AB83: =AA83+1 -> 2033 | AC83: =AB83+1 -> 2034
C84: EL0 | D84: 13 | E84: 0.07677473946 | F84: 0.07523518983 | G84: 0.07870805595 | H84: 0.08059335636 | I84: 0.08202141676 | J84: 0.08389236644 | K84: 0.08568811637 | L84: 0.009233912145 | M84: 0 | N84: 0 | O84: 0 | P84: 0 | Q84: 0 | R84: 0 | S84: 0 | T84: 0 | U84: 0 | V84: 0 | W84: 0 | X84: 0 | Y84: 0 | Z84: 0 | AA84: 0 | AB84: 0 | AC84: 0
C85: EL1 | D85: 13.5 | E85: 0.1503505314 | F85: 0.1473355801 | G85: 0.1541366096 | H85: 0.1578286562 | I85: 0.1606252745 | J85: 0.1642892176 | K85: 0.1678058946 | L85: 0.2480456961 | M85: 0.1910991215 | N85: 0.112998498 | O85: 0.03198541907 | P85: 0 | Q85: 0 | R85: 0 | S85: 0 | T85: 0 | U85: 0 | V85: 0 | W85: 0 | X85: 0 | Y85: 0 | Z85: 0 | AA85: 0 | AB85: 0 | AC85: 0
C86: EL2 | D86: 14 | E86: 0.01279578991 | F86: 0.0125391983 | G86: 0.01311800933 | H86: 0.01343222606 | I86: 0.01367023613 | J86: 0.01398206107 | K86: 0.01428135273 | L86: 0.01449462581 | M86: 0.08464227319 | N86: 0.1668107832 | O86: 0.250958105 | P86: 0.2331669169 | Q86: 0.1504516295 | R86: 0.06649422654 | S86: 0 | T86: 0 | U86: 0 | V86: 0 | W86: 0 | X86: 0 | Y86: 0 | Z86: 0 | AA86: 0 | AB86: 0 | AC86: 0
C87: EL3 | D87: 14.5 | E87: 0.02319236921 | F87: 0.02272729693 | G87: 0.0237763919 | H87: 0.02434590973 | I87: 0.02477730298 | J87: 0.0253424857 | K87: 0.02588495182 | L87: 0.02627150929 | M87: 0.02665500149 | N87: 0.02704823051 | O87: 0.02735120733 | P87: 0.07842658248 | Q87: 0.1628586994 | R87: 0.2492243262 | S87: 0.2994089943 | T87: 0.2149495713 | U87: 0.1277833638 | V87: 0.03840083443 | W87: 0 | X87: 0 | Y87: 0 | Z87: 0 | AA87: 0 | AB87: 0 | AC87: 0
C88: EL4 | D88: 15 | E88: 0.018393948 | F88: 0.01802509756 | G88: 0.0188571384 | H88: 0.01930882496 | I88: 0.01965096443 | J88: 0.02009921279 | K88: 0.02052944455 | L88: 0.02083602461 | M88: 0.0211401736 | N88: 0.02145204489 | O88: 0.02169233685 | P88: 0.02178313217 | Q88: 0.02190315369 | R88: 0.02207150976 | S88: 0.04154776333 | T88: 0.1298657184 | U88: 0.2202112573 | V88: 0.311953855 | W88: 0.2994909991 | X88: 0.2091292794 | Y88: 0.11739174 | Z88: 0.02336264241 | AA88: 0 | AB88: 0 | AC88: 0
C89: EL5 | D89: 15.5 | E89: 0.006397894955 | F89: 0.006269599152 | G89: 0.006559004663 | H89: 0.00671611303 | I89: 0.006835118064 | J89: 0.006991030537 | K89: 0.007140676364 | L89: 0.007247312907 | M89: 0.007353103859 | N89: 0.007461580831 | O89: 0.007545160643 | P89: 0.007576741626 | Q89: 0.007618488241 | R89: 0.007677046875 | S89: 0.007749017219 | T89: 0.007836711129 | U89: 0.007908968661 | V89: 0.007962606579 | W89: 0.06061037259 | X89: 0.1532993231 | Y89: 0.2483713401 | Z89: 0.3447727624 | AA89: 0.2976754928 | AB89: 0.2028299186 | AC89: 0.1061792583
C90: EL6 | D90: 16 | E90: 0.02239263234 | F90: 0.02194359703 | G90: 0.02295651632 | H90: 0.02350639561 | I90: 0.02392291322 | J90: 0.02446860688 | K90: 0.02499236728 | L90: 0.02536559518 | M90: 0.02573586351 | N90: 0.02611553291 | O90: 0.02640806225 | P90: 0.02651859569 | Q90: 0.02666470884 | R90: 0.02686966406 | S90: 0.02712156026 | T90: 0.02742848895 | U90: 0.02768139032 | V90: 0.02786912303 | W90: 0.02800788447 | X90: 0.0281888913 | Y90: 0.02844823956 | Z90: 0.0286327537 | AA90: 0.1010916611 | AB90: 0.198866867 | AC90: 0.2990228731
C91: EL7 | D91: 16.5 | E91: 0.001599473739 | F91: 0.001567399788 | G91: 0.001639751166 | H91: 0.001679028258 | I91: 0.001708779516 | J91: 0.001747757634 | K91: 0.001785169091 | L91: 0.001811828227 | M91: 0.001838275965 | N91: 0.001865395208 | O91: 0.001886290161 | P91: 0.001894185406 | Q91: 0.00190462206 | R91: 0.001919261719 | S91: 0.001937254305 | T91: 0.001959177782 | U91: 0.001977242165 | V91: 0.001990651645 | W91: 0.002000563176 | X91: 0.002013492236 | Y91: 0.002032017111 | Z91: 0.002045196693 | AA91: 0.002055500793 | AB91: 0.002070601987 | AC91: 0.00208867078
C92: EL8 | D92: 17 | E92: 0.04158631721 | F92: 0.04075239449 | G92: 0.04263353031 | H92: 0.0436547347 | I92: 0.04442826741 | J92: 0.04544169849 | K92: 0.04641439637 | L92: 0.0471075339 | M92: 0.04779517509 | N92: 0.0485002754 | O92: 0.04904354418 | P92: 0.04924882057 | Q92: 0.04952017356 | R92: 0.04990080469 | S92: 0.05036861192 | T92: 0.05093862234 | U92: 0.0514082963 | V92: 0.05175694276 | W92: 0.05201464258 | X92: 0.05235079814 | Y92: 0.05283244489 | Z92: 0.05317511402 | AA92: 0.05344302063 | AB92: 0.05383565167 | AC92: 0.05430544029
C93: EL9 | D93: 18 | E93: 0.02911042205 | F93: 0.02852667614 | G93: 0.02984347121 | H93: 0.03055831429 | I93: 0.03109978719 | J93: 0.03180918894 | K93: 0.03249007746 | L93: 0.03297527373 | M93: 0.03345662256 | N93: 0.03395019278 | O93: 0.03433048092 | P93: 0.0344741744 | Q93: 0.0346641215 | R93: 0.03493056328 | S93: 0.03525802834 | T93: 0.03565703564 | U93: 0.03598580741 | V93: 0.03622985993 | W93: 0.0364102498 | X93: 0.0366455587 | Y93: 0.03698271142 | Z93: 0.03722257982 | AA93: 0.03741011444 | AB93: 0.03768495617 | AC93: 0.0380138082
C94: EL10 | D94: 19 | E94: 0.01247589516 | F94: 0.01222571835 | G94: 0.01279005909 | H94: 0.01309642041 | I94: 0.01332848022 | J94: 0.01363250955 | K94: 0.01392431891 | L94: 0.01413226017 | M94: 0.01433855253 | N94: 0.01455008262 | O94: 0.01471306325 | P94: 0.01477464617 | Q94: 0.01485605207 | R94: 0.01497024141 | S94: 0.01511058358 | T94: 0.0152815867 | U94: 0.01542248889 | V94: 0.01552708283 | W94: 0.01560439277 | X94: 0.01570523944 | Y94: 0.01584973347 | Z94: 0.01595253421 | AA94: 0.01603290619 | AB94: 0.0161506955 | AC94: 0.01629163209
C95: EL11 | D95: 20 | E95: 0.008317263442 | F95: 0.008150478898 | G95: 0.008526706061 | H95: 0.008730946939 | I95: 0.008885653483 | J95: 0.009088339698 | K95: 0.009282879274 | L95: 0.009421506779 | M95: 0.009559035017 | N95: 0.00970005508 | O95: 0.009808708836 | P95: 0.009849764114 | Q95: 0.009904034713 | R95: 0.009980160937 | S95: 0.01007372238 | T95: 0.01018772447 | U95: 0.01028165926 | V95: 0.01035138855 | W95: 0.01040292852 | X95: 0.01047015963 | Y95: 0.01056648898 | Z95: 0.0106350228 | AA95: 0.01068860413 | AB95: 0.01076713033 | AC95: 0.01086108806
C96: EL12 | D96: 21 | E96: 0.008317263442 | F96: 0.008150478898 | G96: 0.008526706061 | H96: 0.008730946939 | I96: 0.008885653483 | J96: 0.009088339698 | K96: 0.009282879274 | L96: 0.009421506779 | M96: 0.009559035017 | N96: 0.00970005508 | O96: 0.009808708836 | P96: 0.009849764114 | Q96: 0.009904034713 | R96: 0.009980160937 | S96: 0.01007372238 | T96: 0.01018772447 | U96: 0.01028165926 | V96: 0.01035138855 | W96: 0.01040292852 | X96: 0.01047015963 | Y96: 0.01056648898 | Z96: 0.0106350228 | AA96: 0.01068860413 | AB96: 0.01076713033 | AC96: 0.01086108806
C97: EL13 | D97: 22 | E97: 0.004158631721 | F97: 0.004075239449 | G97: 0.004263353031 | H97: 0.00436547347 | I97: 0.004442826741 | J97: 0.004544169849 | K97: 0.004641439637 | L97: 0.00471075339 | M97: 0.004779517509 | N97: 0.00485002754 | O97: 0.004904354418 | P97: 0.004924882057 | Q97: 0.004952017356 | R97: 0.004990080469 | S97: 0.005036861192 | T97: 0.005093862234 | U97: 0.00514082963 | V97: 0.005175694276 | W97: 0.005201464258 | X97: 0.005235079814 | Y97: 0.005283244489 | Z97: 0.005317511402 | AA97: 0.005344302063 | AB97: 0.005383565167 | AC97: 0.005430544029
C98: EL14 | D98: 23 | E98: 0 | F98: 0 | G98: 0 | H98: 0 | I98: 0 | J98: 0 | K98: 0 | L98: 0 | M98: 0 | N98: 0 | O98: 0 | P98: 0 | Q98: 0 | R98: 0 | S98: 0 | T98: 0 | U98: 0 | V98: 0 | W98: 0 | X98: 0 | Y98: 0 | Z98: 0 | AA98: 0 | AB98: 0 | AC98: 0
C99: EL15 | D99: 24.5 | E99: 0 | F99: 0 | G99: 0 | H99: 0 | I99: 0 | J99: 0 | K99: 0 | L99: 0 | M99: 0 | N99: 0 | O99: 0 | P99: 0 | Q99: 0 | R99: 0 | S99: 0 | T99: 0 | U99: 0 | V99: 0 | W99: 0 | X99: 0 | Y99: 0 | Z99: 0 | AA99: 0 | AB99: 0 | AC99: 0
C100: TOTAL | E100: =SUM(E84:E99) -> 0.4158631721 | F100: 0.4075239449 | G100: 0.4263353031 | H100: 0.436547347 | I100: 0.4442826741 | J100: 0.4544169849 | K100: 0.4641439637 | L100: 0.471075339 | M100: 0.4779517509 | N100: 0.485002754 | O100: 0.4904354418 | P100: 0.4924882057 | Q100: 0.4952017356 | R100: 0.4990080469 | S100: 0.5036861192 | T100: 0.5093862234 | U100: 0.514082963 | V100: 0.5175694276 | W100: 0.5201464258 | X100: 0.5235079814 | Y100: 0.5283244489 | Z100: 0.5317511402 | AA100: 0.5344302063 | AB100: 0.5383565167 | AC100: 0.5430544029
C102: ='Product Classes'!H13&" - "&OFFSET('Product Classes'!$C$9,MATCH('Product Classes'!H13,MODEL_PCS,0),0) -> PC3 - Single package air conditioners | E102: Shipments in Millions
C104: Efficiency Level | D104: SEER | E104: 2010 | F104: =E104+1 -> 2011 | G104: =F104+1 -> 2012 | H104: =G104+1 -> 2013 | I104: =H104+1 -> 2014 | J104: =I104+1 -> 2015 | K104: =J104+1 -> 2016 | L104: =K104+1 -> 2017 | M104: =L104+1 -> 2018 | N104: =M104+1 -> 2019 | O104: =N104+1 -> 2020 | P104: =O104+1 -> 2021 | Q104: =P104+1 -> 2022 | R104: =Q104+1 -> 2023 | S104: =R104+1 -> 2024 | T104: =S104+1 -> 2025 | U104: =T104+1 -> 2026 | V104: =U104+1 -> 2027 | W104: =V104+1 -> 2028 | X104: =W104+1 -> 2029 | Y104: =X104+1 -> 2030 | Z104: =Y104+1 -> 2031 | AA104: =Z104+1 -> 2032 | AB104: =AA104+1 -> 2033 | AC104: =AB104+1 -> 2034
C105: EL0 | D105: 13 | E105: 0.2634455317 | F105: 0.2543831642 | G105: 0.2640113927 | H105: 0.2687987494 | I105: 0 | J105: 0 | K105: 0 | L105: 0 | M105: 0 | N105: 0 | O105: 0 | P105: 0 | Q105: 0 | R105: 0 | S105: 0 | T105: 0 | U105: 0 | V105: 0 | W105: 0 | X105: 0 | Y105: 0 | Z105: 0 | AA105: 0 | AB105: 0 | AC105: 0
C106: EL1 | D106: 13.5 | E106: 0.08403366243 | F106: 0.0811429551 | G106: 0.08421416036 | H106: 0.08574122787 | I106: 0.3144910723 | J106: 0 | K106: 0 | L106: 0 | M106: 0 | N106: 0 | O106: 0 | P106: 0 | Q106: 0 | R106: 0 | S106: 0 | T106: 0 | U106: 0 | V106: 0 | W106: 0 | X106: 0 | Y106: 0 | Z106: 0 | AA106: 0 | AB106: 0 | AC106: 0
C107: EL2 | D107: 14 | E107: 0.06008406864 | F107: 0.0580172129 | G107: 0.06021312466 | H107: 0.06130497793 | I107: 0.1051187491 | J107: 0.4264174879 | K107: 0.4338989251 | L107: 0.3736251674 | M107: 0.3111925425 | N107: 0.2468383517 | O107: 0.1914640717 | P107: 0.137888096 | Q107: 0.08352351519 | R107: 0.02857162995 | S107: 0 | T107: 0 | U107: 0 | V107: 0 | W107: 0 | X107: 0 | Y107: 0 | Z107: 0 | AA107: 0 | AB107: 0 | AC107: 0
C108: EL3 | D108: 14.5 | E108: 0.008403366243 | F108: 0.00811429551 | G108: 0.008421416036 | H108: 0.008574122787 | I108: 0.008651748894 | J108: 0.008792113153 | K108: 0.008946369589 | L108: 0.07435220288 | M108: 0.1419925408 | N108: 0.2117249347 | O108: 0.2727684422 | P108: 0.3278566553 | Q108: 0.3834466101 | R108: 0.4410828381 | S108: 0.428128124 | T108: 0.3358079657 | U108: 0.24048926 | V108: 0.1426762349 | W108: 0.0430033909 | X108: 0 | Y108: 0 | Z108: 0 | AA108: 0 | AB108: 0 | AC108: 0
C109: EL4 | D109: 15 | E109: 0.004201683121 | F109: 0.004057147755 | G109: 0.004210708018 | H109: 0.004287061393 | I109: 0.004325874447 | J109: 0.004396056576 | K109: 0.004473184795 | L109: 0.004525023942 | M109: 0.004577627104 | N109: 0.004631952388 | O109: 0.004689217312 | P109: 0.004704492438 | Q109: 0.004716869952 | R109: 0.004743984525 | S109: 0.0498833208 | T109: 0.1468409839 | U109: 0.2458782208 | V109: 0.3463878696 | W109: 0.4480722765 | X109: 0.4424721725 | Y109: 0.3551958351 | Z109: 0.2650248466 | AA109: 0.1728983334 | AB109: 0.07939089755 | AC109: 0
C110: EL5 | D110: 15.5 | E110: 0 | F110: 0 | G110: 0 | H110: 0 | I110: 0 | J110: 0 | K110: 0 | L110: 0 | M110: 0 | N110: 0 | O110: 0 | P110: 0 | Q110: 0 | R110: 0 | S110: 0 | T110: 0 | U110: 0 | V110: 0 | W110: 0 | X110: 0.05147252499 | Y110: 0.1430203904 | Z110: 0.2361743709 | AA110: 0.3307045117 | AB110: 0.4277375336 | AC110: 0.4848851137
C111: EL6 | D111: 16 | E111: 0 | F111: 0 | G111: 0 | H111: 0 | I111: 0 | J111: 0 | K111: 0 | L111: 0 | M111: 0 | N111: 0 | O111: 0 | P111: 0 | Q111: 0 | R111: 0 | S111: 0 | T111: 0 | U111: 0 | V111: 0 | W111: 0 | X111: 0 | Y111: 0 | Z111: 0 | AA111: 0 | AB111: 0 | AC111: 0.02654312039
C112: EL7 | D112: 16.5 | E112: 0 | F112: 0 | G112: 0 | H112: 0 | I112: 0 | J112: 0 | K112: 0 | L112: 0 | M112: 0 | N112: 0 | O112: 0 | P112: 0 | Q112: 0 | R112: 0 | S112: 0 | T112: 0 | U112: 0 | V112: 0 | W112: 0 | X112: 0 | Y112: 0 | Z112: 0 | AA112: 0 | AB112: 0 | AC112: 0
C113: TOTAL | E113: =SUM(E105:E112) -> 0.4201683121 | F113: 0.4057147755 | G113: 0.4210708018 | H113: 0.4287061393 | I113: 0.4325874447 | J113: 0.4396056576 | K113: 0.4473184795 | L113: 0.4525023942 | M113: 0.4577627104 | N113: 0.4631952388 | O113: 0.4689217312 | P113: 0.4704492438 | Q113: 0.4716869952 | R113: 0.4743984525 | S113: 0.4780114448 | T113: 0.4826489496 | U113: 0.4863674808 | V113: 0.4890641045 | W113: 0.4910756674 | X113: 0.4939446975 | Y113: 0.4982162255 | Z113: 0.5011992174 | AA113: 0.5036028451 | AB113: 0.5071284311 | AC113: 0.5114282341
C115: Shipment Weighted SEER | D115: SEER | E115: =E59 -> 13.85176381 | F115: =F59 -> 13.85261066 | G115: 13.85322526 | H115: 13.85361795 | I115: 13.85394202 | J115: =(SUMPRODUCT($D70:$D78,J70:J78)+SUMPRODUCT($D84:$D99,J84:J99)+SUMPRODUCT($D105:$D112,J105:J112))/SUM(J70:J78,J84:J99,J105:J112) -> 13.91810717 | K115: 13.91807319 | L115: 14.0011106 | M115: 14.07808986 | N115: 14.15550769 | O115: 14.23237434 | P115: 14.3092141 | Q115: 14.38648474 | R115: 14.46420119 | S115: 14.54396126 | T115: 14.62608672 | U115: 14.70867528 | V115: 14.79173095 | W115: 14.82132724 | X115: 14.84996321 | Y115: 14.87826643 | Z115: 14.90601978 | AA115: 14.933033 | AB115: 14.96040649 | AC115: 14.98908241
C117: Sources | D117: 2011 DOE Central ACs and Heat Pumps Final Rule GRIM, 'Shipment Assumptions (INPUT)' tab, Base Case Shipments for PC 1 and PC 2, TSL 3 for PC 3 (Ranges B8:J32, B50:Q74, and BZ134:CG158) (http://www.regulations.gov/#!documentDetail;D=EERE-2011-BT-STD-0011-0010)

Sheet Shipments and Stock - SF
C2: Shipments and Stock - SF
C4: NAVIGATION
C6: COMMENTS
C9: =MODEL_NAME -> CENTRAL AC
E10: 1981 | F10: 1982 | G10: 1983 | H10: 1984 | I10: 1985 | J10: 1986 | K10: 1987 | L10: 1988 | M10: 1989 | N10: 1990 | O10: 1991 | P10: 1992 | Q10: 1993 | R10: 1994 | S10: 1995 | T10: 1996 | U10: 1997 | V10: 1998 | W10: 1999 | X10: 2000 | Y10: 2001 | Z10: 2002 | AA10: 2003 | AB10: 2004 | AC10: 2005 | AD10: 2006 | AE10: 2007 | AF10: 2008 | AG10: 2009 | AH10: 2010 | AI10: 2011 | AJ10: 2012 | AK10: 2013 | AL10: 2014 | AM10: 2015 | AN10: 2016 | AO10: 2017 | AP10: 2018 | AQ10: 2019 | AR10: 2020 | AS10: 2021 | AT10: 2022 | AU10: 2023 | AV10: 2024 | AW10: 2025 | AX10: 2026 | AY10: 2027 | AZ10: 2028 | BA10: 2029 | BB10: 2030 | BC10: 2031 | BD10: 2032 | BE10: 2033 | BF10: 2034
C11: 6P Shipments | D11: (units) | E11: =IF(ISNUMBER(MATCH(E10,[1]!SIXTH_PLAN_SF_YEARS,0)), INDEX([1]!SIXTH_PLAN_SF, MATCH($C$9,[1]!APPLIANCES,0), MATCH(E$10,[1]!SIXTH_PLAN_SF_YEARS,0)),"pre-dates plan") -> pre-dates plan | F11: =IF(ISNUMBER(MATCH(F10,[1]!SIXTH_PLAN_SF_YEARS,0)), INDEX([1]!SIXTH_PLAN_SF, MATCH($C$9,[1]!APPLIANCES,0), MATCH(F$10,[1]!SIXTH_PLAN_SF_YEARS,0)),"pre-dates plan") -> pre-dates plan | G11: =IF(ISNUMBER(MATCH(G10,[1]!SIXTH_PLAN_SF_YEARS,0)), INDEX([1]!SIXTH_PLAN_SF, MATCH($C$9,[1]!APPLIANCES,0), MATCH(G$10,[1]!SIXTH_PLAN_SF_YEARS,0)),"pre-dates plan") -> pre-dates plan | H11: =IF(ISNUMBER(MATCH(H10,[1]!SIXTH_PLAN_SF_YEARS,0)), INDEX([1]!SIXTH_PLAN_SF, MATCH($C$9,[1]!APPLIANCES,0), MATCH(H$10,[1]!SIXTH_PLAN_SF_YEARS,0)),"pre-dates plan") -> pre-dates plan | I11: =IF(ISNUMBER(MATCH(I10,[1]!SIXTH_PLAN_SF_YEARS,0)), INDEX([1]!SIXTH_PLAN_SF, MATCH($C$9,[1]!APPLIANCES,0), MATCH(I$10,[1]!SIXTH_PLAN_SF_YEARS,0)),"pre-dates plan") -> pre-dates plan | J11: =IF(ISNUMBER(MATCH(J10,[1]!SIXTH_PLAN_SF_YEARS,0)), INDEX([1]!SIXTH_PLAN_SF, MATCH($C$9,[1]!APPLIANCES,0), MATCH(J$10,[1]!SIXTH_PLAN_SF_YEARS,0)),"pre-dates plan") -> pre-dates plan | K11: =IF(ISNUMBER(MATCH(K10,[1]!SIXTH_PLAN_SF_YEARS,0)), INDEX([1]!SIXTH_PLAN_SF, MATCH($C$9,[1]!APPLIANCES,0), MATCH(K$10,[1]!SIXTH_PLAN_SF_YEARS,0)),"pre-dates plan") -> pre-dates plan | L11: =IF(ISNUMBER(MATCH(L10,[1]!SIXTH_PLAN_SF_YEARS,0)), INDEX([1]!SIXTH_PLAN_SF, MATCH($C$9,[1]!APPLIANCES,0), MATCH(L$10,[1]!SIXTH_PLAN_SF_YEARS,0)),"pre-dates plan") -> pre-dates plan | M11: =IF(ISNUMBER(MATCH(M10,[1]!SIXTH_PLAN_SF_YEARS,0)), INDEX([1]!SIXTH_PLAN_SF, MATCH($C$9,[1]!APPLIANCES,0), MATCH(M$10,[1]!SIXTH_PLAN_SF_YEARS,0)),"pre-dates plan") -> pre-dates plan | N11: =IF(ISNUMBER(MATCH(N10,[1]!SIXTH_PLAN_SF_YEARS,0)), INDEX([1]!SIXTH_PLAN_SF, MATCH($C$9,[1]!APPLIANCES,0), MATCH(N$10,[1]!SIXTH_PLAN_SF_YEARS,0)),"pre-dates plan") -> pre-dates plan | O11: =IF(ISNUMBER(MATCH(O10,[1]!SIXTH_PLAN_SF_YEARS,0)), INDEX([1]!SIXTH_PLAN_SF, MATCH($C$9,[1]!APPLIANCES,0), MATCH(O$10,[1]!SIXTH_PLAN_SF_YEARS,0)),"pre-dates plan") -> pre-dates plan | P11: =IF(ISNUMBER(MATCH(P10,[1]!SIXTH_PLAN_SF_YEARS,0)), INDEX([1]!SIXTH_PLAN_SF, MATCH($C$9,[1]!APPLIANCES,0), MATCH(P$10,[1]!SIXTH_PLAN_SF_YEARS,0)),"pre-dates plan") -> pre-dates plan | Q11: =IF(ISNUMBER(MATCH(Q10,[1]!SIXTH_PLAN_SF_YEARS,0)), INDEX([1]!SIXTH_PLAN_SF, MATCH($C$9,[1]!APPLIANCES,0), MATCH(Q$10,[1]!SIXTH_PLAN_SF_YEARS,0)),"pre-dates plan") -> pre-dates plan | R11: =IF(ISNUMBER(MATCH(R10,[1]!SIXTH_PLAN_SF_YEARS,0)), INDEX([1]!SIXTH_PLAN_SF, MATCH($C$9,[1]!APPLIANCES,0), MATCH(R$10,[1]!SIXTH_PLAN_SF_YEARS,0)),"pre-dates plan") -> pre-dates plan | S11: =IF(ISNUMBER(MATCH(S10,[1]!SIXTH_PLAN_SF_YEARS,0)), INDEX([1]!SIXTH_PLAN_SF, MATCH($C$9,[1]!APPLIANCES,0), MATCH(S$10,[1]!SIXTH_PLAN_SF_YEARS,0)),"pre-dates plan") -> pre-dates plan | T11: =IF(ISNUMBER(MATCH(T10,[1]!SIXTH_PLAN_SF_YEARS,0)), INDEX([1]!SIXTH_PLAN_SF, MATCH($C$9,[1]!APPLIANCES,0), MATCH(T$10,[1]!SIXTH_PLAN_SF_YEARS,0)),"pre-dates plan") -> pre-dates plan | U11: =IF(ISNUMBER(MATCH(U10,[1]!SIXTH_PLAN_SF_YEARS,0)), INDEX([1]!SIXTH_PLAN_SF, MATCH($C$9,[1]!APPLIANCES,0), MATCH(U$10,[1]!SIXTH_PLAN_SF_YEARS,0)),"pre-dates plan") -> pre-dates plan | V11: =IF(ISNUMBER(MATCH(V10,[1]!SIXTH_PLAN_SF_YEARS,0)), INDEX([1]!SIXTH_PLAN_SF, MATCH($C$9,[1]!APPLIANCES,0), MATCH(V$10,[1]!SIXTH_PLAN_SF_YEARS,0)),"pre-dates plan") -> pre-dates plan | W11: =IF(ISNUMBER(MATCH(W10,[1]!SIXTH_PLAN_SF_YEARS,0)), INDEX([1]!SIXTH_PLAN_SF, MATCH($C$9,[1]!APPLIANCES,0), MATCH(W$10,[1]!SIXTH_PLAN_SF_YEARS,0)),"pre-dates plan") -> pre-dates plan | X11: =IF(ISNUMBER(MATCH(X10,[1]!SIXTH_PLAN_SF_YEARS,0)), INDEX([1]!SIXTH_PLAN_SF, MATCH($C$9,[1]!APPLIANCES,0), MATCH(X$10,[1]!SIXTH_PLAN_SF_YEARS,0)),"pre-dates plan") -> pre-dates plan | Y11: =IF(ISNUMBER(MATCH(Y10,[1]!SIXTH_PLAN_SF_YEARS,0)), INDEX([1]!SIXTH_PLAN_SF, MATCH($C$9,[1]!APPLIANCES,0), MATCH(Y$10,[1]!SIXTH_PLAN_SF_YEARS,0)),"pre-dates plan") -> pre-dates plan | Z11: =IF(ISNUMBER(MATCH(Z10,[1]!SIXTH_PLAN_SF_YEARS,0)), INDEX([1]!SIXTH_PLAN_SF, MATCH($C$9,[1]!APPLIANCES,0), MATCH(Z$10,[1]!SIXTH_PLAN_SF_YEARS,0)),"pre-dates plan") -> pre-dates plan | AA11: =IF(ISNUMBER(MATCH(AA10,[1]!SIXTH_PLAN_SF_YEARS,0)), INDEX([1]!SIXTH_PLAN_SF, MATCH($C$9,[1]!APPLIANCES,0), MATCH(AA$10,[1]!SIXTH_PLAN_SF_YEARS,0)),"pre-dates plan") -> pre-dates plan | AB11: =IF(ISNUMBER(MATCH(AB10,[1]!SIXTH_PLAN_SF_YEARS,0)), INDEX([1]!SIXTH_PLAN_SF, MATCH($C$9,[1]!APPLIANCES,0), MATCH(AB$10,[1]!SIXTH_PLAN_SF_YEARS,0)),"pre-dates plan") -> pre-dates plan | AC11: =IF(ISNUMBER(MATCH(AC10,[1]!SIXTH_PLAN_SF_YEARS,0)), INDEX([1]!SIXTH_PLAN_SF, MATCH($C$9,[1]!APPLIANCES,0), MATCH(AC$10,[1]!SIXTH_PLAN_SF_YEARS,0)),"pre-dates plan") -> pre-dates plan | AD11: =IF(ISNUMBER(MATCH(AD10,[1]!SIXTH_PLAN_SF_YEARS,0)), INDEX([1]!SIXTH_PLAN_SF, MATCH($C$9,[1]!APPLIANCES,0), MATCH(AD$10,[1]!SIXTH_PLAN_SF_YEARS,0)),"pre-dates plan") -> pre-dates plan | AE11: =IF(ISNUMBER(MATCH(AE10,[1]!SIXTH_PLAN_SF_YEARS,0)), INDEX([1]!SIXTH_PLAN_SF, MATCH($C$9,[1]!APPLIANCES,0), MATCH(AE$10,[1]!SIXTH_PLAN_SF_YEARS,0)),"pre-dates plan") -> pre-dates plan | AF11: =IF(ISNUMBER(MATCH(AF10,[1]!SIXTH_PLAN_SF_YEARS,0)), INDEX([1]!SIXTH_PLAN_SF, MATCH($C$9,[1]!APPLIANCES,0), MATCH(AF$10,[1]!SIXTH_PLAN_SF_YEARS,0)),"pre-dates plan") -> pre-dates plan | AG11: =IF(ISNUMBER(MATCH(AG10,[1]!SIXTH_PLAN_SF_YEARS,0)), INDEX([1]!SIXTH_PLAN_SF, MATCH($C$9,[1]!APPLIANCES,0), MATCH(AG$10,[1]!SIXTH_PLAN_SF_YEARS,0)),"pre-dates plan") -> pre-dates plan | AH11: =IF(ISNUMBER(MATCH(AH10,[1]!SIXTH_PLAN_SF_YEARS,0)), INDEX([1]!SIXTH_PLAN_SF, MATCH($C$9,[1]!APPLIANCES,0), MATCH(AH$10,[1]!SIXTH_PLAN_SF_YEARS,0)),"pre-dates plan") -> 141874.0042 | AI11: =IF(ISNUMBER(MATCH(AI10,[1]!SIXTH_PLAN_SF_YEARS,0)), INDEX([1]!SIXTH_PLAN_SF, MATCH($C$9,[1]!APPLIANCES,0), MATCH(AI$10,[1]!SIXTH_PLAN_SF_YEARS,0)),"pre-dates plan") -> 150381.4088 | AJ11: =IF(ISNUMBER(MATCH(AJ10,[1]!SIXTH_PLAN_SF_YEARS,0)), INDEX([1]!SIXTH_PLAN_SF, MATCH($C$9,[1]!APPLIANCES,0), MATCH(AJ$10,[1]!SIXTH_PLAN_SF_YEARS,0)),"pre-dates plan") -> 155273.6453 | AK11: =IF(ISNUMBER(MATCH(AK10,[1]!SIXTH_PLAN_SF_YEARS,0)), INDEX([1]!SIXTH_PLAN_SF, MATCH($C$9,[1]!APPLIANCES,0), MATCH(AK$10,[1]!SIXTH_PLAN_SF_YEARS,0)),"pre-dates plan") -> 156179.5557 | AL11: =IF(ISNUMBER(MATCH(AL10,[1]!SIXTH_PLAN_SF_YEARS,0)), INDEX([1]!SIXTH_PLAN_SF, MATCH($C$9,[1]!APPLIANCES,0), MATCH(AL$10,[1]!SIXTH_PLAN_SF_YEARS,0)),"pre-dates plan") -> 155920.5949 | AM11: =IF(ISNUMBER(MATCH(AM10,[1]!SIXTH_PLAN_SF_YEARS,0)), INDEX([1]!SIXTH_PLAN_SF, MATCH($C$9,[1]!APPLIANCES,0), MATCH(AM$10,[1]!SIXTH_PLAN_SF_YEARS,0)),"pre-dates plan") -> 156033.8799 | AN11: =IF(ISNUMBER(MATCH(AN10,[1]!SIXTH_PLAN_SF_YEARS,0)), INDEX([1]!SIXTH_PLAN_SF, MATCH($C$9,[1]!APPLIANCES,0), MATCH(AN$10,[1]!SIXTH_PLAN_SF_YEARS,0)),"pre-dates plan") -> 156151.5837 | AO11: =IF(ISNUMBER(MATCH(AO10,[1]!SIXTH_PLAN_SF_YEARS,0)), INDEX([1]!SIXTH_PLAN_SF, MATCH($C$9,[1]!APPLIANCES,0), MATCH(AO$10,[1]!SIXTH_PLAN_SF_YEARS,0)),"pre-dates plan") -> 155508.9035 | AP11: =IF(ISNUMBER(MATCH(AP10,[1]!SIXTH_PLAN_SF_YEARS,0)), INDEX([1]!SIXTH_PLAN_SF, MATCH($C$9,[1]!APPLIANCES,0), MATCH(AP$10,[1]!SIXTH_PLAN_SF_YEARS,0)),"pre-dates plan") -> 154790.9843 | AQ11: =IF(ISNUMBER(MATCH(AQ10,[1]!SIXTH_PLAN_SF_YEARS,0)), INDEX([1]!SIXTH_PLAN_SF, MATCH($C$9,[1]!APPLIANCES,0), MATCH(AQ$10,[1]!SIXTH_PLAN_SF_YEARS,0)),"pre-dates plan") -> 154017.2553 | AR11: =IF(ISNUMBER(MATCH(AR10,[1]!SIXTH_PLAN_SF_YEARS,0)), INDEX([1]!SIXTH_PLAN_SF, MATCH($C$9,[1]!APPLIANCES,0), MATCH(AR$10,[1]!SIXTH_PLAN_SF_YEARS,0)),"pre-dates plan") -> 155320.0056 | AS11: =IF(ISNUMBER(MATCH(AS10,[1]!SIXTH_PLAN_SF_YEARS,0)), INDEX([1]!SIXTH_PLAN_SF, MATCH($C$9,[1]!APPLIANCES,0), MATCH(AS$10,[1]!SIXTH_PLAN_SF_YEARS,0)),"pre-dates plan") -> 154382.5623 | AT11: =IF(ISNUMBER(MATCH(AT10,[1]!SIXTH_PLAN_SF_YEARS,0)), INDEX([1]!SIXTH_PLAN_SF, MATCH($C$9,[1]!APPLIANCES,0), MATCH(AT$10,[1]!SIXTH_PLAN_SF_YEARS,0)),"pre-dates plan") -> 153762.2718 | AU11: =IF(ISNUMBER(MATCH(AU10,[1]!SIXTH_PLAN_SF_YEARS,0)), INDEX([1]!SIXTH_PLAN_SF, MATCH($C$9,[1]!APPLIANCES,0), MATCH(AU$10,[1]!SIXTH_PLAN_SF_YEARS,0)),"pre-dates plan") -> 153315.0372 | AV11: =IF(ISNUMBER(MATCH(AV10,[1]!SIXTH_PLAN_SF_YEARS,0)), INDEX([1]!SIXTH_PLAN_SF, MATCH($C$9,[1]!APPLIANCES,0), MATCH(AV$10,[1]!SIXTH_PLAN_SF_YEARS,0)),"pre-dates plan") -> 152802.543 | AW11: =IF(ISNUMBER(MATCH(AW10,[1]!SIXTH_PLAN_SF_YEARS,0)), INDEX([1]!SIXTH_PLAN_SF, MATCH($C$9,[1]!APPLIANCES,0), MATCH(AW$10,[1]!SIXTH_PLAN_SF_YEARS,0)),"pre-dates plan") -> 152688.8349 | AX11: =IF(ISNUMBER(MATCH(AX10,[1]!SIXTH_PLAN_SF_YEARS,0)), INDEX([1]!SIXTH_PLAN_SF, MATCH($C$9,[1]!APPLIANCES,0), MATCH(AX$10,[1]!SIXTH_PLAN_SF_YEARS,0)),"pre-dates plan") -> 152386.7173 | AY11: =IF(ISNUMBER(MATCH(AY10,[1]!SIXTH_PLAN_SF_YEARS,0)), INDEX([1]!SIXTH_PLAN_SF, MATCH($C$9,[1]!APPLIANCES,0), MATCH(AY$10,[1]!SIXTH_PLAN_SF_YEARS,0)),"pre-dates plan") -> 151740.897 | AZ11: =IF(ISNUMBER(MATCH(AZ10,[1]!SIXTH_PLAN_SF_YEARS,0)), INDEX([1]!SIXTH_PLAN_SF, MATCH($C$9,[1]!APPLIANCES,0), MATCH(AZ$10,[1]!SIXTH_PLAN_SF_YEARS,0)),"pre-dates plan") -> 31434.84854 | BA11: =IF(ISNUMBER(MATCH(BA10,[1]!SIXTH_PLAN_SF_YEARS,0)), INDEX([1]!SIXTH_PLAN_SF, MATCH($C$9,[1]!APPLIANCES,0), MATCH(BA$10,[1]!SIXTH_PLAN_SF_YEARS,0)),"pre-dates plan") -> 30861.81413 | BB11: =IF(ISNUMBER(MATCH(BB10,[1]!SIXTH_PLAN_SF_YEARS,0)), INDEX([1]!SIXTH_PLAN_SF, MATCH($C$9,[1]!APPLIANCES,0), MATCH(BB$10,[1]!SIXTH_PLAN_SF_YEARS,0)),"pre-dates plan") -> 30737.88411 | BC11: =IF(ISNUMBER(MATCH(BC10,[1]!SIXTH_PLAN_SF_YEARS,0)), INDEX([1]!SIXTH_PLAN_SF, MATCH($C$9,[1]!APPLIANCES,0), MATCH(BC$10,[1]!SIXTH_PLAN_SF_YEARS,0)),"pre-dates plan") -> 30737.88411 | BD11: =IF(ISNUMBER(MATCH(BD10,[1]!SIXTH_PLAN_SF_YEARS,0)), INDEX([1]!SIXTH_PLAN_SF, MATCH($C$9,[1]!APPLIANCES,0), MATCH(BD$10,[1]!SIXTH_PLAN_SF_YEARS,0)),"pre-dates plan") -> 30737.88411 | BE11: =IF(ISNUMBER(MATCH(BE10,[1]!SIXTH_PLAN_SF_YEARS,0)), INDEX([1]!SIXTH_PLAN_SF, MATCH($C$9,[1]!APPLIANCES,0), MATCH(BE$10,[1]!SIXTH_PLAN_SF_YEARS,0)),"pre-dates plan") -> 30737.88411 | BF11: =IF(ISNUMBER(MATCH(BF10,[1]!SIXTH_PLAN_SF_YEARS,0)), INDEX([1]!SIXTH_PLAN_SF, MATCH($C$9,[1]!APPLIANCES,0), MATCH(BF$10,[1]!SIXTH_PLAN_SF_YEARS,0)),"pre-dates plan") -> 30737.88411
C12: Replacement Shipments | D12: (units) | E12: =INDEX([1]!SHIPMENTS_SF, ((MATCH($C$9,[1]!APPLIANCES,0)-1)*2)+1, MATCH(E$10,[1]!SHIPMENTS_SF_YEARS,0)) -> 12911.7561 | F12: =INDEX([1]!SHIPMENTS_SF, ((MATCH($C$9,[1]!APPLIANCES,0)-1)*2)+1, MATCH(F$10,[1]!SHIPMENTS_SF_YEARS,0)) -> 12911.7561 | G12: =INDEX([1]!SHIPMENTS_SF, ((MATCH($C$9,[1]!APPLIANCES,0)-1)*2)+1, MATCH(G$10,[1]!SHIPMENTS_SF_YEARS,0)) -> 12911.7561 | H12: =INDEX([1]!SHIPMENTS_SF, ((MATCH($C$9,[1]!APPLIANCES,0)-1)*2)+1, MATCH(H$10,[1]!SHIPMENTS_SF_YEARS,0)) -> 12911.7561 | I12: =INDEX([1]!SHIPMENTS_SF, ((MATCH($C$9,[1]!APPLIANCES,0)-1)*2)+1, MATCH(I$10,[1]!SHIPMENTS_SF_YEARS,0)) -> 12911.7561 | J12: =INDEX([1]!SHIPMENTS_SF, ((MATCH($C$9,[1]!APPLIANCES,0)-1)*2)+1, MATCH(J$10,[1]!SHIPMENTS_SF_YEARS,0)) -> 12911.7561 | K12: =INDEX([1]!SHIPMENTS_SF, ((MATCH($C$9,[1]!APPLIANCES,0)-1)*2)+1, MATCH(K$10,[1]!SHIPMENTS_SF_YEARS,0)) -> 12911.7561 | L12: =INDEX([1]!SHIPMENTS_SF, ((MATCH($C$9,[1]!APPLIANCES,0)-1)*2)+1, MATCH(L$10,[1]!SHIPMENTS_SF_YEARS,0)) -> 12911.7561 | M12: =INDEX([1]!SHIPMENTS_SF, ((MATCH($C$9,[1]!APPLIANCES,0)-1)*2)+1, MATCH(M$10,[1]!SHIPMENTS_SF_YEARS,0)) -> 12911.7561 | N12: =INDEX([1]!SHIPMENTS_SF, ((MATCH($C$9,[1]!APPLIANCES,0)-1)*2)+1, MATCH(N$10,[1]!SHIPMENTS_SF_YEARS,0)) -> 12911.7561 | O12: =INDEX([1]!SHIPMENTS_SF, ((MATCH($C$9,[1]!APPLIANCES,0)-1)*2)+1, MATCH(O$10,[1]!SHIPMENTS_SF_YEARS,0)) -> 12911.7561 | P12: =INDEX([1]!SHIPMENTS_SF, ((MATCH($C$9,[1]!APPLIANCES,0)-1)*2)+1, MATCH(P$10,[1]!SHIPMENTS_SF_YEARS,0)) -> 12911.7561 | Q12: =INDEX([1]!SHIPMENTS_SF, ((MATCH($C$9,[1]!APPLIANCES,0)-1)*2)+1, MATCH(Q$10,[1]!SHIPMENTS_SF_YEARS,0)) -> 12911.7561 | R12: =INDEX([1]!SHIPMENTS_SF, ((MATCH($C$9,[1]!APPLIANCES,0)-1)*2)+1, MATCH(R$10,[1]!SHIPMENTS_SF_YEARS,0)) -> 12911.7561 | S12: =INDEX([1]!SHIPMENTS_SF, ((MATCH($C$9,[1]!APPLIANCES,0)-1)*2)+1, MATCH(S$10,[1]!SHIPMENTS_SF_YEARS,0)) -> 12911.7561 | T12: =INDEX([1]!SHIPMENTS_SF, ((MATCH($C$9,[1]!APPLIANCES,0)-1)*2)+1, MATCH(T$10,[1]!SHIPMENTS_SF_YEARS,0)) -> 12911.7561 | U12: =INDEX([1]!SHIPMENTS_SF, ((MATCH($C$9,[1]!APPLIANCES,0)-1)*2)+1, MATCH(U$10,[1]!SHIPMENTS_SF_YEARS,0)) -> 12911.7561 | V12: =INDEX([1]!SHIPMENTS_SF, ((MATCH($C$9,[1]!APPLIANCES,0)-1)*2)+1, MATCH(V$10,[1]!SHIPMENTS_SF_YEARS,0)) -> 12911.7561 | W12: =INDEX([1]!SHIPMENTS_SF, ((MATCH($C$9,[1]!APPLIANCES,0)-1)*2)+1, MATCH(W$10,[1]!SHIPMENTS_SF_YEARS,0)) -> 12911.7561 | X12: =INDEX([1]!SHIPMENTS_SF, ((MATCH($C$9,[1]!APPLIANCES,0)-1)*2)+1, MATCH(X$10,[1]!SHIPMENTS_SF_YEARS,0)) -> 16010.53654 | Y12: =INDEX([1]!SHIPMENTS_SF, ((MATCH($C$9,[1]!APPLIANCES,0)-1)*2)+1, MATCH(Y$10,[1]!SHIPMENTS_SF_YEARS,0)) -> 15042.56852 | Z12: =INDEX([1]!SHIPMENTS_SF, ((MATCH($C$9,[1]!APPLIANCES,0)-1)*2)+1, MATCH(Z$10,[1]!SHIPMENTS_SF_YEARS,0)) -> 16216.64423 | AA12: =INDEX([1]!SHIPMENTS_SF, ((MATCH($C$9,[1]!APPLIANCES,0)-1)*2)+1, MATCH(AA$10,[1]!SHIPMENTS_SF_YEARS,0)) -> 15982.76816 | AB12: =INDEX([1]!SHIPMENTS_SF, ((MATCH($C$9,[1]!APPLIANCES,0)-1)*2)+1, MATCH(AB$10,[1]!SHIPMENTS_SF_YEARS,0)) -> 15841.58796 | AC12: =INDEX([1]!SHIPMENTS_SF, ((MATCH($C$9,[1]!APPLIANCES,0)-1)*2)+1, MATCH(AC$10,[1]!SHIPMENTS_SF_YEARS,0)) -> 16076.11199 | AD12: =INDEX([1]!SHIPMENTS_SF, ((MATCH($C$9,[1]!APPLIANCES,0)-1)*2)+1, MATCH(AD$10,[1]!SHIPMENTS_SF_YEARS,0)) -> 16094.88405 | AE12: =INDEX([1]!SHIPMENTS_SF, ((MATCH($C$9,[1]!APPLIANCES,0)-1)*2)+1, MATCH(AE$10,[1]!SHIPMENTS_SF_YEARS,0)) -> 16422.00066 | AF12: =INDEX([1]!SHIPMENTS_SF, ((MATCH($C$9,[1]!APPLIANCES,0)-1)*2)+1, MATCH(AF$10,[1]!SHIPMENTS_SF_YEARS,0)) -> 17225.20836 | AG12: =INDEX([1]!SHIPMENTS_SF, ((MATCH($C$9,[1]!APPLIANCES,0)-1)*2)+1, MATCH(AG$10,[1]!SHIPMENTS_SF_YEARS,0)) -> 17823.03147 | AH12: =INDEX([1]!SHIPMENTS_SF, ((MATCH($C$9,[1]!APPLIANCES,0)-1)*2)+1, MATCH(AH$10,[1]!SHIPMENTS_SF_YEARS,0)) -> 17214.00522 | AI12: =INDEX([1]!SHIPMENTS_SF, ((MATCH($C$9,[1]!APPLIANCES,0)-1)*2)+1, MATCH(AI$10,[1]!SHIPMENTS_SF_YEARS,0)) -> 18240.92823 | AJ12: =INDEX([1]!SHIPMENTS_SF, ((MATCH($C$9,[1]!APPLIANCES,0)-1)*2)+1, MATCH(AJ$10,[1]!SHIPMENTS_SF_YEARS,0)) -> 31182.36295 | AK12: =INDEX([1]!SHIPMENTS_SF, ((MATCH($C$9,[1]!APPLIANCES,0)-1)*2)+1, MATCH(AK$10,[1]!SHIPMENTS_SF_YEARS,0)) -> 32063.78782 | AL12: =INDEX([1]!SHIPMENTS_SF, ((MATCH($C$9,[1]!APPLIANCES,0)-1)*2)+1, MATCH(AL$10,[1]!SHIPMENTS_SF_YEARS,0)) -> 31831.66275 | AM12: =INDEX([1]!SHIPMENTS_SF, ((MATCH($C$9,[1]!APPLIANCES,0)-1)*2)+1, MATCH(AM$10,[1]!SHIPMENTS_SF_YEARS,0)) -> 32578.268 | AN12: =INDEX([1]!SHIPMENTS_SF, ((MATCH($C$9,[1]!APPLIANCES,0)-1)*2)+1, MATCH(AN$10,[1]!SHIPMENTS_SF_YEARS,0)) -> 33023.26641 | AO12: =INDEX([1]!SHIPMENTS_SF, ((MATCH($C$9,[1]!APPLIANCES,0)-1)*2)+1, MATCH(AO$10,[1]!SHIPMENTS_SF_YEARS,0)) -> 33776.10783 | AP12: =INDEX([1]!SHIPMENTS_SF, ((MATCH($C$9,[1]!APPLIANCES,0)-1)*2)+1, MATCH(AP$10,[1]!SHIPMENTS_SF_YEARS,0)) -> 34123.115 | AQ12: =INDEX([1]!SHIPMENTS_SF, ((MATCH($C$9,[1]!APPLIANCES,0)-1)*2)+1, MATCH(AQ$10,[1]!SHIPMENTS_SF_YEARS,0)) -> 37093.43074 | AR12: =INDEX([1]!SHIPMENTS_SF, ((MATCH($C$9,[1]!APPLIANCES,0)-1)*2)+1, MATCH(AR$10,[1]!SHIPMENTS_SF_YEARS,0)) -> 36742.72211 | AS12: =INDEX([1]!SHIPMENTS_SF, ((MATCH($C$9,[1]!APPLIANCES,0)-1)*2)+1, MATCH(AS$10,[1]!SHIPMENTS_SF_YEARS,0)) -> 39340.52417 | AT12: =INDEX([1]!SHIPMENTS_SF, ((MATCH($C$9,[1]!APPLIANCES,0)-1)*2)+1, MATCH(AT$10,[1]!SHIPMENTS_SF_YEARS,0)) -> 40598.2615 | AU12: =INDEX([1]!SHIPMENTS_SF, ((MATCH($C$9,[1]!APPLIANCES,0)-1)*2)+1, MATCH(AU$10,[1]!SHIPMENTS_SF_YEARS,0)) -> 41556.71691 | AV12: =INDEX([1]!SHIPMENTS_SF, ((MATCH($C$9,[1]!APPLIANCES,0)-1)*2)+1, MATCH(AV$10,[1]!SHIPMENTS_SF_YEARS,0)) -> 43621.59044 | AW12: =INDEX([1]!SHIPMENTS_SF, ((MATCH($C$9,[1]!APPLIANCES,0)-1)*2)+1, MATCH(AW$10,[1]!SHIPMENTS_SF_YEARS,0)) -> 43010.26785 | AX12: =INDEX([1]!SHIPMENTS_SF, ((MATCH($C$9,[1]!APPLIANCES,0)-1)*2)+1, MATCH(AX$10,[1]!SHIPMENTS_SF_YEARS,0)) -> 41156.74252 | AY12: =INDEX([1]!SHIPMENTS_SF, ((MATCH($C$9,[1]!APPLIANCES,0)-1)*2)+1, MATCH(AY$10,[1]!SHIPMENTS_SF_YEARS,0)) -> 38663.35048 | AZ12: =INDEX([1]!SHIPMENTS_SF, ((MATCH($C$9,[1]!APPLIANCES,0)-1)*2)+1, MATCH(AZ$10,[1]!SHIPMENTS_SF_YEARS,0)) -> 38242.23633 | BA12: =INDEX([1]!SHIPMENTS_SF, ((MATCH($C$9,[1]!APPLIANCES,0)-1)*2)+1, MATCH(BA$10,[1]!SHIPMENTS_SF_YEARS,0)) -> 40566.93451 | BB12: =INDEX([1]!SHIPMENTS_SF, ((MATCH($C$9,[1]!APPLIANCES,0)-1)*2)+1, MATCH(BB$10,[1]!SHIPMENTS_SF_YEARS,0)) -> 44688.66771 | BC12: =INDEX([1]!SHIPMENTS_SF, ((MATCH($C$9,[1]!APPLIANCES,0)-1)*2)+1, MATCH(BC$10,[1]!SHIPMENTS_SF_YEARS,0)) -> 42781.8862 | BD12: =INDEX([1]!SHIPMENTS_SF, ((MATCH($C$9,[1]!APPLIANCES,0)-1)*2)+1, MATCH(BD$10,[1]!SHIPMENTS_SF_YEARS,0)) -> 43956.76833 | BE12: =INDEX([1]!SHIPMENTS_SF, ((MATCH($C$9,[1]!APPLIANCES,0)-1)*2)+1, MATCH(BE$10,[1]!SHIPMENTS_SF_YEARS,0)) -> 43640.75645 | BF12: =INDEX([1]!SHIPMENTS_SF, ((MATCH($C$9,[1]!APPLIANCES,0)-1)*2)+1, MATCH(BF$10,[1]!SHIPMENTS_SF_YEARS,0)) -> 44424.05882
C13: Net New Shipments | D13: (units) | E13: =INDEX([1]!SHIPMENTS_SF, ((MATCH($C$9,[1]!APPLIANCES,0)-1)*2)+2, MATCH(E$10,[1]!SHIPMENTS_SF_YEARS,0)) -> 3098.780441 | F13: =INDEX([1]!SHIPMENTS_SF, ((MATCH($C$9,[1]!APPLIANCES,0)-1)*2)+2, MATCH(F$10,[1]!SHIPMENTS_SF_YEARS,0)) -> 2130.81242 | G13: =INDEX([1]!SHIPMENTS_SF, ((MATCH($C$9,[1]!APPLIANCES,0)-1)*2)+2, MATCH(G$10,[1]!SHIPMENTS_SF_YEARS,0)) -> 3304.888128 | H13: =INDEX([1]!SHIPMENTS_SF, ((MATCH($C$9,[1]!APPLIANCES,0)-1)*2)+2, MATCH(H$10,[1]!SHIPMENTS_SF_YEARS,0)) -> 3071.012059 | I13: =INDEX([1]!SHIPMENTS_SF, ((MATCH($C$9,[1]!APPLIANCES,0)-1)*2)+2, MATCH(I$10,[1]!SHIPMENTS_SF_YEARS,0)) -> 2929.831862 | J13: =INDEX([1]!SHIPMENTS_SF, ((MATCH($C$9,[1]!APPLIANCES,0)-1)*2)+2, MATCH(J$10,[1]!SHIPMENTS_SF_YEARS,0)) -> 3164.355891 | K13: =INDEX([1]!SHIPMENTS_SF, ((MATCH($C$9,[1]!APPLIANCES,0)-1)*2)+2, MATCH(K$10,[1]!SHIPMENTS_SF_YEARS,0)) -> 3183.127955 | L13: =INDEX([1]!SHIPMENTS_SF, ((MATCH($C$9,[1]!APPLIANCES,0)-1)*2)+2, MATCH(L$10,[1]!SHIPMENTS_SF_YEARS,0)) -> 3510.244558 | M13: =INDEX([1]!SHIPMENTS_SF, ((MATCH($C$9,[1]!APPLIANCES,0)-1)*2)+2, MATCH(M$10,[1]!SHIPMENTS_SF_YEARS,0)) -> 4313.452265 | N13: =INDEX([1]!SHIPMENTS_SF, ((MATCH($C$9,[1]!APPLIANCES,0)-1)*2)+2, MATCH(N$10,[1]!SHIPMENTS_SF_YEARS,0)) -> 4911.27537 | O13: =INDEX([1]!SHIPMENTS_SF, ((MATCH($C$9,[1]!APPLIANCES,0)-1)*2)+2, MATCH(O$10,[1]!SHIPMENTS_SF_YEARS,0)) -> 4302.249127 | P13: =INDEX([1]!SHIPMENTS_SF, ((MATCH($C$9,[1]!APPLIANCES,0)-1)*2)+2, MATCH(P$10,[1]!SHIPMENTS_SF_YEARS,0)) -> 5329.172135 | Q13: =INDEX([1]!SHIPMENTS_SF, ((MATCH($C$9,[1]!APPLIANCES,0)-1)*2)+2, MATCH(Q$10,[1]!SHIPMENTS_SF_YEARS,0)) -> 18270.60685 | R13: =INDEX([1]!SHIPMENTS_SF, ((MATCH($C$9,[1]!APPLIANCES,0)-1)*2)+2, MATCH(R$10,[1]!SHIPMENTS_SF_YEARS,0)) -> 19152.03172 | S13: =INDEX([1]!SHIPMENTS_SF, ((MATCH($C$9,[1]!APPLIANCES,0)-1)*2)+2, MATCH(S$10,[1]!SHIPMENTS_SF_YEARS,0)) -> 18919.90665 | T13: =INDEX([1]!SHIPMENTS_SF, ((MATCH($C$9,[1]!APPLIANCES,0)-1)*2)+2, MATCH(T$10,[1]!SHIPMENTS_SF_YEARS,0)) -> 19666.51191 | U13: =INDEX([1]!SHIPMENTS_SF, ((MATCH($C$9,[1]!APPLIANCES,0)-1)*2)+2, MATCH(U$10,[1]!SHIPMENTS_SF_YEARS,0)) -> 20111.51031 | V13: =INDEX([1]!SHIPMENTS_SF, ((MATCH($C$9,[1]!APPLIANCES,0)-1)*2)+2, MATCH(V$10,[1]!SHIPMENTS_SF_YEARS,0)) -> 20864.35173 | W13: =INDEX([1]!SHIPMENTS_SF, ((MATCH($C$9,[1]!APPLIANCES,0)-1)*2)+2, MATCH(W$10,[1]!SHIPMENTS_SF_YEARS,0)) -> 21211.3589 | X13: =INDEX([1]!SHIPMENTS_SF, ((MATCH($C$9,[1]!APPLIANCES,0)-1)*2)+2, MATCH(X$10,[1]!SHIPMENTS_SF_YEARS,0)) -> 21082.8942 | Y13: =INDEX([1]!SHIPMENTS_SF, ((MATCH($C$9,[1]!APPLIANCES,0)-1)*2)+2, MATCH(Y$10,[1]!SHIPMENTS_SF_YEARS,0)) -> 21700.1536 | Z13: =INDEX([1]!SHIPMENTS_SF, ((MATCH($C$9,[1]!APPLIANCES,0)-1)*2)+2, MATCH(Z$10,[1]!SHIPMENTS_SF_YEARS,0)) -> 23123.87994 | AA13: =INDEX([1]!SHIPMENTS_SF, ((MATCH($C$9,[1]!APPLIANCES,0)-1)*2)+2, MATCH(AA$10,[1]!SHIPMENTS_SF_YEARS,0)) -> 24615.49334 | AB13: =INDEX([1]!SHIPMENTS_SF, ((MATCH($C$9,[1]!APPLIANCES,0)-1)*2)+2, MATCH(AB$10,[1]!SHIPMENTS_SF_YEARS,0)) -> 25715.12895 | AC13: =INDEX([1]!SHIPMENTS_SF, ((MATCH($C$9,[1]!APPLIANCES,0)-1)*2)+2, MATCH(AC$10,[1]!SHIPMENTS_SF_YEARS,0)) -> 27545.47845 | AD13: =INDEX([1]!SHIPMENTS_SF, ((MATCH($C$9,[1]!APPLIANCES,0)-1)*2)+2, MATCH(AD$10,[1]!SHIPMENTS_SF_YEARS,0)) -> 26915.3838 | AE13: =INDEX([1]!SHIPMENTS_SF, ((MATCH($C$9,[1]!APPLIANCES,0)-1)*2)+2, MATCH(AE$10,[1]!SHIPMENTS_SF_YEARS,0)) -> 24734.74186 | AF13: =INDEX([1]!SHIPMENTS_SF, ((MATCH($C$9,[1]!APPLIANCES,0)-1)*2)+2, MATCH(AF$10,[1]!SHIPMENTS_SF_YEARS,0)) -> 21438.14212 | AG13: =INDEX([1]!SHIPMENTS_SF, ((MATCH($C$9,[1]!APPLIANCES,0)-1)*2)+2, MATCH(AG$10,[1]!SHIPMENTS_SF_YEARS,0)) -> 20419.20486 | AH13: =INDEX([1]!SHIPMENTS_SF, ((MATCH($C$9,[1]!APPLIANCES,0)-1)*2)+2, MATCH(AH$10,[1]!SHIPMENTS_SF_YEARS,0)) -> 23352.92928 | AI13: =INDEX([1]!SHIPMENTS_SF, ((MATCH($C$9,[1]!APPLIANCES,0)-1)*2)+2, MATCH(AI$10,[1]!SHIPMENTS_SF_YEARS,0)) -> 26447.73948 | AJ13: =INDEX([1]!SHIPMENTS_SF, ((MATCH($C$9,[1]!APPLIANCES,0)-1)*2)+2, MATCH(AJ$10,[1]!SHIPMENTS_SF_YEARS,0)) -> 11599.52326 | AK13: =INDEX([1]!SHIPMENTS_SF, ((MATCH($C$9,[1]!APPLIANCES,0)-1)*2)+2, MATCH(AK$10,[1]!SHIPMENTS_SF_YEARS,0)) -> 11892.98052 | AL13: =INDEX([1]!SHIPMENTS_SF, ((MATCH($C$9,[1]!APPLIANCES,0)-1)*2)+2, MATCH(AL$10,[1]!SHIPMENTS_SF_YEARS,0)) -> 11809.0937 | AM13: =INDEX([1]!SHIPMENTS_SF, ((MATCH($C$9,[1]!APPLIANCES,0)-1)*2)+2, MATCH(AM$10,[1]!SHIPMENTS_SF_YEARS,0)) -> 11845.79082 | AN13: =INDEX([1]!SHIPMENTS_SF, ((MATCH($C$9,[1]!APPLIANCES,0)-1)*2)+2, MATCH(AN$10,[1]!SHIPMENTS_SF_YEARS,0)) -> 11883.91937 | AO13: =INDEX([1]!SHIPMENTS_SF, ((MATCH($C$9,[1]!APPLIANCES,0)-1)*2)+2, MATCH(AO$10,[1]!SHIPMENTS_SF_YEARS,0)) -> 11675.73194 | AP13: =INDEX([1]!SHIPMENTS_SF, ((MATCH($C$9,[1]!APPLIANCES,0)-1)*2)+2, MATCH(AP$10,[1]!SHIPMENTS_SF_YEARS,0)) -> 11443.17185 | AQ13: =INDEX([1]!SHIPMENTS_SF, ((MATCH($C$9,[1]!APPLIANCES,0)-1)*2)+2, MATCH(AQ$10,[1]!SHIPMENTS_SF_YEARS,0)) -> 11192.53296 | AR13: =INDEX([1]!SHIPMENTS_SF, ((MATCH($C$9,[1]!APPLIANCES,0)-1)*2)+2, MATCH(AR$10,[1]!SHIPMENTS_SF_YEARS,0)) -> 11003.24942 | AS13: =INDEX([1]!SHIPMENTS_SF, ((MATCH($C$9,[1]!APPLIANCES,0)-1)*2)+2, MATCH(AS$10,[1]!SHIPMENTS_SF_YEARS,0)) -> 10715.56025 | AT13: =INDEX([1]!SHIPMENTS_SF, ((MATCH($C$9,[1]!APPLIANCES,0)-1)*2)+2, MATCH(AT$10,[1]!SHIPMENTS_SF_YEARS,0)) -> 10525.20118 | AU13: =INDEX([1]!SHIPMENTS_SF, ((MATCH($C$9,[1]!APPLIANCES,0)-1)*2)+2, MATCH(AU$10,[1]!SHIPMENTS_SF_YEARS,0)) -> 10387.95068 | AV13: =INDEX([1]!SHIPMENTS_SF, ((MATCH($C$9,[1]!APPLIANCES,0)-1)*2)+2, MATCH(AV$10,[1]!SHIPMENTS_SF_YEARS,0)) -> 10230.67287 | AW13: =INDEX([1]!SHIPMENTS_SF, ((MATCH($C$9,[1]!APPLIANCES,0)-1)*2)+2, MATCH(AW$10,[1]!SHIPMENTS_SF_YEARS,0)) -> 10195.77733 | AX13: =INDEX([1]!SHIPMENTS_SF, ((MATCH($C$9,[1]!APPLIANCES,0)-1)*2)+2, MATCH(AX$10,[1]!SHIPMENTS_SF_YEARS,0)) -> 10103.06136 | AY13: =INDEX([1]!SHIPMENTS_SF, ((MATCH($C$9,[1]!APPLIANCES,0)-1)*2)+2, MATCH(AY$10,[1]!SHIPMENTS_SF_YEARS,0)) -> 9904.867532 | AZ13: =INDEX([1]!SHIPMENTS_SF, ((MATCH($C$9,[1]!APPLIANCES,0)-1)*2)+2, MATCH(AZ$10,[1]!SHIPMENTS_SF_YEARS,0)) -> 9646.946262 | BA13: =INDEX([1]!SHIPMENTS_SF, ((MATCH($C$9,[1]!APPLIANCES,0)-1)*2)+2, MATCH(BA$10,[1]!SHIPMENTS_SF_YEARS,0)) -> 9471.089451 | BB13: =INDEX([1]!SHIPMENTS_SF, ((MATCH($C$9,[1]!APPLIANCES,0)-1)*2)+2, MATCH(BB$10,[1]!SHIPMENTS_SF_YEARS,0)) -> 9433.056941 | BC13: =INDEX([1]!SHIPMENTS_SF, ((MATCH($C$9,[1]!APPLIANCES,0)-1)*2)+2, MATCH(BC$10,[1]!SHIPMENTS_SF_YEARS,0)) -> 9527.38751 | BD13: =INDEX([1]!SHIPMENTS_SF, ((MATCH($C$9,[1]!APPLIANCES,0)-1)*2)+2, MATCH(BD$10,[1]!SHIPMENTS_SF_YEARS,0)) -> 9622.661386 | BE13: =INDEX([1]!SHIPMENTS_SF, ((MATCH($C$9,[1]!APPLIANCES,0)-1)*2)+2, MATCH(BE$10,[1]!SHIPMENTS_SF_YEARS,0)) -> 9718.887999 | BF13: =INDEX([1]!SHIPMENTS_SF, ((MATCH($C$9,[1]!APPLIANCES,0)-1)*2)+2, MATCH(BF$10,[1]!SHIPMENTS_SF_YEARS,0)) -> 9816.076879
C14: Total Model Shipments | D14: (units) | E14: =SUM(E12:E13) -> 16010.53654 | F14: =SUM(F12:F13) -> 15042.56852 | G14: 16216.64423 | H14: 15982.76816 | I14: 15841.58796 | J14: 16076.11199 | K14: 16094.88405 | L14: 16422.00066 | M14: 17225.20836 | N14: 17823.03147 | O14: 17214.00522 | P14: 18240.92823 | Q14: 31182.36295 | R14: 32063.78782 | S14: 31831.66275 | T14: 32578.268 | U14: 33023.26641 | V14: 33776.10783 | W14: 34123.115 | X14: 37093.43074 | Y14: 36742.72211 | Z14: 39340.52417 | AA14: 40598.2615 | AB14: 41556.71691 | AC14: 43621.59044 | AD14: 43010.26785 | AE14: 41156.74252 | AF14: 38663.35048 | AG14: 38242.23633 | AH14: 40566.93451 | AI14: 44688.66771 | AJ14: 42781.8862 | AK14: 43956.76833 | AL14: 43640.75645 | AM14: 44424.05882 | AN14: 44907.18578 | AO14: 45451.83977 | AP14: 45566.28684 | AQ14: 48285.9637 | AR14: 47745.97154 | AS14: 50056.08442 | AT14: 51123.46268 | AU14: 51944.66759 | AV14: 53852.2633 | AW14: 53206.04518 | AX14: 51259.80388 | AY14: 48568.21801 | AZ14: 47889.18259 | BA14: 50038.02396 | BB14: 54121.72465 | BC14: 52309.27371 | BD14: 53579.42972 | BE14: 53359.64445 | BF14: 54240.1357
C15: Model Installed Stock | D15: (units) | E15: =INDEX([1]!STOCK_SF, MATCH($C$9,[1]!APPLIANCES,0), MATCH(E$10,[1]!STOCK_SF_YEARS,0)) -> 248422.1463 | F15: =INDEX([1]!STOCK_SF, MATCH($C$9,[1]!APPLIANCES,0), MATCH(F$10,[1]!STOCK_SF_YEARS,0)) -> 250552.9587 | G15: =INDEX([1]!STOCK_SF, MATCH($C$9,[1]!APPLIANCES,0), MATCH(G$10,[1]!STOCK_SF_YEARS,0)) -> 253857.8468 | H15: =INDEX([1]!STOCK_SF, MATCH($C$9,[1]!APPLIANCES,0), MATCH(H$10,[1]!STOCK_SF_YEARS,0)) -> 256928.8589 | I15: =INDEX([1]!STOCK_SF, MATCH($C$9,[1]!APPLIANCES,0), MATCH(I$10,[1]!STOCK_SF_YEARS,0)) -> 259858.6908 | J15: =INDEX([1]!STOCK_SF, MATCH($C$9,[1]!APPLIANCES,0), MATCH(J$10,[1]!STOCK_SF_YEARS,0)) -> 263023.0467 | K15: =INDEX([1]!STOCK_SF, MATCH($C$9,[1]!APPLIANCES,0), MATCH(K$10,[1]!STOCK_SF_YEARS,0)) -> 266206.1746 | L15: =INDEX([1]!STOCK_SF, MATCH($C$9,[1]!APPLIANCES,0), MATCH(L$10,[1]!STOCK_SF_YEARS,0)) -> 269716.4192 | M15: =INDEX([1]!STOCK_SF, MATCH($C$9,[1]!APPLIANCES,0), MATCH(M$10,[1]!STOCK_SF_YEARS,0)) -> 274029.8714 | N15: =INDEX([1]!STOCK_SF, MATCH($C$9,[1]!APPLIANCES,0), MATCH(N$10,[1]!STOCK_SF_YEARS,0)) -> 278941.1468 | O15: =INDEX([1]!STOCK_SF, MATCH($C$9,[1]!APPLIANCES,0), MATCH(O$10,[1]!STOCK_SF_YEARS,0)) -> 283243.3959 | P15: =INDEX([1]!STOCK_SF, MATCH($C$9,[1]!APPLIANCES,0), MATCH(P$10,[1]!STOCK_SF_YEARS,0)) -> 288572.5681 | Q15: =INDEX([1]!STOCK_SF, MATCH($C$9,[1]!APPLIANCES,0), MATCH(Q$10,[1]!STOCK_SF_YEARS,0)) -> 306843.1749 | R15: =INDEX([1]!STOCK_SF, MATCH($C$9,[1]!APPLIANCES,0), MATCH(R$10,[1]!STOCK_SF_YEARS,0)) -> 325995.2066 | S15: =INDEX([1]!STOCK_SF, MATCH($C$9,[1]!APPLIANCES,0), MATCH(S$10,[1]!STOCK_SF_YEARS,0)) -> 344915.1133 | T15: =INDEX([1]!STOCK_SF, MATCH($C$9,[1]!APPLIANCES,0), MATCH(T$10,[1]!STOCK_SF_YEARS,0)) -> 364581.6252 | U15: =INDEX([1]!STOCK_SF, MATCH($C$9,[1]!APPLIANCES,0), MATCH(U$10,[1]!STOCK_SF_YEARS,0)) -> 384693.1355 | V15: =INDEX([1]!STOCK_SF, MATCH($C$9,[1]!APPLIANCES,0), MATCH(V$10,[1]!STOCK_SF_YEARS,0)) -> 405557.4872 | W15: =INDEX([1]!STOCK_SF, MATCH($C$9,[1]!APPLIANCES,0), MATCH(W$10,[1]!STOCK_SF_YEARS,0)) -> 426768.8461 | X15: =INDEX([1]!STOCK_SF, MATCH($C$9,[1]!APPLIANCES,0), MATCH(X$10,[1]!STOCK_SF_YEARS,0)) -> 447851.7403 | Y15: =INDEX([1]!STOCK_SF, MATCH($C$9,[1]!APPLIANCES,0), MATCH(Y$10,[1]!STOCK_SF_YEARS,0)) -> 469551.8939 | Z15: =INDEX([1]!STOCK_SF, MATCH($C$9,[1]!APPLIANCES,0), MATCH(Z$10,[1]!STOCK_SF_YEARS,0)) -> 492675.7739 | AA15: =INDEX([1]!STOCK_SF, MATCH($C$9,[1]!APPLIANCES,0), MATCH(AA$10,[1]!STOCK_SF_YEARS,0)) -> 517291.2672 | AB15: =INDEX([1]!STOCK_SF, MATCH($C$9,[1]!APPLIANCES,0), MATCH(AB$10,[1]!STOCK_SF_YEARS,0)) -> 543006.3962 | AC15: =INDEX([1]!STOCK_SF, MATCH($C$9,[1]!APPLIANCES,0), MATCH(AC$10,[1]!STOCK_SF_YEARS,0)) -> 570551.8746 | AD15: =INDEX([1]!STOCK_SF, MATCH($C$9,[1]!APPLIANCES,0), MATCH(AD$10,[1]!STOCK_SF_YEARS,0)) -> 597467.2584 | AE15: =INDEX([1]!STOCK_SF, MATCH($C$9,[1]!APPLIANCES,0), MATCH(AE$10,[1]!STOCK_SF_YEARS,0)) -> 622202.0003 | AF15: =INDEX([1]!STOCK_SF, MATCH($C$9,[1]!APPLIANCES,0), MATCH(AF$10,[1]!STOCK_SF_YEARS,0)) -> 643640.1424 | AG15: =INDEX([1]!STOCK_SF, MATCH($C$9,[1]!APPLIANCES,0), MATCH(AG$10,[1]!STOCK_SF_YEARS,0)) -> 664059.3472 | AH15: =INDEX([1]!STOCK_SF, MATCH($C$9,[1]!APPLIANCES,0), MATCH(AH$10,[1]!STOCK_SF_YEARS,0)) -> 687412.2765 | AI15: =INDEX([1]!STOCK_SF, MATCH($C$9,[1]!APPLIANCES,0), MATCH(AI$10,[1]!STOCK_SF_YEARS,0)) -> 713860.016 | AJ15: =INDEX([1]!STOCK_SF, MATCH($C$9,[1]!APPLIANCES,0), MATCH(AJ$10,[1]!STOCK_SF_YEARS,0)) -> 725459.5393 | AK15: =INDEX([1]!STOCK_SF, MATCH($C$9,[1]!APPLIANCES,0), MATCH(AK$10,[1]!STOCK_SF_YEARS,0)) -> 737352.5198 | AL15: =INDEX([1]!STOCK_SF, MATCH($C$9,[1]!APPLIANCES,0), MATCH(AL$10,[1]!STOCK_SF_YEARS,0)) -> 749161.6135 | AM15: =INDEX([1]!STOCK_SF, MATCH($C$9,[1]!APPLIANCES,0), MATCH(AM$10,[1]!STOCK_SF_YEARS,0)) -> 761007.4043 | AN15: =INDEX([1]!STOCK_SF, MATCH($C$9,[1]!APPLIANCES,0), MATCH(AN$10,[1]!STOCK_SF_YEARS,0)) -> 772891.3237 | AO15: =INDEX([1]!STOCK_SF, MATCH($C$9,[1]!APPLIANCES,0), MATCH(AO$10,[1]!STOCK_SF_YEARS,0)) -> 784567.0556 | AP15: =INDEX([1]!STOCK_SF, MATCH($C$9,[1]!APPLIANCES,0), MATCH(AP$10,[1]!STOCK_SF_YEARS,0)) -> 796010.2275 | AQ15: =INDEX([1]!STOCK_SF, MATCH($C$9,[1]!APPLIANCES,0), MATCH(AQ$10,[1]!STOCK_SF_YEARS,0)) -> 807202.7604 | AR15: =INDEX([1]!STOCK_SF, MATCH($C$9,[1]!APPLIANCES,0), MATCH(AR$10,[1]!STOCK_SF_YEARS,0)) -> 818206.0098 | AS15: =INDEX([1]!STOCK_SF, MATCH($C$9,[1]!APPLIANCES,0), MATCH(AS$10,[1]!STOCK_SF_YEARS,0)) -> 828921.5701 | AT15: =INDEX([1]!STOCK_SF, MATCH($C$9,[1]!APPLIANCES,0), MATCH(AT$10,[1]!STOCK_SF_YEARS,0)) -> 839446.7713 | AU15: =INDEX([1]!STOCK_SF, MATCH($C$9,[1]!APPLIANCES,0), MATCH(AU$10,[1]!STOCK_SF_YEARS,0)) -> 849834.7219 | AV15: =INDEX([1]!STOCK_SF, MATCH($C$9,[1]!APPLIANCES,0), MATCH(AV$10,[1]!STOCK_SF_YEARS,0)) -> 860065.3948 | AW15: =INDEX([1]!STOCK_SF, MATCH($C$9,[1]!APPLIANCES,0), MATCH(AW$10,[1]!STOCK_SF_YEARS,0)) -> 870261.1721 | AX15: =INDEX([1]!STOCK_SF, MATCH($C$9,[1]!APPLIANCES,0), MATCH(AX$10,[1]!STOCK_SF_YEARS,0)) -> 880364.2335 | AY15: =INDEX([1]!STOCK_SF, MATCH($C$9,[1]!APPLIANCES,0), MATCH(AY$10,[1]!STOCK_SF_YEARS,0)) -> 890269.101 | AZ15: =INDEX([1]!STOCK_SF, MATCH($C$9,[1]!APPLIANCES,0), MATCH(AZ$10,[1]!STOCK_SF_YEARS,0)) -> 899916.0473 | BA15: =INDEX([1]!STOCK_SF, MATCH($C$9,[1]!APPLIANCES,0), MATCH(BA$10,[1]!STOCK_SF_YEARS,0)) -> 909387.1367 | BB15: =INDEX([1]!STOCK_SF, MATCH($C$9,[1]!APPLIANCES,0), MATCH(BB$10,[1]!STOCK_SF_YEARS,0)) -> 918820.1937 | BC15: =INDEX([1]!STOCK_SF, MATCH($C$9,[1]!APPLIANCES,0), MATCH(BC$10,[1]!STOCK_SF_YEARS,0)) -> 928347.5812 | BD15: =INDEX([1]!STOCK_SF, MATCH($C$9,[1]!APPLIANCES,0), MATCH(BD$10,[1]!STOCK_SF_YEARS,0)) -> 937970.2426 | BE15: =INDEX([1]!STOCK_SF, MATCH($C$9,[1]!APPLIANCES,0), MATCH(BE$10,[1]!STOCK_SF_YEARS,0)) -> 947689.1306 | BF15: =INDEX([1]!STOCK_SF, MATCH($C$9,[1]!APPLIANCES,0), MATCH(BF$10,[1]!STOCK_SF_YEARS,0)) -> 957505.2075

Sheet Shipments and Stock - MF
C2: Shipments and Stock - MF
C4: NAVIGATION
C6: COMMENTS
C9: =MODEL_NAME -> CENTRAL AC
E10: 1981 | F10: 1982 | G10: 1983 | H10: 1984 | I10: 1985 | J10: 1986 | K10: 1987 | L10: 1988 | M10: 1989 | N10: 1990 | O10: 1991 | P10: 1992 | Q10: 1993 | R10: 1994 | S10: 1995 | T10: 1996 | U10: 1997 | V10: 1998 | W10: 1999 | X10: 2000 | Y10: 2001 | Z10: 2002 | AA10: 2003 | AB10: 2004 | AC10: 2005 | AD10: 2006 | AE10: 2007 | AF10: 2008 | AG10: 2009 | AH10: 2010 | AI10: 2011 | AJ10: 2012 | AK10: 2013 | AL10: 2014 | AM10: 2015 | AN10: 2016 | AO10: 2017 | AP10: 2018 | AQ10: 2019 | AR10: 2020 | AS10: 2021 | AT10: 2022 | AU10: 2023 | AV10: 2024 | AW10: 2025 | AX10: 2026 | AY10: 2027 | AZ10: 2028 | BA10: 2029 | BB10: 2030 | BC10: 2031 | BD10: 2032 | BE10: 2033 | BF10: 2034
C11: 6P Shipments | D11: (units) | E11: =IF(ISNUMBER(MATCH(E10,[1]!SIXTH_PLAN_MF_YEARS,0)), INDEX([1]!SIXTH_PLAN_MF, MATCH($C$9,[1]!APPLIANCES,0), MATCH(E$10,[1]!SIXTH_PLAN_MF_YEARS,0)),"pre-dates plan") -> pre-dates plan | F11: =IF(ISNUMBER(MATCH(F10,[1]!SIXTH_PLAN_MF_YEARS,0)), INDEX([1]!SIXTH_PLAN_MF, MATCH($C$9,[1]!APPLIANCES,0), MATCH(F$10,[1]!SIXTH_PLAN_MF_YEARS,0)),"pre-dates plan") -> pre-dates plan | G11: =IF(ISNUMBER(MATCH(G10,[1]!SIXTH_PLAN_MF_YEARS,0)), INDEX([1]!SIXTH_PLAN_MF, MATCH($C$9,[1]!APPLIANCES,0), MATCH(G$10,[1]!SIXTH_PLAN_MF_YEARS,0)),"pre-dates plan") -> pre-dates plan | H11: =IF(ISNUMBER(MATCH(H10,[1]!SIXTH_PLAN_MF_YEARS,0)), INDEX([1]!SIXTH_PLAN_MF, MATCH($C$9,[1]!APPLIANCES,0), MATCH(H$10,[1]!SIXTH_PLAN_MF_YEARS,0)),"pre-dates plan") -> pre-dates plan | I11: =IF(ISNUMBER(MATCH(I10,[1]!SIXTH_PLAN_MF_YEARS,0)), INDEX([1]!SIXTH_PLAN_MF, MATCH($C$9,[1]!APPLIANCES,0), MATCH(I$10,[1]!SIXTH_PLAN_MF_YEARS,0)),"pre-dates plan") -> pre-dates plan | J11: =IF(ISNUMBER(MATCH(J10,[1]!SIXTH_PLAN_MF_YEARS,0)), INDEX([1]!SIXTH_PLAN_MF, MATCH($C$9,[1]!APPLIANCES,0), MATCH(J$10,[1]!SIXTH_PLAN_MF_YEARS,0)),"pre-dates plan") -> pre-dates plan | K11: =IF(ISNUMBER(MATCH(K10,[1]!SIXTH_PLAN_MF_YEARS,0)), INDEX([1]!SIXTH_PLAN_MF, MATCH($C$9,[1]!APPLIANCES,0), MATCH(K$10,[1]!SIXTH_PLAN_MF_YEARS,0)),"pre-dates plan") -> pre-dates plan | L11: =IF(ISNUMBER(MATCH(L10,[1]!SIXTH_PLAN_MF_YEARS,0)), INDEX([1]!SIXTH_PLAN_MF, MATCH($C$9,[1]!APPLIANCES,0), MATCH(L$10,[1]!SIXTH_PLAN_MF_YEARS,0)),"pre-dates plan") -> pre-dates plan | M11: =IF(ISNUMBER(MATCH(M10,[1]!SIXTH_PLAN_MF_YEARS,0)), INDEX([1]!SIXTH_PLAN_MF, MATCH($C$9,[1]!APPLIANCES,0), MATCH(M$10,[1]!SIXTH_PLAN_MF_YEARS,0)),"pre-dates plan") -> pre-dates plan | N11: =IF(ISNUMBER(MATCH(N10,[1]!SIXTH_PLAN_MF_YEARS,0)), INDEX([1]!SIXTH_PLAN_MF, MATCH($C$9,[1]!APPLIANCES,0), MATCH(N$10,[1]!SIXTH_PLAN_MF_YEARS,0)),"pre-dates plan") -> pre-dates plan | O11: =IF(ISNUMBER(MATCH(O10,[1]!SIXTH_PLAN_MF_YEARS,0)), INDEX([1]!SIXTH_PLAN_MF, MATCH($C$9,[1]!APPLIANCES,0), MATCH(O$10,[1]!SIXTH_PLAN_MF_YEARS,0)),"pre-dates plan") -> pre-dates plan | P11: =IF(ISNUMBER(MATCH(P10,[1]!SIXTH_PLAN_MF_YEARS,0)), INDEX([1]!SIXTH_PLAN_MF, MATCH($C$9,[1]!APPLIANCES,0), MATCH(P$10,[1]!SIXTH_PLAN_MF_YEARS,0)),"pre-dates plan") -> pre-dates plan | Q11: =IF(ISNUMBER(MATCH(Q10,[1]!SIXTH_PLAN_MF_YEARS,0)), INDEX([1]!SIXTH_PLAN_MF, MATCH($C$9,[1]!APPLIANCES,0), MATCH(Q$10,[1]!SIXTH_PLAN_MF_YEARS,0)),"pre-dates plan") -> pre-dates plan | R11: =IF(ISNUMBER(MATCH(R10,[1]!SIXTH_PLAN_MF_YEARS,0)), INDEX([1]!SIXTH_PLAN_MF, MATCH($C$9,[1]!APPLIANCES,0), MATCH(R$10,[1]!SIXTH_PLAN_MF_YEARS,0)),"pre-dates plan") -> pre-dates plan | S11: =IF(ISNUMBER(MATCH(S10,[1]!SIXTH_PLAN_MF_YEARS,0)), INDEX([1]!SIXTH_PLAN_MF, MATCH($C$9,[1]!APPLIANCES,0), MATCH(S$10,[1]!SIXTH_PLAN_MF_YEARS,0)),"pre-dates plan") -> pre-dates plan | T11: =IF(ISNUMBER(MATCH(T10,[1]!SIXTH_PLAN_MF_YEARS,0)), INDEX([1]!SIXTH_PLAN_MF, MATCH($C$9,[1]!APPLIANCES,0), MATCH(T$10,[1]!SIXTH_PLAN_MF_YEARS,0)),"pre-dates plan") -> pre-dates plan | U11: =IF(ISNUMBER(MATCH(U10,[1]!SIXTH_PLAN_MF_YEARS,0)), INDEX([1]!SIXTH_PLAN_MF, MATCH($C$9,[1]!APPLIANCES,0), MATCH(U$10,[1]!SIXTH_PLAN_MF_YEARS,0)),"pre-dates plan") -> pre-dates plan | V11: =IF(ISNUMBER(MATCH(V10,[1]!SIXTH_PLAN_MF_YEARS,0)), INDEX([1]!SIXTH_PLAN_MF, MATCH($C$9,[1]!APPLIANCES,0), MATCH(V$10,[1]!SIXTH_PLAN_MF_YEARS,0)),"pre-dates plan") -> pre-dates plan | W11: =IF(ISNUMBER(MATCH(W10,[1]!SIXTH_PLAN_MF_YEARS,0)), INDEX([1]!SIXTH_PLAN_MF, MATCH($C$9,[1]!APPLIANCES,0), MATCH(W$10,[1]!SIXTH_PLAN_MF_YEARS,0)),"pre-dates plan") -> pre-dates plan | X11: =IF(ISNUMBER(MATCH(X10,[1]!SIXTH_PLAN_MF_YEARS,0)), INDEX([1]!SIXTH_PLAN_MF, MATCH($C$9,[1]!APPLIANCES,0), MATCH(X$10,[1]!SIXTH_PLAN_MF_YEARS,0)),"pre-dates plan") -> pre-dates plan | Y11: =IF(ISNUMBER(MATCH(Y10,[1]!SIXTH_PLAN_MF_YEARS,0)), INDEX([1]!SIXTH_PLAN_MF, MATCH($C$9,[1]!APPLIANCES,0), MATCH(Y$10,[1]!SIXTH_PLAN_MF_YEARS,0)),"pre-dates plan") -> pre-dates plan | Z11: =IF(ISNUMBER(MATCH(Z10,[1]!SIXTH_PLAN_MF_YEARS,0)), INDEX([1]!SIXTH_PLAN_MF, MATCH($C$9,[1]!APPLIANCES,0), MATCH(Z$10,[1]!SIXTH_PLAN_MF_YEARS,0)),"pre-dates plan") -> pre-dates plan | AA11: =IF(ISNUMBER(MATCH(AA10,[1]!SIXTH_PLAN_MF_YEARS,0)), INDEX([1]!SIXTH_PLAN_MF, MATCH($C$9,[1]!APPLIANCES,0), MATCH(AA$10,[1]!SIXTH_PLAN_MF_YEARS,0)),"pre-dates plan") -> pre-dates plan | AB11: =IF(ISNUMBER(MATCH(AB10,[1]!SIXTH_PLAN_MF_YEARS,0)), INDEX([1]!SIXTH_PLAN_MF, MATCH($C$9,[1]!APPLIANCES,0), MATCH(AB$10,[1]!SIXTH_PLAN_MF_YEARS,0)),"pre-dates plan") -> pre-dates plan | AC11: =IF(ISNUMBER(MATCH(AC10,[1]!SIXTH_PLAN_MF_YEARS,0)), INDEX([1]!SIXTH_PLAN_MF, MATCH($C$9,[1]!APPLIANCES,0), MATCH(AC$10,[1]!SIXTH_PLAN_MF_YEARS,0)),"pre-dates plan") -> pre-dates plan | AD11: =IF(ISNUMBER(MATCH(AD10,[1]!SIXTH_PLAN_MF_YEARS,0)), INDEX([1]!SIXTH_PLAN_MF, MATCH($C$9,[1]!APPLIANCES,0), MATCH(AD$10,[1]!SIXTH_PLAN_MF_YEARS,0)),"pre-dates plan") -> pre-dates plan | AE11: =IF(ISNUMBER(MATCH(AE10,[1]!SIXTH_PLAN_MF_YEARS,0)), INDEX([1]!SIXTH_PLAN_MF, MATCH($C$9,[1]!APPLIANCES,0), MATCH(AE$10,[1]!SIXTH_PLAN_MF_YEARS,0)),"pre-dates plan") -> pre-dates plan | AF11: =IF(ISNUMBER(MATCH(AF10,[1]!SIXTH_PLAN_MF_YEARS,0)), INDEX([1]!SIXTH_PLAN_MF, MATCH($C$9,[1]!APPLIANCES,0), MATCH(AF$10,[1]!SIXTH_PLAN_MF_YEARS,0)),"pre-dates plan") -> pre-dates plan | AG11: =IF(ISNUMBER(MATCH(AG10,[1]!SIXTH_PLAN_MF_YEARS,0)), INDEX([1]!SIXTH_PLAN_MF, MATCH($C$9,[1]!APPLIANCES,0), MATCH(AG$10,[1]!SIXTH_PLAN_MF_YEARS,0)),"pre-dates plan") -> pre-dates plan | AH11: =IF(ISNUMBER(MATCH(AH10,[1]!SIXTH_PLAN_MF_YEARS,0)), INDEX([1]!SIXTH_PLAN_MF, MATCH($C$9,[1]!APPLIANCES,0), MATCH(AH$10,[1]!SIXTH_PLAN_MF_YEARS,0)),"pre-dates plan") -> 29620.39552 | AI11: =IF(ISNUMBER(MATCH(AI10,[1]!SIXTH_PLAN_MF_YEARS,0)), INDEX([1]!SIXTH_PLAN_MF, MATCH($C$9,[1]!APPLIANCES,0), MATCH(AI$10,[1]!SIXTH_PLAN_MF_YEARS,0)),"pre-dates plan") -> 31568.8115 | AJ11: =IF(ISNUMBER(MATCH(AJ10,[1]!SIXTH_PLAN_MF_YEARS,0)), INDEX([1]!SIXTH_PLAN_MF, MATCH($C$9,[1]!APPLIANCES,0), MATCH(AJ$10,[1]!SIXTH_PLAN_MF_YEARS,0)),"pre-dates plan") -> 32116.21239 | AK11: =IF(ISNUMBER(MATCH(AK10,[1]!SIXTH_PLAN_MF_YEARS,0)), INDEX([1]!SIXTH_PLAN_MF, MATCH($C$9,[1]!APPLIANCES,0), MATCH(AK$10,[1]!SIXTH_PLAN_MF_YEARS,0)),"pre-dates plan") -> 32496.84052 | AL11: =IF(ISNUMBER(MATCH(AL10,[1]!SIXTH_PLAN_MF_YEARS,0)), INDEX([1]!SIXTH_PLAN_MF, MATCH($C$9,[1]!APPLIANCES,0), MATCH(AL$10,[1]!SIXTH_PLAN_MF_YEARS,0)),"pre-dates plan") -> 33024.79963 | AM11: =IF(ISNUMBER(MATCH(AM10,[1]!SIXTH_PLAN_MF_YEARS,0)), INDEX([1]!SIXTH_PLAN_MF, MATCH($C$9,[1]!APPLIANCES,0), MATCH(AM$10,[1]!SIXTH_PLAN_MF_YEARS,0)),"pre-dates plan") -> 33651.68013 | AN11: =IF(ISNUMBER(MATCH(AN10,[1]!SIXTH_PLAN_MF_YEARS,0)), INDEX([1]!SIXTH_PLAN_MF, MATCH($C$9,[1]!APPLIANCES,0), MATCH(AN$10,[1]!SIXTH_PLAN_MF_YEARS,0)),"pre-dates plan") -> 34166.64488 | AO11: =IF(ISNUMBER(MATCH(AO10,[1]!SIXTH_PLAN_MF_YEARS,0)), INDEX([1]!SIXTH_PLAN_MF, MATCH($C$9,[1]!APPLIANCES,0), MATCH(AO$10,[1]!SIXTH_PLAN_MF_YEARS,0)),"pre-dates plan") -> 34455.6546 | AP11: =IF(ISNUMBER(MATCH(AP10,[1]!SIXTH_PLAN_MF_YEARS,0)), INDEX([1]!SIXTH_PLAN_MF, MATCH($C$9,[1]!APPLIANCES,0), MATCH(AP$10,[1]!SIXTH_PLAN_MF_YEARS,0)),"pre-dates plan") -> 34772.73339 | AQ11: =IF(ISNUMBER(MATCH(AQ10,[1]!SIXTH_PLAN_MF_YEARS,0)), INDEX([1]!SIXTH_PLAN_MF, MATCH($C$9,[1]!APPLIANCES,0), MATCH(AQ$10,[1]!SIXTH_PLAN_MF_YEARS,0)),"pre-dates plan") -> 35139.26811 | AR11: =IF(ISNUMBER(MATCH(AR10,[1]!SIXTH_PLAN_MF_YEARS,0)), INDEX([1]!SIXTH_PLAN_MF, MATCH($C$9,[1]!APPLIANCES,0), MATCH(AR$10,[1]!SIXTH_PLAN_MF_YEARS,0)),"pre-dates plan") -> 35911.19027 | AS11: =IF(ISNUMBER(MATCH(AS10,[1]!SIXTH_PLAN_MF_YEARS,0)), INDEX([1]!SIXTH_PLAN_MF, MATCH($C$9,[1]!APPLIANCES,0), MATCH(AS$10,[1]!SIXTH_PLAN_MF_YEARS,0)),"pre-dates plan") -> 35724.81209 | AT11: =IF(ISNUMBER(MATCH(AT10,[1]!SIXTH_PLAN_MF_YEARS,0)), INDEX([1]!SIXTH_PLAN_MF, MATCH($C$9,[1]!APPLIANCES,0), MATCH(AT$10,[1]!SIXTH_PLAN_MF_YEARS,0)),"pre-dates plan") -> 35840.79371 | AU11: =IF(ISNUMBER(MATCH(AU10,[1]!SIXTH_PLAN_MF_YEARS,0)), INDEX([1]!SIXTH_PLAN_MF, MATCH($C$9,[1]!APPLIANCES,0), MATCH(AU$10,[1]!SIXTH_PLAN_MF_YEARS,0)),"pre-dates plan") -> 35888.97097 | AV11: =IF(ISNUMBER(MATCH(AV10,[1]!SIXTH_PLAN_MF_YEARS,0)), INDEX([1]!SIXTH_PLAN_MF, MATCH($C$9,[1]!APPLIANCES,0), MATCH(AV$10,[1]!SIXTH_PLAN_MF_YEARS,0)),"pre-dates plan") -> 35859.74466 | AW11: =IF(ISNUMBER(MATCH(AW10,[1]!SIXTH_PLAN_MF_YEARS,0)), INDEX([1]!SIXTH_PLAN_MF, MATCH($C$9,[1]!APPLIANCES,0), MATCH(AW$10,[1]!SIXTH_PLAN_MF_YEARS,0)),"pre-dates plan") -> 35746.28208 | AX11: =IF(ISNUMBER(MATCH(AX10,[1]!SIXTH_PLAN_MF_YEARS,0)), INDEX([1]!SIXTH_PLAN_MF, MATCH($C$9,[1]!APPLIANCES,0), MATCH(AX$10,[1]!SIXTH_PLAN_MF_YEARS,0)),"pre-dates plan") -> 35590.53225 | AY11: =IF(ISNUMBER(MATCH(AY10,[1]!SIXTH_PLAN_MF_YEARS,0)), INDEX([1]!SIXTH_PLAN_MF, MATCH($C$9,[1]!APPLIANCES,0), MATCH(AY$10,[1]!SIXTH_PLAN_MF_YEARS,0)),"pre-dates plan") -> 35542.2112 | AZ11: =IF(ISNUMBER(MATCH(AZ10,[1]!SIXTH_PLAN_MF_YEARS,0)), INDEX([1]!SIXTH_PLAN_MF, MATCH($C$9,[1]!APPLIANCES,0), MATCH(AZ$10,[1]!SIXTH_PLAN_MF_YEARS,0)),"pre-dates plan") -> 10161.25556 | BA11: =IF(ISNUMBER(MATCH(BA10,[1]!SIXTH_PLAN_MF_YEARS,0)), INDEX([1]!SIXTH_PLAN_MF, MATCH($C$9,[1]!APPLIANCES,0), MATCH(BA$10,[1]!SIXTH_PLAN_MF_YEARS,0)),"pre-dates plan") -> 10127.38134 | BB11: =IF(ISNUMBER(MATCH(BB10,[1]!SIXTH_PLAN_MF_YEARS,0)), INDEX([1]!SIXTH_PLAN_MF, MATCH($C$9,[1]!APPLIANCES,0), MATCH(BB$10,[1]!SIXTH_PLAN_MF_YEARS,0)),"pre-dates plan") -> 10017.1951 | BC11: =IF(ISNUMBER(MATCH(BC10,[1]!SIXTH_PLAN_MF_YEARS,0)), INDEX([1]!SIXTH_PLAN_MF, MATCH($C$9,[1]!APPLIANCES,0), MATCH(BC$10,[1]!SIXTH_PLAN_MF_YEARS,0)),"pre-dates plan") -> 10017.1951 | BD11: =IF(ISNUMBER(MATCH(BD10,[1]!SIXTH_PLAN_MF_YEARS,0)), INDEX([1]!SIXTH_PLAN_MF, MATCH($C$9,[1]!APPLIANCES,0), MATCH(BD$10,[1]!SIXTH_PLAN_MF_YEARS,0)),"pre-dates plan") -> 10017.1951 | BE11: =IF(ISNUMBER(MATCH(BE10,[1]!SIXTH_PLAN_MF_YEARS,0)), INDEX([1]!SIXTH_PLAN_MF, MATCH($C$9,[1]!APPLIANCES,0), MATCH(BE$10,[1]!SIXTH_PLAN_MF_YEARS,0)),"pre-dates plan") -> 10017.1951 | BF11: =IF(ISNUMBER(MATCH(BF10,[1]!SIXTH_PLAN_MF_YEARS,0)), INDEX([1]!SIXTH_PLAN_MF, MATCH($C$9,[1]!APPLIANCES,0), MATCH(BF$10,[1]!SIXTH_PLAN_MF_YEARS,0)),"pre-dates plan") -> 10017.1951
C12: Replacement Shipments | D12: (units) | E12: =INDEX([1]!SHIPMENTS_MF, ((MATCH($C$9,[1]!APPLIANCES,0)-1)*2)+1, MATCH(E$10,[1]!SHIPMENTS_MF_YEARS,0)) -> 339.2348533 | F12: =INDEX([1]!SHIPMENTS_MF, ((MATCH($C$9,[1]!APPLIANCES,0)-1)*2)+1, MATCH(F$10,[1]!SHIPMENTS_MF_YEARS,0)) -> 339.2348533 | G12: =INDEX([1]!SHIPMENTS_MF, ((MATCH($C$9,[1]!APPLIANCES,0)-1)*2)+1, MATCH(G$10,[1]!SHIPMENTS_MF_YEARS,0)) -> 339.2348533 | H12: =INDEX([1]!SHIPMENTS_MF, ((MATCH($C$9,[1]!APPLIANCES,0)-1)*2)+1, MATCH(H$10,[1]!SHIPMENTS_MF_YEARS,0)) -> 339.2348533 | I12: =INDEX([1]!SHIPMENTS_MF, ((MATCH($C$9,[1]!APPLIANCES,0)-1)*2)+1, MATCH(I$10,[1]!SHIPMENTS_MF_YEARS,0)) -> 339.2348533 | J12: =INDEX([1]!SHIPMENTS_MF, ((MATCH($C$9,[1]!APPLIANCES,0)-1)*2)+1, MATCH(J$10,[1]!SHIPMENTS_MF_YEARS,0)) -> 339.2348533 | K12: =INDEX([1]!SHIPMENTS_MF, ((MATCH($C$9,[1]!APPLIANCES,0)-1)*2)+1, MATCH(K$10,[1]!SHIPMENTS_MF_YEARS,0)) -> 339.2348533 | L12: =INDEX([1]!SHIPMENTS_MF, ((MATCH($C$9,[1]!APPLIANCES,0)-1)*2)+1, MATCH(L$10,[1]!SHIPMENTS_MF_YEARS,0)) -> 339.2348533 | M12: =INDEX([1]!SHIPMENTS_MF, ((MATCH($C$9,[1]!APPLIANCES,0)-1)*2)+1, MATCH(M$10,[1]!SHIPMENTS_MF_YEARS,0)) -> 339.2348533 | N12: =INDEX([1]!SHIPMENTS_MF, ((MATCH($C$9,[1]!APPLIANCES,0)-1)*2)+1, MATCH(N$10,[1]!SHIPMENTS_MF_YEARS,0)) -> 339.2348533 | O12: =INDEX([1]!SHIPMENTS_MF, ((MATCH($C$9,[1]!APPLIANCES,0)-1)*2)+1, MATCH(O$10,[1]!SHIPMENTS_MF_YEARS,0)) -> 339.2348533 | P12: =INDEX([1]!SHIPMENTS_MF, ((MATCH($C$9,[1]!APPLIANCES,0)-1)*2)+1, MATCH(P$10,[1]!SHIPMENTS_MF_YEARS,0)) -> 339.2348533 | Q12: =INDEX([1]!SHIPMENTS_MF, ((MATCH($C$9,[1]!APPLIANCES,0)-1)*2)+1, MATCH(Q$10,[1]!SHIPMENTS_MF_YEARS,0)) -> 339.2348533 | R12: =INDEX([1]!SHIPMENTS_MF, ((MATCH($C$9,[1]!APPLIANCES,0)-1)*2)+1, MATCH(R$10,[1]!SHIPMENTS_MF_YEARS,0)) -> 339.2348533 | S12: =INDEX([1]!SHIPMENTS_MF, ((MATCH($C$9,[1]!APPLIANCES,0)-1)*2)+1, MATCH(S$10,[1]!SHIPMENTS_MF_YEARS,0)) -> 339.2348533 | T12: =INDEX([1]!SHIPMENTS_MF, ((MATCH($C$9,[1]!APPLIANCES,0)-1)*2)+1, MATCH(T$10,[1]!SHIPMENTS_MF_YEARS,0)) -> 339.2348533 | U12: =INDEX([1]!SHIPMENTS_MF, ((MATCH($C$9,[1]!APPLIANCES,0)-1)*2)+1, MATCH(U$10,[1]!SHIPMENTS_MF_YEARS,0)) -> 339.2348533 | V12: =INDEX([1]!SHIPMENTS_MF, ((MATCH($C$9,[1]!APPLIANCES,0)-1)*2)+1, MATCH(V$10,[1]!SHIPMENTS_MF_YEARS,0)) -> 339.2348533 | W12: =INDEX([1]!SHIPMENTS_MF, ((MATCH($C$9,[1]!APPLIANCES,0)-1)*2)+1, MATCH(W$10,[1]!SHIPMENTS_MF_YEARS,0)) -> 339.2348533 | X12: =INDEX([1]!SHIPMENTS_MF, ((MATCH($C$9,[1]!APPLIANCES,0)-1)*2)+1, MATCH(X$10,[1]!SHIPMENTS_MF_YEARS,0)) -> 474.6090785 | Y12: =INDEX([1]!SHIPMENTS_MF, ((MATCH($C$9,[1]!APPLIANCES,0)-1)*2)+1, MATCH(Y$10,[1]!SHIPMENTS_MF_YEARS,0)) -> 435.5880565 | Z12: =INDEX([1]!SHIPMENTS_MF, ((MATCH($C$9,[1]!APPLIANCES,0)-1)*2)+1, MATCH(Z$10,[1]!SHIPMENTS_MF_YEARS,0)) -> 452.8853045 | AA12: =INDEX([1]!SHIPMENTS_MF, ((MATCH($C$9,[1]!APPLIANCES,0)-1)*2)+1, MATCH(AA$10,[1]!SHIPMENTS_MF_YEARS,0)) -> 512.6820113 | AB12: =INDEX([1]!SHIPMENTS_MF, ((MATCH($C$9,[1]!APPLIANCES,0)-1)*2)+1, MATCH(AB$10,[1]!SHIPMENTS_MF_YEARS,0)) -> 606.0162656 | AC12: =INDEX([1]!SHIPMENTS_MF, ((MATCH($C$9,[1]!APPLIANCES,0)-1)*2)+1, MATCH(AC$10,[1]!SHIPMENTS_MF_YEARS,0)) -> 576.2356323 | AD12: =INDEX([1]!SHIPMENTS_MF, ((MATCH($C$9,[1]!APPLIANCES,0)-1)*2)+1, MATCH(AD$10,[1]!SHIPMENTS_MF_YEARS,0)) -> 603.7492059 | AE12: =INDEX([1]!SHIPMENTS_MF, ((MATCH($C$9,[1]!APPLIANCES,0)-1)*2)+1, MATCH(AE$10,[1]!SHIPMENTS_MF_YEARS,0)) -> 668.3407883 | AF12: =INDEX([1]!SHIPMENTS_MF, ((MATCH($C$9,[1]!APPLIANCES,0)-1)*2)+1, MATCH(AF$10,[1]!SHIPMENTS_MF_YEARS,0)) -> 733.1678107 | AG12: =INDEX([1]!SHIPMENTS_MF, ((MATCH($C$9,[1]!APPLIANCES,0)-1)*2)+1, MATCH(AG$10,[1]!SHIPMENTS_MF_YEARS,0)) -> 672.2394728 | AH12: =INDEX([1]!SHIPMENTS_MF, ((MATCH($C$9,[1]!APPLIANCES,0)-1)*2)+1, MATCH(AH$10,[1]!SHIPMENTS_MF_YEARS,0)) -> 495.150589 | AI12: =INDEX([1]!SHIPMENTS_MF, ((MATCH($C$9,[1]!APPLIANCES,0)-1)*2)+1, MATCH(AI$10,[1]!SHIPMENTS_MF_YEARS,0)) -> 499.013831 | AJ12: =INDEX([1]!SHIPMENTS_MF, ((MATCH($C$9,[1]!APPLIANCES,0)-1)*2)+1, MATCH(AJ$10,[1]!SHIPMENTS_MF_YEARS,0)) -> 916.0002192 | AK12: =INDEX([1]!SHIPMENTS_MF, ((MATCH($C$9,[1]!APPLIANCES,0)-1)*2)+1, MATCH(AK$10,[1]!SHIPMENTS_MF_YEARS,0)) -> 974.662381 | AL12: =INDEX([1]!SHIPMENTS_MF, ((MATCH($C$9,[1]!APPLIANCES,0)-1)*2)+1, MATCH(AL$10,[1]!SHIPMENTS_MF_YEARS,0)) -> 1015.701579 | AM12: =INDEX([1]!SHIPMENTS_MF, ((MATCH($C$9,[1]!APPLIANCES,0)-1)*2)+1, MATCH(AM$10,[1]!SHIPMENTS_MF_YEARS,0)) -> 1038.821269 | AN12: =INDEX([1]!SHIPMENTS_MF, ((MATCH($C$9,[1]!APPLIANCES,0)-1)*2)+1, MATCH(AN$10,[1]!SHIPMENTS_MF_YEARS,0)) -> 1064.437976 | AO12: =INDEX([1]!SHIPMENTS_MF, ((MATCH($C$9,[1]!APPLIANCES,0)-1)*2)+1, MATCH(AO$10,[1]!SHIPMENTS_MF_YEARS,0)) -> 1127.919886 | AP12: =INDEX([1]!SHIPMENTS_MF, ((MATCH($C$9,[1]!APPLIANCES,0)-1)*2)+1, MATCH(AP$10,[1]!SHIPMENTS_MF_YEARS,0)) -> 1093.291958 | AQ12: =INDEX([1]!SHIPMENTS_MF, ((MATCH($C$9,[1]!APPLIANCES,0)-1)*2)+1, MATCH(AQ$10,[1]!SHIPMENTS_MF_YEARS,0)) -> 1192.272899 | AR12: =INDEX([1]!SHIPMENTS_MF, ((MATCH($C$9,[1]!APPLIANCES,0)-1)*2)+1, MATCH(AR$10,[1]!SHIPMENTS_MF_YEARS,0)) -> 1173.817021 | AS12: =INDEX([1]!SHIPMENTS_MF, ((MATCH($C$9,[1]!APPLIANCES,0)-1)*2)+1, MATCH(AS$10,[1]!SHIPMENTS_MF_YEARS,0)) -> 1185.338696 | AT12: =INDEX([1]!SHIPMENTS_MF, ((MATCH($C$9,[1]!APPLIANCES,0)-1)*2)+1, MATCH(AT$10,[1]!SHIPMENTS_MF_YEARS,0)) -> 1267.336831 | AU12: =INDEX([1]!SHIPMENTS_MF, ((MATCH($C$9,[1]!APPLIANCES,0)-1)*2)+1, MATCH(AU$10,[1]!SHIPMENTS_MF_YEARS,0)) -> 1412.525552 | AV12: =INDEX([1]!SHIPMENTS_MF, ((MATCH($C$9,[1]!APPLIANCES,0)-1)*2)+1, MATCH(AV$10,[1]!SHIPMENTS_MF_YEARS,0)) -> 1394.675594 | AW12: =INDEX([1]!SHIPMENTS_MF, ((MATCH($C$9,[1]!APPLIANCES,0)-1)*2)+1, MATCH(AW$10,[1]!SHIPMENTS_MF_YEARS,0)) -> 1478.861784 | AX12: =INDEX([1]!SHIPMENTS_MF, ((MATCH($C$9,[1]!APPLIANCES,0)-1)*2)+1, MATCH(AX$10,[1]!SHIPMENTS_MF_YEARS,0)) -> 1555.560053 | AY12: =INDEX([1]!SHIPMENTS_MF, ((MATCH($C$9,[1]!APPLIANCES,0)-1)*2)+1, MATCH(AY$10,[1]!SHIPMENTS_MF_YEARS,0)) -> 1542.268917 | AZ12: =INDEX([1]!SHIPMENTS_MF, ((MATCH($C$9,[1]!APPLIANCES,0)-1)*2)+1, MATCH(AZ$10,[1]!SHIPMENTS_MF_YEARS,0)) -> 1331.019578 | BA12: =INDEX([1]!SHIPMENTS_MF, ((MATCH($C$9,[1]!APPLIANCES,0)-1)*2)+1, MATCH(BA$10,[1]!SHIPMENTS_MF_YEARS,0)) -> 1236.064703 | BB12: =INDEX([1]!SHIPMENTS_MF, ((MATCH($C$9,[1]!APPLIANCES,0)-1)*2)+1, MATCH(BB$10,[1]!SHIPMENTS_MF_YEARS,0)) -> 1347.294479 | BC12: =INDEX([1]!SHIPMENTS_MF, ((MATCH($C$9,[1]!APPLIANCES,0)-1)*2)+1, MATCH(BC$10,[1]!SHIPMENTS_MF_YEARS,0)) -> 1253.78515 | BD12: =INDEX([1]!SHIPMENTS_MF, ((MATCH($C$9,[1]!APPLIANCES,0)-1)*2)+1, MATCH(BD$10,[1]!SHIPMENTS_MF_YEARS,0)) -> 1331.478718 | BE12: =INDEX([1]!SHIPMENTS_MF, ((MATCH($C$9,[1]!APPLIANCES,0)-1)*2)+1, MATCH(BE$10,[1]!SHIPMENTS_MF_YEARS,0)) -> 1398.915872 | BF12: =INDEX([1]!SHIPMENTS_MF, ((MATCH($C$9,[1]!APPLIANCES,0)-1)*2)+1, MATCH(BF$10,[1]!SHIPMENTS_MF_YEARS,0)) -> 1453.379587
C13: Net New Shipments | D13: (units) | E13: =INDEX([1]!SHIPMENTS_MF, ((MATCH($C$9,[1]!APPLIANCES,0)-1)*2)+2, MATCH(E$10,[1]!SHIPMENTS_MF_YEARS,0)) -> 135.3742252 | F13: =INDEX([1]!SHIPMENTS_MF, ((MATCH($C$9,[1]!APPLIANCES,0)-1)*2)+2, MATCH(F$10,[1]!SHIPMENTS_MF_YEARS,0)) -> 96.3532032 | G13: =INDEX([1]!SHIPMENTS_MF, ((MATCH($C$9,[1]!APPLIANCES,0)-1)*2)+2, MATCH(G$10,[1]!SHIPMENTS_MF_YEARS,0)) -> 113.6504513 | H13: =INDEX([1]!SHIPMENTS_MF, ((MATCH($C$9,[1]!APPLIANCES,0)-1)*2)+2, MATCH(H$10,[1]!SHIPMENTS_MF_YEARS,0)) -> 173.447158 | I13: =INDEX([1]!SHIPMENTS_MF, ((MATCH($C$9,[1]!APPLIANCES,0)-1)*2)+2, MATCH(I$10,[1]!SHIPMENTS_MF_YEARS,0)) -> 266.7814123 | J13: =INDEX([1]!SHIPMENTS_MF, ((MATCH($C$9,[1]!APPLIANCES,0)-1)*2)+2, MATCH(J$10,[1]!SHIPMENTS_MF_YEARS,0)) -> 237.000779 | K13: =INDEX([1]!SHIPMENTS_MF, ((MATCH($C$9,[1]!APPLIANCES,0)-1)*2)+2, MATCH(K$10,[1]!SHIPMENTS_MF_YEARS,0)) -> 264.5143526 | L13: =INDEX([1]!SHIPMENTS_MF, ((MATCH($C$9,[1]!APPLIANCES,0)-1)*2)+2, MATCH(L$10,[1]!SHIPMENTS_MF_YEARS,0)) -> 329.105935 | M13: =INDEX([1]!SHIPMENTS_MF, ((MATCH($C$9,[1]!APPLIANCES,0)-1)*2)+2, MATCH(M$10,[1]!SHIPMENTS_MF_YEARS,0)) -> 393.9329574 | N13: =INDEX([1]!SHIPMENTS_MF, ((MATCH($C$9,[1]!APPLIANCES,0)-1)*2)+2, MATCH(N$10,[1]!SHIPMENTS_MF_YEARS,0)) -> 333.0046195 | O13: =INDEX([1]!SHIPMENTS_MF, ((MATCH($C$9,[1]!APPLIANCES,0)-1)*2)+2, MATCH(O$10,[1]!SHIPMENTS_MF_YEARS,0)) -> 155.9157357 | P13: =INDEX([1]!SHIPMENTS_MF, ((MATCH($C$9,[1]!APPLIANCES,0)-1)*2)+2, MATCH(P$10,[1]!SHIPMENTS_MF_YEARS,0)) -> 159.7789777 | Q13: =INDEX([1]!SHIPMENTS_MF, ((MATCH($C$9,[1]!APPLIANCES,0)-1)*2)+2, MATCH(Q$10,[1]!SHIPMENTS_MF_YEARS,0)) -> 576.7653659 | R13: =INDEX([1]!SHIPMENTS_MF, ((MATCH($C$9,[1]!APPLIANCES,0)-1)*2)+2, MATCH(R$10,[1]!SHIPMENTS_MF_YEARS,0)) -> 635.4275277 | S13: =INDEX([1]!SHIPMENTS_MF, ((MATCH($C$9,[1]!APPLIANCES,0)-1)*2)+2, MATCH(S$10,[1]!SHIPMENTS_MF_YEARS,0)) -> 676.4667261 | T13: =INDEX([1]!SHIPMENTS_MF, ((MATCH($C$9,[1]!APPLIANCES,0)-1)*2)+2, MATCH(T$10,[1]!SHIPMENTS_MF_YEARS,0)) -> 699.5864162 | U13: =INDEX([1]!SHIPMENTS_MF, ((MATCH($C$9,[1]!APPLIANCES,0)-1)*2)+2, MATCH(U$10,[1]!SHIPMENTS_MF_YEARS,0)) -> 725.2031222 | V13: =INDEX([1]!SHIPMENTS_MF, ((MATCH($C$9,[1]!APPLIANCES,0)-1)*2)+2, MATCH(V$10,[1]!SHIPMENTS_MF_YEARS,0)) -> 788.6850324 | W13: =INDEX([1]!SHIPMENTS_MF, ((MATCH($C$9,[1]!APPLIANCES,0)-1)*2)+2, MATCH(W$10,[1]!SHIPMENTS_MF_YEARS,0)) -> 754.0571045 | X13: =INDEX([1]!SHIPMENTS_MF, ((MATCH($C$9,[1]!APPLIANCES,0)-1)*2)+2, MATCH(X$10,[1]!SHIPMENTS_MF_YEARS,0)) -> 717.6638205 | Y13: =INDEX([1]!SHIPMENTS_MF, ((MATCH($C$9,[1]!APPLIANCES,0)-1)*2)+2, MATCH(Y$10,[1]!SHIPMENTS_MF_YEARS,0)) -> 738.228965 | Z13: =INDEX([1]!SHIPMENTS_MF, ((MATCH($C$9,[1]!APPLIANCES,0)-1)*2)+2, MATCH(Z$10,[1]!SHIPMENTS_MF_YEARS,0)) -> 732.4533914 | AA13: =INDEX([1]!SHIPMENTS_MF, ((MATCH($C$9,[1]!APPLIANCES,0)-1)*2)+2, MATCH(AA$10,[1]!SHIPMENTS_MF_YEARS,0)) -> 754.6548192 | AB13: =INDEX([1]!SHIPMENTS_MF, ((MATCH($C$9,[1]!APPLIANCES,0)-1)*2)+2, MATCH(AB$10,[1]!SHIPMENTS_MF_YEARS,0)) -> 806.509286 | AC13: =INDEX([1]!SHIPMENTS_MF, ((MATCH($C$9,[1]!APPLIANCES,0)-1)*2)+2, MATCH(AC$10,[1]!SHIPMENTS_MF_YEARS,0)) -> 818.4399613 | AD13: =INDEX([1]!SHIPMENTS_MF, ((MATCH($C$9,[1]!APPLIANCES,0)-1)*2)+2, MATCH(AD$10,[1]!SHIPMENTS_MF_YEARS,0)) -> 875.1125777 | AE13: =INDEX([1]!SHIPMENTS_MF, ((MATCH($C$9,[1]!APPLIANCES,0)-1)*2)+2, MATCH(AE$10,[1]!SHIPMENTS_MF_YEARS,0)) -> 887.2192642 | AF13: =INDEX([1]!SHIPMENTS_MF, ((MATCH($C$9,[1]!APPLIANCES,0)-1)*2)+2, MATCH(AF$10,[1]!SHIPMENTS_MF_YEARS,0)) -> 809.1011059 | AG13: =INDEX([1]!SHIPMENTS_MF, ((MATCH($C$9,[1]!APPLIANCES,0)-1)*2)+2, MATCH(AG$10,[1]!SHIPMENTS_MF_YEARS,0)) -> 658.780105 | AH13: =INDEX([1]!SHIPMENTS_MF, ((MATCH($C$9,[1]!APPLIANCES,0)-1)*2)+2, MATCH(AH$10,[1]!SHIPMENTS_MF_YEARS,0)) -> 740.9141137 | AI13: =INDEX([1]!SHIPMENTS_MF, ((MATCH($C$9,[1]!APPLIANCES,0)-1)*2)+2, MATCH(AI$10,[1]!SHIPMENTS_MF_YEARS,0)) -> 848.2806485 | AJ13: =INDEX([1]!SHIPMENTS_MF, ((MATCH($C$9,[1]!APPLIANCES,0)-1)*2)+2, MATCH(AJ$10,[1]!SHIPMENTS_MF_YEARS,0)) -> 337.7849306 | AK13: =INDEX([1]!SHIPMENTS_MF, ((MATCH($C$9,[1]!APPLIANCES,0)-1)*2)+2, MATCH(AK$10,[1]!SHIPMENTS_MF_YEARS,0)) -> 356.8163369 | AL13: =INDEX([1]!SHIPMENTS_MF, ((MATCH($C$9,[1]!APPLIANCES,0)-1)*2)+2, MATCH(AL$10,[1]!SHIPMENTS_MF_YEARS,0)) -> 383.2142924 | AM13: =INDEX([1]!SHIPMENTS_MF, ((MATCH($C$9,[1]!APPLIANCES,0)-1)*2)+2, MATCH(AM$10,[1]!SHIPMENTS_MF_YEARS,0)) -> 414.5583177 | AN13: =INDEX([1]!SHIPMENTS_MF, ((MATCH($C$9,[1]!APPLIANCES,0)-1)*2)+2, MATCH(AN$10,[1]!SHIPMENTS_MF_YEARS,0)) -> 440.3065553 | AO13: =INDEX([1]!SHIPMENTS_MF, ((MATCH($C$9,[1]!APPLIANCES,0)-1)*2)+2, MATCH(AO$10,[1]!SHIPMENTS_MF_YEARS,0)) -> 454.757041 | AP13: =INDEX([1]!SHIPMENTS_MF, ((MATCH($C$9,[1]!APPLIANCES,0)-1)*2)+2, MATCH(AP$10,[1]!SHIPMENTS_MF_YEARS,0)) -> 470.6109804 | AQ13: =INDEX([1]!SHIPMENTS_MF, ((MATCH($C$9,[1]!APPLIANCES,0)-1)*2)+2, MATCH(AQ$10,[1]!SHIPMENTS_MF_YEARS,0)) -> 488.9377165 | AR13: =INDEX([1]!SHIPMENTS_MF, ((MATCH($C$9,[1]!APPLIANCES,0)-1)*2)+2, MATCH(AR$10,[1]!SHIPMENTS_MF_YEARS,0)) -> 499.7688864 | AS13: =INDEX([1]!SHIPMENTS_MF, ((MATCH($C$9,[1]!APPLIANCES,0)-1)*2)+2, MATCH(AS$10,[1]!SHIPMENTS_MF_YEARS,0)) -> 490.9404463 | AT13: =INDEX([1]!SHIPMENTS_MF, ((MATCH($C$9,[1]!APPLIANCES,0)-1)*2)+2, MATCH(AT$10,[1]!SHIPMENTS_MF_YEARS,0)) -> 496.4343126 | AU13: =INDEX([1]!SHIPMENTS_MF, ((MATCH($C$9,[1]!APPLIANCES,0)-1)*2)+2, MATCH(AU$10,[1]!SHIPMENTS_MF_YEARS,0)) -> 498.7163934 | AV13: =INDEX([1]!SHIPMENTS_MF, ((MATCH($C$9,[1]!APPLIANCES,0)-1)*2)+2, MATCH(AV$10,[1]!SHIPMENTS_MF_YEARS,0)) -> 497.3319891 | AW13: =INDEX([1]!SHIPMENTS_MF, ((MATCH($C$9,[1]!APPLIANCES,0)-1)*2)+2, MATCH(AW$10,[1]!SHIPMENTS_MF_YEARS,0)) -> 491.9574461 | AX13: =INDEX([1]!SHIPMENTS_MF, ((MATCH($C$9,[1]!APPLIANCES,0)-1)*2)+2, MATCH(AX$10,[1]!SHIPMENTS_MF_YEARS,0)) -> 484.5798225 | AY13: =INDEX([1]!SHIPMENTS_MF, ((MATCH($C$9,[1]!APPLIANCES,0)-1)*2)+2, MATCH(AY$10,[1]!SHIPMENTS_MF_YEARS,0)) -> 482.2909306 | AZ13: =INDEX([1]!SHIPMENTS_MF, ((MATCH($C$9,[1]!APPLIANCES,0)-1)*2)+2, MATCH(AZ$10,[1]!SHIPMENTS_MF_YEARS,0)) -> 481.3226316 | BA13: =INDEX([1]!SHIPMENTS_MF, ((MATCH($C$9,[1]!APPLIANCES,0)-1)*2)+2, MATCH(BA$10,[1]!SHIPMENTS_MF_YEARS,0)) -> 479.7180633 | BB13: =INDEX([1]!SHIPMENTS_MF, ((MATCH($C$9,[1]!APPLIANCES,0)-1)*2)+2, MATCH(BB$10,[1]!SHIPMENTS_MF_YEARS,0)) -> 474.4987151 | BC13: =INDEX([1]!SHIPMENTS_MF, ((MATCH($C$9,[1]!APPLIANCES,0)-1)*2)+2, MATCH(BC$10,[1]!SHIPMENTS_MF_YEARS,0)) -> 479.2437023 | BD13: =INDEX([1]!SHIPMENTS_MF, ((MATCH($C$9,[1]!APPLIANCES,0)-1)*2)+2, MATCH(BD$10,[1]!SHIPMENTS_MF_YEARS,0)) -> 484.0361393 | BE13: =INDEX([1]!SHIPMENTS_MF, ((MATCH($C$9,[1]!APPLIANCES,0)-1)*2)+2, MATCH(BE$10,[1]!SHIPMENTS_MF_YEARS,0)) -> 488.8765007 | BF13: =INDEX([1]!SHIPMENTS_MF, ((MATCH($C$9,[1]!APPLIANCES,0)-1)*2)+2, MATCH(BF$10,[1]!SHIPMENTS_MF_YEARS,0)) -> 493.7652657
C14: Total Model Shipments | D14: (units) | E14: =SUM(E12:E13) -> 474.6090785 | F14: =SUM(F12:F13) -> 435.5880565 | G14: 452.8853045 | H14: 512.6820113 | I14: 606.0162656 | J14: 576.2356323 | K14: 603.7492059 | L14: 668.3407883 | M14: 733.1678107 | N14: 672.2394728 | O14: 495.150589 | P14: 499.013831 | Q14: 916.0002192 | R14: 974.662381 | S14: 1015.701579 | T14: 1038.821269 | U14: 1064.437976 | V14: 1127.919886 | W14: 1093.291958 | X14: 1192.272899 | Y14: 1173.817021 | Z14: 1185.338696 | AA14: 1267.336831 | AB14: 1412.525552 | AC14: 1394.675594 | AD14: 1478.861784 | AE14: 1555.560053 | AF14: 1542.268917 | AG14: 1331.019578 | AH14: 1236.064703 | AI14: 1347.294479 | AJ14: 1253.78515 | AK14: 1331.478718 | AL14: 1398.915872 | AM14: 1453.379587 | AN14: 1504.744531 | AO14: 1582.676927 | AP14: 1563.902938 | AQ14: 1681.210615 | AR14: 1673.585908 | AS14: 1676.279142 | AT14: 1763.771143 | AU14: 1911.241945 | AV14: 1892.007583 | AW14: 1970.81923 | AX14: 2040.139875 | AY14: 2024.559847 | AZ14: 1812.342209 | BA14: 1715.782766 | BB14: 1821.793195 | BC14: 1733.028852 | BD14: 1815.514857 | BE14: 1887.792373 | BF14: 1947.144853
C15: Model Installed Stock | D15: (units) | E15: =INDEX([1]!STOCK_MF, MATCH($C$9,[1]!APPLIANCES,0), MATCH(E$10,[1]!STOCK_MF_YEARS,0)) -> 6580.836438 | F15: =INDEX([1]!STOCK_MF, MATCH($C$9,[1]!APPLIANCES,0), MATCH(F$10,[1]!STOCK_MF_YEARS,0)) -> 6677.189641 | G15: =INDEX([1]!STOCK_MF, MATCH($C$9,[1]!APPLIANCES,0), MATCH(G$10,[1]!STOCK_MF_YEARS,0)) -> 6790.840092 | H15: =INDEX([1]!STOCK_MF, MATCH($C$9,[1]!APPLIANCES,0), MATCH(H$10,[1]!STOCK_MF_YEARS,0)) -> 6964.28725 | I15: =INDEX([1]!STOCK_MF, MATCH($C$9,[1]!APPLIANCES,0), MATCH(I$10,[1]!STOCK_MF_YEARS,0)) -> 7231.068663 | J15: =INDEX([1]!STOCK_MF, MATCH($C$9,[1]!APPLIANCES,0), MATCH(J$10,[1]!STOCK_MF_YEARS,0)) -> 7468.069442 | K15: =INDEX([1]!STOCK_MF, MATCH($C$9,[1]!APPLIANCES,0), MATCH(K$10,[1]!STOCK_MF_YEARS,0)) -> 7732.583794 | L15: =INDEX([1]!STOCK_MF, MATCH($C$9,[1]!APPLIANCES,0), MATCH(L$10,[1]!STOCK_MF_YEARS,0)) -> 8061.689729 | M15: =INDEX([1]!STOCK_MF, MATCH($C$9,[1]!APPLIANCES,0), MATCH(M$10,[1]!STOCK_MF_YEARS,0)) -> 8455.622687 | N15: =INDEX([1]!STOCK_MF, MATCH($C$9,[1]!APPLIANCES,0), MATCH(N$10,[1]!STOCK_MF_YEARS,0)) -> 8788.627306 | O15: =INDEX([1]!STOCK_MF, MATCH($C$9,[1]!APPLIANCES,0), MATCH(O$10,[1]!STOCK_MF_YEARS,0)) -> 8944.543042 | P15: =INDEX([1]!STOCK_MF, MATCH($C$9,[1]!APPLIANCES,0), MATCH(P$10,[1]!STOCK_MF_YEARS,0)) -> 9104.32202 | Q15: =INDEX([1]!STOCK_MF, MATCH($C$9,[1]!APPLIANCES,0), MATCH(Q$10,[1]!STOCK_MF_YEARS,0)) -> 9681.087385 | R15: =INDEX([1]!STOCK_MF, MATCH($C$9,[1]!APPLIANCES,0), MATCH(R$10,[1]!STOCK_MF_YEARS,0)) -> 10316.51491 | S15: =INDEX([1]!STOCK_MF, MATCH($C$9,[1]!APPLIANCES,0), MATCH(S$10,[1]!STOCK_MF_YEARS,0)) -> 10992.98164 | T15: =INDEX([1]!STOCK_MF, MATCH($C$9,[1]!APPLIANCES,0), MATCH(T$10,[1]!STOCK_MF_YEARS,0)) -> 11692.56806 | U15: =INDEX([1]!STOCK_MF, MATCH($C$9,[1]!APPLIANCES,0), MATCH(U$10,[1]!STOCK_MF_YEARS,0)) -> 12417.77118 | V15: =INDEX([1]!STOCK_MF, MATCH($C$9,[1]!APPLIANCES,0), MATCH(V$10,[1]!STOCK_MF_YEARS,0)) -> 13206.45621 | W15: =INDEX([1]!STOCK_MF, MATCH($C$9,[1]!APPLIANCES,0), MATCH(W$10,[1]!STOCK_MF_YEARS,0)) -> 13960.51331 | X15: =INDEX([1]!STOCK_MF, MATCH($C$9,[1]!APPLIANCES,0), MATCH(X$10,[1]!STOCK_MF_YEARS,0)) -> 14678.17713 | Y15: =INDEX([1]!STOCK_MF, MATCH($C$9,[1]!APPLIANCES,0), MATCH(Y$10,[1]!STOCK_MF_YEARS,0)) -> 15416.4061 | Z15: =INDEX([1]!STOCK_MF, MATCH($C$9,[1]!APPLIANCES,0), MATCH(Z$10,[1]!STOCK_MF_YEARS,0)) -> 16148.85949 | AA15: =INDEX([1]!STOCK_MF, MATCH($C$9,[1]!APPLIANCES,0), MATCH(AA$10,[1]!STOCK_MF_YEARS,0)) -> 16903.51431 | AB15: =INDEX([1]!STOCK_MF, MATCH($C$9,[1]!APPLIANCES,0), MATCH(AB$10,[1]!STOCK_MF_YEARS,0)) -> 17710.0236 | AC15: =INDEX([1]!STOCK_MF, MATCH($C$9,[1]!APPLIANCES,0), MATCH(AC$10,[1]!STOCK_MF_YEARS,0)) -> 18528.46356 | AD15: =INDEX([1]!STOCK_MF, MATCH($C$9,[1]!APPLIANCES,0), MATCH(AD$10,[1]!STOCK_MF_YEARS,0)) -> 19403.57614 | AE15: =INDEX([1]!STOCK_MF, MATCH($C$9,[1]!APPLIANCES,0), MATCH(AE$10,[1]!STOCK_MF_YEARS,0)) -> 20290.7954 | AF15: =INDEX([1]!STOCK_MF, MATCH($C$9,[1]!APPLIANCES,0), MATCH(AF$10,[1]!STOCK_MF_YEARS,0)) -> 21099.89651 | AG15: =INDEX([1]!STOCK_MF, MATCH($C$9,[1]!APPLIANCES,0), MATCH(AG$10,[1]!STOCK_MF_YEARS,0)) -> 21758.67661 | AH15: =INDEX([1]!STOCK_MF, MATCH($C$9,[1]!APPLIANCES,0), MATCH(AH$10,[1]!STOCK_MF_YEARS,0)) -> 22499.59072 | AI15: =INDEX([1]!STOCK_MF, MATCH($C$9,[1]!APPLIANCES,0), MATCH(AI$10,[1]!STOCK_MF_YEARS,0)) -> 23347.87137 | AJ15: =INDEX([1]!STOCK_MF, MATCH($C$9,[1]!APPLIANCES,0), MATCH(AJ$10,[1]!STOCK_MF_YEARS,0)) -> 23685.6563 | AK15: =INDEX([1]!STOCK_MF, MATCH($C$9,[1]!APPLIANCES,0), MATCH(AK$10,[1]!STOCK_MF_YEARS,0)) -> 24042.47264 | AL15: =INDEX([1]!STOCK_MF, MATCH($C$9,[1]!APPLIANCES,0), MATCH(AL$10,[1]!STOCK_MF_YEARS,0)) -> 24425.68693 | AM15: =INDEX([1]!STOCK_MF, MATCH($C$9,[1]!APPLIANCES,0), MATCH(AM$10,[1]!STOCK_MF_YEARS,0)) -> 24840.24525 | AN15: =INDEX([1]!STOCK_MF, MATCH($C$9,[1]!APPLIANCES,0), MATCH(AN$10,[1]!STOCK_MF_YEARS,0)) -> 25280.55181 | AO15: =INDEX([1]!STOCK_MF, MATCH($C$9,[1]!APPLIANCES,0), MATCH(AO$10,[1]!STOCK_MF_YEARS,0)) -> 25735.30885 | AP15: =INDEX([1]!STOCK_MF, MATCH($C$9,[1]!APPLIANCES,0), MATCH(AP$10,[1]!STOCK_MF_YEARS,0)) -> 26205.91983 | AQ15: =INDEX([1]!STOCK_MF, MATCH($C$9,[1]!APPLIANCES,0), MATCH(AQ$10,[1]!STOCK_MF_YEARS,0)) -> 26694.85754 | AR15: =INDEX([1]!STOCK_MF, MATCH($C$9,[1]!APPLIANCES,0), MATCH(AR$10,[1]!STOCK_MF_YEARS,0)) -> 27194.62643 | AS15: =INDEX([1]!STOCK_MF, MATCH($C$9,[1]!APPLIANCES,0), MATCH(AS$10,[1]!STOCK_MF_YEARS,0)) -> 27685.56688 | AT15: =INDEX([1]!STOCK_MF, MATCH($C$9,[1]!APPLIANCES,0), MATCH(AT$10,[1]!STOCK_MF_YEARS,0)) -> 28182.00119 | AU15: =INDEX([1]!STOCK_MF, MATCH($C$9,[1]!APPLIANCES,0), MATCH(AU$10,[1]!STOCK_MF_YEARS,0)) -> 28680.71758 | AV15: =INDEX([1]!STOCK_MF, MATCH($C$9,[1]!APPLIANCES,0), MATCH(AV$10,[1]!STOCK_MF_YEARS,0)) -> 29178.04957 | AW15: =INDEX([1]!STOCK_MF, MATCH($C$9,[1]!APPLIANCES,0), MATCH(AW$10,[1]!STOCK_MF_YEARS,0)) -> 29670.00702 | AX15: =INDEX([1]!STOCK_MF, MATCH($C$9,[1]!APPLIANCES,0), MATCH(AX$10,[1]!STOCK_MF_YEARS,0)) -> 30154.58684 | AY15: =INDEX([1]!STOCK_MF, MATCH($C$9,[1]!APPLIANCES,0), MATCH(AY$10,[1]!STOCK_MF_YEARS,0)) -> 30636.87777 | AZ15: =INDEX([1]!STOCK_MF, MATCH($C$9,[1]!APPLIANCES,0), MATCH(AZ$10,[1]!STOCK_MF_YEARS,0)) -> 31118.2004 | BA15: =INDEX([1]!STOCK_MF, MATCH($C$9,[1]!APPLIANCES,0), MATCH(BA$10,[1]!STOCK_MF_YEARS,0)) -> 31597.91847 | BB15: =INDEX([1]!STOCK_MF, MATCH($C$9,[1]!APPLIANCES,0), MATCH(BB$10,[1]!STOCK_MF_YEARS,0)) -> 32072.41718 | BC15: =INDEX([1]!STOCK_MF, MATCH($C$9,[1]!APPLIANCES,0), MATCH(BC$10,[1]!STOCK_MF_YEARS,0)) -> 32551.66088 | BD15: =INDEX([1]!STOCK_MF, MATCH($C$9,[1]!APPLIANCES,0), MATCH(BD$10,[1]!STOCK_MF_YEARS,0)) -> 33035.69702 | BE15: =INDEX([1]!STOCK_MF, MATCH($C$9,[1]!APPLIANCES,0), MATCH(BE$10,[1]!STOCK_MF_YEARS,0)) -> 33524.57352 | BF15: =INDEX([1]!STOCK_MF, MATCH($C$9,[1]!APPLIANCES,0), MATCH(BF$10,[1]!STOCK_MF_YEARS,0)) -> 34018.33879

Sheet Shipments and Stock - MH
C2: Shipments and Stock - MH
C4: NAVIGATION
C6: COMMENTS
C9: =MODEL_NAME -> CENTRAL AC
E10: 1981 | F10: 1982 | G10: 1983 | H10: 1984 | I10: 1985 | J10: 1986 | K10: 1987 | L10: 1988 | M10: 1989 | N10: 1990 | O10: 1991 | P10: 1992 | Q10: 1993 | R10: 1994 | S10: 1995 | T10: 1996 | U10: 1997 | V10: 1998 | W10: 1999 | X10: 2000 | Y10: 2001 | Z10: 2002 | AA10: 2003 | AB10: 2004 | AC10: 2005 | AD10: 2006 | AE10: 2007 | AF10: 2008 | AG10: 2009 | AH10: 2010 | AI10: 2011 | AJ10: 2012 | AK10: 2013 | AL10: 2014 | AM10: 2015 | AN10: 2016 | AO10: 2017 | AP10: 2018 | AQ10: 2019 | AR10: 2020 | AS10: 2021 | AT10: 2022 | AU10: 2023 | AV10: 2024 | AW10: 2025 | AX10: 2026 | AY10: 2027 | AZ10: 2028 | BA10: 2029 | BB10: 2030 | BC10: 2031 | BD10: 2032 | BE10: 2033 | BF10: 2034
C11: 6P Shipments | D11: (units) | E11: =IF(ISNUMBER(MATCH(E10,[1]!SIXTH_PLAN_MH_YEARS,0)), INDEX([1]!SIXTH_PLAN_MH, MATCH($C$9,[1]!APPLIANCES,0), MATCH(E$10,[1]!SIXTH_PLAN_MH_YEARS,0)),"pre-dates plan") -> pre-dates plan | F11: =IF(ISNUMBER(MATCH(F10,[1]!SIXTH_PLAN_MH_YEARS,0)), INDEX([1]!SIXTH_PLAN_MH, MATCH($C$9,[1]!APPLIANCES,0), MATCH(F$10,[1]!SIXTH_PLAN_MH_YEARS,0)),"pre-dates plan") -> pre-dates plan | G11: =IF(ISNUMBER(MATCH(G10,[1]!SIXTH_PLAN_MH_YEARS,0)), INDEX([1]!SIXTH_PLAN_MH, MATCH($C$9,[1]!APPLIANCES,0), MATCH(G$10,[1]!SIXTH_PLAN_MH_YEARS,0)),"pre-dates plan") -> pre-dates plan | H11: =IF(ISNUMBER(MATCH(H10,[1]!SIXTH_PLAN_MH_YEARS,0)), INDEX([1]!SIXTH_PLAN_MH, MATCH($C$9,[1]!APPLIANCES,0), MATCH(H$10,[1]!SIXTH_PLAN_MH_YEARS,0)),"pre-dates plan") -> pre-dates plan | I11: =IF(ISNUMBER(MATCH(I10,[1]!SIXTH_PLAN_MH_YEARS,0)), INDEX([1]!SIXTH_PLAN_MH, MATCH($C$9,[1]!APPLIANCES,0), MATCH(I$10,[1]!SIXTH_PLAN_MH_YEARS,0)),"pre-dates plan") -> pre-dates plan | J11: =IF(ISNUMBER(MATCH(J10,[1]!SIXTH_PLAN_MH_YEARS,0)), INDEX([1]!SIXTH_PLAN_MH, MATCH($C$9,[1]!APPLIANCES,0), MATCH(J$10,[1]!SIXTH_PLAN_MH_YEARS,0)),"pre-dates plan") -> pre-dates plan | K11: =IF(ISNUMBER(MATCH(K10,[1]!SIXTH_PLAN_MH_YEARS,0)), INDEX([1]!SIXTH_PLAN_MH, MATCH($C$9,[1]!APPLIANCES,0), MATCH(K$10,[1]!SIXTH_PLAN_MH_YEARS,0)),"pre-dates plan") -> pre-dates plan | L11: =IF(ISNUMBER(MATCH(L10,[1]!SIXTH_PLAN_MH_YEARS,0)), INDEX([1]!SIXTH_PLAN_MH, MATCH($C$9,[1]!APPLIANCES,0), MATCH(L$10,[1]!SIXTH_PLAN_MH_YEARS,0)),"pre-dates plan") -> pre-dates plan | M11: =IF(ISNUMBER(MATCH(M10,[1]!SIXTH_PLAN_MH_YEARS,0)), INDEX([1]!SIXTH_PLAN_MH, MATCH($C$9,[1]!APPLIANCES,0), MATCH(M$10,[1]!SIXTH_PLAN_MH_YEARS,0)),"pre-dates plan") -> pre-dates plan | N11: =IF(ISNUMBER(MATCH(N10,[1]!SIXTH_PLAN_MH_YEARS,0)), INDEX([1]!SIXTH_PLAN_MH, MATCH($C$9,[1]!APPLIANCES,0), MATCH(N$10,[1]!SIXTH_PLAN_MH_YEARS,0)),"pre-dates plan") -> pre-dates plan | O11: =IF(ISNUMBER(MATCH(O10,[1]!SIXTH_PLAN_MH_YEARS,0)), INDEX([1]!SIXTH_PLAN_MH, MATCH($C$9,[1]!APPLIANCES,0), MATCH(O$10,[1]!SIXTH_PLAN_MH_YEARS,0)),"pre-dates plan") -> pre-dates plan | P11: =IF(ISNUMBER(MATCH(P10,[1]!SIXTH_PLAN_MH_YEARS,0)), INDEX([1]!SIXTH_PLAN_MH, MATCH($C$9,[1]!APPLIANCES,0), MATCH(P$10,[1]!SIXTH_PLAN_MH_YEARS,0)),"pre-dates plan") -> pre-dates plan | Q11: =IF(ISNUMBER(MATCH(Q10,[1]!SIXTH_PLAN_MH_YEARS,0)), INDEX([1]!SIXTH_PLAN_MH, MATCH($C$9,[1]!APPLIANCES,0), MATCH(Q$10,[1]!SIXTH_PLAN_MH_YEARS,0)),"pre-dates plan") -> pre-dates plan | R11: =IF(ISNUMBER(MATCH(R10,[1]!SIXTH_PLAN_MH_YEARS,0)), INDEX([1]!SIXTH_PLAN_MH, MATCH($C$9,[1]!APPLIANCES,0), MATCH(R$10,[1]!SIXTH_PLAN_MH_YEARS,0)),"pre-dates plan") -> pre-dates plan | S11: =IF(ISNUMBER(MATCH(S10,[1]!SIXTH_PLAN_MH_YEARS,0)), INDEX([1]!SIXTH_PLAN_MH, MATCH($C$9,[1]!APPLIANCES,0), MATCH(S$10,[1]!SIXTH_PLAN_MH_YEARS,0)),"pre-dates plan") -> pre-dates plan | T11: =IF(ISNUMBER(MATCH(T10,[1]!SIXTH_PLAN_MH_YEARS,0)), INDEX([1]!SIXTH_PLAN_MH, MATCH($C$9,[1]!APPLIANCES,0), MATCH(T$10,[1]!SIXTH_PLAN_MH_YEARS,0)),"pre-dates plan") -> pre-dates plan | U11: =IF(ISNUMBER(MATCH(U10,[1]!SIXTH_PLAN_MH_YEARS,0)), INDEX([1]!SIXTH_PLAN_MH, MATCH($C$9,[1]!APPLIANCES,0), MATCH(U$10,[1]!SIXTH_PLAN_MH_YEARS,0)),"pre-dates plan") -> pre-dates plan | V11: =IF(ISNUMBER(MATCH(V10,[1]!SIXTH_PLAN_MH_YEARS,0)), INDEX([1]!SIXTH_PLAN_MH, MATCH($C$9,[1]!APPLIANCES,0), MATCH(V$10,[1]!SIXTH_PLAN_MH_YEARS,0)),"pre-dates plan") -> pre-dates plan | W11: =IF(ISNUMBER(MATCH(W10,[1]!SIXTH_PLAN_MH_YEARS,0)), INDEX([1]!SIXTH_PLAN_MH, MATCH($C$9,[1]!APPLIANCES,0), MATCH(W$10,[1]!SIXTH_PLAN_MH_YEARS,0)),"pre-dates plan") -> pre-dates plan | X11: =IF(ISNUMBER(MATCH(X10,[1]!SIXTH_PLAN_MH_YEARS,0)), INDEX([1]!SIXTH_PLAN_MH, MATCH($C$9,[1]!APPLIANCES,0), MATCH(X$10,[1]!SIXTH_PLAN_MH_YEARS,0)),"pre-dates plan") -> pre-dates plan | Y11: =IF(ISNUMBER(MATCH(Y10,[1]!SIXTH_PLAN_MH_YEARS,0)), INDEX([1]!SIXTH_PLAN_MH, MATCH($C$9,[1]!APPLIANCES,0), MATCH(Y$10,[1]!SIXTH_PLAN_MH_YEARS,0)),"pre-dates plan") -> pre-dates plan | Z11: =IF(ISNUMBER(MATCH(Z10,[1]!SIXTH_PLAN_MH_YEARS,0)), INDEX([1]!SIXTH_PLAN_MH, MATCH($C$9,[1]!APPLIANCES,0), MATCH(Z$10,[1]!SIXTH_PLAN_MH_YEARS,0)),"pre-dates plan") -> pre-dates plan | AA11: =IF(ISNUMBER(MATCH(AA10,[1]!SIXTH_PLAN_MH_YEARS,0)), INDEX([1]!SIXTH_PLAN_MH, MATCH($C$9,[1]!APPLIANCES,0), MATCH(AA$10,[1]!SIXTH_PLAN_MH_YEARS,0)),"pre-dates plan") -> pre-dates plan | AB11: =IF(ISNUMBER(MATCH(AB10,[1]!SIXTH_PLAN_MH_YEARS,0)), INDEX([1]!SIXTH_PLAN_MH, MATCH($C$9,[1]!APPLIANCES,0), MATCH(AB$10,[1]!SIXTH_PLAN_MH_YEARS,0)),"pre-dates plan") -> pre-dates plan | AC11: =IF(ISNUMBER(MATCH(AC10,[1]!SIXTH_PLAN_MH_YEARS,0)), INDEX([1]!SIXTH_PLAN_MH, MATCH($C$9,[1]!APPLIANCES,0), MATCH(AC$10,[1]!SIXTH_PLAN_MH_YEARS,0)),"pre-dates plan") -> pre-dates plan | AD11: =IF(ISNUMBER(MATCH(AD10,[1]!SIXTH_PLAN_MH_YEARS,0)), INDEX([1]!SIXTH_PLAN_MH, MATCH($C$9,[1]!APPLIANCES,0), MATCH(AD$10,[1]!SIXTH_PLAN_MH_YEARS,0)),"pre-dates plan") -> pre-dates plan | AE11: =IF(ISNUMBER(MATCH(AE10,[1]!SIXTH_PLAN_MH_YEARS,0)), INDEX([1]!SIXTH_PLAN_MH, MATCH($C$9,[1]!APPLIANCES,0), MATCH(AE$10,[1]!SIXTH_PLAN_MH_YEARS,0)),"pre-dates plan") -> pre-dates plan | AF11: =IF(ISNUMBER(MATCH(AF10,[1]!SIXTH_PLAN_MH_YEARS,0)), INDEX([1]!SIXTH_PLAN_MH, MATCH($C$9,[1]!APPLIANCES,0), MATCH(AF$10,[1]!SIXTH_PLAN_MH_YEARS,0)),"pre-dates plan") -> pre-dates plan | AG11: =IF(ISNUMBER(MATCH(AG10,[1]!SIXTH_PLAN_MH_YEARS,0)), INDEX([1]!SIXTH_PLAN_MH, MATCH($C$9,[1]!APPLIANCES,0), MATCH(AG$10,[1]!SIXTH_PLAN_MH_YEARS,0)),"pre-dates plan") -> pre-dates plan | AH11: =IF(ISNUMBER(MATCH(AH10,[1]!SIXTH_PLAN_MH_YEARS,0)), INDEX([1]!SIXTH_PLAN_MH, MATCH($C$9,[1]!APPLIANCES,0), MATCH(AH$10,[1]!SIXTH_PLAN_MH_YEARS,0)),"pre-dates plan") -> 21736.325 | AI11: =IF(ISNUMBER(MATCH(AI10,[1]!SIXTH_PLAN_MH_YEARS,0)), INDEX([1]!SIXTH_PLAN_MH, MATCH($C$9,[1]!APPLIANCES,0), MATCH(AI$10,[1]!SIXTH_PLAN_MH_YEARS,0)),"pre-dates plan") -> 21669.80241 | AJ11: =IF(ISNUMBER(MATCH(AJ10,[1]!SIXTH_PLAN_MH_YEARS,0)), INDEX([1]!SIXTH_PLAN_MH, MATCH($C$9,[1]!APPLIANCES,0), MATCH(AJ$10,[1]!SIXTH_PLAN_MH_YEARS,0)),"pre-dates plan") -> 21521.62608 | AK11: =IF(ISNUMBER(MATCH(AK10,[1]!SIXTH_PLAN_MH_YEARS,0)), INDEX([1]!SIXTH_PLAN_MH, MATCH($C$9,[1]!APPLIANCES,0), MATCH(AK$10,[1]!SIXTH_PLAN_MH_YEARS,0)),"pre-dates plan") -> 21335.40966 | AL11: =IF(ISNUMBER(MATCH(AL10,[1]!SIXTH_PLAN_MH_YEARS,0)), INDEX([1]!SIXTH_PLAN_MH, MATCH($C$9,[1]!APPLIANCES,0), MATCH(AL$10,[1]!SIXTH_PLAN_MH_YEARS,0)),"pre-dates plan") -> 21096.96939 | AM11: =IF(ISNUMBER(MATCH(AM10,[1]!SIXTH_PLAN_MH_YEARS,0)), INDEX([1]!SIXTH_PLAN_MH, MATCH($C$9,[1]!APPLIANCES,0), MATCH(AM$10,[1]!SIXTH_PLAN_MH_YEARS,0)),"pre-dates plan") -> 20876.292 | AN11: =IF(ISNUMBER(MATCH(AN10,[1]!SIXTH_PLAN_MH_YEARS,0)), INDEX([1]!SIXTH_PLAN_MH, MATCH($C$9,[1]!APPLIANCES,0), MATCH(AN$10,[1]!SIXTH_PLAN_MH_YEARS,0)),"pre-dates plan") -> 20709.17148 | AO11: =IF(ISNUMBER(MATCH(AO10,[1]!SIXTH_PLAN_MH_YEARS,0)), INDEX([1]!SIXTH_PLAN_MH, MATCH($C$9,[1]!APPLIANCES,0), MATCH(AO$10,[1]!SIXTH_PLAN_MH_YEARS,0)),"pre-dates plan") -> 20612.28466 | AP11: =IF(ISNUMBER(MATCH(AP10,[1]!SIXTH_PLAN_MH_YEARS,0)), INDEX([1]!SIXTH_PLAN_MH, MATCH($C$9,[1]!APPLIANCES,0), MATCH(AP$10,[1]!SIXTH_PLAN_MH_YEARS,0)),"pre-dates plan") -> 20594.93272 | AQ11: =IF(ISNUMBER(MATCH(AQ10,[1]!SIXTH_PLAN_MH_YEARS,0)), INDEX([1]!SIXTH_PLAN_MH, MATCH($C$9,[1]!APPLIANCES,0), MATCH(AQ$10,[1]!SIXTH_PLAN_MH_YEARS,0)),"pre-dates plan") -> 20653.34058 | AR11: =IF(ISNUMBER(MATCH(AR10,[1]!SIXTH_PLAN_MH_YEARS,0)), INDEX([1]!SIXTH_PLAN_MH, MATCH($C$9,[1]!APPLIANCES,0), MATCH(AR$10,[1]!SIXTH_PLAN_MH_YEARS,0)),"pre-dates plan") -> 20957.09546 | AS11: =IF(ISNUMBER(MATCH(AS10,[1]!SIXTH_PLAN_MH_YEARS,0)), INDEX([1]!SIXTH_PLAN_MH, MATCH($C$9,[1]!APPLIANCES,0), MATCH(AS$10,[1]!SIXTH_PLAN_MH_YEARS,0)),"pre-dates plan") -> 21110.48086 | AT11: =IF(ISNUMBER(MATCH(AT10,[1]!SIXTH_PLAN_MH_YEARS,0)), INDEX([1]!SIXTH_PLAN_MH, MATCH($C$9,[1]!APPLIANCES,0), MATCH(AT$10,[1]!SIXTH_PLAN_MH_YEARS,0)),"pre-dates plan") -> 21264.42212 | AU11: =IF(ISNUMBER(MATCH(AU10,[1]!SIXTH_PLAN_MH_YEARS,0)), INDEX([1]!SIXTH_PLAN_MH, MATCH($C$9,[1]!APPLIANCES,0), MATCH(AU$10,[1]!SIXTH_PLAN_MH_YEARS,0)),"pre-dates plan") -> 21386.97844 | AV11: =IF(ISNUMBER(MATCH(AV10,[1]!SIXTH_PLAN_MH_YEARS,0)), INDEX([1]!SIXTH_PLAN_MH, MATCH($C$9,[1]!APPLIANCES,0), MATCH(AV$10,[1]!SIXTH_PLAN_MH_YEARS,0)),"pre-dates plan") -> 21453.95466 | AW11: =IF(ISNUMBER(MATCH(AW10,[1]!SIXTH_PLAN_MH_YEARS,0)), INDEX([1]!SIXTH_PLAN_MH, MATCH($C$9,[1]!APPLIANCES,0), MATCH(AW$10,[1]!SIXTH_PLAN_MH_YEARS,0)),"pre-dates plan") -> 21451.62571 | AX11: =IF(ISNUMBER(MATCH(AX10,[1]!SIXTH_PLAN_MH_YEARS,0)), INDEX([1]!SIXTH_PLAN_MH, MATCH($C$9,[1]!APPLIANCES,0), MATCH(AX$10,[1]!SIXTH_PLAN_MH_YEARS,0)),"pre-dates plan") -> 21378.65427 | AY11: =IF(ISNUMBER(MATCH(AY10,[1]!SIXTH_PLAN_MH_YEARS,0)), INDEX([1]!SIXTH_PLAN_MH, MATCH($C$9,[1]!APPLIANCES,0), MATCH(AY$10,[1]!SIXTH_PLAN_MH_YEARS,0)),"pre-dates plan") -> 21247.18205 | AZ11: =IF(ISNUMBER(MATCH(AZ10,[1]!SIXTH_PLAN_MH_YEARS,0)), INDEX([1]!SIXTH_PLAN_MH, MATCH($C$9,[1]!APPLIANCES,0), MATCH(AZ$10,[1]!SIXTH_PLAN_MH_YEARS,0)),"pre-dates plan") -> 3738.162952 | BA11: =IF(ISNUMBER(MATCH(BA10,[1]!SIXTH_PLAN_MH_YEARS,0)), INDEX([1]!SIXTH_PLAN_MH, MATCH($C$9,[1]!APPLIANCES,0), MATCH(BA$10,[1]!SIXTH_PLAN_MH_YEARS,0)),"pre-dates plan") -> 3558.845469 | BB11: =IF(ISNUMBER(MATCH(BB10,[1]!SIXTH_PLAN_MH_YEARS,0)), INDEX([1]!SIXTH_PLAN_MH, MATCH($C$9,[1]!APPLIANCES,0), MATCH(BB$10,[1]!SIXTH_PLAN_MH_YEARS,0)),"pre-dates plan") -> 3396.688449 | BC11: =IF(ISNUMBER(MATCH(BC10,[1]!SIXTH_PLAN_MH_YEARS,0)), INDEX([1]!SIXTH_PLAN_MH, MATCH($C$9,[1]!APPLIANCES,0), MATCH(BC$10,[1]!SIXTH_PLAN_MH_YEARS,0)),"pre-dates plan") -> 3396.688449 | BD11: =IF(ISNUMBER(MATCH(BD10,[1]!SIXTH_PLAN_MH_YEARS,0)), INDEX([1]!SIXTH_PLAN_MH, MATCH($C$9,[1]!APPLIANCES,0), MATCH(BD$10,[1]!SIXTH_PLAN_MH_YEARS,0)),"pre-dates plan") -> 3396.688449 | BE11: =IF(ISNUMBER(MATCH(BE10,[1]!SIXTH_PLAN_MH_YEARS,0)), INDEX([1]!SIXTH_PLAN_MH, MATCH($C$9,[1]!APPLIANCES,0), MATCH(BE$10,[1]!SIXTH_PLAN_MH_YEARS,0)),"pre-dates plan") -> 3396.688449 | BF11: =IF(ISNUMBER(MATCH(BF10,[1]!SIXTH_PLAN_MH_YEARS,0)), INDEX([1]!SIXTH_PLAN_MH, MATCH($C$9,[1]!APPLIANCES,0), MATCH(BF$10,[1]!SIXTH_PLAN_MH_YEARS,0)),"pre-dates plan") -> 3396.688449
C12: Replacement Shipments | D12: (units) | E12: =INDEX([1]!SHIPMENTS_MH, ((MATCH($C$9,[1]!APPLIANCES,0)-1)*2)+1, MATCH(E$10,[1]!SHIPMENTS_MH_YEARS,0)) -> 1086.863307 | F12: =INDEX([1]!SHIPMENTS_MH, ((MATCH($C$9,[1]!APPLIANCES,0)-1)*2)+1, MATCH(F$10,[1]!SHIPMENTS_MH_YEARS,0)) -> 1086.863307 | G12: =INDEX([1]!SHIPMENTS_MH, ((MATCH($C$9,[1]!APPLIANCES,0)-1)*2)+1, MATCH(G$10,[1]!SHIPMENTS_MH_YEARS,0)) -> 1086.863307 | H12: =INDEX([1]!SHIPMENTS_MH, ((MATCH($C$9,[1]!APPLIANCES,0)-1)*2)+1, MATCH(H$10,[1]!SHIPMENTS_MH_YEARS,0)) -> 1086.863307 | I12: =INDEX([1]!SHIPMENTS_MH, ((MATCH($C$9,[1]!APPLIANCES,0)-1)*2)+1, MATCH(I$10,[1]!SHIPMENTS_MH_YEARS,0)) -> 1086.863307 | J12: =INDEX([1]!SHIPMENTS_MH, ((MATCH($C$9,[1]!APPLIANCES,0)-1)*2)+1, MATCH(J$10,[1]!SHIPMENTS_MH_YEARS,0)) -> 1086.863307 | K12: =INDEX([1]!SHIPMENTS_MH, ((MATCH($C$9,[1]!APPLIANCES,0)-1)*2)+1, MATCH(K$10,[1]!SHIPMENTS_MH_YEARS,0)) -> 1086.863307 | L12: =INDEX([1]!SHIPMENTS_MH, ((MATCH($C$9,[1]!APPLIANCES,0)-1)*2)+1, MATCH(L$10,[1]!SHIPMENTS_MH_YEARS,0)) -> 1086.863307 | M12: =INDEX([1]!SHIPMENTS_MH, ((MATCH($C$9,[1]!APPLIANCES,0)-1)*2)+1, MATCH(M$10,[1]!SHIPMENTS_MH_YEARS,0)) -> 1086.863307 | N12: =INDEX([1]!SHIPMENTS_MH, ((MATCH($C$9,[1]!APPLIANCES,0)-1)*2)+1, MATCH(N$10,[1]!SHIPMENTS_MH_YEARS,0)) -> 1086.863307 | O12: =INDEX([1]!SHIPMENTS_MH, ((MATCH($C$9,[1]!APPLIANCES,0)-1)*2)+1, MATCH(O$10,[1]!SHIPMENTS_MH_YEARS,0)) -> 1086.863307 | P12: =INDEX([1]!SHIPMENTS_MH, ((MATCH($C$9,[1]!APPLIANCES,0)-1)*2)+1, MATCH(P$10,[1]!SHIPMENTS_MH_YEARS,0)) -> 1086.863307 | Q12: =INDEX([1]!SHIPMENTS_MH, ((MATCH($C$9,[1]!APPLIANCES,0)-1)*2)+1, MATCH(Q$10,[1]!SHIPMENTS_MH_YEARS,0)) -> 1086.863307 | R12: =INDEX([1]!SHIPMENTS_MH, ((MATCH($C$9,[1]!APPLIANCES,0)-1)*2)+1, MATCH(R$10,[1]!SHIPMENTS_MH_YEARS,0)) -> 1086.863307 | S12: =INDEX([1]!SHIPMENTS_MH, ((MATCH($C$9,[1]!APPLIANCES,0)-1)*2)+1, MATCH(S$10,[1]!SHIPMENTS_MH_YEARS,0)) -> 1086.863307 | T12: =INDEX([1]!SHIPMENTS_MH, ((MATCH($C$9,[1]!APPLIANCES,0)-1)*2)+1, MATCH(T$10,[1]!SHIPMENTS_MH_YEARS,0)) -> 1086.863307 | U12: =INDEX([1]!SHIPMENTS_MH, ((MATCH($C$9,[1]!APPLIANCES,0)-1)*2)+1, MATCH(U$10,[1]!SHIPMENTS_MH_YEARS,0)) -> 1086.863307 | V12: =INDEX([1]!SHIPMENTS_MH, ((MATCH($C$9,[1]!APPLIANCES,0)-1)*2)+1, MATCH(V$10,[1]!SHIPMENTS_MH_YEARS,0)) -> 1086.863307 | W12: =INDEX([1]!SHIPMENTS_MH, ((MATCH($C$9,[1]!APPLIANCES,0)-1)*2)+1, MATCH(W$10,[1]!SHIPMENTS_MH_YEARS,0)) -> 1086.863307 | X12: =INDEX([1]!SHIPMENTS_MH, ((MATCH($C$9,[1]!APPLIANCES,0)-1)*2)+1, MATCH(X$10,[1]!SHIPMENTS_MH_YEARS,0)) -> 1900.037226 | Y12: =INDEX([1]!SHIPMENTS_MH, ((MATCH($C$9,[1]!APPLIANCES,0)-1)*2)+1, MATCH(Y$10,[1]!SHIPMENTS_MH_YEARS,0)) -> 1743.672049 | Z12: =INDEX([1]!SHIPMENTS_MH, ((MATCH($C$9,[1]!APPLIANCES,0)-1)*2)+1, MATCH(Z$10,[1]!SHIPMENTS_MH_YEARS,0)) -> 1995.356239 | AA12: =INDEX([1]!SHIPMENTS_MH, ((MATCH($C$9,[1]!APPLIANCES,0)-1)*2)+1, MATCH(AA$10,[1]!SHIPMENTS_MH_YEARS,0)) -> 1978.707285 | AB12: =INDEX([1]!SHIPMENTS_MH, ((MATCH($C$9,[1]!APPLIANCES,0)-1)*2)+1, MATCH(AB$10,[1]!SHIPMENTS_MH_YEARS,0)) -> 1843.565774 | AC12: =INDEX([1]!SHIPMENTS_MH, ((MATCH($C$9,[1]!APPLIANCES,0)-1)*2)+1, MATCH(AC$10,[1]!SHIPMENTS_MH_YEARS,0)) -> 1713.223961 | AD12: =INDEX([1]!SHIPMENTS_MH, ((MATCH($C$9,[1]!APPLIANCES,0)-1)*2)+1, MATCH(AD$10,[1]!SHIPMENTS_MH_YEARS,0)) -> 1679.476081 | AE12: =INDEX([1]!SHIPMENTS_MH, ((MATCH($C$9,[1]!APPLIANCES,0)-1)*2)+1, MATCH(AE$10,[1]!SHIPMENTS_MH_YEARS,0)) -> 1765.495678 | AF12: =INDEX([1]!SHIPMENTS_MH, ((MATCH($C$9,[1]!APPLIANCES,0)-1)*2)+1, MATCH(AF$10,[1]!SHIPMENTS_MH_YEARS,0)) -> 1834.341353 | AG12: =INDEX([1]!SHIPMENTS_MH, ((MATCH($C$9,[1]!APPLIANCES,0)-1)*2)+1, MATCH(AG$10,[1]!SHIPMENTS_MH_YEARS,0)) -> 1977.432365 | AH12: =INDEX([1]!SHIPMENTS_MH, ((MATCH($C$9,[1]!APPLIANCES,0)-1)*2)+1, MATCH(AH$10,[1]!SHIPMENTS_MH_YEARS,0)) -> 1972.932647 | AI12: =INDEX([1]!SHIPMENTS_MH, ((MATCH($C$9,[1]!APPLIANCES,0)-1)*2)+1, MATCH(AI$10,[1]!SHIPMENTS_MH_YEARS,0)) -> 2120.598372 | AJ12: =INDEX([1]!SHIPMENTS_MH, ((MATCH($C$9,[1]!APPLIANCES,0)-1)*2)+1, MATCH(AJ$10,[1]!SHIPMENTS_MH_YEARS,0)) -> 3721.515054 | AK12: =INDEX([1]!SHIPMENTS_MH, ((MATCH($C$9,[1]!APPLIANCES,0)-1)*2)+1, MATCH(AK$10,[1]!SHIPMENTS_MH_YEARS,0)) -> 4073.875775 | AL12: =INDEX([1]!SHIPMENTS_MH, ((MATCH($C$9,[1]!APPLIANCES,0)-1)*2)+1, MATCH(AL$10,[1]!SHIPMENTS_MH_YEARS,0)) -> 4129.431689 | AM12: =INDEX([1]!SHIPMENTS_MH, ((MATCH($C$9,[1]!APPLIANCES,0)-1)*2)+1, MATCH(AM$10,[1]!SHIPMENTS_MH_YEARS,0)) -> 4032.690605 | AN12: =INDEX([1]!SHIPMENTS_MH, ((MATCH($C$9,[1]!APPLIANCES,0)-1)*2)+1, MATCH(AN$10,[1]!SHIPMENTS_MH_YEARS,0)) -> 4156.441502 | AO12: =INDEX([1]!SHIPMENTS_MH, ((MATCH($C$9,[1]!APPLIANCES,0)-1)*2)+1, MATCH(AO$10,[1]!SHIPMENTS_MH_YEARS,0)) -> 4330.576082 | AP12: =INDEX([1]!SHIPMENTS_MH, ((MATCH($C$9,[1]!APPLIANCES,0)-1)*2)+1, MATCH(AP$10,[1]!SHIPMENTS_MH_YEARS,0)) -> 4116.288067 | AQ12: =INDEX([1]!SHIPMENTS_MH, ((MATCH($C$9,[1]!APPLIANCES,0)-1)*2)+1, MATCH(AQ$10,[1]!SHIPMENTS_MH_YEARS,0)) -> 4515.01499 | AR12: =INDEX([1]!SHIPMENTS_MH, ((MATCH($C$9,[1]!APPLIANCES,0)-1)*2)+1, MATCH(AR$10,[1]!SHIPMENTS_MH_YEARS,0)) -> 4183.176705 | AS12: =INDEX([1]!SHIPMENTS_MH, ((MATCH($C$9,[1]!APPLIANCES,0)-1)*2)+1, MATCH(AS$10,[1]!SHIPMENTS_MH_YEARS,0)) -> 4499.969204 | AT12: =INDEX([1]!SHIPMENTS_MH, ((MATCH($C$9,[1]!APPLIANCES,0)-1)*2)+1, MATCH(AT$10,[1]!SHIPMENTS_MH_YEARS,0)) -> 4467.928685 | AU12: =INDEX([1]!SHIPMENTS_MH, ((MATCH($C$9,[1]!APPLIANCES,0)-1)*2)+1, MATCH(AU$10,[1]!SHIPMENTS_MH_YEARS,0)) -> 4349.572368 | AV12: =INDEX([1]!SHIPMENTS_MH, ((MATCH($C$9,[1]!APPLIANCES,0)-1)*2)+1, MATCH(AV$10,[1]!SHIPMENTS_MH_YEARS,0)) -> 4260.909588 | AW12: =INDEX([1]!SHIPMENTS_MH, ((MATCH($C$9,[1]!APPLIANCES,0)-1)*2)+1, MATCH(AW$10,[1]!SHIPMENTS_MH_YEARS,0)) -> 4231.677528 | AX12: =INDEX([1]!SHIPMENTS_MH, ((MATCH($C$9,[1]!APPLIANCES,0)-1)*2)+1, MATCH(AX$10,[1]!SHIPMENTS_MH_YEARS,0)) -> 4564.269126 | AY12: =INDEX([1]!SHIPMENTS_MH, ((MATCH($C$9,[1]!APPLIANCES,0)-1)*2)+1, MATCH(AY$10,[1]!SHIPMENTS_MH_YEARS,0)) -> 4720.259116 | AZ12: =INDEX([1]!SHIPMENTS_MH, ((MATCH($C$9,[1]!APPLIANCES,0)-1)*2)+1, MATCH(AZ$10,[1]!SHIPMENTS_MH_YEARS,0)) -> 4931.338074 | BA12: =INDEX([1]!SHIPMENTS_MH, ((MATCH($C$9,[1]!APPLIANCES,0)-1)*2)+1, MATCH(BA$10,[1]!SHIPMENTS_MH_YEARS,0)) -> 4984.527161 | BB12: =INDEX([1]!SHIPMENTS_MH, ((MATCH($C$9,[1]!APPLIANCES,0)-1)*2)+1, MATCH(BB$10,[1]!SHIPMENTS_MH_YEARS,0)) -> 5168.275407 | BC12: =INDEX([1]!SHIPMENTS_MH, ((MATCH($C$9,[1]!APPLIANCES,0)-1)*2)+1, MATCH(BC$10,[1]!SHIPMENTS_MH_YEARS,0)) -> 4808.887558 | BD12: =INDEX([1]!SHIPMENTS_MH, ((MATCH($C$9,[1]!APPLIANCES,0)-1)*2)+1, MATCH(BD$10,[1]!SHIPMENTS_MH_YEARS,0)) -> 5112.822336 | BE12: =INDEX([1]!SHIPMENTS_MH, ((MATCH($C$9,[1]!APPLIANCES,0)-1)*2)+1, MATCH(BE$10,[1]!SHIPMENTS_MH_YEARS,0)) -> 5106.371398 | BF12: =INDEX([1]!SHIPMENTS_MH, ((MATCH($C$9,[1]!APPLIANCES,0)-1)*2)+1, MATCH(BF$10,[1]!SHIPMENTS_MH_YEARS,0)) -> 4952.24273
C13: Net New Shipments | D13: (units) | E13: =INDEX([1]!SHIPMENTS_MH, ((MATCH($C$9,[1]!APPLIANCES,0)-1)*2)+2, MATCH(E$10,[1]!SHIPMENTS_MH_YEARS,0)) -> 813.1739197 | F13: =INDEX([1]!SHIPMENTS_MH, ((MATCH($C$9,[1]!APPLIANCES,0)-1)*2)+2, MATCH(F$10,[1]!SHIPMENTS_MH_YEARS,0)) -> 656.808742 | G13: =INDEX([1]!SHIPMENTS_MH, ((MATCH($C$9,[1]!APPLIANCES,0)-1)*2)+2, MATCH(G$10,[1]!SHIPMENTS_MH_YEARS,0)) -> 908.4929322 | H13: =INDEX([1]!SHIPMENTS_MH, ((MATCH($C$9,[1]!APPLIANCES,0)-1)*2)+2, MATCH(H$10,[1]!SHIPMENTS_MH_YEARS,0)) -> 891.843978 | I13: =INDEX([1]!SHIPMENTS_MH, ((MATCH($C$9,[1]!APPLIANCES,0)-1)*2)+2, MATCH(I$10,[1]!SHIPMENTS_MH_YEARS,0)) -> 756.702467 | J13: =INDEX([1]!SHIPMENTS_MH, ((MATCH($C$9,[1]!APPLIANCES,0)-1)*2)+2, MATCH(J$10,[1]!SHIPMENTS_MH_YEARS,0)) -> 626.3606546 | K13: =INDEX([1]!SHIPMENTS_MH, ((MATCH($C$9,[1]!APPLIANCES,0)-1)*2)+2, MATCH(K$10,[1]!SHIPMENTS_MH_YEARS,0)) -> 592.6127745 | L13: =INDEX([1]!SHIPMENTS_MH, ((MATCH($C$9,[1]!APPLIANCES,0)-1)*2)+2, MATCH(L$10,[1]!SHIPMENTS_MH_YEARS,0)) -> 678.6323711 | M13: =INDEX([1]!SHIPMENTS_MH, ((MATCH($C$9,[1]!APPLIANCES,0)-1)*2)+2, MATCH(M$10,[1]!SHIPMENTS_MH_YEARS,0)) -> 747.4780465 | N13: =INDEX([1]!SHIPMENTS_MH, ((MATCH($C$9,[1]!APPLIANCES,0)-1)*2)+2, MATCH(N$10,[1]!SHIPMENTS_MH_YEARS,0)) -> 890.5690581 | O13: =INDEX([1]!SHIPMENTS_MH, ((MATCH($C$9,[1]!APPLIANCES,0)-1)*2)+2, MATCH(O$10,[1]!SHIPMENTS_MH_YEARS,0)) -> 886.0693407 | P13: =INDEX([1]!SHIPMENTS_MH, ((MATCH($C$9,[1]!APPLIANCES,0)-1)*2)+2, MATCH(P$10,[1]!SHIPMENTS_MH_YEARS,0)) -> 1033.735065 | Q13: =INDEX([1]!SHIPMENTS_MH, ((MATCH($C$9,[1]!APPLIANCES,0)-1)*2)+2, MATCH(Q$10,[1]!SHIPMENTS_MH_YEARS,0)) -> 2634.651748 | R13: =INDEX([1]!SHIPMENTS_MH, ((MATCH($C$9,[1]!APPLIANCES,0)-1)*2)+2, MATCH(R$10,[1]!SHIPMENTS_MH_YEARS,0)) -> 2987.012468 | S13: =INDEX([1]!SHIPMENTS_MH, ((MATCH($C$9,[1]!APPLIANCES,0)-1)*2)+2, MATCH(S$10,[1]!SHIPMENTS_MH_YEARS,0)) -> 3042.568382 | T13: =INDEX([1]!SHIPMENTS_MH, ((MATCH($C$9,[1]!APPLIANCES,0)-1)*2)+2, MATCH(T$10,[1]!SHIPMENTS_MH_YEARS,0)) -> 2945.827298 | U13: =INDEX([1]!SHIPMENTS_MH, ((MATCH($C$9,[1]!APPLIANCES,0)-1)*2)+2, MATCH(U$10,[1]!SHIPMENTS_MH_YEARS,0)) -> 3069.578196 | V13: =INDEX([1]!SHIPMENTS_MH, ((MATCH($C$9,[1]!APPLIANCES,0)-1)*2)+2, MATCH(V$10,[1]!SHIPMENTS_MH_YEARS,0)) -> 3243.712775 | W13: =INDEX([1]!SHIPMENTS_MH, ((MATCH($C$9,[1]!APPLIANCES,0)-1)*2)+2, MATCH(W$10,[1]!SHIPMENTS_MH_YEARS,0)) -> 3029.424761 | X13: =INDEX([1]!SHIPMENTS_MH, ((MATCH($C$9,[1]!APPLIANCES,0)-1)*2)+2, MATCH(X$10,[1]!SHIPMENTS_MH_YEARS,0)) -> 2614.977763 | Y13: =INDEX([1]!SHIPMENTS_MH, ((MATCH($C$9,[1]!APPLIANCES,0)-1)*2)+2, MATCH(Y$10,[1]!SHIPMENTS_MH_YEARS,0)) -> 2439.504657 | Z13: =INDEX([1]!SHIPMENTS_MH, ((MATCH($C$9,[1]!APPLIANCES,0)-1)*2)+2, MATCH(Z$10,[1]!SHIPMENTS_MH_YEARS,0)) -> 2504.612965 | AA13: =INDEX([1]!SHIPMENTS_MH, ((MATCH($C$9,[1]!APPLIANCES,0)-1)*2)+2, MATCH(AA$10,[1]!SHIPMENTS_MH_YEARS,0)) -> 2489.221401 | AB13: =INDEX([1]!SHIPMENTS_MH, ((MATCH($C$9,[1]!APPLIANCES,0)-1)*2)+2, MATCH(AB$10,[1]!SHIPMENTS_MH_YEARS,0)) -> 2506.006595 | AC13: =INDEX([1]!SHIPMENTS_MH, ((MATCH($C$9,[1]!APPLIANCES,0)-1)*2)+2, MATCH(AC$10,[1]!SHIPMENTS_MH_YEARS,0)) -> 2547.685626 | AD13: =INDEX([1]!SHIPMENTS_MH, ((MATCH($C$9,[1]!APPLIANCES,0)-1)*2)+2, MATCH(AD$10,[1]!SHIPMENTS_MH_YEARS,0)) -> 2552.201447 | AE13: =INDEX([1]!SHIPMENTS_MH, ((MATCH($C$9,[1]!APPLIANCES,0)-1)*2)+2, MATCH(AE$10,[1]!SHIPMENTS_MH_YEARS,0)) -> 2798.773448 | AF13: =INDEX([1]!SHIPMENTS_MH, ((MATCH($C$9,[1]!APPLIANCES,0)-1)*2)+2, MATCH(AF$10,[1]!SHIPMENTS_MH_YEARS,0)) -> 2885.917762 | AG13: =INDEX([1]!SHIPMENTS_MH, ((MATCH($C$9,[1]!APPLIANCES,0)-1)*2)+2, MATCH(AG$10,[1]!SHIPMENTS_MH_YEARS,0)) -> 2953.905709 | AH13: =INDEX([1]!SHIPMENTS_MH, ((MATCH($C$9,[1]!APPLIANCES,0)-1)*2)+2, MATCH(AH$10,[1]!SHIPMENTS_MH_YEARS,0)) -> 3011.594514 | AI13: =INDEX([1]!SHIPMENTS_MH, ((MATCH($C$9,[1]!APPLIANCES,0)-1)*2)+2, MATCH(AI$10,[1]!SHIPMENTS_MH_YEARS,0)) -> 3047.677036 | AJ13: =INDEX([1]!SHIPMENTS_MH, ((MATCH($C$9,[1]!APPLIANCES,0)-1)*2)+2, MATCH(AJ$10,[1]!SHIPMENTS_MH_YEARS,0)) -> 1087.372503 | AK13: =INDEX([1]!SHIPMENTS_MH, ((MATCH($C$9,[1]!APPLIANCES,0)-1)*2)+2, MATCH(AK$10,[1]!SHIPMENTS_MH_YEARS,0)) -> 1038.946561 | AL13: =INDEX([1]!SHIPMENTS_MH, ((MATCH($C$9,[1]!APPLIANCES,0)-1)*2)+2, MATCH(AL$10,[1]!SHIPMENTS_MH_YEARS,0)) -> 976.9397093 | AM13: =INDEX([1]!SHIPMENTS_MH, ((MATCH($C$9,[1]!APPLIANCES,0)-1)*2)+2, MATCH(AM$10,[1]!SHIPMENTS_MH_YEARS,0)) -> 919.5521248 | AN13: =INDEX([1]!SHIPMENTS_MH, ((MATCH($C$9,[1]!APPLIANCES,0)-1)*2)+2, MATCH(AN$10,[1]!SHIPMENTS_MH_YEARS,0)) -> 876.092109 | AO13: =INDEX([1]!SHIPMENTS_MH, ((MATCH($C$9,[1]!APPLIANCES,0)-1)*2)+2, MATCH(AO$10,[1]!SHIPMENTS_MH_YEARS,0)) -> 850.8965039 | AP13: =INDEX([1]!SHIPMENTS_MH, ((MATCH($C$9,[1]!APPLIANCES,0)-1)*2)+2, MATCH(AP$10,[1]!SHIPMENTS_MH_YEARS,0)) -> 846.3840992 | AQ13: =INDEX([1]!SHIPMENTS_MH, ((MATCH($C$9,[1]!APPLIANCES,0)-1)*2)+2, MATCH(AQ$10,[1]!SHIPMENTS_MH_YEARS,0)) -> 861.5731765 | AR13: =INDEX([1]!SHIPMENTS_MH, ((MATCH($C$9,[1]!APPLIANCES,0)-1)*2)+2, MATCH(AR$10,[1]!SHIPMENTS_MH_YEARS,0)) -> 891.0617881 | AS13: =INDEX([1]!SHIPMENTS_MH, ((MATCH($C$9,[1]!APPLIANCES,0)-1)*2)+2, MATCH(AS$10,[1]!SHIPMENTS_MH_YEARS,0)) -> 928.8505815 | AT13: =INDEX([1]!SHIPMENTS_MH, ((MATCH($C$9,[1]!APPLIANCES,0)-1)*2)+2, MATCH(AT$10,[1]!SHIPMENTS_MH_YEARS,0)) -> 966.7763184 | AU13: =INDEX([1]!SHIPMENTS_MH, ((MATCH($C$9,[1]!APPLIANCES,0)-1)*2)+2, MATCH(AU$10,[1]!SHIPMENTS_MH_YEARS,0)) -> 996.9699058 | AV13: =INDEX([1]!SHIPMENTS_MH, ((MATCH($C$9,[1]!APPLIANCES,0)-1)*2)+2, MATCH(AV$10,[1]!SHIPMENTS_MH_YEARS,0)) -> 1013.470502 | AW13: =INDEX([1]!SHIPMENTS_MH, ((MATCH($C$9,[1]!APPLIANCES,0)-1)*2)+2, MATCH(AW$10,[1]!SHIPMENTS_MH_YEARS,0)) -> 1012.896732 | AX13: =INDEX([1]!SHIPMENTS_MH, ((MATCH($C$9,[1]!APPLIANCES,0)-1)*2)+2, MATCH(AX$10,[1]!SHIPMENTS_MH_YEARS,0)) -> 994.9191215 | AY13: =INDEX([1]!SHIPMENTS_MH, ((MATCH($C$9,[1]!APPLIANCES,0)-1)*2)+2, MATCH(AY$10,[1]!SHIPMENTS_MH_YEARS,0)) -> 962.5289694 | AZ13: =INDEX([1]!SHIPMENTS_MH, ((MATCH($C$9,[1]!APPLIANCES,0)-1)*2)+2, MATCH(AZ$10,[1]!SHIPMENTS_MH_YEARS,0)) -> 920.9524936 | BA13: =INDEX([1]!SHIPMENTS_MH, ((MATCH($C$9,[1]!APPLIANCES,0)-1)*2)+2, MATCH(BA$10,[1]!SHIPMENTS_MH_YEARS,0)) -> 876.774943 | BB13: =INDEX([1]!SHIPMENTS_MH, ((MATCH($C$9,[1]!APPLIANCES,0)-1)*2)+2, MATCH(BB$10,[1]!SHIPMENTS_MH_YEARS,0)) -> 836.8251298 | BC13: =INDEX([1]!SHIPMENTS_MH, ((MATCH($C$9,[1]!APPLIANCES,0)-1)*2)+2, MATCH(BC$10,[1]!SHIPMENTS_MH_YEARS,0)) -> 845.1933811 | BD13: =INDEX([1]!SHIPMENTS_MH, ((MATCH($C$9,[1]!APPLIANCES,0)-1)*2)+2, MATCH(BD$10,[1]!SHIPMENTS_MH_YEARS,0)) -> 853.6453149 | BE13: =INDEX([1]!SHIPMENTS_MH, ((MATCH($C$9,[1]!APPLIANCES,0)-1)*2)+2, MATCH(BE$10,[1]!SHIPMENTS_MH_YEARS,0)) -> 862.1817681 | BF13: =INDEX([1]!SHIPMENTS_MH, ((MATCH($C$9,[1]!APPLIANCES,0)-1)*2)+2, MATCH(BF$10,[1]!SHIPMENTS_MH_YEARS,0)) -> 870.8035858
C14: Total Model Shipments | D14: (units) | E14: =SUM(E12:E13) -> 1900.037226 | F14: =SUM(F12:F13) -> 1743.672049 | G14: 1995.356239 | H14: 1978.707285 | I14: 1843.565774 | J14: 1713.223961 | K14: 1679.476081 | L14: 1765.495678 | M14: 1834.341353 | N14: 1977.432365 | O14: 1972.932647 | P14: 2120.598372 | Q14: 3721.515054 | R14: 4073.875775 | S14: 4129.431689 | T14: 4032.690605 | U14: 4156.441502 | V14: 4330.576082 | W14: 4116.288067 | X14: 4515.01499 | Y14: 4183.176705 | Z14: 4499.969204 | AA14: 4467.928685 | AB14: 4349.572368 | AC14: 4260.909588 | AD14: 4231.677528 | AE14: 4564.269126 | AF14: 4720.259116 | AG14: 4931.338074 | AH14: 4984.527161 | AI14: 5168.275407 | AJ14: 4808.887558 | AK14: 5112.822336 | AL14: 5106.371398 | AM14: 4952.24273 | AN14: 5032.533611 | AO14: 5181.472586 | AP14: 4962.672166 | AQ14: 5376.588166 | AR14: 5074.238494 | AS14: 5428.819785 | AT14: 5434.705004 | AU14: 5346.542274 | AV14: 5274.380089 | AW14: 5244.574259 | AX14: 5559.188247 | AY14: 5682.788085 | AZ14: 5852.290567 | BA14: 5861.302104 | BB14: 6005.100537 | BC14: 5654.080939 | BD14: 5966.467651 | BE14: 5968.553166 | BF14: 5823.046316
C15: Model Installed Stock | D15: (units) | E15: =INDEX([1]!STOCK_MH, MATCH($C$9,[1]!APPLIANCES,0), MATCH(E$10,[1]!STOCK_MH_YEARS,0)) -> 21463.57675 | F15: =INDEX([1]!STOCK_MH, MATCH($C$9,[1]!APPLIANCES,0), MATCH(F$10,[1]!STOCK_MH_YEARS,0)) -> 22120.38549 | G15: =INDEX([1]!STOCK_MH, MATCH($C$9,[1]!APPLIANCES,0), MATCH(G$10,[1]!STOCK_MH_YEARS,0)) -> 23028.87842 | H15: =INDEX([1]!STOCK_MH, MATCH($C$9,[1]!APPLIANCES,0), MATCH(H$10,[1]!STOCK_MH_YEARS,0)) -> 23920.7224 | I15: =INDEX([1]!STOCK_MH, MATCH($C$9,[1]!APPLIANCES,0), MATCH(I$10,[1]!STOCK_MH_YEARS,0)) -> 24677.42486 | J15: =INDEX([1]!STOCK_MH, MATCH($C$9,[1]!APPLIANCES,0), MATCH(J$10,[1]!STOCK_MH_YEARS,0)) -> 25303.78552 | K15: =INDEX([1]!STOCK_MH, MATCH($C$9,[1]!APPLIANCES,0), MATCH(K$10,[1]!STOCK_MH_YEARS,0)) -> 25896.39829 | L15: =INDEX([1]!STOCK_MH, MATCH($C$9,[1]!APPLIANCES,0), MATCH(L$10,[1]!STOCK_MH_YEARS,0)) -> 26575.03066 | M15: =INDEX([1]!STOCK_MH, MATCH($C$9,[1]!APPLIANCES,0), MATCH(M$10,[1]!STOCK_MH_YEARS,0)) -> 27322.50871 | N15: =INDEX([1]!STOCK_MH, MATCH($C$9,[1]!APPLIANCES,0), MATCH(N$10,[1]!STOCK_MH_YEARS,0)) -> 28213.07777 | O15: =INDEX([1]!STOCK_MH, MATCH($C$9,[1]!APPLIANCES,0), MATCH(O$10,[1]!STOCK_MH_YEARS,0)) -> 29099.14711 | P15: =INDEX([1]!STOCK_MH, MATCH($C$9,[1]!APPLIANCES,0), MATCH(P$10,[1]!STOCK_MH_YEARS,0)) -> 30132.88218 | Q15: =INDEX([1]!STOCK_MH, MATCH($C$9,[1]!APPLIANCES,0), MATCH(Q$10,[1]!STOCK_MH_YEARS,0)) -> 32767.53392 | R15: =INDEX([1]!STOCK_MH, MATCH($C$9,[1]!APPLIANCES,0), MATCH(R$10,[1]!STOCK_MH_YEARS,0)) -> 35754.54639 | S15: =INDEX([1]!STOCK_MH, MATCH($C$9,[1]!APPLIANCES,0), MATCH(S$10,[1]!STOCK_MH_YEARS,0)) -> 38797.11477 | T15: =INDEX([1]!STOCK_MH, MATCH($C$9,[1]!APPLIANCES,0), MATCH(T$10,[1]!STOCK_MH_YEARS,0)) -> 41742.94207 | U15: =INDEX([1]!STOCK_MH, MATCH($C$9,[1]!APPLIANCES,0), MATCH(U$10,[1]!STOCK_MH_YEARS,0)) -> 44812.52027 | V15: =INDEX([1]!STOCK_MH, MATCH($C$9,[1]!APPLIANCES,0), MATCH(V$10,[1]!STOCK_MH_YEARS,0)) -> 48056.23304 | W15: =INDEX([1]!STOCK_MH, MATCH($C$9,[1]!APPLIANCES,0), MATCH(W$10,[1]!STOCK_MH_YEARS,0)) -> 51085.6578 | X15: =INDEX([1]!STOCK_MH, MATCH($C$9,[1]!APPLIANCES,0), MATCH(X$10,[1]!STOCK_MH_YEARS,0)) -> 53700.63557 | Y15: =INDEX([1]!STOCK_MH, MATCH($C$9,[1]!APPLIANCES,0), MATCH(Y$10,[1]!STOCK_MH_YEARS,0)) -> 56140.14022 | Z15: =INDEX([1]!STOCK_MH, MATCH($C$9,[1]!APPLIANCES,0), MATCH(Z$10,[1]!STOCK_MH_YEARS,0)) -> 58644.75319 | AA15: =INDEX([1]!STOCK_MH, MATCH($C$9,[1]!APPLIANCES,0), MATCH(AA$10,[1]!STOCK_MH_YEARS,0)) -> 61133.97459 | AB15: =INDEX([1]!STOCK_MH, MATCH($C$9,[1]!APPLIANCES,0), MATCH(AB$10,[1]!STOCK_MH_YEARS,0)) -> 63639.98118 | AC15: =INDEX([1]!STOCK_MH, MATCH($C$9,[1]!APPLIANCES,0), MATCH(AC$10,[1]!STOCK_MH_YEARS,0)) -> 66187.66681 | AD15: =INDEX([1]!STOCK_MH, MATCH($C$9,[1]!APPLIANCES,0), MATCH(AD$10,[1]!STOCK_MH_YEARS,0)) -> 68739.86826 | AE15: =INDEX([1]!STOCK_MH, MATCH($C$9,[1]!APPLIANCES,0), MATCH(AE$10,[1]!STOCK_MH_YEARS,0)) -> 71538.6417 | AF15: =INDEX([1]!STOCK_MH, MATCH($C$9,[1]!APPLIANCES,0), MATCH(AF$10,[1]!STOCK_MH_YEARS,0)) -> 74424.55947 | AG15: =INDEX([1]!STOCK_MH, MATCH($C$9,[1]!APPLIANCES,0), MATCH(AG$10,[1]!STOCK_MH_YEARS,0)) -> 77378.46518 | AH15: =INDEX([1]!STOCK_MH, MATCH($C$9,[1]!APPLIANCES,0), MATCH(AH$10,[1]!STOCK_MH_YEARS,0)) -> 80390.05969 | AI15: =INDEX([1]!STOCK_MH, MATCH($C$9,[1]!APPLIANCES,0), MATCH(AI$10,[1]!STOCK_MH_YEARS,0)) -> 83437.73673 | AJ15: =INDEX([1]!STOCK_MH, MATCH($C$9,[1]!APPLIANCES,0), MATCH(AJ$10,[1]!STOCK_MH_YEARS,0)) -> 84525.10923 | AK15: =INDEX([1]!STOCK_MH, MATCH($C$9,[1]!APPLIANCES,0), MATCH(AK$10,[1]!STOCK_MH_YEARS,0)) -> 85564.05579 | AL15: =INDEX([1]!STOCK_MH, MATCH($C$9,[1]!APPLIANCES,0), MATCH(AL$10,[1]!STOCK_MH_YEARS,0)) -> 86540.9955 | AM15: =INDEX([1]!STOCK_MH, MATCH($C$9,[1]!APPLIANCES,0), MATCH(AM$10,[1]!STOCK_MH_YEARS,0)) -> 87460.54762 | AN15: =INDEX([1]!STOCK_MH, MATCH($C$9,[1]!APPLIANCES,0), MATCH(AN$10,[1]!STOCK_MH_YEARS,0)) -> 88336.63973 | AO15: =INDEX([1]!STOCK_MH, MATCH($C$9,[1]!APPLIANCES,0), MATCH(AO$10,[1]!STOCK_MH_YEARS,0)) -> 89187.53624 | AP15: =INDEX([1]!STOCK_MH, MATCH($C$9,[1]!APPLIANCES,0), MATCH(AP$10,[1]!STOCK_MH_YEARS,0)) -> 90033.92034 | AQ15: =INDEX([1]!STOCK_MH, MATCH($C$9,[1]!APPLIANCES,0), MATCH(AQ$10,[1]!STOCK_MH_YEARS,0)) -> 90895.49351 | AR15: =INDEX([1]!STOCK_MH, MATCH($C$9,[1]!APPLIANCES,0), MATCH(AR$10,[1]!STOCK_MH_YEARS,0)) -> 91786.5553 | AS15: =INDEX([1]!STOCK_MH, MATCH($C$9,[1]!APPLIANCES,0), MATCH(AS$10,[1]!STOCK_MH_YEARS,0)) -> 92715.40588 | AT15: =INDEX([1]!STOCK_MH, MATCH($C$9,[1]!APPLIANCES,0), MATCH(AT$10,[1]!STOCK_MH_YEARS,0)) -> 93682.1822 | AU15: =INDEX([1]!STOCK_MH, MATCH($C$9,[1]!APPLIANCES,0), MATCH(AU$10,[1]!STOCK_MH_YEARS,0)) -> 94679.15211 | AV15: =INDEX([1]!STOCK_MH, MATCH($C$9,[1]!APPLIANCES,0), MATCH(AV$10,[1]!STOCK_MH_YEARS,0)) -> 95692.62261 | AW15: =INDEX([1]!STOCK_MH, MATCH($C$9,[1]!APPLIANCES,0), MATCH(AW$10,[1]!STOCK_MH_YEARS,0)) -> 96705.51934 | AX15: =INDEX([1]!STOCK_MH, MATCH($C$9,[1]!APPLIANCES,0), MATCH(AX$10,[1]!STOCK_MH_YEARS,0)) -> 97700.43846 | AY15: =INDEX([1]!STOCK_MH, MATCH($C$9,[1]!APPLIANCES,0), MATCH(AY$10,[1]!STOCK_MH_YEARS,0)) -> 98662.96743 | AZ15: =INDEX([1]!STOCK_MH, MATCH($C$9,[1]!APPLIANCES,0), MATCH(AZ$10,[1]!STOCK_MH_YEARS,0)) -> 99583.91992 | BA15: =INDEX([1]!STOCK_MH, MATCH($C$9,[1]!APPLIANCES,0), MATCH(BA$10,[1]!STOCK_MH_YEARS,0)) -> 100460.6949 | BB15: =INDEX([1]!STOCK_MH, MATCH($C$9,[1]!APPLIANCES,0), MATCH(BB$10,[1]!STOCK_MH_YEARS,0)) -> 101297.52 | BC15: =INDEX([1]!STOCK_MH, MATCH($C$9,[1]!APPLIANCES,0), MATCH(BC$10,[1]!STOCK_MH_YEARS,0)) -> 102142.7134 | BD15: =INDEX([1]!STOCK_MH, MATCH($C$9,[1]!APPLIANCES,0), MATCH(BD$10,[1]!STOCK_MH_YEARS,0)) -> 102996.3587 | BE15: =INDEX([1]!STOCK_MH, MATCH($C$9,[1]!APPLIANCES,0), MATCH(BE$10,[1]!STOCK_MH_YEARS,0)) -> 103858.5405 | BF15: =INDEX([1]!STOCK_MH, MATCH($C$9,[1]!APPLIANCES,0), MATCH(BF$10,[1]!STOCK_MH_YEARS,0)) -> 104729.344

Sheet 6P UEC Development
C2: 6P UEC Development
C4: NAVIGATION
C6: COMMENTS
C9: Sales per Stock Average Unit (KWh/Unit)
D10: 2010 | E10: 2011 | F10: 2012 | G10: 2013 | H10: 2014 | I10: 2015 | J10: 2016 | K10: 2017 | L10: 2018 | M10: 2019 | N10: 2020 | O10: 2021 | P10: 2022 | Q10: 2023 | R10: 2024 | S10: 2025 | T10: 2026 | U10: 2027 | V10: 2028 | W10: 2029 | X10: 2030 | Y10: 2031 | Z10: 2032 | AA10: 2033 | AB10: 2034
C11: Single Family (UEC) | D11: 204.0737 | E11: 236.5444 | F11: 237.4433 | G11: 229.2725 | H11: 231.7138 | I11: 231.7076 | J11: 227.4849 | K11: 223.5637 | L11: 219.9023 | M11: 216.3632 | N11: 213.0477 | O11: 209.9112 | P11: 206.9847 | Q11: 204.2026 | R11: 201.5776 | S11: 199.0835 | T11: 196.7183 | U11: 194.4752 | V11: 192.335 | W11: 190.3087 | X11: 188.3658 | Y11: 186.5033 | Z11: 184.7322 | AA11: 183.0362 | AB11: 181.3919
C12: Multi-Family (UEC) | D12: 98.7347 | E12: 109.2224 | F12: 106.4297 | G12: 103.4207 | H12: 103.692 | I12: 102.8431 | J12: 100.2889 | K12: 97.9797 | L12: 95.8474 | M12: 93.8534 | N12: 92.0366 | O12: 90.3896 | P12: 88.8733 | Q12: 87.4672 | R12: 86.166 | S12: 84.9466 | T12: 83.8054 | U12: 82.7156 | V12: 81.7155 | W12: 80.7893 | X12: 79.9154 | Y12: 79.0895 | Z12: 78.312 | AA12: 77.5863 | AB12: 76.8939
C13: Manufactured Homes (UEC) | D13: 1256.382 | E13: 1405.531 | F13: 1355.211 | G13: 1309.341 | H13: 1321.234 | I13: 1320.21 | J13: 1295.032 | K13: 1271.317 | L13: 1248.556 | M13: 1227.917 | N13: 1208.534 | O13: 1190.04 | P13: 1172.652 | Q13: 1156.14 | R13: 1140.57 | S13: 1125.675 | T13: 1111.655 | U13: 1098.37 | V13: 1085.739 | W13: 1073.62 | X13: 1062.291 | Y13: 1051.39 | Z13: 1041.098 | AA13: 1031.178 | AB13: 1021.776
C15: Source: | D15: Extracted from Northwest Power Council's Demand Forecast

Sheet Constants
C2: Constants
C4: NAVIGATION
C6: COMMENTS
C9: Constant | D9: Value
C10: Hours/Day | D10: 24
C11: Days/Week | D11: 7
C12: Days/Year | D12: 365.25
C13: kW/MW | D13: 1000

Sheet UEC Development
C2: UEC Development
C4: NAVIGATION
C6: COMMENTS
C9: Single Family
D10: Cooling Energy Use (kWh/year) | H10: Cooling Zone Allocation | L10: Weighted Average UEC
C11: SEER | D11: Cooling Zone 1 | E11: Cooling Zone 2 | F11: Cooling Zone 3 | H11: Cooling Zone 1 | I11: Cooling Zone 2 | J11: Cooling Zone 3 | L11: kWh/year
C12: 10 | D12: ='Data by Building Type'!D30 -> 498.82 | E12: ='Data by Building Type'!E30 -> 1110.41 | F12: ='Data by Building Type'!F30 -> 2016.65 | H12: ='Data by Building Type'!$D$22 -> 0.6426932965 | I12: ='Data by Building Type'!$D$23 -> 0.2528316115 | J12: ='Data by Building Type'!$D$24 -> 0.104475092 | L12: =SUMPRODUCT(D12:F12,H12:J12) -> 812.0247142
C13: 11 | D13: ='Data by Building Type'!D31 -> 464.25 | E13: ='Data by Building Type'!E31 -> 1041.13 | F13: ='Data by Building Type'!F31 -> 1900.55 | H13: ='Data by Building Type'!$D$22 -> 0.6426932965 | I13: ='Data by Building Type'!$D$23 -> 0.2528316115 | J13: ='Data by Building Type'!$D$24 -> 0.104475092 | L13: =SUMPRODUCT(D13:F13,H13:J13) -> 760.1610747
C14: 12 | D14: ='Data by Building Type'!D32 -> 429.69 | E14: ='Data by Building Type'!E32 -> 971.84 | F14: ='Data by Building Type'!F32 -> 1784.44 | H14: ='Data by Building Type'!$D$22 -> 0.6426932965 | I14: ='Data by Building Type'!$D$23 -> 0.2528316115 | J14: ='Data by Building Type'!$D$24 -> 0.104475092 | L14: 708.3002891
C15: 13 | D15: ='Data by Building Type'!D33 -> 395.13 | E15: ='Data by Building Type'!E33 -> 902.56 | F15: ='Data by Building Type'!F33 -> 1668.34 | H15: ='Data by Building Type'!$D$22 -> 0.6426932965 | I15: ='Data by Building Type'!$D$23 -> 0.2528316115 | J15: ='Data by Building Type'!$D$24 -> 0.104475092 | L15: 656.4430765
C16: 14 | D16: ='Data by Building Type'!D34 -> 355.4 | E16: ='Data by Building Type'!E34 -> 811.68 | F16: ='Data by Building Type'!F34 -> 1508.26 | H16: ='Data by Building Type'!$D$22 -> 0.6426932965 | I16: ='Data by Building Type'!$D$23 -> 0.2528316115 | J16: ='Data by Building Type'!$D$24 -> 0.104475092 | L16: 591.2071623
C17: 15 | D17: ='Data by Building Type'!D35 -> 315.67 | E17: ='Data by Building Type'!E35 -> 720.81 | F17: ='Data by Building Type'!F35 -> 1348.18 | H17: ='Data by Building Type'!$D$22 -> 0.6426932965 | I17: ='Data by Building Type'!$D$23 -> 0.2528316115 | J17: ='Data by Building Type'!$D$24 -> 0.104475092 | L17: 525.9737763
C21: Multi-Family
D22: Cooling Energy Use (kWh/year) | H22: Cooling Zone Allocation | L22: Weighted Average UEC
C23: SEER | D23: Cooling Zone 1 | E23: Cooling Zone 2 | F23: Cooling Zone 3 | H23: Cooling Zone 1 | I23: Cooling Zone 2 | J23: Cooling Zone 3 | L23: kWh/year
C24: 10 | D24: ='Data by Building Type'!D30 -> 498.82 | E24: ='Data by Building Type'!E30 -> 1110.41 | F24: ='Data by Building Type'!F30 -> 2016.65 | H24: ='Data by Building Type'!$E$22 -> 0.6426932965 | I24: ='Data by Building Type'!$E$23 -> 0.2528316115 | J24: ='Data by Building Type'!$E$24 -> 0.104475092 | L24: =SUMPRODUCT(D24:F24,H24:J24) -> 812.0247142
C25: 11 | D25: ='Data by Building Type'!D31 -> 464.25 | E25: ='Data by Building Type'!E31 -> 1041.13 | F25: ='Data by Building Type'!F31 -> 1900.55 | H25: ='Data by Building Type'!$E$22 -> 0.6426932965 | I25: ='Data by Building Type'!$E$23 -> 0.2528316115 | J25: ='Data by Building Type'!$E$24 -> 0.104475092 | L25: =SUMPRODUCT(D25:F25,H25:J25) -> 760.1610747
C26: 12 | D26: ='Data by Building Type'!D32 -> 429.69 | E26: ='Data by Building Type'!E32 -> 971.84 | F26: ='Data by Building Type'!F32 -> 1784.44 | H26: ='Data by Building Type'!$E$22 -> 0.6426932965 | I26: ='Data by Building Type'!$E$23 -> 0.2528316115 | J26: ='Data by Building Type'!$E$24 -> 0.104475092 | L26: 708.3002891
C27: 13 | D27: ='Data by Building Type'!D33 -> 395.13 | E27: ='Data by Building Type'!E33 -> 902.56 | F27: ='Data by Building Type'!F33 -> 1668.34 | H27: ='Data by Building Type'!$E$22 -> 0.6426932965 | I27: ='Data by Building Type'!$E$23 -> 0.2528316115 | J27: ='Data by Building Type'!$E$24 -> 0.104475092 | L27: 656.4430765
C28: 14 | D28: ='Data by Building Type'!D34 -> 355.4 | E28: ='Data by Building Type'!E34 -> 811.68 | F28: ='Data by Building Type'!F34 -> 1508.26 | H28: ='Data by Building Type'!$E$22 -> 0.6426932965 | I28: ='Data by Building Type'!$E$23 -> 0.2528316115 | J28: ='Data by Building Type'!$E$24 -> 0.104475092 | L28: 591.2071623
C29: 15 | D29: ='Data by Building Type'!D35 -> 315.67 | E29: ='Data by Building Type'!E35 -> 720.81 | F29: ='Data by Building Type'!F35 -> 1348.18 | H29: ='Data by Building Type'!$E$22 -> 0.6426932965 | I29: ='Data by Building Type'!$E$23 -> 0.2528316115 | J29: ='Data by Building Type'!$E$24 -> 0.104475092 | L29: 525.9737763
C33: Manufactured Home
D34: Cooling Energy Use (kWh/year) | H34: Cooling Zone Allocation | L34: Weighted Average UEC
C35: SEER | D35: Cooling Zone 1 | E35: Cooling Zone 2 | F35: Cooling Zone 3 | H35: Cooling Zone 1 | I35: Cooling Zone 2 | J35: Cooling Zone 3 | L35: kWh/year
C36: 10 | D36: ='Data by Building Type'!D48 -> 618.3604958 | E36: ='Data by Building Type'!E48 -> 829.5233696 | F36: ='Data by Building Type'!F48 -> 1520.441229 | H36: ='Data by Building Type'!$F$22 -> 0.6339569466 | I36: ='Data by Building Type'!$F$23 -> 0.2485982075 | J36: ='Data by Building Type'!$F$24 -> 0.1174448458 | L36: =SUMPRODUCT(D36:F36,H36:J36) -> 776.7999404
C37: 11 | D37: ='Data by Building Type'!D49 -> 575.5059143 | E37: ='Data by Building Type'!E49 -> 777.768271 | F37: ='Data by Building Type'!F49 -> 1432.908327 | H37: ='Data by Building Type'!$F$22 -> 0.6339569466 | I37: ='Data by Building Type'!$F$23 -> 0.2485982075 | J37: ='Data by Building Type'!$F$24 -> 0.1174448458 | L37: =SUMPRODUCT(D37:F37,H37:J37) -> 726.4854679
C38: 12 | D38: ='Data by Building Type'!D50 -> 532.6637293 | E38: ='Data by Building Type'!E50 -> 726.0057019 | F38: ='Data by Building Type'!F50 -> 1345.367886 | H38: ='Data by Building Type'!$F$22 -> 0.6339569466 | I38: ='Data by Building Type'!$F$23 -> 0.2485982075 | J38: ='Data by Building Type'!$F$24 -> 0.1174448458 | L38: 676.1761115
C39: 13 | D39: ='Data by Building Type'!D51 -> 489.8215443 | E39: ='Data by Building Type'!E51 -> 674.2506033 | F39: ='Data by Building Type'!F51 -> 1257.834984 | H39: ='Data by Building Type'!$F$22 -> 0.6339569466 | I39: ='Data by Building Type'!$F$23 -> 0.2485982075 | J39: ='Data by Building Type'!$F$24 -> 0.1174448458 | L39: 625.8694978
C40: 14 | D40: ='Data by Building Type'!D52 -> 440.5703866 | E40: ='Data by Building Type'!E52 -> 606.3593885 | F40: ='Data by Building Type'!F52 -> 1137.143624 | H40: ='Data by Building Type'!$F$22 -> 0.6339569466 | I40: ='Data by Building Type'!$F$23 -> 0.2485982075 | J40: ='Data by Building Type'!$F$24 -> 0.1174448458 | L40: 563.5941717
C41: 15 | D41: ='Data by Building Type'!D53 -> 391.3192288 | E41: ='Data by Building Type'!E53 -> 538.4756441 | F41: ='Data by Building Type'!F53 -> 1016.452263 | H41: ='Data by Building Type'!$F$22 -> 0.6339569466 | I41: ='Data by Building Type'!$F$23 -> 0.2485982075 | J41: ='Data by Building Type'!$F$24 -> 0.1174448458 | L41: 501.3207028

Sheet Annual SEER
C2: Weighted Average Annual SEER
C4: NAVIGATION
C6: COMMENTS
C9: Single Family
D10: 1981 | E10: =D10+1 -> 1982 | F10: =E10+1 -> 1983 | G10: 1984 | H10: 1985 | I10: 1986 | J10: 1987 | K10: 1988 | L10: 1989 | M10: 1990 | N10: 1991 | O10: 1992 | P10: 1993 | Q10: 1994 | R10: 1995 | S10: 1996 | T10: 1997 | U10: 1998 | V10: 1999 | W10: 2000 | X10: 2001 | Y10: 2002 | Z10: 2003 | AA10: 2004 | AB10: 2005 | AC10: 2006 | AD10: 2007 | AE10: 2008 | AF10: 2009 | AG10: 2010 | AH10: 2011 | AI10: 2012 | AJ10: =AI10+1 -> 2013 | AK10: =AJ10+1 -> 2014 | AL10: =AK10+1 -> 2015 | AM10: =AL10+1 -> 2016 | AN10: =AM10+1 -> 2017 | AO10: =AN10+1 -> 2018 | AP10: =AO10+1 -> 2019 | AQ10: =AP10+1 -> 2020 | AR10: =AQ10+1 -> 2021 | AS10: =AR10+1 -> 2022 | AT10: =AS10+1 -> 2023 | AU10: =AT10+1 -> 2024 | AV10: =AU10+1 -> 2025 | AW10: =AV10+1 -> 2026 | AX10: =AW10+1 -> 2027 | AY10: =AX10+1 -> 2028 | AZ10: =AY10+1 -> 2029 | BA10: =AZ10+1 -> 2030 | BB10: =BA10+1 -> 2031 | BC10: =BB10+1 -> 2032 | BD10: =BC10+1 -> 2033 | BE10: =BD10+1 -> 2034
C11: PRE-Case SEER | D11: =E11 -> 10.3 | E11: 10.3 | F11: 10.3 | G11: 10.3 | H11: 10.3 | I11: 10.3 | J11: 10.3 | K11: 10.3 | L11: =M11 -> 10.3 | M11: ='Data by Building Type'!$D$15 -> 10.3 | N11: ='Data by Building Type'!$D$15 -> 10.3 | O11: ='Data by Building Type'!$D$15 -> 10.3 | P11: ='Data by Building Type'!$D$15 -> 10.3 | Q11: ='Data by Building Type'!$D$15 -> 10.3 | R11: ='Data by Building Type'!$D$15 -> 10.3 | S11: ='Data by Building Type'!$D$15 -> 10.3 | T11: ='Data by Building Type'!$D$15 -> 10.3 | U11: ='Data by Building Type'!$D$15 -> 10.3 | V11: ='Data by Building Type'!$D$15 -> 10.3 | W11: ='Data by Building Type'!$D$16 -> 10.9 | X11: ='Data by Building Type'!$D$16 -> 10.9 | Y11: ='Data by Building Type'!$D$16 -> 10.9 | Z11: ='Data by Building Type'!$D$16 -> 10.9 | AA11: ='Data by Building Type'!$D$16 -> 10.9 | AB11: ='Data by Building Type'!$D$16 -> 10.9 | AC11: ='Data by Building Type'!$D$17 -> 13.4 | AD11: ='Data by Building Type'!$D$17 -> 13.4 | AE11: ='Data by Building Type'!$D$17 -> 13.4 | AF11: ='Data by Building Type'!$D$17 -> 13.4 | AG11: ='National Shipments'!E$59 -> 13.85176381 | AH11: ='National Shipments'!F$59 -> 13.85261066 | AI11: ='National Shipments'!G$59 -> 13.85322526 | AJ11: ='National Shipments'!H$59 -> 13.85361795 | AK11: ='National Shipments'!I$59 -> 13.85394202 | AL11: ='National Shipments'!J$59 -> 13.85428885 | AM11: ='National Shipments'!K$59 -> 13.85460627 | AN11: ='National Shipments'!L$59 -> 13.93981996 | AO11: ='National Shipments'!M$59 -> 14.01895433 | AP11: ='National Shipments'!N$59 -> 14.09851135 | AQ11: ='National Shipments'!O$59 -> 14.17847343 | AR11: ='National Shipments'!P$59 -> 14.25882904 | AS11: ='National Shipments'!Q$59 -> 14.33963166 | AT11: ='National Shipments'!R$59 -> 14.42088822 | AU11: ='National Shipments'!S$59 -> 14.50259857 | AV11: ='National Shipments'!T$59 -> 14.58476646 | AW11: ='National Shipments'!U$59 -> 14.66737805 | AX11: ='National Shipments'!V$59 -> 14.7504377 | AY11: ='National Shipments'!W$59 -> 14.77990416 | AZ11: ='National Shipments'!X$59 -> 14.80899367 | BA11: ='National Shipments'!Y$59 -> 14.83818554 | BB11: ='National Shipments'!Z$59 -> 14.86681162 | BC11: ='National Shipments'!AA$59 -> 14.89468061 | BD11: ='National Shipments'!AB$59 -> 14.92290776 | BE11: ='National Shipments'!AC$59 -> 14.95154904
C12: POST-Case SEER | D12: 10.3 | E12: 10.3 | F12: 10.3 | G12: 10.3 | H12: 10.3 | I12: 10.3 | J12: 10.3 | K12: 10.3 | L12: =M12 -> 10.3 | M12: ='Data by Building Type'!$D$15 -> 10.3 | N12: ='Data by Building Type'!$D$15 -> 10.3 | O12: ='Data by Building Type'!$D$15 -> 10.3 | P12: ='Data by Building Type'!$D$15 -> 10.3 | Q12: ='Data by Building Type'!$D$15 -> 10.3 | R12: ='Data by Building Type'!$D$15 -> 10.3 | S12: ='Data by Building Type'!$D$15 -> 10.3 | T12: ='Data by Building Type'!$D$15 -> 10.3 | U12: ='Data by Building Type'!$D$15 -> 10.3 | V12: ='Data by Building Type'!$D$15 -> 10.3 | W12: ='Data by Building Type'!$D$16 -> 10.9 | X12: ='Data by Building Type'!$D$16 -> 10.9 | Y12: ='Data by Building Type'!$D$16 -> 10.9 | Z12: ='Data by Building Type'!$D$16 -> 10.9 | AA12: ='Data by Building Type'!$D$16 -> 10.9 | AB12: ='Data by Building Type'!$D$16 -> 10.9 | AC12: ='Data by Building Type'!$D$17 -> 13.4 | AD12: ='Data by Building Type'!$D$17 -> 13.4 | AE12: ='Data by Building Type'!$D$17 -> 13.4 | AF12: ='Data by Building Type'!$D$17 -> 13.4 | AG12: ='National Shipments'!E$115 -> 13.85176381 | AH12: ='National Shipments'!F$115 -> 13.85261066 | AI12: ='National Shipments'!G$115 -> 13.85322526 | AJ12: ='National Shipments'!H$115 -> 13.85361795 | AK12: ='National Shipments'!I$115 -> 13.85394202 | AL12: ='National Shipments'!J$115 -> 13.91810717 | AM12: ='National Shipments'!K$115 -> 13.91807319 | AN12: ='National Shipments'!L$115 -> 14.0011106 | AO12: ='National Shipments'!M$115 -> 14.07808986 | AP12: ='National Shipments'!N$115 -> 14.15550769 | AQ12: ='National Shipments'!O$115 -> 14.23237434 | AR12: ='National Shipments'!P$115 -> 14.3092141 | AS12: ='National Shipments'!Q$115 -> 14.38648474 | AT12: ='National Shipments'!R$115 -> 14.46420119 | AU12: ='National Shipments'!S$115 -> 14.54396126 | AV12: ='National Shipments'!T$115 -> 14.62608672 | AW12: ='National Shipments'!U$115 -> 14.70867528 | AX12: ='National Shipments'!V$115 -> 14.79173095 | AY12: ='National Shipments'!W$115 -> 14.82132724 | AZ12: ='National Shipments'!X$115 -> 14.84996321 | BA12: ='National Shipments'!Y$115 -> 14.87826643 | BB12: ='National Shipments'!Z$115 -> 14.90601978 | BC12: ='National Shipments'!AA$115 -> 14.933033 | BD12: ='National Shipments'!AB$115 -> 14.96040649 | BE12: ='National Shipments'!AC$115 -> 14.98908241
C14: Multi-Family
D15: 1981 | E15: =D15+1 -> 1982 | F15: =E15+1 -> 1983 | G15: 1984 | H15: 1985 | I15: 1986 | J15: 1987 | K15: 1988 | L15: 1989 | M15: 1990 | N15: 1991 | O15: 1992 | P15: 1993 | Q15: 1994 | R15: 1995 | S15: 1996 | T15: 1997 | U15: 1998 | V15: 1999 | W15: 2000 | X15: 2001 | Y15: 2002 | Z15: 2003 | AA15: 2004 | AB15: 2005 | AC15: 2006 | AD15: 2007 | AE15: 2008 | AF15: 2009 | AG15: 2010 | AH15: 2011 | AI15: 2012 | AJ15: =AI15+1 -> 2013 | AK15: =AJ15+1 -> 2014 | AL15: =AK15+1 -> 2015 | AM15: =AL15+1 -> 2016 | AN15: =AM15+1 -> 2017 | AO15: =AN15+1 -> 2018 | AP15: =AO15+1 -> 2019 | AQ15: =AP15+1 -> 2020 | AR15: =AQ15+1 -> 2021 | AS15: =AR15+1 -> 2022 | AT15: =AS15+1 -> 2023 | AU15: =AT15+1 -> 2024 | AV15: =AU15+1 -> 2025 | AW15: =AV15+1 -> 2026 | AX15: =AW15+1 -> 2027 | AY15: =AX15+1 -> 2028 | AZ15: =AY15+1 -> 2029 | BA15: =AZ15+1 -> 2030 | BB15: =BA15+1 -> 2031 | BC15: =BB15+1 -> 2032 | BD15: =BC15+1 -> 2033 | BE15: =BD15+1 -> 2034
C16: PRE-Case SEER | D16: =E16 -> 10.3 | E16: 10.3 | F16: 10.3 | G16: 10.3 | H16: 10.3 | I16: 10.3 | J16: 10.3 | K16: 10.3 | L16: =M16 -> 10.3 | M16: ='Data by Building Type'!$E$15 -> 10.3 | N16: ='Data by Building Type'!$E$15 -> 10.3 | O16: ='Data by Building Type'!$E$15 -> 10.3 | P16: ='Data by Building Type'!$E$15 -> 10.3 | Q16: ='Data by Building Type'!$E$15 -> 10.3 | R16: ='Data by Building Type'!$E$15 -> 10.3 | S16: ='Data by Building Type'!$E$15 -> 10.3 | T16: ='Data by Building Type'!$E$15 -> 10.3 | U16: ='Data by Building Type'!$E$15 -> 10.3 | V16: ='Data by Building Type'!$E$15 -> 10.3 | W16: ='Data by Building Type'!$E$16 -> 10.9 | X16: ='Data by Building Type'!$E$16 -> 10.9 | Y16: ='Data by Building Type'!$E$16 -> 10.9 | Z16: ='Data by Building Type'!$E$16 -> 10.9 | AA16: ='Data by Building Type'!$E$16 -> 10.9 | AB16: ='Data by Building Type'!$E$16 -> 10.9 | AC16: ='Data by Building Type'!$E$17 -> 13.4 | AD16: ='Data by Building Type'!$E$17 -> 13.4 | AE16: ='Data by Building Type'!$E$17 -> 13.4 | AF16: ='Data by Building Type'!$E$17 -> 13.4 | AG16: ='National Shipments'!E$59 -> 13.85176381 | AH16: ='National Shipments'!F$59 -> 13.85261066 | AI16: ='National Shipments'!G$59 -> 13.85322526 | AJ16: ='National Shipments'!H$59 -> 13.85361795 | AK16: ='National Shipments'!I$59 -> 13.85394202 | AL16: ='National Shipments'!J$59 -> 13.85428885 | AM16: ='National Shipments'!K$59 -> 13.85460627 | AN16: ='National Shipments'!L$59 -> 13.93981996 | AO16: ='National Shipments'!M$59 -> 14.01895433 | AP16: ='National Shipments'!N$59 -> 14.09851135 | AQ16: ='National Shipments'!O$59 -> 14.17847343 | AR16: ='National Shipments'!P$59 -> 14.25882904 | AS16: ='National Shipments'!Q$59 -> 14.33963166 | AT16: ='National Shipments'!R$59 -> 14.42088822 | AU16: ='National Shipments'!S$59 -> 14.50259857 | AV16: ='National Shipments'!T$59 -> 14.58476646 | AW16: ='National Shipments'!U$59 -> 14.66737805 | AX16: ='National Shipments'!V$59 -> 14.7504377 | AY16: ='National Shipments'!W$59 -> 14.77990416 | AZ16: ='National Shipments'!X$59 -> 14.80899367 | BA16: ='National Shipments'!Y$59 -> 14.83818554 | BB16: ='National Shipments'!Z$59 -> 14.86681162 | BC16: ='National Shipments'!AA$59 -> 14.89468061 | BD16: ='National Shipments'!AB$59 -> 14.92290776 | BE16: ='National Shipments'!AC$59 -> 14.95154904
C17: POST-Case SEER | D17: =E17 -> 10.3 | E17: 10.3 | F17: 10.3 | G17: 10.3 | H17: 10.3 | I17: 10.3 | J17: 10.3 | K17: 10.3 | L17: =M17 -> 10.3 | M17: ='Data by Building Type'!$E$15 -> 10.3 | N17: ='Data by Building Type'!$E$15 -> 10.3 | O17: ='Data by Building Type'!$E$15 -> 10.3 | P17: ='Data by Building Type'!$E$15 -> 10.3 | Q17: ='Data by Building Type'!$E$15 -> 10.3 | R17: ='Data by Building Type'!$E$15 -> 10.3 | S17: ='Data by Building Type'!$E$15 -> 10.3 | T17: ='Data by Building Type'!$E$15 -> 10.3 | U17: ='Data by Building Type'!$E$15 -> 10.3 | V17: ='Data by Building Type'!$E$15 -> 10.3 | W17: ='Data by Building Type'!$E$16 -> 10.9 | X17: ='Data by Building Type'!$E$16 -> 10.9 | Y17: ='Data by Building Type'!$E$16 -> 10.9 | Z17: ='Data by Building Type'!$E$16 -> 10.9 | AA17: ='Data by Building Type'!$E$16 -> 10.9 | AB17: ='Data by Building Type'!$E$16 -> 10.9 | AC17: ='Data by Building Type'!$E$17 -> 13.4 | AD17: ='Data by Building Type'!$E$17 -> 13.4 | AE17: ='Data by Building Type'!$E$17 -> 13.4 | AF17: ='Data by Building Type'!$E$17 -> 13.4 | AG17: ='National Shipments'!E$115 -> 13.85176381 | AH17: ='National Shipments'!F$115 -> 13.85261066 | AI17: ='National Shipments'!G$115 -> 13.85322526 | AJ17: ='National Shipments'!H$115 -> 13.85361795 | AK17: ='National Shipments'!I$115 -> 13.85394202 | AL17: ='National Shipments'!J$115 -> 13.91810717 | AM17: ='National Shipments'!K$115 -> 13.91807319 | AN17: ='National Shipments'!L$115 -> 14.0011106 | AO17: ='National Shipments'!M$115 -> 14.07808986 | AP17: ='National Shipments'!N$115 -> 14.15550769 | AQ17: ='National Shipments'!O$115 -> 14.23237434 | AR17: ='National Shipments'!P$115 -> 14.3092141 | AS17: ='National Shipments'!Q$115 -> 14.38648474 | AT17: ='National Shipments'!R$115 -> 14.46420119 | AU17: ='National Shipments'!S$115 -> 14.54396126 | AV17: ='National Shipments'!T$115 -> 14.62608672 | AW17: ='National Shipments'!U$115 -> 14.70867528 | AX17: ='National Shipments'!V$115 -> 14.79173095 | AY17: ='National Shipments'!W$115 -> 14.82132724 | AZ17: ='National Shipments'!X$115 -> 14.84996321 | BA17: ='National Shipments'!Y$115 -> 14.87826643 | BB17: ='National Shipments'!Z$115 -> 14.90601978 | BC17: ='National Shipments'!AA$115 -> 14.933033 | BD17: ='National Shipments'!AB$115 -> 14.96040649 | BE17: ='National Shipments'!AC$115 -> 14.98908241
C19: Manufactured Homes
D20: 1981 | E20: =D20+1 -> 1982 | F20: =E20+1 -> 1983 | G20: =F20+1 -> 1984 | H20: =G20+1 -> 1985 | I20: =H20+1 -> 1986 | J20: =I20+1 -> 1987 | K20: =J20+1 -> 1988 | L20: =K20+1 -> 1989 | M20: =L20+1 -> 1990 | N20: =M20+1 -> 1991 | O20: =N20+1 -> 1992 | P20: =O20+1 -> 1993 | Q20: =P20+1 -> 1994 | R20: =Q20+1 -> 1995 | S20: =R20+1 -> 1996 | T20: =S20+1 -> 1997 | U20: =T20+1 -> 1998 | V20: =U20+1 -> 1999 | W20: =V20+1 -> 2000 | X20: =W20+1 -> 2001 | Y20: =X20+1 -> 2002 | Z20: =Y20+1 -> 2003 | AA20: =Z20+1 -> 2004 | AB20: =AA20+1 -> 2005 | AC20: =AB20+1 -> 2006 | AD20: =AC20+1 -> 2007 | AE20: =AD20+1 -> 2008 | AF20: =AE20+1 -> 2009 | AG20: =AF20+1 -> 2010 | AH20: =AG20+1 -> 2011 | AI20: =AH20+1 -> 2012 | AJ20: =AI20+1 -> 2013 | AK20: =AJ20+1 -> 2014 | AL20: =AK20+1 -> 2015 | AM20: =AL20+1 -> 2016 | AN20: =AM20+1 -> 2017 | AO20: =AN20+1 -> 2018 | AP20: =AO20+1 -> 2019 | AQ20: =AP20+1 -> 2020 | AR20: =AQ20+1 -> 2021 | AS20: =AR20+1 -> 2022 | AT20: =AS20+1 -> 2023 | AU20: =AT20+1 -> 2024 | AV20: =AU20+1 -> 2025 | AW20: =AV20+1 -> 2026 | AX20: =AW20+1 -> 2027 | AY20: =AX20+1 -> 2028 | AZ20: =AY20+1 -> 2029 | BA20: =AZ20+1 -> 2030 | BB20: =BA20+1 -> 2031 | BC20: =BB20+1 -> 2032 | BD20: =BC20+1 -> 2033 | BE20: =BD20+1 -> 2034
C21: PRE-Case SEER | D21: =E21 -> 10.4 | E21: 10.4 | F21: 10.4 | G21: 10.4 | H21: 10.4 | I21: 10.4 | J21: 10.4 | K21: 10.4 | L21: =M21 -> 10.4 | M21: ='Data by Building Type'!$F$15 -> 10.4 | N21: ='Data by Building Type'!$F$15 -> 10.4 | O21: ='Data by Building Type'!$F$15 -> 10.4 | P21: ='Data by Building Type'!$F$15 -> 10.4 | Q21: ='Data by Building Type'!$F$15 -> 10.4 | R21: ='Data by Building Type'!$F$15 -> 10.4 | S21: ='Data by Building Type'!$F$15 -> 10.4 | T21: ='Data by Building Type'!$F$15 -> 10.4 | U21: ='Data by Building Type'!$F$15 -> 10.4 | V21: ='Data by Building Type'!$F$15 -> 10.4 | W21: ='Data by Building Type'!$F$16 -> 10.1 | X21: ='Data by Building Type'!$F$16 -> 10.1 | Y21: ='Data by Building Type'!$F$16 -> 10.1 | Z21: ='Data by Building Type'!$F$16 -> 10.1 | AA21: ='Data by Building Type'!$F$16 -> 10.1 | AB21: ='Data by Building Type'!$F$16 -> 10.1 | AC21: ='Data by Building Type'!$F$17 -> 13 | AD21: ='Data by Building Type'!$F$17 -> 13 | AE21: ='Data by Building Type'!$F$17 -> 13 | AF21: ='Data by Building Type'!$F$17 -> 13 | AG21: ='National Shipments'!E$59 -> 13.85176381 | AH21: ='National Shipments'!F$59 -> 13.85261066 | AI21: ='National Shipments'!G$59 -> 13.85322526 | AJ21: ='National Shipments'!H$59 -> 13.85361795 | AK21: ='National Shipments'!I$59 -> 13.85394202 | AL21: ='National Shipments'!J$59 -> 13.85428885 | AM21: ='National Shipments'!K$59 -> 13.85460627 | AN21: ='National Shipments'!L$59 -> 13.93981996 | AO21: ='National Shipments'!M$59 -> 14.01895433 | AP21: ='National Shipments'!N$59 -> 14.09851135 | AQ21: ='National Shipments'!O$59 -> 14.17847343 | AR21: ='National Shipments'!P$59 -> 14.25882904 | AS21: ='National Shipments'!Q$59 -> 14.33963166 | AT21: ='National Shipments'!R$59 -> 14.42088822 | AU21: ='National Shipments'!S$59 -> 14.50259857 | AV21: ='National Shipments'!T$59 -> 14.58476646 | AW21: ='National Shipments'!U$59 -> 14.66737805 | AX21: ='National Shipments'!V$59 -> 14.7504377 | AY21: ='National Shipments'!W$59 -> 14.77990416 | AZ21: ='National Shipments'!X$59 -> 14.80899367 | BA21: ='National Shipments'!Y$59 -> 14.83818554 | BB21: ='National Shipments'!Z$59 -> 14.86681162 | BC21: ='National Shipments'!AA$59 -> 14.89468061 | BD21: ='National Shipments'!AB$59 -> 14.92290776 | BE21: ='National Shipments'!AC$59 -> 14.95154904
C22: POST-Case SEER | D22: =E22 -> 10.4 | E22: 10.4 | F22: 10.4 | G22: 10.4 | H22: 10.4 | I22: 10.4 | J22: 10.4 | K22: 10.4 | L22: =M22 -> 10.4 | M22: ='Data by Building Type'!$F$15 -> 10.4 | N22: ='Data by Building Type'!$F$15 -> 10.4 | O22: ='Data by Building Type'!$F$15 -> 10.4 | P22: ='Data by Building Type'!$F$15 -> 10.4 | Q22: ='Data by Building Type'!$F$15 -> 10.4 | R22: ='Data by Building Type'!$F$15 -> 10.4 | S22: ='Data by Building Type'!$F$15 -> 10.4 | T22: ='Data by Building Type'!$F$15 -> 10.4 | U22: ='Data by Building Type'!$F$15 -> 10.4 | V22: ='Data by Building Type'!$F$15 -> 10.4 | W22: ='Data by Building Type'!$F$16 -> 10.1 | X22: ='Data by Building Type'!$F$16 -> 10.1 | Y22: ='Data by Building Type'!$F$16 -> 10.1 | Z22: ='Data by Building Type'!$F$16 -> 10.1 | AA22: ='Data by Building Type'!$F$16 -> 10.1 | AB22: ='Data by Building Type'!$F$16 -> 10.1 | AC22: ='Data by Building Type'!$F$17 -> 13 | AD22: ='Data by Building Type'!$F$17 -> 13 | AE22: ='Data by Building Type'!$F$17 -> 13 | AF22: ='Data by Building Type'!$F$17 -> 13 | AG22: ='National Shipments'!E$115 -> 13.85176381 | AH22: ='National Shipments'!F$115 -> 13.85261066 | AI22: ='National Shipments'!G$115 -> 13.85322526 | AJ22: ='National Shipments'!H$115 -> 13.85361795 | AK22: ='National Shipments'!I$115 -> 13.85394202 | AL22: ='National Shipments'!J$115 -> 13.91810717 | AM22: ='National Shipments'!K$115 -> 13.91807319 | AN22: ='National Shipments'!L$115 -> 14.0011106 | AO22: ='National Shipments'!M$115 -> 14.07808986 | AP22: ='National Shipments'!N$115 -> 14.15550769 | AQ22: ='National Shipments'!O$115 -> 14.23237434 | AR22: ='National Shipments'!P$115 -> 14.3092141 | AS22: ='National Shipments'!Q$115 -> 14.38648474 | AT22: ='National Shipments'!R$115 -> 14.46420119 | AU22: ='National Shipments'!S$115 -> 14.54396126 | AV22: ='National Shipments'!T$115 -> 14.62608672 | AW22: ='National Shipments'!U$115 -> 14.70867528 | AX22: ='National Shipments'!V$115 -> 14.79173095 | AY22: ='National Shipments'!W$115 -> 14.82132724 | AZ22: ='National Shipments'!X$115 -> 14.84996321 | BA22: ='National Shipments'!Y$115 -> 14.87826643 | BB22: ='National Shipments'!Z$115 -> 14.90601978 | BC22: ='National Shipments'!AA$115 -> 14.933033 | BD22: ='National Shipments'!AB$115 -> 14.96040649 | BE22: ='National Shipments'!AC$115 -> 14.98908241

Sheet UEC-SF
C2: Weighted Average Annual UEC - Single Family
C4: NAVIGATION
C6: COMMENTS
C9: Market UEC (Shipment Weighted Average)
D10: 1981 | E10: 1982 | F10: 1983 | G10: 1984 | H10: 1985 | I10: 1986 | J10: 1987 | K10: 1988 | L10: 1989 | M10: 1990 | N10: 1991 | O10: 1992 | P10: 1993 | Q10: 1994 | R10: 1995 | S10: 1996 | T10: 1997 | U10: 1998 | V10: 1999 | W10: 2000 | X10: 2001 | Y10: 2002 | Z10: 2003 | AA10: 2004 | AB10: 2005 | AC10: 2006 | AD10: 2007 | AE10: 2008 | AF10: 2009 | AG10: 2010 | AH10: 2011 | AI10: 2012 | AJ10: 2013 | AK10: 2014 | AL10: 2015 | AM10: 2016 | AN10: 2017 | AO10: 2018 | AP10: 2019 | AQ10: 2020 | AR10: 2021 | AS10: 2022 | AT10: 2023 | AU10: 2024 | AV10: 2025 | AW10: 2026 | AX10: 2027 | AY10: 2028 | AZ10: 2029 | BA10: 2030 | BB10: 2031 | BC10: 2032 | BD10: 2033 | BE10: 2034
C11: PRE-Case UEC | D11: =FORECAST('Annual SEER'!D11,'UEC Development'!$L$12:$L$17,'UEC Development'!$C$12:$C$17) -> 800.7062157 | E11: =FORECAST('Annual SEER'!E11,'UEC Development'!$L$12:$L$17,'UEC Development'!$C$12:$C$17) -> 800.7062157 | F11: =FORECAST('Annual SEER'!F11,'UEC Development'!$L$12:$L$17,'UEC Development'!$C$12:$C$17) -> 800.7062157 | G11: =FORECAST('Annual SEER'!G11,'UEC Development'!$L$12:$L$17,'UEC Development'!$C$12:$C$17) -> 800.7062157 | H11: =FORECAST('Annual SEER'!H11,'UEC Development'!$L$12:$L$17,'UEC Development'!$C$12:$C$17) -> 800.7062157 | I11: =FORECAST('Annual SEER'!I11,'UEC Development'!$L$12:$L$17,'UEC Development'!$C$12:$C$17) -> 800.7062157 | J11: =FORECAST('Annual SEER'!J11,'UEC Development'!$L$12:$L$17,'UEC Development'!$C$12:$C$17) -> 800.7062157 | K11: =FORECAST('Annual SEER'!K11,'UEC Development'!$L$12:$L$17,'UEC Development'!$C$12:$C$17) -> 800.7062157 | L11: =FORECAST('Annual SEER'!L11,'UEC Development'!$L$12:$L$17,'UEC Development'!$C$12:$C$17) -> 800.7062157 | M11: =FORECAST('Annual SEER'!M11,'UEC Development'!$L$12:$L$17,'UEC Development'!$C$12:$C$17) -> 800.7062157 | N11: =FORECAST('Annual SEER'!N11,'UEC Development'!$L$12:$L$17,'UEC Development'!$C$12:$C$17) -> 800.7062157 | O11: =FORECAST('Annual SEER'!O11,'UEC Development'!$L$12:$L$17,'UEC Development'!$C$12:$C$17) -> 800.7062157 | P11: =FORECAST('Annual SEER'!P11,'UEC Development'!$L$12:$L$17,'UEC Development'!$C$12:$C$17) -> 800.7062157 | Q11: =FORECAST('Annual SEER'!Q11,'UEC Development'!$L$12:$L$17,'UEC Development'!$C$12:$C$17) -> 800.7062157 | R11: =FORECAST('Annual SEER'!R11,'UEC Development'!$L$12:$L$17,'UEC Development'!$C$12:$C$17) -> 800.7062157 | S11: =FORECAST('Annual SEER'!S11,'UEC Development'!$L$12:$L$17,'UEC Development'!$C$12:$C$17) -> 800.7062157 | T11: =FORECAST('Annual SEER'!T11,'UEC Development'!$L$12:$L$17,'UEC Development'!$C$12:$C$17) -> 800.7062157 | U11: =FORECAST('Annual SEER'!U11,'UEC Development'!$L$12:$L$17,'UEC Development'!$C$12:$C$17) -> 800.7062157 | V11: =FORECAST('Annual SEER'!V11,'UEC Development'!$L$12:$L$17,'UEC Development'!$C$12:$C$17) -> 800.7062157 | W11: =FORECAST('Annual SEER'!W11,'UEC Development'!$L$12:$L$17,'UEC Development'!$C$12:$C$17) -> 766.6095247 | X11: =FORECAST('Annual SEER'!X11,'UEC Development'!$L$12:$L$17,'UEC Development'!$C$12:$C$17) -> 766.6095247 | Y11: =FORECAST('Annual SEER'!Y11,'UEC Development'!$L$12:$L$17,'UEC Development'!$C$12:$C$17) -> 766.6095247 | Z11: =FORECAST('Annual SEER'!Z11,'UEC Development'!$L$12:$L$17,'UEC Development'!$C$12:$C$17) -> 766.6095247 | AA11: =FORECAST('Annual SEER'!AA11,'UEC Development'!$L$12:$L$17,'UEC Development'!$C$12:$C$17) -> 766.6095247 | AB11: =FORECAST('Annual SEER'!AB11,'UEC Development'!$L$12:$L$17,'UEC Development'!$C$12:$C$17) -> 766.6095247 | AC11: =FORECAST('Annual SEER'!AC11,'UEC Development'!$L$12:$L$17,'UEC Development'!$C$12:$C$17) -> 624.5399791 | AD11: =FORECAST('Annual SEER'!AD11,'UEC Development'!$L$12:$L$17,'UEC Development'!$C$12:$C$17) -> 624.5399791 | AE11: =FORECAST('Annual SEER'!AE11,'UEC Development'!$L$12:$L$17,'UEC Development'!$C$12:$C$17) -> 624.5399791 | AF11: =FORECAST('Annual SEER'!AF11,'UEC Development'!$L$12:$L$17,'UEC Development'!$C$12:$C$17) -> 624.5399791 | AG11: =FORECAST('Annual SEER'!AG11,'UEC Development'!$L$12:$L$17,'UEC Development'!$C$12:$C$17) -> 598.8672273 | AH11: =FORECAST('Annual SEER'!AH11,'UEC Development'!$L$12:$L$17,'UEC Development'!$C$12:$C$17) -> 598.8191026 | AI11: =FORECAST('Annual SEER'!AI11,'UEC Development'!$L$12:$L$17,'UEC Development'!$C$12:$C$17) -> 598.7841762 | AJ11: =FORECAST('Annual SEER'!AJ11,'UEC Development'!$L$12:$L$17,'UEC Development'!$C$12:$C$17) -> 598.7618607 | AK11: =FORECAST('Annual SEER'!AK11,'UEC Development'!$L$12:$L$17,'UEC Development'!$C$12:$C$17) -> 598.7434443 | AL11: =FORECAST('Annual SEER'!AL11,'UEC Development'!$L$12:$L$17,'UEC Development'!$C$12:$C$17) -> 598.7237351 | AM11: =FORECAST('Annual SEER'!AM11,'UEC Development'!$L$12:$L$17,'UEC Development'!$C$12:$C$17) -> 598.7056964 | AN11: =FORECAST('Annual SEER'!AN11,'UEC Development'!$L$12:$L$17,'UEC Development'!$C$12:$C$17) -> 593.8631886 | AO11: =FORECAST('Annual SEER'!AO11,'UEC Development'!$L$12:$L$17,'UEC Development'!$C$12:$C$17) -> 589.3661551 | AP11: =FORECAST('Annual SEER'!AP11,'UEC Development'!$L$12:$L$17,'UEC Development'!$C$12:$C$17) -> 584.8451029 | AQ11: =FORECAST('Annual SEER'!AQ11,'UEC Development'!$L$12:$L$17,'UEC Development'!$C$12:$C$17) -> 580.3010324 | AR11: =FORECAST('Annual SEER'!AR11,'UEC Development'!$L$12:$L$17,'UEC Development'!$C$12:$C$17) -> 575.7345987 | AS11: =FORECAST('Annual SEER'!AS11,'UEC Development'!$L$12:$L$17,'UEC Development'!$C$12:$C$17) -> 571.1427621 | AT11: =FORECAST('Annual SEER'!AT11,'UEC Development'!$L$12:$L$17,'UEC Development'!$C$12:$C$17) -> 566.5251289 | AU11: =FORECAST('Annual SEER'!AU11,'UEC Development'!$L$12:$L$17,'UEC Development'!$C$12:$C$17) -> 561.8817081 | AV11: =FORECAST('Annual SEER'!AV11,'UEC Development'!$L$12:$L$17,'UEC Development'!$C$12:$C$17) -> 557.212286 | AW11: =FORECAST('Annual SEER'!AW11,'UEC Development'!$L$12:$L$17,'UEC Development'!$C$12:$C$17) -> 552.5176493 | AX11: =FORECAST('Annual SEER'!AX11,'UEC Development'!$L$12:$L$17,'UEC Development'!$C$12:$C$17) -> 547.7975507 | AY11: =FORECAST('Annual SEER'!AY11,'UEC Development'!$L$12:$L$17,'UEC Development'!$C$12:$C$17) -> 546.1230363 | AZ11: =FORECAST('Annual SEER'!AZ11,'UEC Development'!$L$12:$L$17,'UEC Development'!$C$12:$C$17) -> 544.4699426 | BA11: =FORECAST('Annual SEER'!BA11,'UEC Development'!$L$12:$L$17,'UEC Development'!$C$12:$C$17) -> 542.8110326 | BB11: =FORECAST('Annual SEER'!BB11,'UEC Development'!$L$12:$L$17,'UEC Development'!$C$12:$C$17) -> 541.184275 | BC11: =FORECAST('Annual SEER'!BC11,'UEC Development'!$L$12:$L$17,'UEC Development'!$C$12:$C$17) -> 539.6005408 | BD11: =FORECAST('Annual SEER'!BD11,'UEC Development'!$L$12:$L$17,'UEC Development'!$C$12:$C$17) -> 537.9964534 | BE11: =FORECAST('Annual SEER'!BE11,'UEC Development'!$L$12:$L$17,'UEC Development'!$C$12:$C$17) -> 536.3688323
C12: POST-Case UEC | D12: =FORECAST('Annual SEER'!D12,'UEC Development'!$L$12:$L$17,'UEC Development'!$C$12:$C$17) -> 800.7062157 | E12: =FORECAST('Annual SEER'!E12,'UEC Development'!$L$12:$L$17,'UEC Development'!$C$12:$C$17) -> 800.7062157 | F12: =FORECAST('Annual SEER'!F12,'UEC Development'!$L$12:$L$17,'UEC Development'!$C$12:$C$17) -> 800.7062157 | G12: =FORECAST('Annual SEER'!G12,'UEC Development'!$L$12:$L$17,'UEC Development'!$C$12:$C$17) -> 800.7062157 | H12: =FORECAST('Annual SEER'!H12,'UEC Development'!$L$12:$L$17,'UEC Development'!$C$12:$C$17) -> 800.7062157 | I12: =FORECAST('Annual SEER'!I12,'UEC Development'!$L$12:$L$17,'UEC Development'!$C$12:$C$17) -> 800.7062157 | J12: =FORECAST('Annual SEER'!J12,'UEC Development'!$L$12:$L$17,'UEC Development'!$C$12:$C$17) -> 800.7062157 | K12: =FORECAST('Annual SEER'!K12,'UEC Development'!$L$12:$L$17,'UEC Development'!$C$12:$C$17) -> 800.7062157 | L12: =FORECAST('Annual SEER'!L12,'UEC Development'!$L$12:$L$17,'UEC Development'!$C$12:$C$17) -> 800.7062157 | M12: =FORECAST('Annual SEER'!M12,'UEC Development'!$L$12:$L$17,'UEC Development'!$C$12:$C$17) -> 800.7062157 | N12: =FORECAST('Annual SEER'!N12,'UEC Development'!$L$12:$L$17,'UEC Development'!$C$12:$C$17) -> 800.7062157 | O12: =FORECAST('Annual SEER'!O12,'UEC Development'!$L$12:$L$17,'UEC Development'!$C$12:$C$17) -> 800.7062157 | P12: =FORECAST('Annual SEER'!P12,'UEC Development'!$L$12:$L$17,'UEC Development'!$C$12:$C$17) -> 800.7062157 | Q12: =FORECAST('Annual SEER'!Q12,'UEC Development'!$L$12:$L$17,'UEC Development'!$C$12:$C$17) -> 800.7062157 | R12: =FORECAST('Annual SEER'!R12,'UEC Development'!$L$12:$L$17,'UEC Development'!$C$12:$C$17) -> 800.7062157 | S12: =FORECAST('Annual SEER'!S12,'UEC Development'!$L$12:$L$17,'UEC Development'!$C$12:$C$17) -> 800.7062157 | T12: =FORECAST('Annual SEER'!T12,'UEC Development'!$L$12:$L$17,'UEC Development'!$C$12:$C$17) -> 800.7062157 | U12: =FORECAST('Annual SEER'!U12,'UEC Development'!$L$12:$L$17,'UEC Development'!$C$12:$C$17) -> 800.7062157 | V12: =FORECAST('Annual SEER'!V12,'UEC Development'!$L$12:$L$17,'UEC Development'!$C$12:$C$17) -> 800.7062157 | W12: =FORECAST('Annual SEER'!W12,'UEC Development'!$L$12:$L$17,'UEC Development'!$C$12:$C$17) -> 766.6095247 | X12: =FORECAST('Annual SEER'!X12,'UEC Development'!$L$12:$L$17,'UEC Development'!$C$12:$C$17) -> 766.6095247 | Y12: =FORECAST('Annual SEER'!Y12,'UEC Development'!$L$12:$L$17,'UEC Development'!$C$12:$C$17) -> 766.6095247 | Z12: =FORECAST('Annual SEER'!Z12,'UEC Development'!$L$12:$L$17,'UEC Development'!$C$12:$C$17) -> 766.6095247 | AA12: =FORECAST('Annual SEER'!AA12,'UEC Development'!$L$12:$L$17,'UEC Development'!$C$12:$C$17) -> 766.6095247 | AB12: =FORECAST('Annual SEER'!AB12,'UEC Development'!$L$12:$L$17,'UEC Development'!$C$12:$C$17) -> 766.6095247 | AC12: =FORECAST('Annual SEER'!AC12,'UEC Development'!$L$12:$L$17,'UEC Development'!$C$12:$C$17) -> 624.5399791 | AD12: =FORECAST('Annual SEER'!AD12,'UEC Development'!$L$12:$L$17,'UEC Development'!$C$12:$C$17) -> 624.5399791 | AE12: =FORECAST('Annual SEER'!AE12,'UEC Development'!$L$12:$L$17,'UEC Development'!$C$12:$C$17) -> 624.5399791 | AF12: =FORECAST('Annual SEER'!AF12,'UEC Development'!$L$12:$L$17,'UEC Development'!$C$12:$C$17) -> 624.5399791 | AG12: =FORECAST('Annual SEER'!AG12,'UEC Development'!$L$12:$L$17,'UEC Development'!$C$12:$C$17) -> 598.8672273 | AH12: =FORECAST('Annual SEER'!AH12,'UEC Development'!$L$12:$L$17,'UEC Development'!$C$12:$C$17) -> 598.8191026 | AI12: =FORECAST('Annual SEER'!AI12,'UEC Development'!$L$12:$L$17,'UEC Development'!$C$12:$C$17) -> 598.7841762 | AJ12: =FORECAST('Annual SEER'!AJ12,'UEC Development'!$L$12:$L$17,'UEC Development'!$C$12:$C$17) -> 598.7618607 | AK12: =FORECAST('Annual SEER'!AK12,'UEC Development'!$L$12:$L$17,'UEC Development'!$C$12:$C$17) -> 598.7434443 | AL12: =FORECAST('Annual SEER'!AL12,'UEC Development'!$L$12:$L$17,'UEC Development'!$C$12:$C$17) -> 595.0970789 | AM12: =FORECAST('Annual SEER'!AM12,'UEC Development'!$L$12:$L$17,'UEC Development'!$C$12:$C$17) -> 595.09901 | AN12: =FORECAST('Annual SEER'!AN12,'UEC Development'!$L$12:$L$17,'UEC Development'!$C$12:$C$17) -> 590.3801754 | AO12: =FORECAST('Annual SEER'!AO12,'UEC Development'!$L$12:$L$17,'UEC Development'!$C$12:$C$17) -> 586.0056118 | AP12: =FORECAST('Annual SEER'!AP12,'UEC Development'!$L$12:$L$17,'UEC Development'!$C$12:$C$17) -> 581.6061255 | AQ12: =FORECAST('Annual SEER'!AQ12,'UEC Development'!$L$12:$L$17,'UEC Development'!$C$12:$C$17) -> 577.2379613 | AR12: =FORECAST('Annual SEER'!AR12,'UEC Development'!$L$12:$L$17,'UEC Development'!$C$12:$C$17) -> 572.8713255 | AS12: =FORECAST('Annual SEER'!AS12,'UEC Development'!$L$12:$L$17,'UEC Development'!$C$12:$C$17) -> 568.4802036 | AT12: =FORECAST('Annual SEER'!AT12,'UEC Development'!$L$12:$L$17,'UEC Development'!$C$12:$C$17) -> 564.0637473 | AU12: =FORECAST('Annual SEER'!AU12,'UEC Development'!$L$12:$L$17,'UEC Development'!$C$12:$C$17) -> 559.5311564 | AV12: =FORECAST('Annual SEER'!AV12,'UEC Development'!$L$12:$L$17,'UEC Development'!$C$12:$C$17) -> 554.8641457 | AW12: =FORECAST('Annual SEER'!AW12,'UEC Development'!$L$12:$L$17,'UEC Development'!$C$12:$C$17) -> 550.1708178 | AX12: =FORECAST('Annual SEER'!AX12,'UEC Development'!$L$12:$L$17,'UEC Development'!$C$12:$C$17) -> 545.4509455 | AY12: =FORECAST('Annual SEER'!AY12,'UEC Development'!$L$12:$L$17,'UEC Development'!$C$12:$C$17) -> 543.7690529 | AZ12: =FORECAST('Annual SEER'!AZ12,'UEC Development'!$L$12:$L$17,'UEC Development'!$C$12:$C$17) -> 542.1417334 | BA12: =FORECAST('Annual SEER'!BA12,'UEC Development'!$L$12:$L$17,'UEC Development'!$C$12:$C$17) -> 540.5333229 | BB12: =FORECAST('Annual SEER'!BB12,'UEC Development'!$L$12:$L$17,'UEC Development'!$C$12:$C$17) -> 538.9561607 | BC12: =FORECAST('Annual SEER'!BC12,'UEC Development'!$L$12:$L$17,'UEC Development'!$C$12:$C$17) -> 537.4210583 | BD12: =FORECAST('Annual SEER'!BD12,'UEC Development'!$L$12:$L$17,'UEC Development'!$C$12:$C$17) -> 535.8654827 | BE12: =FORECAST('Annual SEER'!BE12,'UEC Development'!$L$12:$L$17,'UEC Development'!$C$12:$C$17) -> 534.2358929
C14: Installed UEC (Vintage Weighted Average)
D15: 1981 | E15: 1982 | F15: 1983 | G15: 1984 | H15: 1985 | I15: 1986 | J15: 1987 | K15: 1988 | L15: 1989 | M15: 1990 | N15: 1991 | O15: 1992 | P15: 1993 | Q15: 1994 | R15: 1995 | S15: 1996 | T15: 1997 | U15: 1998 | V15: 1999 | W15: 2000 | X15: 2001 | Y15: 2002 | Z15: 2003 | AA15: 2004 | AB15: 2005 | AC15: 2006 | AD15: 2007 | AE15: 2008 | AF15: 2009 | AG15: 2010 | AH15: 2011 | AI15: 2012 | AJ15: 2013 | AK15: 2014 | AL15: 2015 | AM15: 2016 | AN15: 2017 | AO15: 2018 | AP15: 2019 | AQ15: 2020 | AR15: 2021 | AS15: 2022 | AT15: 2023 | AU15: 2024 | AV15: 2025 | AW15: 2026 | AX15: 2027 | AY15: 2028 | AZ15: 2029 | BA15: 2030 | BB15: 2031 | BC15: 2032 | BD15: 2033 | BE15: 2034
C16: PRE-Case UEC | D16: =IF(D$15-$D$15+2<=LIFETIME_SF,D11, SUMPRODUCT(OFFSET(D11,0,(-1*LIFETIME_SF)+1,1,LIFETIME_SF),OFFSET('Shipments and Stock - SF'!E$14,0,(-1*LIFETIME_SF)+1,1,LIFETIME_SF))/ SUM(OFFSET('Shipments and Stock - SF'!E$14,0,(-1*LIFETIME_SF)+1,1,LIFETIME_SF))) -> 800.7062157 | E16: =IF(E$15-$D$15+2<=LIFETIME_SF,E11, SUMPRODUCT(OFFSET(E11,0,(-1*LIFETIME_SF)+1,1,LIFETIME_SF),OFFSET('Shipments and Stock - SF'!F$14,0,(-1*LIFETIME_SF)+1,1,LIFETIME_SF))/ SUM(OFFSET('Shipments and Stock - SF'!F$14,0,(-1*LIFETIME_SF)+1,1,LIFETIME_SF))) -> 800.7062157 | F16: =IF(F$15-$D$15+2<=LIFETIME_SF,F11, SUMPRODUCT(OFFSET(F11,0,(-1*LIFETIME_SF)+1,1,LIFETIME_SF),OFFSET('Shipments and Stock - SF'!G$14,0,(-1*LIFETIME_SF)+1,1,LIFETIME_SF))/ SUM(OFFSET('Shipments and Stock - SF'!G$14,0,(-1*LIFETIME_SF)+1,1,LIFETIME_SF))) -> 800.7062157 | G16: =IF(G$15-$D$15+2<=LIFETIME_SF,G11, SUMPRODUCT(OFFSET(G11,0,(-1*LIFETIME_SF)+1,1,LIFETIME_SF),OFFSET('Shipments and Stock - SF'!H$14,0,(-1*LIFETIME_SF)+1,1,LIFETIME_SF))/ SUM(OFFSET('Shipments and Stock - SF'!H$14,0,(-1*LIFETIME_SF)+1,1,LIFETIME_SF))) -> 800.7062157 | H16: =IF(H$15-$D$15+2<=LIFETIME_SF,H11, SUMPRODUCT(OFFSET(H11,0,(-1*LIFETIME_SF)+1,1,LIFETIME_SF),OFFSET('Shipments and Stock - SF'!I$14,0,(-1*LIFETIME_SF)+1,1,LIFETIME_SF))/ SUM(OFFSET('Shipments and Stock - SF'!I$14,0,(-1*LIFETIME_SF)+1,1,LIFETIME_SF))) -> 800.7062157 | I16: =IF(I$15-$D$15+2<=LIFETIME_SF,I11, SUMPRODUCT(OFFSET(I11,0,(-1*LIFETIME_SF)+1,1,LIFETIME_SF),OFFSET('Shipments and Stock - SF'!J$14,0,(-1*LIFETIME_SF)+1,1,LIFETIME_SF))/ SUM(OFFSET('Shipments and Stock - SF'!J$14,0,(-1*LIFETIME_SF)+1,1,LIFETIME_SF))) -> 800.7062157 | J16: =IF(J$15-$D$15+2<=LIFETIME_SF,J11, SUMPRODUCT(OFFSET(J11,0,(-1*LIFETIME_SF)+1,1,LIFETIME_SF),OFFSET('Shipments and Stock - SF'!K$14,0,(-1*LIFETIME_SF)+1,1,LIFETIME_SF))/ SUM(OFFSET('Shipments and Stock - SF'!K$14,0,(-1*LIFETIME_SF)+1,1,LIFETIME_SF))) -> 800.7062157 | K16: =IF(K$15-$D$15+2<=LIFETIME_SF,K11, SUMPRODUCT(OFFSET(K11,0,(-1*LIFETIME_SF)+1,1,LIFETIME_SF),OFFSET('Shipments and Stock - SF'!L$14,0,(-1*LIFETIME_SF)+1,1,LIFETIME_SF))/ SUM(OFFSET('Shipments and Stock - SF'!L$14,0,(-1*LIFETIME_SF)+1,1,LIFETIME_SF))) -> 800.7062157 | L16: =IF(L$15-$D$15+2<=LIFETIME_SF,L11, SUMPRODUCT(OFFSET(L11,0,(-1*LIFETIME_SF)+1,1,LIFETIME_SF),OFFSET('Shipments and Stock - SF'!M$14,0,(-1*LIFETIME_SF)+1,1,LIFETIME_SF))/ SUM(OFFSET('Shipments and Stock - SF'!M$14,0,(-1*LIFETIME_SF)+1,1,LIFETIME_SF))) -> 800.7062157 | M16: =IF(M$15-$D$15+2<=LIFETIME_SF,M11, SUMPRODUCT(OFFSET(M11,0,(-1*LIFETIME_SF)+1,1,LIFETIME_SF),OFFSET('Shipments and Stock - SF'!N$14,0,(-1*LIFETIME_SF)+1,1,LIFETIME_SF))/ SUM(OFFSET('Shipments and Stock - SF'!N$14,0,(-1*LIFETIME_SF)+1,1,LIFETIME_SF))) -> 800.7062157 | N16: =IF(N$15-$D$15+2<=LIFETIME_SF,N11, SUMPRODUCT(OFFSET(N11,0,(-1*LIFETIME_SF)+1,1,LIFETIME_SF),OFFSET('Shipments and Stock - SF'!O$14,0,(-1*LIFETIME_SF)+1,1,LIFETIME_SF))/ SUM(OFFSET('Shipments and Stock - SF'!O$14,0,(-1*LIFETIME_SF)+1,1,LIFETIME_SF))) -> 800.7062157 | O16: =IF(O$15-$D$15+2<=LIFETIME_SF,O11, SUMPRODUCT(OFFSET(O11,0,(-1*LIFETIME_SF)+1,1,LIFETIME_SF),OFFSET('Shipments and Stock - SF'!P$14,0,(-1*LIFETIME_SF)+1,1,LIFETIME_SF))/ SUM(OFFSET('Shipments and Stock - SF'!P$14,0,(-1*LIFETIME_SF)+1,1,LIFETIME_SF))) -> 800.7062157 | P16: =IF(P$15-$D$15+2<=LIFETIME_SF,P11, SUMPRODUCT(OFFSET(P11,0,(-1*LIFETIME_SF)+1,1,LIFETIME_SF),OFFSET('Shipments and Stock - SF'!Q$14,0,(-1*LIFETIME_SF)+1,1,LIFETIME_SF))/ SUM(OFFSET('Shipments and Stock - SF'!Q$14,0,(-1*LIFETIME_SF)+1,1,LIFETIME_SF))) -> 800.7062157 | Q16: =IF(Q$15-$D$15+2<=LIFETIME_SF,Q11, SUMPRODUCT(OFFSET(Q11,0,(-1*LIFETIME_SF)+1,1,LIFETIME_SF),OFFSET('Shipments and Stock - SF'!R$14,0,(-1*LIFETIME_SF)+1,1,LIFETIME_SF))/ SUM(OFFSET('Shipments and Stock - SF'!R$14,0,(-1*LIFETIME_SF)+1,1,LIFETIME_SF))) -> 800.7062157 | R16: =IF(R$15-$D$15+2<=LIFETIME_SF,R11, SUMPRODUCT(OFFSET(R11,0,(-1*LIFETIME_SF)+1,1,LIFETIME_SF),OFFSET('Shipments and Stock - SF'!S$14,0,(-1*LIFETIME_SF)+1,1,LIFETIME_SF))/ SUM(OFFSET('Shipments and Stock - SF'!S$14,0,(-1*LIFETIME_SF)+1,1,LIFETIME_SF))) -> 800.7062157 | S16: =IF(S$15-$D$15+2<=LIFETIME_SF,S11, SUMPRODUCT(OFFSET(S11,0,(-1*LIFETIME_SF)+1,1,LIFETIME_SF),OFFSET('Shipments and Stock - SF'!T$14,0,(-1*LIFETIME_SF)+1,1,LIFETIME_SF))/ SUM(OFFSET('Shipments and Stock - SF'!T$14,0,(-1*LIFETIME_SF)+1,1,LIFETIME_SF))) -> 800.7062157 | T16: =IF(T$15-$D$15+2<=LIFETIME_SF,T11, SUMPRODUCT(OFFSET(T11,0,(-1*LIFETIME_SF)+1,1,LIFETIME_SF),OFFSET('Shipments and Stock - SF'!U$14,0,(-1*LIFETIME_SF)+1,1,LIFETIME_SF))/ SUM(OFFSET('Shipments and Stock - SF'!U$14,0,(-1*LIFETIME_SF)+1,1,LIFETIME_SF))) -> 800.7062157 | U16: =IF(U$15-$D$15+2<=LIFETIME_SF,U11, SUMPRODUCT(OFFSET(U11,0,(-1*LIFETIME_SF)+1,1,LIFETIME_SF),OFFSET('Shipments and Stock - SF'!V$14,0,(-1*LIFETIME_SF)+1,1,LIFETIME_SF))/ SUM(OFFSET('Shipments and Stock - SF'!V$14,0,(-1*LIFETIME_SF)+1,1,LIFETIME_SF))) -> 800.7062157 | V16: =IF(V$15-$D$15+2<=LIFETIME_SF,V11, SUMPRODUCT(OFFSET(V11,0,(-1*LIFETIME_SF)+1,1,LIFETIME_SF),OFFSET('Shipments and Stock - SF'!W$14,0,(-1*LIFETIME_SF)+1,1,LIFETIME_SF))/ SUM(OFFSET('Shipments and Stock - SF'!W$14,0,(-1*LIFETIME_SF)+1,1,LIFETIME_SF))) -> 800.7062157 | W16: =IF(W$15-$D$15+2<=LIFETIME_SF,W11, SUMPRODUCT(OFFSET(W11,0,(-1*LIFETIME_SF)+1,1,LIFETIME_SF),OFFSET('Shipments and Stock - SF'!X$14,0,(-1*LIFETIME_SF)+1,1,LIFETIME_SF))/ SUM(OFFSET('Shipments and Stock - SF'!X$14,0,(-1*LIFETIME_SF)+1,1,LIFETIME_SF))) -> 797.8821488 | X16: =IF(X$15-$D$15+2<=LIFETIME_SF,X11, SUMPRODUCT(OFFSET(X11,0,(-1*LIFETIME_SF)+1,1,LIFETIME_SF),OFFSET('Shipments and Stock - SF'!Y$14,0,(-1*LIFETIME_SF)+1,1,LIFETIME_SF))/ SUM(OFFSET('Shipments and Stock - SF'!Y$14,0,(-1*LIFETIME_SF)+1,1,LIFETIME_SF))) -> 795.3445751 | Y16: =IF(Y$15-$D$15+2<=LIFETIME_SF,Y11, SUMPRODUCT(OFFSET(Y11,0,(-1*LIFETIME_SF)+1,1,LIFETIME_SF),OFFSET('Shipments and Stock - SF'!Z$14,0,(-1*LIFETIME_SF)+1,1,LIFETIME_SF))/ SUM(OFFSET('Shipments and Stock - SF'!Z$14,0,(-1*LIFETIME_SF)+1,1,LIFETIME_SF))) -> 792.8735793 | Z16: =IF(Z$15-$D$15+2<=LIFETIME_SF,Z11, SUMPRODUCT(OFFSET(Z11,0,(-1*LIFETIME_SF)+1,1,LIFETIME_SF),OFFSET('Shipments and Stock - SF'!AA$14,0,(-1*LIFETIME_SF)+1,1,LIFETIME_SF))/ SUM(OFFSET('Shipments and Stock - SF'!AA$14,0,(-1*LIFETIME_SF)+1,1,LIFETIME_SF))) -> 790.5703079 | AA16: =IF(AA$15-$D$15+2<=LIFETIME_SF,AA11, SUMPRODUCT(OFFSET(AA11,0,(-1*LIFETIME_SF)+1,1,LIFETIME_SF),OFFSET('Shipments and Stock - SF'!AB$14,0,(-1*LIFETIME_SF)+1,1,LIFETIME_SF))/ SUM(OFFSET('Shipments and Stock - SF'!AB$14,0,(-1*LIFETIME_SF)+1,1,LIFETIME_SF))) -> 788.4408664 | AB16: =IF(AB$15-$D$15+2<=LIFETIME_SF,AB11, SUMPRODUCT(OFFSET(AB11,0,(-1*LIFETIME_SF)+1,1,LIFETIME_SF),OFFSET('Shipments and Stock - SF'!AC$14,0,(-1*LIFETIME_SF)+1,1,LIFETIME_SF))/ SUM(OFFSET('Shipments and Stock - SF'!AC$14,0,(-1*LIFETIME_SF)+1,1,LIFETIME_SF))) -> 786.4261557 | AC16: =IF(AC$15-$D$15+2<=LIFETIME_SF,AC11, SUMPRODUCT(OFFSET(AC11,0,(-1*LIFETIME_SF)+1,1,LIFETIME_SF),OFFSET('Shipments and Stock - SF'!AD$14,0,(-1*LIFETIME_SF)+1,1,LIFETIME_SF))/ SUM(OFFSET('Shipments and Stock - SF'!AD$14,0,(-1*LIFETIME_SF)+1,1,LIFETIME_SF))) -> 774.3876655 | AD16: =IF(AD$15-$D$15+2<=LIFETIME_SF,AD11, SUMPRODUCT(OFFSET(AD11,0,(-1*LIFETIME_SF)+1,1,LIFETIME_SF),OFFSET('Shipments and Stock - SF'!AE$14,0,(-1*LIFETIME_SF)+1,1,LIFETIME_SF))/ SUM(OFFSET('Shipments and Stock - SF'!AE$14,0,(-1*LIFETIME_SF)+1,1,LIFETIME_SF))) -> 763.7810685 | AE16: =IF(AE$15-$D$15+2<=LIFETIME_SF,AE11, SUMPRODUCT(OFFSET(AE11,0,(-1*LIFETIME_SF)+1,1,LIFETIME_SF),OFFSET('Shipments and Stock - SF'!AF$14,0,(-1*LIFETIME_SF)+1,1,LIFETIME_SF))/ SUM(OFFSET('Shipments and Stock - SF'!AF$14,0,(-1*LIFETIME_SF)+1,1,LIFETIME_SF))) -> 754.4286835 | AF16: =IF(AF$15-$D$15+2<=LIFETIME_SF,AF11, SUMPRODUCT(OFFSET(AF11,0,(-1*LIFETIME_SF)+1,1,LIFETIME_SF),OFFSET('Shipments and Stock - SF'!AG$14,0,(-1*LIFETIME_SF)+1,1,LIFETIME_SF))/ SUM(OFFSET('Shipments and Stock - SF'!AG$14,0,(-1*LIFETIME_SF)+1,1,LIFETIME_SF))) -> 745.7065106 | AG16: =IF(AG$15-$D$15+2<=LIFETIME_SF,AG11, SUMPRODUCT(OFFSET(AG11,0,(-1*LIFETIME_SF)+1,1,LIFETIME_SF),OFFSET('Shipments and Stock - SF'!AH$14,0,(-1*LIFETIME_SF)+1,1,LIFETIME_SF))/ SUM(OFFSET('Shipments and Stock - SF'!AH$14,0,(-1*LIFETIME_SF)+1,1,LIFETIME_SF))) -> 735.6636513 | AH16: =IF(AH$15-$D$15+2<=LIFETIME_SF,AH11, SUMPRODUCT(OFFSET(AH11,0,(-1*LIFETIME_SF)+1,1,LIFETIME_SF),OFFSET('Shipments and Stock - SF'!AI$14,0,(-1*LIFETIME_SF)+1,1,LIFETIME_SF))/ SUM(OFFSET('Shipments and Stock - SF'!AI$14,0,(-1*LIFETIME_SF)+1,1,LIFETIME_SF))) -> 725.434983 | AI16: =IF(AI$15-$D$15+2<=LIFETIME_SF,AI11, SUMPRODUCT(OFFSET(AI11,0,(-1*LIFETIME_SF)+1,1,LIFETIME_SF),OFFSET('Shipments and Stock - SF'!AJ$14,0,(-1*LIFETIME_SF)+1,1,LIFETIME_SF))/ SUM(OFFSET('Shipments and Stock - SF'!AJ$14,0,(-1*LIFETIME_SF)+1,1,LIFETIME_SF))) -> 714.7307398 | AJ16: =IF(AJ$15-$D$15+2<=LIFETIME_SF,AJ11, SUMPRODUCT(OFFSET(AJ11,0,(-1*LIFETIME_SF)+1,1,LIFETIME_SF),OFFSET('Shipments and Stock - SF'!AK$14,0,(-1*LIFETIME_SF)+1,1,LIFETIME_SF))/ SUM(OFFSET('Shipments and Stock - SF'!AK$14,0,(-1*LIFETIME_SF)+1,1,LIFETIME_SF))) -> 704.0786889 | AK16: =IF(AK$15-$D$15+2<=LIFETIME_SF,AK11, SUMPRODUCT(OFFSET(AK11,0,(-1*LIFETIME_SF)+1,1,LIFETIME_SF),OFFSET('Shipments and Stock - SF'!AL$14,0,(-1*LIFETIME_SF)+1,1,LIFETIME_SF))/ SUM(OFFSET('Shipments and Stock - SF'!AL$14,0,(-1*LIFETIME_SF)+1,1,LIFETIME_SF))) -> 693.8369407 | AL16: =IF(AL$15-$D$15+2<=LIFETIME_SF,AL11, SUMPRODUCT(OFFSET(AL11,0,(-1*LIFETIME_SF)+1,1,LIFETIME_SF),OFFSET('Shipments and Stock - SF'!AM$14,0,(-1*LIFETIME_SF)+1,1,LIFETIME_SF))/ SUM(OFFSET('Shipments and Stock - SF'!AM$14,0,(-1*LIFETIME_SF)+1,1,LIFETIME_SF))) -> 683.7096667 | AM16: =IF(AM$15-$D$15+2<=LIFETIME_SF,AM11, SUMPRODUCT(OFFSET(AM11,0,(-1*LIFETIME_SF)+1,1,LIFETIME_SF),OFFSET('Shipments and Stock - SF'!AN$14,0,(-1*LIFETIME_SF)+1,1,LIFETIME_SF))/ SUM(OFFSET('Shipments and Stock - SF'!AN$14,0,(-1*LIFETIME_SF)+1,1,LIFETIME_SF))) -> 673.7717918 | AN16: =IF(AN$15-$D$15+2<=LIFETIME_SF,AN11, SUMPRODUCT(OFFSET(AN11,0,(-1*LIFETIME_SF)+1,1,LIFETIME_SF),OFFSET('Shipments and Stock - SF'!AO$14,0,(-1*LIFETIME_SF)+1,1,LIFETIME_SF))/ SUM(OFFSET('Shipments and Stock - SF'!AO$14,0,(-1*LIFETIME_SF)+1,1,LIFETIME_SF))) -> 663.6778887 | AO16: =IF(AO$15-$D$15+2<=LIFETIME_SF,AO11, SUMPRODUCT(OFFSET(AO11,0,(-1*LIFETIME_SF)+1,1,LIFETIME_SF),OFFSET('Shipments and Stock - SF'!AP$14,0,(-1*LIFETIME_SF)+1,1,LIFETIME_SF))/ SUM(OFFSET('Shipments and Stock - SF'!AP$14,0,(-1*LIFETIME_SF)+1,1,LIFETIME_SF))) -> 653.5499496 | AP16: =IF(AP$15-$D$15+2<=LIFETIME_SF,AP11, SUMPRODUCT(OFFSET(AP11,0,(-1*LIFETIME_SF)+1,1,LIFETIME_SF),OFFSET('Shipments and Stock - SF'!AQ$14,0,(-1*LIFETIME_SF)+1,1,LIFETIME_SF))/ SUM(OFFSET('Shipments and Stock - SF'!AQ$14,0,(-1*LIFETIME_SF)+1,1,LIFETIME_SF))) -> 644.2446702 | AQ16: =IF(AQ$15-$D$15+2<=LIFETIME_SF,AQ11, SUMPRODUCT(OFFSET(AQ11,0,(-1*LIFETIME_SF)+1,1,LIFETIME_SF),OFFSET('Shipments and Stock - SF'!AR$14,0,(-1*LIFETIME_SF)+1,1,LIFETIME_SF))/ SUM(OFFSET('Shipments and Stock - SF'!AR$14,0,(-1*LIFETIME_SF)+1,1,LIFETIME_SF))) -> 635.0183031 | AR16: =IF(AR$15-$D$15+2<=LIFETIME_SF,AR11, SUMPRODUCT(OFFSET(AR11,0,(-1*LIFETIME_SF)+1,1,LIFETIME_SF),OFFSET('Shipments and Stock - SF'!AS$14,0,(-1*LIFETIME_SF)+1,1,LIFETIME_SF))/ SUM(OFFSET('Shipments and Stock - SF'!AS$14,0,(-1*LIFETIME_SF)+1,1,LIFETIME_SF))) -> 625.1930337 | AS16: =IF(AS$15-$D$15+2<=LIFETIME_SF,AS11, SUMPRODUCT(OFFSET(AS11,0,(-1*LIFETIME_SF)+1,1,LIFETIME_SF),OFFSET('Shipments and Stock - SF'!AT$14,0,(-1*LIFETIME_SF)+1,1,LIFETIME_SF))/ SUM(OFFSET('Shipments and Stock - SF'!AT$14,0,(-1*LIFETIME_SF)+1,1,LIFETIME_SF))) -> 615.0619557 | AT16: =IF(AT$15-$D$15+2<=LIFETIME_SF,AT11, SUMPRODUCT(OFFSET(AT11,0,(-1*LIFETIME_SF)+1,1,LIFETIME_SF),OFFSET('Shipments and Stock - SF'!AU$14,0,(-1*LIFETIME_SF)+1,1,LIFETIME_SF))/ SUM(OFFSET('Shipments and Stock - SF'!AU$14,0,(-1*LIFETIME_SF)+1,1,LIFETIME_SF))) -> 604.6845864 | AU16: =IF(AU$15-$D$15+2<=LIFETIME_SF,AU11, SUMPRODUCT(OFFSET(AU11,0,(-1*LIFETIME_SF)+1,1,LIFETIME_SF),OFFSET('Shipments and Stock - SF'!AV$14,0,(-1*LIFETIME_SF)+1,1,LIFETIME_SF))/ SUM(OFFSET('Shipments and Stock - SF'!AV$14,0,(-1*LIFETIME_SF)+1,1,LIFETIME_SF))) -> 593.7918621 | AV16: =IF(AV$15-$D$15+2<=LIFETIME_SF,AV11, SUMPRODUCT(OFFSET(AV11,0,(-1*LIFETIME_SF)+1,1,LIFETIME_SF),OFFSET('Shipments and Stock - SF'!AW$14,0,(-1*LIFETIME_SF)+1,1,LIFETIME_SF))/ SUM(OFFSET('Shipments and Stock - SF'!AW$14,0,(-1*LIFETIME_SF)+1,1,LIFETIME_SF))) -> 590.035818 | AW16: =IF(AW$15-$D$15+2<=LIFETIME_SF,AW11, SUMPRODUCT(OFFSET(AW11,0,(-1*LIFETIME_SF)+1,1,LIFETIME_SF),OFFSET('Shipments and Stock - SF'!AX$14,0,(-1*LIFETIME_SF)+1,1,LIFETIME_SF))/ SUM(OFFSET('Shipments and Stock - SF'!AX$14,0,(-1*LIFETIME_SF)+1,1,LIFETIME_SF))) -> 586.2382389 | AX16: =IF(AX$15-$D$15+2<=LIFETIME_SF,AX11, SUMPRODUCT(OFFSET(AX11,0,(-1*LIFETIME_SF)+1,1,LIFETIME_SF),OFFSET('Shipments and Stock - SF'!AY$14,0,(-1*LIFETIME_SF)+1,1,LIFETIME_SF))/ SUM(OFFSET('Shipments and Stock - SF'!AY$14,0,(-1*LIFETIME_SF)+1,1,LIFETIME_SF))) -> 582.477725 | AY16: =IF(AY$15-$D$15+2<=LIFETIME_SF,AY11, SUMPRODUCT(OFFSET(AY11,0,(-1*LIFETIME_SF)+1,1,LIFETIME_SF),OFFSET('Shipments and Stock - SF'!AZ$14,0,(-1*LIFETIME_SF)+1,1,LIFETIME_SF))/ SUM(OFFSET('Shipments and Stock - SF'!AZ$14,0,(-1*LIFETIME_SF)+1,1,LIFETIME_SF))) -> 578.7556545 | AZ16: =IF(AZ$15-$D$15+2<=LIFETIME_SF,AZ11, SUMPRODUCT(OFFSET(AZ11,0,(-1*LIFETIME_SF)+1,1,LIFETIME_SF),OFFSET('Shipments and Stock - SF'!BA$14,0,(-1*LIFETIME_SF)+1,1,LIFETIME_SF))/ SUM(OFFSET('Shipments and Stock - SF'!BA$14,0,(-1*LIFETIME_SF)+1,1,LIFETIME_SF))) -> 575.971962 | BA16: =IF(BA$15-$D$15+2<=LIFETIME_SF,BA11, SUMPRODUCT(OFFSET(BA11,0,(-1*LIFETIME_SF)+1,1,LIFETIME_SF),OFFSET('Shipments and Stock - SF'!BB$14,0,(-1*LIFETIME_SF)+1,1,LIFETIME_SF))/ SUM(OFFSET('Shipments and Stock - SF'!BB$14,0,(-1*LIFETIME_SF)+1,1,LIFETIME_SF))) -> 572.9074506 | BB16: =IF(BB$15-$D$15+2<=LIFETIME_SF,BB11, SUMPRODUCT(OFFSET(BB11,0,(-1*LIFETIME_SF)+1,1,LIFETIME_SF),OFFSET('Shipments and Stock - SF'!BC$14,0,(-1*LIFETIME_SF)+1,1,LIFETIME_SF))/ SUM(OFFSET('Shipments and Stock - SF'!BC$14,0,(-1*LIFETIME_SF)+1,1,LIFETIME_SF))) -> 569.9274553 | BC16: =IF(BC$15-$D$15+2<=LIFETIME_SF,BC11, SUMPRODUCT(OFFSET(BC11,0,(-1*LIFETIME_SF)+1,1,LIFETIME_SF),OFFSET('Shipments and Stock - SF'!BD$14,0,(-1*LIFETIME_SF)+1,1,LIFETIME_SF))/ SUM(OFFSET('Shipments and Stock - SF'!BD$14,0,(-1*LIFETIME_SF)+1,1,LIFETIME_SF))) -> 566.8438116 | BD16: =IF(BD$15-$D$15+2<=LIFETIME_SF,BD11, SUMPRODUCT(OFFSET(BD11,0,(-1*LIFETIME_SF)+1,1,LIFETIME_SF),OFFSET('Shipments and Stock - SF'!BE$14,0,(-1*LIFETIME_SF)+1,1,LIFETIME_SF))/ SUM(OFFSET('Shipments and Stock - SF'!BE$14,0,(-1*LIFETIME_SF)+1,1,LIFETIME_SF))) -> 563.7505938 | BE16: =IF(BE$15-$D$15+2<=LIFETIME_SF,BE11, SUMPRODUCT(OFFSET(BE11,0,(-1*LIFETIME_SF)+1,1,LIFETIME_SF),OFFSET('Shipments and Stock - SF'!BF$14,0,(-1*LIFETIME_SF)+1,1,LIFETIME_SF))/ SUM(OFFSET('Shipments and Stock - SF'!BF$14,0,(-1*LIFETIME_SF)+1,1,LIFETIME_SF))) -> 560.5768885
C17: POST-Case UEC | D17: =IF(D$15-$D$15+2<=LIFETIME_SF,D12, SUMPRODUCT(OFFSET(D12,0,(-1*LIFETIME_SF)+1,1,LIFETIME_SF),OFFSET('Shipments and Stock - SF'!E$14,0,(-1*LIFETIME_SF)+1,1,LIFETIME_SF))/ SUM(OFFSET('Shipments and Stock - SF'!E$14,0,(-1*LIFETIME_SF)+1,1,LIFETIME_SF))) -> 800.7062157 | E17: =IF(E$15-$D$15+2<=LIFETIME_SF,E12, SUMPRODUCT(OFFSET(E12,0,(-1*LIFETIME_SF)+1,1,LIFETIME_SF),OFFSET('Shipments and Stock - SF'!F$14,0,(-1*LIFETIME_SF)+1,1,LIFETIME_SF))/ SUM(OFFSET('Shipments and Stock - SF'!F$14,0,(-1*LIFETIME_SF)+1,1,LIFETIME_SF))) -> 800.7062157 | F17: =IF(F$15-$D$15+2<=LIFETIME_SF,F12, SUMPRODUCT(OFFSET(F12,0,(-1*LIFETIME_SF)+1,1,LIFETIME_SF),OFFSET('Shipments and Stock - SF'!G$14,0,(-1*LIFETIME_SF)+1,1,LIFETIME_SF))/ SUM(OFFSET('Shipments and Stock - SF'!G$14,0,(-1*LIFETIME_SF)+1,1,LIFETIME_SF))) -> 800.7062157 | G17: =IF(G$15-$D$15+2<=LIFETIME_SF,G12, SUMPRODUCT(OFFSET(G12,0,(-1*LIFETIME_SF)+1,1,LIFETIME_SF),OFFSET('Shipments and Stock - SF'!H$14,0,(-1*LIFETIME_SF)+1,1,LIFETIME_SF))/ SUM(OFFSET('Shipments and Stock - SF'!H$14,0,(-1*LIFETIME_SF)+1,1,LIFETIME_SF))) -> 800.7062157 | H17: =IF(H$15-$D$15+2<=LIFETIME_SF,H12, SUMPRODUCT(OFFSET(H12,0,(-1*LIFETIME_SF)+1,1,LIFETIME_SF),OFFSET('Shipments and Stock - SF'!I$14,0,(-1*LIFETIME_SF)+1,1,LIFETIME_SF))/ SUM(OFFSET('Shipments and Stock - SF'!I$14,0,(-1*LIFETIME_SF)+1,1,LIFETIME_SF))) -> 800.7062157 | I17: =IF(I$15-$D$15+2<=LIFETIME_SF,I12, SUMPRODUCT(OFFSET(I12,0,(-1*LIFETIME_SF)+1,1,LIFETIME_SF),OFFSET('Shipments and Stock - SF'!J$14,0,(-1*LIFETIME_SF)+1,1,LIFETIME_SF))/ SUM(OFFSET('Shipments and Stock - SF'!J$14,0,(-1*LIFETIME_SF)+1,1,LIFETIME_SF))) -> 800.7062157 | J17: =IF(J$15-$D$15+2<=LIFETIME_SF,J12, SUMPRODUCT(OFFSET(J12,0,(-1*LIFETIME_SF)+1,1,LIFETIME_SF),OFFSET('Shipments and Stock - SF'!K$14,0,(-1*LIFETIME_SF)+1,1,LIFETIME_SF))/ SUM(OFFSET('Shipments and Stock - SF'!K$14,0,(-1*LIFETIME_SF)+1,1,LIFETIME_SF))) -> 800.7062157 | K17: =IF(K$15-$D$15+2<=LIFETIME_SF,K12, SUMPRODUCT(OFFSET(K12,0,(-1*LIFETIME_SF)+1,1,LIFETIME_SF),OFFSET('Shipments and Stock - SF'!L$14,0,(-1*LIFETIME_SF)+1,1,LIFETIME_SF))/ SUM(OFFSET('Shipments and Stock - SF'!L$14,0,(-1*LIFETIME_SF)+1,1,LIFETIME_SF))) -> 800.7062157 | L17: =IF(L$15-$D$15+2<=LIFETIME_SF,L12, SUMPRODUCT(OFFSET(L12,0,(-1*LIFETIME_SF)+1,1,LIFETIME_SF),OFFSET('Shipments and Stock - SF'!M$14,0,(-1*LIFETIME_SF)+1,1,LIFETIME_SF))/ SUM(OFFSET('Shipments and Stock - SF'!M$14,0,(-1*LIFETIME_SF)+1,1,LIFETIME_SF))) -> 800.7062157 | M17: =IF(M$15-$D$15+2<=LIFETIME_SF,M12, SUMPRODUCT(OFFSET(M12,0,(-1*LIFETIME_SF)+1,1,LIFETIME_SF),OFFSET('Shipments and Stock - SF'!N$14,0,(-1*LIFETIME_SF)+1,1,LIFETIME_SF))/ SUM(OFFSET('Shipments and Stock - SF'!N$14,0,(-1*LIFETIME_SF)+1,1,LIFETIME_SF))) -> 800.7062157 | N17: =IF(N$15-$D$15+2<=LIFETIME_SF,N12, SUMPRODUCT(OFFSET(N12,0,(-1*LIFETIME_SF)+1,1,LIFETIME_SF),OFFSET('Shipments and Stock - SF'!O$14,0,(-1*LIFETIME_SF)+1,1,LIFETIME_SF))/ SUM(OFFSET('Shipments and Stock - SF'!O$14,0,(-1*LIFETIME_SF)+1,1,LIFETIME_SF))) -> 800.7062157 | O17: =IF(O$15-$D$15+2<=LIFETIME_SF,O12, SUMPRODUCT(OFFSET(O12,0,(-1*LIFETIME_SF)+1,1,LIFETIME_SF),OFFSET('Shipments and Stock - SF'!P$14,0,(-1*LIFETIME_SF)+1,1,LIFETIME_SF))/ SUM(OFFSET('Shipments and Stock - SF'!P$14,0,(-1*LIFETIME_SF)+1,1,LIFETIME_SF))) -> 800.7062157 | P17: =IF(P$15-$D$15+2<=LIFETIME_SF,P12, SUMPRODUCT(OFFSET(P12,0,(-1*LIFETIME_SF)+1,1,LIFETIME_SF),OFFSET('Shipments and Stock - SF'!Q$14,0,(-1*LIFETIME_SF)+1,1,LIFETIME_SF))/ SUM(OFFSET('Shipments and Stock - SF'!Q$14,0,(-1*LIFETIME_SF)+1,1,LIFETIME_SF))) -> 800.7062157 | Q17: =IF(Q$15-$D$15+2<=LIFETIME_SF,Q12, SUMPRODUCT(OFFSET(Q12,0,(-1*LIFETIME_SF)+1,1,LIFETIME_SF),OFFSET('Shipments and Stock - SF'!R$14,0,(-1*LIFETIME_SF)+1,1,LIFETIME_SF))/ SUM(OFFSET('Shipments and Stock - SF'!R$14,0,(-1*LIFETIME_SF)+1,1,LIFETIME_SF))) -> 800.7062157 | R17: =IF(R$15-$D$15+2<=LIFETIME_SF,R12, SUMPRODUCT(OFFSET(R12,0,(-1*LIFETIME_SF)+1,1,LIFETIME_SF),OFFSET('Shipments and Stock - SF'!S$14,0,(-1*LIFETIME_SF)+1,1,LIFETIME_SF))/ SUM(OFFSET('Shipments and Stock - SF'!S$14,0,(-1*LIFETIME_SF)+1,1,LIFETIME_SF))) -> 800.7062157 | S17: =IF(S$15-$D$15+2<=LIFETIME_SF,S12, SUMPRODUCT(OFFSET(S12,0,(-1*LIFETIME_SF)+1,1,LIFETIME_SF),OFFSET('Shipments and Stock - SF'!T$14,0,(-1*LIFETIME_SF)+1,1,LIFETIME_SF))/ SUM(OFFSET('Shipments and Stock - SF'!T$14,0,(-1*LIFETIME_SF)+1,1,LIFETIME_SF))) -> 800.7062157 | T17: =IF(T$15-$D$15+2<=LIFETIME_SF,T12, SUMPRODUCT(OFFSET(T12,0,(-1*LIFETIME_SF)+1,1,LIFETIME_SF),OFFSET('Shipments and Stock - SF'!U$14,0,(-1*LIFETIME_SF)+1,1,LIFETIME_SF))/ SUM(OFFSET('Shipments and Stock - SF'!U$14,0,(-1*LIFETIME_SF)+1,1,LIFETIME_SF))) -> 800.7062157 | U17: =IF(U$15-$D$15+2<=LIFETIME_SF,U12, SUMPRODUCT(OFFSET(U12,0,(-1*LIFETIME_SF)+1,1,LIFETIME_SF),OFFSET('Shipments and Stock - SF'!V$14,0,(-1*LIFETIME_SF)+1,1,LIFETIME_SF))/ SUM(OFFSET('Shipments and Stock - SF'!V$14,0,(-1*LIFETIME_SF)+1,1,LIFETIME_SF))) -> 800.7062157 | V17: =IF(V$15-$D$15+2<=LIFETIME_SF,V12, SUMPRODUCT(OFFSET(V12,0,(-1*LIFETIME_SF)+1,1,LIFETIME_SF),OFFSET('Shipments and Stock - SF'!W$14,0,(-1*LIFETIME_SF)+1,1,LIFETIME_SF))/ SUM(OFFSET('Shipments and Stock - SF'!W$14,0,(-1*LIFETIME_SF)+1,1,LIFETIME_SF))) -> 800.7062157 | W17: =IF(W$15-$D$15+2<=LIFETIME_SF,W12, SUMPRODUCT(OFFSET(W12,0,(-1*LIFETIME_SF)+1,1,LIFETIME_SF),OFFSET('Shipments and Stock - SF'!X$14,0,(-1*LIFETIME_SF)+1,1,LIFETIME_SF))/ SUM(OFFSET('Shipments and Stock - SF'!X$14,0,(-1*LIFETIME_SF)+1,1,LIFETIME_SF))) -> 797.8821488 | X17: =IF(X$15-$D$15+2<=LIFETIME_SF,X12, SUMPRODUCT(OFFSET(X12,0,(-1*LIFETIME_SF)+1,1,LIFETIME_SF),OFFSET('Shipments and Stock - SF'!Y$14,0,(-1*LIFETIME_SF)+1,1,LIFETIME_SF))/ SUM(OFFSET('Shipments and Stock - SF'!Y$14,0,(-1*LIFETIME_SF)+1,1,LIFETIME_SF))) -> 795.3445751 | Y17: =IF(Y$15-$D$15+2<=LIFETIME_SF,Y12, SUMPRODUCT(OFFSET(Y12,0,(-1*LIFETIME_SF)+1,1,LIFETIME_SF),OFFSET('Shipments and Stock - SF'!Z$14,0,(-1*LIFETIME_SF)+1,1,LIFETIME_SF))/ SUM(OFFSET('Shipments and Stock - SF'!Z$14,0,(-1*LIFETIME_SF)+1,1,LIFETIME_SF))) -> 792.8735793 | Z17: =IF(Z$15-$D$15+2<=LIFETIME_SF,Z12, SUMPRODUCT(OFFSET(Z12,0,(-1*LIFETIME_SF)+1,1,LIFETIME_SF),OFFSET('Shipments and Stock - SF'!AA$14,0,(-1*LIFETIME_SF)+1,1,LIFETIME_SF))/ SUM(OFFSET('Shipments and Stock - SF'!AA$14,0,(-1*LIFETIME_SF)+1,1,LIFETIME_SF))) -> 790.5703079 | AA17: =IF(AA$15-$D$15+2<=LIFETIME_SF,AA12, SUMPRODUCT(OFFSET(AA12,0,(-1*LIFETIME_SF)+1,1,LIFETIME_SF),OFFSET('Shipments and Stock - SF'!AB$14,0,(-1*LIFETIME_SF)+1,1,LIFETIME_SF))/ SUM(OFFSET('Shipments and Stock - SF'!AB$14,0,(-1*LIFETIME_SF)+1,1,LIFETIME_SF))) -> 788.4408664 | AB17: =IF(AB$15-$D$15+2<=LIFETIME_SF,AB12, SUMPRODUCT(OFFSET(AB12,0,(-1*LIFETIME_SF)+1,1,LIFETIME_SF),OFFSET('Shipments and Stock - SF'!AC$14,0,(-1*LIFETIME_SF)+1,1,LIFETIME_SF))/ SUM(OFFSET('Shipments and Stock - SF'!AC$14,0,(-1*LIFETIME_SF)+1,1,LIFETIME_SF))) -> 786.4261557 | AC17: =IF(AC$15-$D$15+2<=LIFETIME_SF,AC12, SUMPRODUCT(OFFSET(AC12,0,(-1*LIFETIME_SF)+1,1,LIFETIME_SF),OFFSET('Shipments and Stock - SF'!AD$14,0,(-1*LIFETIME_SF)+1,1,LIFETIME_SF))/ SUM(OFFSET('Shipments and Stock - SF'!AD$14,0,(-1*LIFETIME_SF)+1,1,LIFETIME_SF))) -> 774.3876655 | AD17: =IF(AD$15-$D$15+2<=LIFETIME_SF,AD12, SUMPRODUCT(OFFSET(AD12,0,(-1*LIFETIME_SF)+1,1,LIFETIME_SF),OFFSET('Shipments and Stock - SF'!AE$14,0,(-1*LIFETIME_SF)+1,1,LIFETIME_SF))/ SUM(OFFSET('Shipments and Stock - SF'!AE$14,0,(-1*LIFETIME_SF)+1,1,LIFETIME_SF))) -> 763.7810685 | AE17: =IF(AE$15-$D$15+2<=LIFETIME_SF,AE12, SUMPRODUCT(OFFSET(AE12,0,(-1*LIFETIME_SF)+1,1,LIFETIME_SF),OFFSET('Shipments and Stock - SF'!AF$14,0,(-1*LIFETIME_SF)+1,1,LIFETIME_SF))/ SUM(OFFSET('Shipments and Stock - SF'!AF$14,0,(-1*LIFETIME_SF)+1,1,LIFETIME_SF))) -> 754.4286835 | AF17: =IF(AF$15-$D$15+2<=LIFETIME_SF,AF12, SUMPRODUCT(OFFSET(AF12,0,(-1*LIFETIME_SF)+1,1,LIFETIME_SF),OFFSET('Shipments and Stock - SF'!AG$14,0,(-1*LIFETIME_SF)+1,1,LIFETIME_SF))/ SUM(OFFSET('Shipments and Stock - SF'!AG$14,0,(-1*LIFETIME_SF)+1,1,LIFETIME_SF))) -> 745.7065106 | AG17: =IF(AG$15-$D$15+2<=LIFETIME_SF,AG12, SUMPRODUCT(OFFSET(AG12,0,(-1*LIFETIME_SF)+1,1,LIFETIME_SF),OFFSET('Shipments and Stock - SF'!AH$14,0,(-1*LIFETIME_SF)+1,1,LIFETIME_SF))/ SUM(OFFSET('Shipments and Stock - SF'!AH$14,0,(-1*LIFETIME_SF)+1,1,LIFETIME_SF))) -> 735.6636513 | AH17: =IF(AH$15-$D$15+2<=LIFETIME_SF,AH12, SUMPRODUCT(OFFSET(AH12,0,(-1*LIFETIME_SF)+1,1,LIFETIME_SF),OFFSET('Shipments and Stock - SF'!AI$14,0,(-1*LIFETIME_SF)+1,1,LIFETIME_SF))/ SUM(OFFSET('Shipments and Stock - SF'!AI$14,0,(-1*LIFETIME_SF)+1,1,LIFETIME_SF))) -> 725.434983 | AI17: =IF(AI$15-$D$15+2<=LIFETIME_SF,AI12, SUMPRODUCT(OFFSET(AI12,0,(-1*LIFETIME_SF)+1,1,LIFETIME_SF),OFFSET('Shipments and Stock - SF'!AJ$14,0,(-1*LIFETIME_SF)+1,1,LIFETIME_SF))/ SUM(OFFSET('Shipments and Stock - SF'!AJ$14,0,(-1*LIFETIME_SF)+1,1,LIFETIME_SF))) -> 714.7307398 | AJ17: =IF(AJ$15-$D$15+2<=LIFETIME_SF,AJ12, SUMPRODUCT(OFFSET(AJ12,0,(-1*LIFETIME_SF)+1,1,LIFETIME_SF),OFFSET('Shipments and Stock - SF'!AK$14,0,(-1*LIFETIME_SF)+1,1,LIFETIME_SF))/ SUM(OFFSET('Shipments and Stock - SF'!AK$14,0,(-1*LIFETIME_SF)+1,1,LIFETIME_SF))) -> 704.0786889 | AK17: =IF(AK$15-$D$15+2<=LIFETIME_SF,AK12, SUMPRODUCT(OFFSET(AK12,0,(-1*LIFETIME_SF)+1,1,LIFETIME_SF),OFFSET('Shipments and Stock - SF'!AL$14,0,(-1*LIFETIME_SF)+1,1,LIFETIME_SF))/ SUM(OFFSET('Shipments and Stock - SF'!AL$14,0,(-1*LIFETIME_SF)+1,1,LIFETIME_SF))) -> 693.8369407 | AL17: =IF(AL$15-$D$15+2<=LIFETIME_SF,AL12, SUMPRODUCT(OFFSET(AL12,0,(-1*LIFETIME_SF)+1,1,LIFETIME_SF),OFFSET('Shipments and Stock - SF'!AM$14,0,(-1*LIFETIME_SF)+1,1,LIFETIME_SF))/ SUM(OFFSET('Shipments and Stock - SF'!AM$14,0,(-1*LIFETIME_SF)+1,1,LIFETIME_SF))) -> 683.4979595 | AM17: =IF(AM$15-$D$15+2<=LIFETIME_SF,AM12, SUMPRODUCT(OFFSET(AM12,0,(-1*LIFETIME_SF)+1,1,LIFETIME_SF),OFFSET('Shipments and Stock - SF'!AN$14,0,(-1*LIFETIME_SF)+1,1,LIFETIME_SF))/ SUM(OFFSET('Shipments and Stock - SF'!AN$14,0,(-1*LIFETIME_SF)+1,1,LIFETIME_SF))) -> 673.353781 | AN17: =IF(AN$15-$D$15+2<=LIFETIME_SF,AN12, SUMPRODUCT(OFFSET(AN12,0,(-1*LIFETIME_SF)+1,1,LIFETIME_SF),OFFSET('Shipments and Stock - SF'!AO$14,0,(-1*LIFETIME_SF)+1,1,LIFETIME_SF))/ SUM(OFFSET('Shipments and Stock - SF'!AO$14,0,(-1*LIFETIME_SF)+1,1,LIFETIME_SF))) -> 663.0643194 | AO17: =IF(AO$15-$D$15+2<=LIFETIME_SF,AO12, SUMPRODUCT(OFFSET(AO12,0,(-1*LIFETIME_SF)+1,1,LIFETIME_SF),OFFSET('Shipments and Stock - SF'!AP$14,0,(-1*LIFETIME_SF)+1,1,LIFETIME_SF))/ SUM(OFFSET('Shipments and Stock - SF'!AP$14,0,(-1*LIFETIME_SF)+1,1,LIFETIME_SF))) -> 652.752832 | AP17: =IF(AP$15-$D$15+2<=LIFETIME_SF,AP12, SUMPRODUCT(OFFSET(AP12,0,(-1*LIFETIME_SF)+1,1,LIFETIME_SF),OFFSET('Shipments and Stock - SF'!AQ$14,0,(-1*LIFETIME_SF)+1,1,LIFETIME_SF))/ SUM(OFFSET('Shipments and Stock - SF'!AQ$14,0,(-1*LIFETIME_SF)+1,1,LIFETIME_SF))) -> 643.2648533 | AQ17: =IF(AQ$15-$D$15+2<=LIFETIME_SF,AQ12, SUMPRODUCT(OFFSET(AQ12,0,(-1*LIFETIME_SF)+1,1,LIFETIME_SF),OFFSET('Shipments and Stock - SF'!AR$14,0,(-1*LIFETIME_SF)+1,1,LIFETIME_SF))/ SUM(OFFSET('Shipments and Stock - SF'!AR$14,0,(-1*LIFETIME_SF)+1,1,LIFETIME_SF))) -> 633.872919 | AR17: =IF(AR$15-$D$15+2<=LIFETIME_SF,AR12, SUMPRODUCT(OFFSET(AR12,0,(-1*LIFETIME_SF)+1,1,LIFETIME_SF),OFFSET('Shipments and Stock - SF'!AS$14,0,(-1*LIFETIME_SF)+1,1,LIFETIME_SF))/ SUM(OFFSET('Shipments and Stock - SF'!AS$14,0,(-1*LIFETIME_SF)+1,1,LIFETIME_SF))) -> 623.8895516 | AS17: =IF(AS$15-$D$15+2<=LIFETIME_SF,AS12, SUMPRODUCT(OFFSET(AS12,0,(-1*LIFETIME_SF)+1,1,LIFETIME_SF),OFFSET('Shipments and Stock - SF'!AT$14,0,(-1*LIFETIME_SF)+1,1,LIFETIME_SF))/ SUM(OFFSET('Shipments and Stock - SF'!AT$14,0,(-1*LIFETIME_SF)+1,1,LIFETIME_SF))) -> 613.6126635 | AT17: =IF(AT$15-$D$15+2<=LIFETIME_SF,AT12, SUMPRODUCT(OFFSET(AT12,0,(-1*LIFETIME_SF)+1,1,LIFETIME_SF),OFFSET('Shipments and Stock - SF'!AU$14,0,(-1*LIFETIME_SF)+1,1,LIFETIME_SF))/ SUM(OFFSET('Shipments and Stock - SF'!AU$14,0,(-1*LIFETIME_SF)+1,1,LIFETIME_SF))) -> 603.1025619 | AU17: =IF(AU$15-$D$15+2<=LIFETIME_SF,AU12, SUMPRODUCT(OFFSET(AU12,0,(-1*LIFETIME_SF)+1,1,LIFETIME_SF),OFFSET('Shipments and Stock - SF'!AV$14,0,(-1*LIFETIME_SF)+1,1,LIFETIME_SF))/ SUM(OFFSET('Shipments and Stock - SF'!AV$14,0,(-1*LIFETIME_SF)+1,1,LIFETIME_SF))) -> 592.0814784 | AV17: =IF(AV$15-$D$15+2<=LIFETIME_SF,AV12, SUMPRODUCT(OFFSET(AV12,0,(-1*LIFETIME_SF)+1,1,LIFETIME_SF),OFFSET('Shipments and Stock - SF'!AW$14,0,(-1*LIFETIME_SF)+1,1,LIFETIME_SF))/ SUM(OFFSET('Shipments and Stock - SF'!AW$14,0,(-1*LIFETIME_SF)+1,1,LIFETIME_SF))) -> 588.2019121 | AW17: =IF(AW$15-$D$15+2<=LIFETIME_SF,AW12, SUMPRODUCT(OFFSET(AW12,0,(-1*LIFETIME_SF)+1,1,LIFETIME_SF),OFFSET('Shipments and Stock - SF'!AX$14,0,(-1*LIFETIME_SF)+1,1,LIFETIME_SF))/ SUM(OFFSET('Shipments and Stock - SF'!AX$14,0,(-1*LIFETIME_SF)+1,1,LIFETIME_SF))) -> 584.288733 | AX17: =IF(AX$15-$D$15+2<=LIFETIME_SF,AX12, SUMPRODUCT(OFFSET(AX12,0,(-1*LIFETIME_SF)+1,1,LIFETIME_SF),OFFSET('Shipments and Stock - SF'!AY$14,0,(-1*LIFETIME_SF)+1,1,LIFETIME_SF))/ SUM(OFFSET('Shipments and Stock - SF'!AY$14,0,(-1*LIFETIME_SF)+1,1,LIFETIME_SF))) -> 580.4218908 | AY17: =IF(AY$15-$D$15+2<=LIFETIME_SF,AY12, SUMPRODUCT(OFFSET(AY12,0,(-1*LIFETIME_SF)+1,1,LIFETIME_SF),OFFSET('Shipments and Stock - SF'!AZ$14,0,(-1*LIFETIME_SF)+1,1,LIFETIME_SF))/ SUM(OFFSET('Shipments and Stock - SF'!AZ$14,0,(-1*LIFETIME_SF)+1,1,LIFETIME_SF))) -> 576.5965909 | AZ17: =IF(AZ$15-$D$15+2<=LIFETIME_SF,AZ12, SUMPRODUCT(OFFSET(AZ12,0,(-1*LIFETIME_SF)+1,1,LIFETIME_SF),OFFSET('Shipments and Stock - SF'!BA$14,0,(-1*LIFETIME_SF)+1,1,LIFETIME_SF))/ SUM(OFFSET('Shipments and Stock - SF'!BA$14,0,(-1*LIFETIME_SF)+1,1,LIFETIME_SF))) -> 573.7072775 | BA17: =IF(BA$15-$D$15+2<=LIFETIME_SF,BA12, SUMPRODUCT(OFFSET(BA12,0,(-1*LIFETIME_SF)+1,1,LIFETIME_SF),OFFSET('Shipments and Stock - SF'!BB$14,0,(-1*LIFETIME_SF)+1,1,LIFETIME_SF))/ SUM(OFFSET('Shipments and Stock - SF'!BB$14,0,(-1*LIFETIME_SF)+1,1,LIFETIME_SF))) -> 570.5318513 | BB17: =IF(BB$15-$D$15+2<=LIFETIME_SF,BB12, SUMPRODUCT(OFFSET(BB12,0,(-1*LIFETIME_SF)+1,1,LIFETIME_SF),OFFSET('Shipments and Stock - SF'!BC$14,0,(-1*LIFETIME_SF)+1,1,LIFETIME_SF))/ SUM(OFFSET('Shipments and Stock - SF'!BC$14,0,(-1*LIFETIME_SF)+1,1,LIFETIME_SF))) -> 567.4506895 | BC17: =IF(BC$15-$D$15+2<=LIFETIME_SF,BC12, SUMPRODUCT(OFFSET(BC12,0,(-1*LIFETIME_SF)+1,1,LIFETIME_SF),OFFSET('Shipments and Stock - SF'!BD$14,0,(-1*LIFETIME_SF)+1,1,LIFETIME_SF))/ SUM(OFFSET('Shipments and Stock - SF'!BD$14,0,(-1*LIFETIME_SF)+1,1,LIFETIME_SF))) -> 564.2679569 | BD17: =IF(BD$15-$D$15+2<=LIFETIME_SF,BD12, SUMPRODUCT(OFFSET(BD12,0,(-1*LIFETIME_SF)+1,1,LIFETIME_SF),OFFSET('Shipments and Stock - SF'!BE$14,0,(-1*LIFETIME_SF)+1,1,LIFETIME_SF))/ SUM(OFFSET('Shipments and Stock - SF'!BE$14,0,(-1*LIFETIME_SF)+1,1,LIFETIME_SF))) -> 561.0811711 | BE17: =IF(BE$15-$D$15+2<=LIFETIME_SF,BE12, SUMPRODUCT(OFFSET(BE12,0,(-1*LIFETIME_SF)+1,1,LIFETIME_SF),OFFSET('Shipments and Stock - SF'!BF$14,0,(-1*LIFETIME_SF)+1,1,LIFETIME_SF))/ SUM(OFFSET('Shipments and Stock - SF'!BF$14,0,(-1*LIFETIME_SF)+1,1,LIFETIME_SF))) -> 557.9822676

Sheet UEC-MF
C2: Weighted Average Annual UEC - Multi Family
C4: NAVIGATION
C6: COMMENTS
C9: Market UEC (Shipment Weighted Average)
D10: 1981 | E10: =D10+1 -> 1982 | F10: =E10+1 -> 1983 | G10: 1984 | H10: 1985 | I10: 1986 | J10: 1987 | K10: 1988 | L10: 1989 | M10: 1990 | N10: 1991 | O10: 1992 | P10: 1993 | Q10: 1994 | R10: 1995 | S10: 1996 | T10: 1997 | U10: 1998 | V10: 1999 | W10: 2000 | X10: 2001 | Y10: 2002 | Z10: 2003 | AA10: 2004 | AB10: 2005 | AC10: 2006 | AD10: 2007 | AE10: 2008 | AF10: 2009 | AG10: 2010 | AH10: 2011 | AI10: 2012 | AJ10: 2013 | AK10: 2014 | AL10: 2015 | AM10: 2016 | AN10: 2017 | AO10: 2018 | AP10: 2019 | AQ10: 2020 | AR10: 2021 | AS10: 2022 | AT10: 2023 | AU10: 2024 | AV10: 2025 | AW10: 2026 | AX10: 2027 | AY10: 2028 | AZ10: 2029 | BA10: 2030 | BB10: 2031 | BC10: 2032 | BD10: 2033 | BE10: 2034
C11: PRE-Case UEC | D11: =FORECAST('Annual SEER'!D16,'UEC Development'!$L$24:$L$29,'UEC Development'!$C$24:$C$29) -> 800.7062157 | E11: =FORECAST('Annual SEER'!E16,'UEC Development'!$L$24:$L$29,'UEC Development'!$C$24:$C$29) -> 800.7062157 | F11: =FORECAST('Annual SEER'!F16,'UEC Development'!$L$24:$L$29,'UEC Development'!$C$24:$C$29) -> 800.7062157 | G11: =FORECAST('Annual SEER'!G16,'UEC Development'!$L$24:$L$29,'UEC Development'!$C$24:$C$29) -> 800.7062157 | H11: =FORECAST('Annual SEER'!H16,'UEC Development'!$L$24:$L$29,'UEC Development'!$C$24:$C$29) -> 800.7062157 | I11: =FORECAST('Annual SEER'!I16,'UEC Development'!$L$24:$L$29,'UEC Development'!$C$24:$C$29) -> 800.7062157 | J11: =FORECAST('Annual SEER'!J16,'UEC Development'!$L$24:$L$29,'UEC Development'!$C$24:$C$29) -> 800.7062157 | K11: =FORECAST('Annual SEER'!K16,'UEC Development'!$L$24:$L$29,'UEC Development'!$C$24:$C$29) -> 800.7062157 | L11: =FORECAST('Annual SEER'!L16,'UEC Development'!$L$24:$L$29,'UEC Development'!$C$24:$C$29) -> 800.7062157 | M11: =FORECAST('Annual SEER'!M16,'UEC Development'!$L$24:$L$29,'UEC Development'!$C$24:$C$29) -> 800.7062157 | N11: =FORECAST('Annual SEER'!N16,'UEC Development'!$L$24:$L$29,'UEC Development'!$C$24:$C$29) -> 800.7062157 | O11: =FORECAST('Annual SEER'!O16,'UEC Development'!$L$24:$L$29,'UEC Development'!$C$24:$C$29) -> 800.7062157 | P11: =FORECAST('Annual SEER'!P16,'UEC Development'!$L$24:$L$29,'UEC Development'!$C$24:$C$29) -> 800.7062157 | Q11: =FORECAST('Annual SEER'!Q16,'UEC Development'!$L$24:$L$29,'UEC Development'!$C$24:$C$29) -> 800.7062157 | R11: =FORECAST('Annual SEER'!R16,'UEC Development'!$L$24:$L$29,'UEC Development'!$C$24:$C$29) -> 800.7062157 | S11: =FORECAST('Annual SEER'!S16,'UEC Development'!$L$24:$L$29,'UEC Development'!$C$24:$C$29) -> 800.7062157 | T11: =FORECAST('Annual SEER'!T16,'UEC Development'!$L$24:$L$29,'UEC Development'!$C$24:$C$29) -> 800.7062157 | U11: =FORECAST('Annual SEER'!U16,'UEC Development'!$L$24:$L$29,'UEC Development'!$C$24:$C$29) -> 800.7062157 | V11: =FORECAST('Annual SEER'!V16,'UEC Development'!$L$24:$L$29,'UEC Development'!$C$24:$C$29) -> 800.7062157 | W11: =FORECAST('Annual SEER'!W16,'UEC Development'!$L$24:$L$29,'UEC Development'!$C$24:$C$29) -> 766.6095247 | X11: =FORECAST('Annual SEER'!X16,'UEC Development'!$L$24:$L$29,'UEC Development'!$C$24:$C$29) -> 766.6095247 | Y11: =FORECAST('Annual SEER'!Y16,'UEC Development'!$L$24:$L$29,'UEC Development'!$C$24:$C$29) -> 766.6095247 | Z11: =FORECAST('Annual SEER'!Z16,'UEC Development'!$L$24:$L$29,'UEC Development'!$C$24:$C$29) -> 766.6095247 | AA11: =FORECAST('Annual SEER'!AA16,'UEC Development'!$L$24:$L$29,'UEC Development'!$C$24:$C$29) -> 766.6095247 | AB11: =FORECAST('Annual SEER'!AB16,'UEC Development'!$L$24:$L$29,'UEC Development'!$C$24:$C$29) -> 766.6095247 | AC11: =FORECAST('Annual SEER'!AC16,'UEC Development'!$L$24:$L$29,'UEC Development'!$C$24:$C$29) -> 624.5399791 | AD11: =FORECAST('Annual SEER'!AD16,'UEC Development'!$L$24:$L$29,'UEC Development'!$C$24:$C$29) -> 624.5399791 | AE11: =FORECAST('Annual SEER'!AE16,'UEC Development'!$L$24:$L$29,'UEC Development'!$C$24:$C$29) -> 624.5399791 | AF11: =FORECAST('Annual SEER'!AF16,'UEC Development'!$L$24:$L$29,'UEC Development'!$C$24:$C$29) -> 624.5399791 | AG11: =FORECAST('Annual SEER'!AG16,'UEC Development'!$L$24:$L$29,'UEC Development'!$C$24:$C$29) -> 598.8672273 | AH11: =FORECAST('Annual SEER'!AH16,'UEC Development'!$L$24:$L$29,'UEC Development'!$C$24:$C$29) -> 598.8191026 | AI11: =FORECAST('Annual SEER'!AI16,'UEC Development'!$L$24:$L$29,'UEC Development'!$C$24:$C$29) -> 598.7841762 | AJ11: =FORECAST('Annual SEER'!AJ16,'UEC Development'!$L$24:$L$29,'UEC Development'!$C$24:$C$29) -> 598.7618607 | AK11: =FORECAST('Annual SEER'!AK16,'UEC Development'!$L$24:$L$29,'UEC Development'!$C$24:$C$29) -> 598.7434443 | AL11: =FORECAST('Annual SEER'!AL16,'UEC Development'!$L$24:$L$29,'UEC Development'!$C$24:$C$29) -> 598.7237351 | AM11: =FORECAST('Annual SEER'!AM16,'UEC Development'!$L$24:$L$29,'UEC Development'!$C$24:$C$29) -> 598.7056964 | AN11: =FORECAST('Annual SEER'!AN16,'UEC Development'!$L$24:$L$29,'UEC Development'!$C$24:$C$29) -> 593.8631886 | AO11: =FORECAST('Annual SEER'!AO16,'UEC Development'!$L$24:$L$29,'UEC Development'!$C$24:$C$29) -> 589.3661551 | AP11: =FORECAST('Annual SEER'!AP16,'UEC Development'!$L$24:$L$29,'UEC Development'!$C$24:$C$29) -> 584.8451029 | AQ11: =FORECAST('Annual SEER'!AQ16,'UEC Development'!$L$24:$L$29,'UEC Development'!$C$24:$C$29) -> 580.3010324 | AR11: =FORECAST('Annual SEER'!AR16,'UEC Development'!$L$24:$L$29,'UEC Development'!$C$24:$C$29) -> 575.7345987 | AS11: =FORECAST('Annual SEER'!AS16,'UEC Development'!$L$24:$L$29,'UEC Development'!$C$24:$C$29) -> 571.1427621 | AT11: =FORECAST('Annual SEER'!AT16,'UEC Development'!$L$24:$L$29,'UEC Development'!$C$24:$C$29) -> 566.5251289 | AU11: =FORECAST('Annual SEER'!AU16,'UEC Development'!$L$24:$L$29,'UEC Development'!$C$24:$C$29) -> 561.8817081 | AV11: =FORECAST('Annual SEER'!AV16,'UEC Development'!$L$24:$L$29,'UEC Development'!$C$24:$C$29) -> 557.212286 | AW11: =FORECAST('Annual SEER'!AW16,'UEC Development'!$L$24:$L$29,'UEC Development'!$C$24:$C$29) -> 552.5176493 | AX11: =FORECAST('Annual SEER'!AX16,'UEC Development'!$L$24:$L$29,'UEC Development'!$C$24:$C$29) -> 547.7975507 | AY11: =FORECAST('Annual SEER'!AY16,'UEC Development'!$L$24:$L$29,'UEC Development'!$C$24:$C$29) -> 546.1230363 | AZ11: =FORECAST('Annual SEER'!AZ16,'UEC Development'!$L$24:$L$29,'UEC Development'!$C$24:$C$29) -> 544.4699426 | BA11: =FORECAST('Annual SEER'!BA16,'UEC Development'!$L$24:$L$29,'UEC Development'!$C$24:$C$29) -> 542.8110326 | BB11: =FORECAST('Annual SEER'!BB16,'UEC Development'!$L$24:$L$29,'UEC Development'!$C$24:$C$29) -> 541.184275 | BC11: =FORECAST('Annual SEER'!BC16,'UEC Development'!$L$24:$L$29,'UEC Development'!$C$24:$C$29) -> 539.6005408 | BD11: =FORECAST('Annual SEER'!BD16,'UEC Development'!$L$24:$L$29,'UEC Development'!$C$24:$C$29) -> 537.9964534 | BE11: =FORECAST('Annual SEER'!BE16,'UEC Development'!$L$24:$L$29,'UEC Development'!$C$24:$C$29) -> 536.3688323
C12: POST-Case UEC | D12: =FORECAST('Annual SEER'!D17,'UEC Development'!$L$24:$L$29,'UEC Development'!$C$24:$C$29) -> 800.7062157 | E12: =FORECAST('Annual SEER'!E17,'UEC Development'!$L$24:$L$29,'UEC Development'!$C$24:$C$29) -> 800.7062157 | F12: =FORECAST('Annual SEER'!F17,'UEC Development'!$L$24:$L$29,'UEC Development'!$C$24:$C$29) -> 800.7062157 | G12: =FORECAST('Annual SEER'!G17,'UEC Development'!$L$24:$L$29,'UEC Development'!$C$24:$C$29) -> 800.7062157 | H12: =FORECAST('Annual SEER'!H17,'UEC Development'!$L$24:$L$29,'UEC Development'!$C$24:$C$29) -> 800.7062157 | I12: =FORECAST('Annual SEER'!I17,'UEC Development'!$L$24:$L$29,'UEC Development'!$C$24:$C$29) -> 800.7062157 | J12: =FORECAST('Annual SEER'!J17,'UEC Development'!$L$24:$L$29,'UEC Development'!$C$24:$C$29) -> 800.7062157 | K12: =FORECAST('Annual SEER'!K17,'UEC Development'!$L$24:$L$29,'UEC Development'!$C$24:$C$29) -> 800.7062157 | L12: =FORECAST('Annual SEER'!L17,'UEC Development'!$L$24:$L$29,'UEC Development'!$C$24:$C$29) -> 800.7062157 | M12: =FORECAST('Annual SEER'!M17,'UEC Development'!$L$24:$L$29,'UEC Development'!$C$24:$C$29) -> 800.7062157 | N12: =FORECAST('Annual SEER'!N17,'UEC Development'!$L$24:$L$29,'UEC Development'!$C$24:$C$29) -> 800.7062157 | O12: =FORECAST('Annual SEER'!O17,'UEC Development'!$L$24:$L$29,'UEC Development'!$C$24:$C$29) -> 800.7062157 | P12: =FORECAST('Annual SEER'!P17,'UEC Development'!$L$24:$L$29,'UEC Development'!$C$24:$C$29) -> 800.7062157 | Q12: =FORECAST('Annual SEER'!Q17,'UEC Development'!$L$24:$L$29,'UEC Development'!$C$24:$C$29) -> 800.7062157 | R12: =FORECAST('Annual SEER'!R17,'UEC Development'!$L$24:$L$29,'UEC Development'!$C$24:$C$29) -> 800.7062157 | S12: =FORECAST('Annual SEER'!S17,'UEC Development'!$L$24:$L$29,'UEC Development'!$C$24:$C$29) -> 800.7062157 | T12: =FORECAST('Annual SEER'!T17,'UEC Development'!$L$24:$L$29,'UEC Development'!$C$24:$C$29) -> 800.7062157 | U12: =FORECAST('Annual SEER'!U17,'UEC Development'!$L$24:$L$29,'UEC Development'!$C$24:$C$29) -> 800.7062157 | V12: =FORECAST('Annual SEER'!V17,'UEC Development'!$L$24:$L$29,'UEC Development'!$C$24:$C$29) -> 800.7062157 | W12: =FORECAST('Annual SEER'!W17,'UEC Development'!$L$24:$L$29,'UEC Development'!$C$24:$C$29) -> 766.6095247 | X12: =FORECAST('Annual SEER'!X17,'UEC Development'!$L$24:$L$29,'UEC Development'!$C$24:$C$29) -> 766.6095247 | Y12: =FORECAST('Annual SEER'!Y17,'UEC Development'!$L$24:$L$29,'UEC Development'!$C$24:$C$29) -> 766.6095247 | Z12: =FORECAST('Annual SEER'!Z17,'UEC Development'!$L$24:$L$29,'UEC Development'!$C$24:$C$29) -> 766.6095247 | AA12: =FORECAST('Annual SEER'!AA17,'UEC Development'!$L$24:$L$29,'UEC Development'!$C$24:$C$29) -> 766.6095247 | AB12: =FORECAST('Annual SEER'!AB17,'UEC Development'!$L$24:$L$29,'UEC Development'!$C$24:$C$29) -> 766.6095247 | AC12: =FORECAST('Annual SEER'!AC17,'UEC Development'!$L$24:$L$29,'UEC Development'!$C$24:$C$29) -> 624.5399791 | AD12: =FORECAST('Annual SEER'!AD17,'UEC Development'!$L$24:$L$29,'UEC Development'!$C$24:$C$29) -> 624.5399791 | AE12: =FORECAST('Annual SEER'!AE17,'UEC Development'!$L$24:$L$29,'UEC Development'!$C$24:$C$29) -> 624.5399791 | AF12: =FORECAST('Annual SEER'!AF17,'UEC Development'!$L$24:$L$29,'UEC Development'!$C$24:$C$29) -> 624.5399791 | AG12: =FORECAST('Annual SEER'!AG17,'UEC Development'!$L$24:$L$29,'UEC Development'!$C$24:$C$29) -> 598.8672273 | AH12: =FORECAST('Annual SEER'!AH17,'UEC Development'!$L$24:$L$29,'UEC Development'!$C$24:$C$29) -> 598.8191026 | AI12: =FORECAST('Annual SEER'!AI17,'UEC Development'!$L$24:$L$29,'UEC Development'!$C$24:$C$29) -> 598.7841762 | AJ12: =FORECAST('Annual SEER'!AJ17,'UEC Development'!$L$24:$L$29,'UEC Development'!$C$24:$C$29) -> 598.7618607 | AK12: =FORECAST('Annual SEER'!AK17,'UEC Development'!$L$24:$L$29,'UEC Development'!$C$24:$C$29) -> 598.7434443 | AL12: =FORECAST('Annual SEER'!AL17,'UEC Development'!$L$24:$L$29,'UEC Development'!$C$24:$C$29) -> 595.0970789 | AM12: =FORECAST('Annual SEER'!AM17,'UEC Development'!$L$24:$L$29,'UEC Development'!$C$24:$C$29) -> 595.09901 | AN12: =FORECAST('Annual SEER'!AN17,'UEC Development'!$L$24:$L$29,'UEC Development'!$C$24:$C$29) -> 590.3801754 | AO12: =FORECAST('Annual SEER'!AO17,'UEC Development'!$L$24:$L$29,'UEC Development'!$C$24:$C$29) -> 586.0056118 | AP12: =FORECAST('Annual SEER'!AP17,'UEC Development'!$L$24:$L$29,'UEC Development'!$C$24:$C$29) -> 581.6061255 | AQ12: =FORECAST('Annual SEER'!AQ17,'UEC Development'!$L$24:$L$29,'UEC Development'!$C$24:$C$29) -> 577.2379613 | AR12: =FORECAST('Annual SEER'!AR17,'UEC Development'!$L$24:$L$29,'UEC Development'!$C$24:$C$29) -> 572.8713255 | AS12: =FORECAST('Annual SEER'!AS17,'UEC Development'!$L$24:$L$29,'UEC Development'!$C$24:$C$29) -> 568.4802036 | AT12: =FORECAST('Annual SEER'!AT17,'UEC Development'!$L$24:$L$29,'UEC Development'!$C$24:$C$29) -> 564.0637473 | AU12: =FORECAST('Annual SEER'!AU17,'UEC Development'!$L$24:$L$29,'UEC Development'!$C$24:$C$29) -> 559.5311564 | AV12: =FORECAST('Annual SEER'!AV17,'UEC Development'!$L$24:$L$29,'UEC Development'!$C$24:$C$29) -> 554.8641457 | AW12: =FORECAST('Annual SEER'!AW17,'UEC Development'!$L$24:$L$29,'UEC Development'!$C$24:$C$29) -> 550.1708178 | AX12: =FORECAST('Annual SEER'!AX17,'UEC Development'!$L$24:$L$29,'UEC Development'!$C$24:$C$29) -> 545.4509455 | AY12: =FORECAST('Annual SEER'!AY17,'UEC Development'!$L$24:$L$29,'UEC Development'!$C$24:$C$29) -> 543.7690529 | AZ12: =FORECAST('Annual SEER'!AZ17,'UEC Development'!$L$24:$L$29,'UEC Development'!$C$24:$C$29) -> 542.1417334 | BA12: =FORECAST('Annual SEER'!BA17,'UEC Development'!$L$24:$L$29,'UEC Development'!$C$24:$C$29) -> 540.5333229 | BB12: =FORECAST('Annual SEER'!BB17,'UEC Development'!$L$24:$L$29,'UEC Development'!$C$24:$C$29) -> 538.9561607 | BC12: =FORECAST('Annual SEER'!BC17,'UEC Development'!$L$24:$L$29,'UEC Development'!$C$24:$C$29) -> 537.4210583 | BD12: =FORECAST('Annual SEER'!BD17,'UEC Development'!$L$24:$L$29,'UEC Development'!$C$24:$C$29) -> 535.8654827 | BE12: =FORECAST('Annual SEER'!BE17,'UEC Development'!$L$24:$L$29,'UEC Development'!$C$24:$C$29) -> 534.2358929
C14: Installed UEC (Vintage Weighted Average)
D15: 1981 | E15: =D15+1 -> 1982 | F15: =E15+1 -> 1983 | G15: 1984 | H15: 1985 | I15: 1986 | J15: 1987 | K15: 1988 | L15: 1989 | M15: 1990 | N15: 1991 | O15: 1992 | P15: 1993 | Q15: 1994 | R15: 1995 | S15: 1996 | T15: 1997 | U15: 1998 | V15: 1999 | W15: 2000 | X15: 2001 | Y15: 2002 | Z15: 2003 | AA15: 2004 | AB15: 2005 | AC15: 2006 | AD15: 2007 | AE15: 2008 | AF15: 2009 | AG15: 2010 | AH15: 2011 | AI15: 2012 | AJ15: 2013 | AK15: 2014 | AL15: 2015 | AM15: 2016 | AN15: 2017 | AO15: 2018 | AP15: 2019 | AQ15: 2020 | AR15: 2021 | AS15: 2022 | AT15: 2023 | AU15: 2024 | AV15: 2025 | AW15: 2026 | AX15: 2027 | AY15: 2028 | AZ15: 2029 | BA15: 2030 | BB15: 2031 | BC15: 2032 | BD15: 2033 | BE15: 2034
C16: PRE-Case UEC | D16: =IF(D$15-$D$15+2<=LIFETIME_MF,D11, SUMPRODUCT(OFFSET(D11,0,(-1*LIFETIME_MF)+1,1,LIFETIME_MF),OFFSET('Shipments and Stock - MF'!E$14,0,(-1*LIFETIME_MF)+1,1,LIFETIME_MF))/ SUM(OFFSET('Shipments and Stock - MF'!E$14,0,(-1*LIFETIME_MF)+1,1,LIFETIME_MF))) -> 800.7062157 | E16: =IF(E$15-$D$15+2<=LIFETIME_MF,E11, SUMPRODUCT(OFFSET(E11,0,(-1*LIFETIME_MF)+1,1,LIFETIME_MF),OFFSET('Shipments and Stock - MF'!F$14,0,(-1*LIFETIME_MF)+1,1,LIFETIME_MF))/ SUM(OFFSET('Shipments and Stock - MF'!F$14,0,(-1*LIFETIME_MF)+1,1,LIFETIME_MF))) -> 800.7062157 | F16: =IF(F$15-$D$15+2<=LIFETIME_MF,F11, SUMPRODUCT(OFFSET(F11,0,(-1*LIFETIME_MF)+1,1,LIFETIME_MF),OFFSET('Shipments and Stock - MF'!G$14,0,(-1*LIFETIME_MF)+1,1,LIFETIME_MF))/ SUM(OFFSET('Shipments and Stock - MF'!G$14,0,(-1*LIFETIME_MF)+1,1,LIFETIME_MF))) -> 800.7062157 | G16: =IF(G$15-$D$15+2<=LIFETIME_MF,G11, SUMPRODUCT(OFFSET(G11,0,(-1*LIFETIME_MF)+1,1,LIFETIME_MF),OFFSET('Shipments and Stock - MF'!H$14,0,(-1*LIFETIME_MF)+1,1,LIFETIME_MF))/ SUM(OFFSET('Shipments and Stock - MF'!H$14,0,(-1*LIFETIME_MF)+1,1,LIFETIME_MF))) -> 800.7062157 | H16: =IF(H$15-$D$15+2<=LIFETIME_MF,H11, SUMPRODUCT(OFFSET(H11,0,(-1*LIFETIME_MF)+1,1,LIFETIME_MF),OFFSET('Shipments and Stock - MF'!I$14,0,(-1*LIFETIME_MF)+1,1,LIFETIME_MF))/ SUM(OFFSET('Shipments and Stock - MF'!I$14,0,(-1*LIFETIME_MF)+1,1,LIFETIME_MF))) -> 800.7062157 | I16: =IF(I$15-$D$15+2<=LIFETIME_MF,I11, SUMPRODUCT(OFFSET(I11,0,(-1*LIFETIME_MF)+1,1,LIFETIME_MF),OFFSET('Shipments and Stock - MF'!J$14,0,(-1*LIFETIME_MF)+1,1,LIFETIME_MF))/ SUM(OFFSET('Shipments and Stock - MF'!J$14,0,(-1*LIFETIME_MF)+1,1,LIFETIME_MF))) -> 800.7062157 | J16: =IF(J$15-$D$15+2<=LIFETIME_MF,J11, SUMPRODUCT(OFFSET(J11,0,(-1*LIFETIME_MF)+1,1,LIFETIME_MF),OFFSET('Shipments and Stock - MF'!K$14,0,(-1*LIFETIME_MF)+1,1,LIFETIME_MF))/ SUM(OFFSET('Shipments and Stock - MF'!K$14,0,(-1*LIFETIME_MF)+1,1,LIFETIME_MF))) -> 800.7062157 | K16: =IF(K$15-$D$15+2<=LIFETIME_MF,K11, SUMPRODUCT(OFFSET(K11,0,(-1*LIFETIME_MF)+1,1,LIFETIME_MF),OFFSET('Shipments and Stock - MF'!L$14,0,(-1*LIFETIME_MF)+1,1,LIFETIME_MF))/ SUM(OFFSET('Shipments and Stock - MF'!L$14,0,(-1*LIFETIME_MF)+1,1,LIFETIME_MF))) -> 800.7062157 | L16: =IF(L$15-$D$15+2<=LIFETIME_MF,L11, SUMPRODUCT(OFFSET(L11,0,(-1*LIFETIME_MF)+1,1,LIFETIME_MF),OFFSET('Shipments and Stock - MF'!M$14,0,(-1*LIFETIME_MF)+1,1,LIFETIME_MF))/ SUM(OFFSET('Shipments and Stock - MF'!M$14,0,(-1*LIFETIME_MF)+1,1,LIFETIME_MF))) -> 800.7062157 | M16: =IF(M$15-$D$15+2<=LIFETIME_MF,M11, SUMPRODUCT(OFFSET(M11,0,(-1*LIFETIME_MF)+1,1,LIFETIME_MF),OFFSET('Shipments and Stock - MF'!N$14,0,(-1*LIFETIME_MF)+1,1,LIFETIME_MF))/ SUM(OFFSET('Shipments and Stock - MF'!N$14,0,(-1*LIFETIME_MF)+1,1,LIFETIME_MF))) -> 800.7062157 | N16: =IF(N$15-$D$15+2<=LIFETIME_MF,N11, SUMPRODUCT(OFFSET(N11,0,(-1*LIFETIME_MF)+1,1,LIFETIME_MF),OFFSET('Shipments and Stock - MF'!O$14,0,(-1*LIFETIME_MF)+1,1,LIFETIME_MF))/ SUM(OFFSET('Shipments and Stock - MF'!O$14,0,(-1*LIFETIME_MF)+1,1,LIFETIME_MF))) -> 800.7062157 | O16: =IF(O$15-$D$15+2<=LIFETIME_MF,O11, SUMPRODUCT(OFFSET(O11,0,(-1*LIFETIME_MF)+1,1,LIFETIME_MF),OFFSET('Shipments and Stock - MF'!P$14,0,(-1*LIFETIME_MF)+1,1,LIFETIME_MF))/ SUM(OFFSET('Shipments and Stock - MF'!P$14,0,(-1*LIFETIME_MF)+1,1,LIFETIME_MF))) -> 800.7062157 | P16: =IF(P$15-$D$15+2<=LIFETIME_MF,P11, SUMPRODUCT(OFFSET(P11,0,(-1*LIFETIME_MF)+1,1,LIFETIME_MF),OFFSET('Shipments and Stock - MF'!Q$14,0,(-1*LIFETIME_MF)+1,1,LIFETIME_MF))/ SUM(OFFSET('Shipments and Stock - MF'!Q$14,0,(-1*LIFETIME_MF)+1,1,LIFETIME_MF))) -> 800.7062157 | Q16: =IF(Q$15-$D$15+2<=LIFETIME_MF,Q11, SUMPRODUCT(OFFSET(Q11,0,(-1*LIFETIME_MF)+1,1,LIFETIME_MF),OFFSET('Shipments and Stock - MF'!R$14,0,(-1*LIFETIME_MF)+1,1,LIFETIME_MF))/ SUM(OFFSET('Shipments and Stock - MF'!R$14,0,(-1*LIFETIME_MF)+1,1,LIFETIME_MF))) -> 800.7062157 | R16: =IF(R$15-$D$15+2<=LIFETIME_MF,R11, SUMPRODUCT(OFFSET(R11,0,(-1*LIFETIME_MF)+1,1,LIFETIME_MF),OFFSET('Shipments and Stock - MF'!S$14,0,(-1*LIFETIME_MF)+1,1,LIFETIME_MF))/ SUM(OFFSET('Shipments and Stock - MF'!S$14,0,(-1*LIFETIME_MF)+1,1,LIFETIME_MF))) -> 800.7062157 | S16: =IF(S$15-$D$15+2<=LIFETIME_MF,S11, SUMPRODUCT(OFFSET(S11,0,(-1*LIFETIME_MF)+1,1,LIFETIME_MF),OFFSET('Shipments and Stock - MF'!T$14,0,(-1*LIFETIME_MF)+1,1,LIFETIME_MF))/ SUM(OFFSET('Shipments and Stock - MF'!T$14,0,(-1*LIFETIME_MF)+1,1,LIFETIME_MF))) -> 800.7062157 | T16: =IF(T$15-$D$15+2<=LIFETIME_MF,T11, SUMPRODUCT(OFFSET(T11,0,(-1*LIFETIME_MF)+1,1,LIFETIME_MF),OFFSET('Shipments and Stock - MF'!U$14,0,(-1*LIFETIME_MF)+1,1,LIFETIME_MF))/ SUM(OFFSET('Shipments and Stock - MF'!U$14,0,(-1*LIFETIME_MF)+1,1,LIFETIME_MF))) -> 800.7062157 | U16: =IF(U$15-$D$15+2<=LIFETIME_MF,U11, SUMPRODUCT(OFFSET(U11,0,(-1*LIFETIME_MF)+1,1,LIFETIME_MF),OFFSET('Shipments and Stock - MF'!V$14,0,(-1*LIFETIME_MF)+1,1,LIFETIME_MF))/ SUM(OFFSET('Shipments and Stock - MF'!V$14,0,(-1*LIFETIME_MF)+1,1,LIFETIME_MF))) -> 800.7062157 | V16: =IF(V$15-$D$15+2<=LIFETIME_MF,V11, SUMPRODUCT(OFFSET(V11,0,(-1*LIFETIME_MF)+1,1,LIFETIME_MF),OFFSET('Shipments and Stock - MF'!W$14,0,(-1*LIFETIME_MF)+1,1,LIFETIME_MF))/ SUM(OFFSET('Shipments and Stock - MF'!W$14,0,(-1*LIFETIME_MF)+1,1,LIFETIME_MF))) -> 800.7062157 | W16: =IF(W$15-$D$15+2<=LIFETIME_MF,W11, SUMPRODUCT(OFFSET(W11,0,(-1*LIFETIME_MF)+1,1,LIFETIME_MF),OFFSET('Shipments and Stock - MF'!X$14,0,(-1*LIFETIME_MF)+1,1,LIFETIME_MF))/ SUM(OFFSET('Shipments and Stock - MF'!X$14,0,(-1*LIFETIME_MF)+1,1,LIFETIME_MF))) -> 797.9366238 | X16: =IF(X$15-$D$15+2<=LIFETIME_MF,X11, SUMPRODUCT(OFFSET(X11,0,(-1*LIFETIME_MF)+1,1,LIFETIME_MF),OFFSET('Shipments and Stock - MF'!Y$14,0,(-1*LIFETIME_MF)+1,1,LIFETIME_MF))/ SUM(OFFSET('Shipments and Stock - MF'!Y$14,0,(-1*LIFETIME_MF)+1,1,LIFETIME_MF))) -> 795.4731 | Y16: =IF(Y$15-$D$15+2<=LIFETIME_MF,Y11, SUMPRODUCT(OFFSET(Y11,0,(-1*LIFETIME_MF)+1,1,LIFETIME_MF),OFFSET('Shipments and Stock - MF'!Z$14,0,(-1*LIFETIME_MF)+1,1,LIFETIME_MF))/ SUM(OFFSET('Shipments and Stock - MF'!Z$14,0,(-1*LIFETIME_MF)+1,1,LIFETIME_MF))) -> 793.2077317 | Z16: =IF(Z$15-$D$15+2<=LIFETIME_MF,Z11, SUMPRODUCT(OFFSET(Z11,0,(-1*LIFETIME_MF)+1,1,LIFETIME_MF),OFFSET('Shipments and Stock - MF'!AA$14,0,(-1*LIFETIME_MF)+1,1,LIFETIME_MF))/ SUM(OFFSET('Shipments and Stock - MF'!AA$14,0,(-1*LIFETIME_MF)+1,1,LIFETIME_MF))) -> 790.9861094 | AA16: =IF(AA$15-$D$15+2<=LIFETIME_MF,AA11, SUMPRODUCT(OFFSET(AA11,0,(-1*LIFETIME_MF)+1,1,LIFETIME_MF),OFFSET('Shipments and Stock - MF'!AB$14,0,(-1*LIFETIME_MF)+1,1,LIFETIME_MF))/ SUM(OFFSET('Shipments and Stock - MF'!AB$14,0,(-1*LIFETIME_MF)+1,1,LIFETIME_MF))) -> 788.709258 | AB16: =IF(AB$15-$D$15+2<=LIFETIME_MF,AB11, SUMPRODUCT(OFFSET(AB11,0,(-1*LIFETIME_MF)+1,1,LIFETIME_MF),OFFSET('Shipments and Stock - MF'!AC$14,0,(-1*LIFETIME_MF)+1,1,LIFETIME_MF))/ SUM(OFFSET('Shipments and Stock - MF'!AC$14,0,(-1*LIFETIME_MF)+1,1,LIFETIME_MF))) -> 786.6726599 | AC16: =IF(AC$15-$D$15+2<=LIFETIME_MF,AC11, SUMPRODUCT(OFFSET(AC11,0,(-1*LIFETIME_MF)+1,1,LIFETIME_MF),OFFSET('Shipments and Stock - MF'!AD$14,0,(-1*LIFETIME_MF)+1,1,LIFETIME_MF))/ SUM(OFFSET('Shipments and Stock - MF'!AD$14,0,(-1*LIFETIME_MF)+1,1,LIFETIME_MF))) -> 773.8789062 | AD16: =IF(AD$15-$D$15+2<=LIFETIME_MF,AD11, SUMPRODUCT(OFFSET(AD11,0,(-1*LIFETIME_MF)+1,1,LIFETIME_MF),OFFSET('Shipments and Stock - MF'!AE$14,0,(-1*LIFETIME_MF)+1,1,LIFETIME_MF))/ SUM(OFFSET('Shipments and Stock - MF'!AE$14,0,(-1*LIFETIME_MF)+1,1,LIFETIME_MF))) -> 761.5464447 | AE16: =IF(AE$15-$D$15+2<=LIFETIME_MF,AE11, SUMPRODUCT(OFFSET(AE11,0,(-1*LIFETIME_MF)+1,1,LIFETIME_MF),OFFSET('Shipments and Stock - MF'!AF$14,0,(-1*LIFETIME_MF)+1,1,LIFETIME_MF))/ SUM(OFFSET('Shipments and Stock - MF'!AF$14,0,(-1*LIFETIME_MF)+1,1,LIFETIME_MF))) -> 750.1714364 | AF16: =IF(AF$15-$D$15+2<=LIFETIME_MF,AF11, SUMPRODUCT(OFFSET(AF11,0,(-1*LIFETIME_MF)+1,1,LIFETIME_MF),OFFSET('Shipments and Stock - MF'!AG$14,0,(-1*LIFETIME_MF)+1,1,LIFETIME_MF))/ SUM(OFFSET('Shipments and Stock - MF'!AG$14,0,(-1*LIFETIME_MF)+1,1,LIFETIME_MF))) -> 740.9250376 | AG16: =IF(AG$15-$D$15+2<=LIFETIME_MF,AG11, SUMPRODUCT(OFFSET(AG11,0,(-1*LIFETIME_MF)+1,1,LIFETIME_MF),OFFSET('Shipments and Stock - MF'!AH$14,0,(-1*LIFETIME_MF)+1,1,LIFETIME_MF))/ SUM(OFFSET('Shipments and Stock - MF'!AH$14,0,(-1*LIFETIME_MF)+1,1,LIFETIME_MF))) -> 731.8051681 | AH16: =IF(AH$15-$D$15+2<=LIFETIME_MF,AH11, SUMPRODUCT(OFFSET(AH11,0,(-1*LIFETIME_MF)+1,1,LIFETIME_MF),OFFSET('Shipments and Stock - MF'!AI$14,0,(-1*LIFETIME_MF)+1,1,LIFETIME_MF))/ SUM(OFFSET('Shipments and Stock - MF'!AI$14,0,(-1*LIFETIME_MF)+1,1,LIFETIME_MF))) -> 722.6585541 | AI16: =IF(AI$15-$D$15+2<=LIFETIME_MF,AI11, SUMPRODUCT(OFFSET(AI11,0,(-1*LIFETIME_MF)+1,1,LIFETIME_MF),OFFSET('Shipments and Stock - MF'!AJ$14,0,(-1*LIFETIME_MF)+1,1,LIFETIME_MF))/ SUM(OFFSET('Shipments and Stock - MF'!AJ$14,0,(-1*LIFETIME_MF)+1,1,LIFETIME_MF))) -> 713.0829895 | AJ16: =IF(AJ$15-$D$15+2<=LIFETIME_MF,AJ11, SUMPRODUCT(OFFSET(AJ11,0,(-1*LIFETIME_MF)+1,1,LIFETIME_MF),OFFSET('Shipments and Stock - MF'!AK$14,0,(-1*LIFETIME_MF)+1,1,LIFETIME_MF))/ SUM(OFFSET('Shipments and Stock - MF'!AK$14,0,(-1*LIFETIME_MF)+1,1,LIFETIME_MF))) -> 703.1996794 | AK16: =IF(AK$15-$D$15+2<=LIFETIME_MF,AK11, SUMPRODUCT(OFFSET(AK11,0,(-1*LIFETIME_MF)+1,1,LIFETIME_MF),OFFSET('Shipments and Stock - MF'!AL$14,0,(-1*LIFETIME_MF)+1,1,LIFETIME_MF))/ SUM(OFFSET('Shipments and Stock - MF'!AL$14,0,(-1*LIFETIME_MF)+1,1,LIFETIME_MF))) -> 693.1625808 | AL16: =IF(AL$15-$D$15+2<=LIFETIME_MF,AL11, SUMPRODUCT(OFFSET(AL11,0,(-1*LIFETIME_MF)+1,1,LIFETIME_MF),OFFSET('Shipments and Stock - MF'!AM$14,0,(-1*LIFETIME_MF)+1,1,LIFETIME_MF))/ SUM(OFFSET('Shipments and Stock - MF'!AM$14,0,(-1*LIFETIME_MF)+1,1,LIFETIME_MF))) -> 683.1395677 | AM16: =IF(AM$15-$D$15+2<=LIFETIME_MF,AM11, SUMPRODUCT(OFFSET(AM11,0,(-1*LIFETIME_MF)+1,1,LIFETIME_MF),OFFSET('Shipments and Stock - MF'!AN$14,0,(-1*LIFETIME_MF)+1,1,LIFETIME_MF))/ SUM(OFFSET('Shipments and Stock - MF'!AN$14,0,(-1*LIFETIME_MF)+1,1,LIFETIME_MF))) -> 673.1637644 | AN16: =IF(AN$15-$D$15+2<=LIFETIME_MF,AN11, SUMPRODUCT(OFFSET(AN11,0,(-1*LIFETIME_MF)+1,1,LIFETIME_MF),OFFSET('Shipments and Stock - MF'!AO$14,0,(-1*LIFETIME_MF)+1,1,LIFETIME_MF))/ SUM(OFFSET('Shipments and Stock - MF'!AO$14,0,(-1*LIFETIME_MF)+1,1,LIFETIME_MF))) -> 662.6970216 | AO16: =IF(AO$15-$D$15+2<=LIFETIME_MF,AO11, SUMPRODUCT(OFFSET(AO11,0,(-1*LIFETIME_MF)+1,1,LIFETIME_MF),OFFSET('Shipments and Stock - MF'!AP$14,0,(-1*LIFETIME_MF)+1,1,LIFETIME_MF))/ SUM(OFFSET('Shipments and Stock - MF'!AP$14,0,(-1*LIFETIME_MF)+1,1,LIFETIME_MF))) -> 652.5631777 | AP16: =IF(AP$15-$D$15+2<=LIFETIME_MF,AP11, SUMPRODUCT(OFFSET(AP11,0,(-1*LIFETIME_MF)+1,1,LIFETIME_MF),OFFSET('Shipments and Stock - MF'!AQ$14,0,(-1*LIFETIME_MF)+1,1,LIFETIME_MF))/ SUM(OFFSET('Shipments and Stock - MF'!AQ$14,0,(-1*LIFETIME_MF)+1,1,LIFETIME_MF))) -> 643.2047193 | AQ16: =IF(AQ$15-$D$15+2<=LIFETIME_MF,AQ11, SUMPRODUCT(OFFSET(AQ11,0,(-1*LIFETIME_MF)+1,1,LIFETIME_MF),OFFSET('Shipments and Stock - MF'!AR$14,0,(-1*LIFETIME_MF)+1,1,LIFETIME_MF))/ SUM(OFFSET('Shipments and Stock - MF'!AR$14,0,(-1*LIFETIME_MF)+1,1,LIFETIME_MF))) -> 634.0069689 | AR16: =IF(AR$15-$D$15+2<=LIFETIME_MF,AR11, SUMPRODUCT(OFFSET(AR11,0,(-1*LIFETIME_MF)+1,1,LIFETIME_MF),OFFSET('Shipments and Stock - MF'!AS$14,0,(-1*LIFETIME_MF)+1,1,LIFETIME_MF))/ SUM(OFFSET('Shipments and Stock - MF'!AS$14,0,(-1*LIFETIME_MF)+1,1,LIFETIME_MF))) -> 624.8014612 | AS16: =IF(AS$15-$D$15+2<=LIFETIME_MF,AS11, SUMPRODUCT(OFFSET(AS11,0,(-1*LIFETIME_MF)+1,1,LIFETIME_MF),OFFSET('Shipments and Stock - MF'!AT$14,0,(-1*LIFETIME_MF)+1,1,LIFETIME_MF))/ SUM(OFFSET('Shipments and Stock - MF'!AT$14,0,(-1*LIFETIME_MF)+1,1,LIFETIME_MF))) -> 615.0661609 | AT16: =IF(AT$15-$D$15+2<=LIFETIME_MF,AT11, SUMPRODUCT(OFFSET(AT11,0,(-1*LIFETIME_MF)+1,1,LIFETIME_MF),OFFSET('Shipments and Stock - MF'!AU$14,0,(-1*LIFETIME_MF)+1,1,LIFETIME_MF))/ SUM(OFFSET('Shipments and Stock - MF'!AU$14,0,(-1*LIFETIME_MF)+1,1,LIFETIME_MF))) -> 604.3679442 | AU16: =IF(AU$15-$D$15+2<=LIFETIME_MF,AU11, SUMPRODUCT(OFFSET(AU11,0,(-1*LIFETIME_MF)+1,1,LIFETIME_MF),OFFSET('Shipments and Stock - MF'!AV$14,0,(-1*LIFETIME_MF)+1,1,LIFETIME_MF))/ SUM(OFFSET('Shipments and Stock - MF'!AV$14,0,(-1*LIFETIME_MF)+1,1,LIFETIME_MF))) -> 593.858035 | AV16: =IF(AV$15-$D$15+2<=LIFETIME_MF,AV11, SUMPRODUCT(OFFSET(AV11,0,(-1*LIFETIME_MF)+1,1,LIFETIME_MF),OFFSET('Shipments and Stock - MF'!AW$14,0,(-1*LIFETIME_MF)+1,1,LIFETIME_MF))/ SUM(OFFSET('Shipments and Stock - MF'!AW$14,0,(-1*LIFETIME_MF)+1,1,LIFETIME_MF))) -> 589.8945542 | AW16: =IF(AW$15-$D$15+2<=LIFETIME_MF,AW11, SUMPRODUCT(OFFSET(AW11,0,(-1*LIFETIME_MF)+1,1,LIFETIME_MF),OFFSET('Shipments and Stock - MF'!AX$14,0,(-1*LIFETIME_MF)+1,1,LIFETIME_MF))/ SUM(OFFSET('Shipments and Stock - MF'!AX$14,0,(-1*LIFETIME_MF)+1,1,LIFETIME_MF))) -> 585.5785557 | AX16: =IF(AX$15-$D$15+2<=LIFETIME_MF,AX11, SUMPRODUCT(OFFSET(AX11,0,(-1*LIFETIME_MF)+1,1,LIFETIME_MF),OFFSET('Shipments and Stock - MF'!AY$14,0,(-1*LIFETIME_MF)+1,1,LIFETIME_MF))/ SUM(OFFSET('Shipments and Stock - MF'!AY$14,0,(-1*LIFETIME_MF)+1,1,LIFETIME_MF))) -> 581.1205656 | AY16: =IF(AY$15-$D$15+2<=LIFETIME_MF,AY11, SUMPRODUCT(OFFSET(AY11,0,(-1*LIFETIME_MF)+1,1,LIFETIME_MF),OFFSET('Shipments and Stock - MF'!AZ$14,0,(-1*LIFETIME_MF)+1,1,LIFETIME_MF))/ SUM(OFFSET('Shipments and Stock - MF'!AZ$14,0,(-1*LIFETIME_MF)+1,1,LIFETIME_MF))) -> 577.2251093 | AZ16: =IF(AZ$15-$D$15+2<=LIFETIME_MF,AZ11, SUMPRODUCT(OFFSET(AZ11,0,(-1*LIFETIME_MF)+1,1,LIFETIME_MF),OFFSET('Shipments and Stock - MF'!BA$14,0,(-1*LIFETIME_MF)+1,1,LIFETIME_MF))/ SUM(OFFSET('Shipments and Stock - MF'!BA$14,0,(-1*LIFETIME_MF)+1,1,LIFETIME_MF))) -> 574.5998791 | BA16: =IF(BA$15-$D$15+2<=LIFETIME_MF,BA11, SUMPRODUCT(OFFSET(BA11,0,(-1*LIFETIME_MF)+1,1,LIFETIME_MF),OFFSET('Shipments and Stock - MF'!BB$14,0,(-1*LIFETIME_MF)+1,1,LIFETIME_MF))/ SUM(OFFSET('Shipments and Stock - MF'!BB$14,0,(-1*LIFETIME_MF)+1,1,LIFETIME_MF))) -> 571.7767951 | BB16: =IF(BB$15-$D$15+2<=LIFETIME_MF,BB11, SUMPRODUCT(OFFSET(BB11,0,(-1*LIFETIME_MF)+1,1,LIFETIME_MF),OFFSET('Shipments and Stock - MF'!BC$14,0,(-1*LIFETIME_MF)+1,1,LIFETIME_MF))/ SUM(OFFSET('Shipments and Stock - MF'!BC$14,0,(-1*LIFETIME_MF)+1,1,LIFETIME_MF))) -> 569.1078322 | BC16: =IF(BC$15-$D$15+2<=LIFETIME_MF,BC11, SUMPRODUCT(OFFSET(BC11,0,(-1*LIFETIME_MF)+1,1,LIFETIME_MF),OFFSET('Shipments and Stock - MF'!BD$14,0,(-1*LIFETIME_MF)+1,1,LIFETIME_MF))/ SUM(OFFSET('Shipments and Stock - MF'!BD$14,0,(-1*LIFETIME_MF)+1,1,LIFETIME_MF))) -> 566.2910418 | BD16: =IF(BD$15-$D$15+2<=LIFETIME_MF,BD11, SUMPRODUCT(OFFSET(BD11,0,(-1*LIFETIME_MF)+1,1,LIFETIME_MF),OFFSET('Shipments and Stock - MF'!BE$14,0,(-1*LIFETIME_MF)+1,1,LIFETIME_MF))/ SUM(OFFSET('Shipments and Stock - MF'!BE$14,0,(-1*LIFETIME_MF)+1,1,LIFETIME_MF))) -> 563.3435774 | BE16: =IF(BE$15-$D$15+2<=LIFETIME_MF,BE11, SUMPRODUCT(OFFSET(BE11,0,(-1*LIFETIME_MF)+1,1,LIFETIME_MF),OFFSET('Shipments and Stock - MF'!BF$14,0,(-1*LIFETIME_MF)+1,1,LIFETIME_MF))/ SUM(OFFSET('Shipments and Stock - MF'!BF$14,0,(-1*LIFETIME_MF)+1,1,LIFETIME_MF))) -> 560.2880332
C17: POST-Case UEC | D17: =IF(D$15-$D$15+2<=LIFETIME_MF,D12, SUMPRODUCT(OFFSET(D12,0,(-1*LIFETIME_MF)+1,1,LIFETIME_MF),OFFSET('Shipments and Stock - MF'!E$14,0,(-1*LIFETIME_MF)+1,1,LIFETIME_MF))/ SUM(OFFSET('Shipments and Stock - MF'!E$14,0,(-1*LIFETIME_MF)+1,1,LIFETIME_MF))) -> 800.7062157 | E17: =IF(E$15-$D$15+2<=LIFETIME_MF,E12, SUMPRODUCT(OFFSET(E12,0,(-1*LIFETIME_MF)+1,1,LIFETIME_MF),OFFSET('Shipments and Stock - MF'!F$14,0,(-1*LIFETIME_MF)+1,1,LIFETIME_MF))/ SUM(OFFSET('Shipments and Stock - MF'!F$14,0,(-1*LIFETIME_MF)+1,1,LIFETIME_MF))) -> 800.7062157 | F17: =IF(F$15-$D$15+2<=LIFETIME_MF,F12, SUMPRODUCT(OFFSET(F12,0,(-1*LIFETIME_MF)+1,1,LIFETIME_MF),OFFSET('Shipments and Stock - MF'!G$14,0,(-1*LIFETIME_MF)+1,1,LIFETIME_MF))/ SUM(OFFSET('Shipments and Stock - MF'!G$14,0,(-1*LIFETIME_MF)+1,1,LIFETIME_MF))) -> 800.7062157 | G17: =IF(G$15-$D$15+2<=LIFETIME_MF,G12, SUMPRODUCT(OFFSET(G12,0,(-1*LIFETIME_MF)+1,1,LIFETIME_MF),OFFSET('Shipments and Stock - MF'!H$14,0,(-1*LIFETIME_MF)+1,1,LIFETIME_MF))/ SUM(OFFSET('Shipments and Stock - MF'!H$14,0,(-1*LIFETIME_MF)+1,1,LIFETIME_MF))) -> 800.7062157 | H17: =IF(H$15-$D$15+2<=LIFETIME_MF,H12, SUMPRODUCT(OFFSET(H12,0,(-1*LIFETIME_MF)+1,1,LIFETIME_MF),OFFSET('Shipments and Stock - MF'!I$14,0,(-1*LIFETIME_MF)+1,1,LIFETIME_MF))/ SUM(OFFSET('Shipments and Stock - MF'!I$14,0,(-1*LIFETIME_MF)+1,1,LIFETIME_MF))) -> 800.7062157 | I17: =IF(I$15-$D$15+2<=LIFETIME_MF,I12, SUMPRODUCT(OFFSET(I12,0,(-1*LIFETIME_MF)+1,1,LIFETIME_MF),OFFSET('Shipments and Stock - MF'!J$14,0,(-1*LIFETIME_MF)+1,1,LIFETIME_MF))/ SUM(OFFSET('Shipments and Stock - MF'!J$14,0,(-1*LIFETIME_MF)+1,1,LIFETIME_MF))) -> 800.7062157 | J17: =IF(J$15-$D$15+2<=LIFETIME_MF,J12, SUMPRODUCT(OFFSET(J12,0,(-1*LIFETIME_MF)+1,1,LIFETIME_MF),OFFSET('Shipments and Stock - MF'!K$14,0,(-1*LIFETIME_MF)+1,1,LIFETIME_MF))/ SUM(OFFSET('Shipments and Stock - MF'!K$14,0,(-1*LIFETIME_MF)+1,1,LIFETIME_MF))) -> 800.7062157 | K17: =IF(K$15-$D$15+2<=LIFETIME_MF,K12, SUMPRODUCT(OFFSET(K12,0,(-1*LIFETIME_MF)+1,1,LIFETIME_MF),OFFSET('Shipments and Stock - MF'!L$14,0,(-1*LIFETIME_MF)+1,1,LIFETIME_MF))/ SUM(OFFSET('Shipments and Stock - MF'!L$14,0,(-1*LIFETIME_MF)+1,1,LIFETIME_MF))) -> 800.7062157 | L17: =IF(L$15-$D$15+2<=LIFETIME_MF,L12, SUMPRODUCT(OFFSET(L12,0,(-1*LIFETIME_MF)+1,1,LIFETIME_MF),OFFSET('Shipments and Stock - MF'!M$14,0,(-1*LIFETIME_MF)+1,1,LIFETIME_MF))/ SUM(OFFSET('Shipments and Stock - MF'!M$14,0,(-1*LIFETIME_MF)+1,1,LIFETIME_MF))) -> 800.7062157 | M17: =IF(M$15-$D$15+2<=LIFETIME_MF,M12, SUMPRODUCT(OFFSET(M12,0,(-1*LIFETIME_MF)+1,1,LIFETIME_MF),OFFSET('Shipments and Stock - MF'!N$14,0,(-1*LIFETIME_MF)+1,1,LIFETIME_MF))/ SUM(OFFSET('Shipments and Stock - MF'!N$14,0,(-1*LIFETIME_MF)+1,1,LIFETIME_MF))) -> 800.7062157 | N17: =IF(N$15-$D$15+2<=LIFETIME_MF,N12, SUMPRODUCT(OFFSET(N12,0,(-1*LIFETIME_MF)+1,1,LIFETIME_MF),OFFSET('Shipments and Stock - MF'!O$14,0,(-1*LIFETIME_MF)+1,1,LIFETIME_MF))/ SUM(OFFSET('Shipments and Stock - MF'!O$14,0,(-1*LIFETIME_MF)+1,1,LIFETIME_MF))) -> 800.7062157 | O17: =IF(O$15-$D$15+2<=LIFETIME_MF,O12, SUMPRODUCT(OFFSET(O12,0,(-1*LIFETIME_MF)+1,1,LIFETIME_MF),OFFSET('Shipments and Stock - MF'!P$14,0,(-1*LIFETIME_MF)+1,1,LIFETIME_MF))/ SUM(OFFSET('Shipments and Stock - MF'!P$14,0,(-1*LIFETIME_MF)+1,1,LIFETIME_MF))) -> 800.7062157 | P17: =IF(P$15-$D$15+2<=LIFETIME_MF,P12, SUMPRODUCT(OFFSET(P12,0,(-1*LIFETIME_MF)+1,1,LIFETIME_MF),OFFSET('Shipments and Stock - MF'!Q$14,0,(-1*LIFETIME_MF)+1,1,LIFETIME_MF))/ SUM(OFFSET('Shipments and Stock - MF'!Q$14,0,(-1*LIFETIME_MF)+1,1,LIFETIME_MF))) -> 800.7062157 | Q17: =IF(Q$15-$D$15+2<=LIFETIME_MF,Q12, SUMPRODUCT(OFFSET(Q12,0,(-1*LIFETIME_MF)+1,1,LIFETIME_MF),OFFSET('Shipments and Stock - MF'!R$14,0,(-1*LIFETIME_MF)+1,1,LIFETIME_MF))/ SUM(OFFSET('Shipments and Stock - MF'!R$14,0,(-1*LIFETIME_MF)+1,1,LIFETIME_MF))) -> 800.7062157 | R17: =IF(R$15-$D$15+2<=LIFETIME_MF,R12, SUMPRODUCT(OFFSET(R12,0,(-1*LIFETIME_MF)+1,1,LIFETIME_MF),OFFSET('Shipments and Stock - MF'!S$14,0,(-1*LIFETIME_MF)+1,1,LIFETIME_MF))/ SUM(OFFSET('Shipments and Stock - MF'!S$14,0,(-1*LIFETIME_MF)+1,1,LIFETIME_MF))) -> 800.7062157 | S17: =IF(S$15-$D$15+2<=LIFETIME_MF,S12, SUMPRODUCT(OFFSET(S12,0,(-1*LIFETIME_MF)+1,1,LIFETIME_MF),OFFSET('Shipments and Stock - MF'!T$14,0,(-1*LIFETIME_MF)+1,1,LIFETIME_MF))/ SUM(OFFSET('Shipments and Stock - MF'!T$14,0,(-1*LIFETIME_MF)+1,1,LIFETIME_MF))) -> 800.7062157 | T17: =IF(T$15-$D$15+2<=LIFETIME_MF,T12, SUMPRODUCT(OFFSET(T12,0,(-1*LIFETIME_MF)+1,1,LIFETIME_MF),OFFSET('Shipments and Stock - MF'!U$14,0,(-1*LIFETIME_MF)+1,1,LIFETIME_MF))/ SUM(OFFSET('Shipments and Stock - MF'!U$14,0,(-1*LIFETIME_MF)+1,1,LIFETIME_MF))) -> 800.7062157 | U17: =IF(U$15-$D$15+2<=LIFETIME_MF,U12, SUMPRODUCT(OFFSET(U12,0,(-1*LIFETIME_MF)+1,1,LIFETIME_MF),OFFSET('Shipments and Stock - MF'!V$14,0,(-1*LIFETIME_MF)+1,1,LIFETIME_MF))/ SUM(OFFSET('Shipments and Stock - MF'!V$14,0,(-1*LIFETIME_MF)+1,1,LIFETIME_MF))) -> 800.7062157 | V17: =IF(V$15-$D$15+2<=LIFETIME_MF,V12, SUMPRODUCT(OFFSET(V12,0,(-1*LIFETIME_MF)+1,1,LIFETIME_MF),OFFSET('Shipments and Stock - MF'!W$14,0,(-1*LIFETIME_MF)+1,1,LIFETIME_MF))/ SUM(OFFSET('Shipments and Stock - MF'!W$14,0,(-1*LIFETIME_MF)+1,1,LIFETIME_MF))) -> 800.7062157 | W17: =IF(W$15-$D$15+2<=LIFETIME_MF,W12, SUMPRODUCT(OFFSET(W12,0,(-1*LIFETIME_MF)+1,1,LIFETIME_MF),OFFSET('Shipments and Stock - MF'!X$14,0,(-1*LIFETIME_MF)+1,1,LIFETIME_MF))/ SUM(OFFSET('Shipments and Stock - MF'!X$14,0,(-1*LIFETIME_MF)+1,1,LIFETIME_MF))) -> 797.9366238 | X17: =IF(X$15-$D$15+2<=LIFETIME_MF,X12, SUMPRODUCT(OFFSET(X12,0,(-1*LIFETIME_MF)+1,1,LIFETIME_MF),OFFSET('Shipments and Stock - MF'!Y$14,0,(-1*LIFETIME_MF)+1,1,LIFETIME_MF))/ SUM(OFFSET('Shipments and Stock - MF'!Y$14,0,(-1*LIFETIME_MF)+1,1,LIFETIME_MF))) -> 795.4731 | Y17: =IF(Y$15-$D$15+2<=LIFETIME_MF,Y12, SUMPRODUCT(OFFSET(Y12,0,(-1*LIFETIME_MF)+1,1,LIFETIME_MF),OFFSET('Shipments and Stock - MF'!Z$14,0,(-1*LIFETIME_MF)+1,1,LIFETIME_MF))/ SUM(OFFSET('Shipments and Stock - MF'!Z$14,0,(-1*LIFETIME_MF)+1,1,LIFETIME_MF))) -> 793.2077317 | Z17: =IF(Z$15-$D$15+2<=LIFETIME_MF,Z12, SUMPRODUCT(OFFSET(Z12,0,(-1*LIFETIME_MF)+1,1,LIFETIME_MF),OFFSET('Shipments and Stock - MF'!AA$14,0,(-1*LIFETIME_MF)+1,1,LIFETIME_MF))/ SUM(OFFSET('Shipments and Stock - MF'!AA$14,0,(-1*LIFETIME_MF)+1,1,LIFETIME_MF))) -> 790.9861094 | AA17: =IF(AA$15-$D$15+2<=LIFETIME_MF,AA12, SUMPRODUCT(OFFSET(AA12,0,(-1*LIFETIME_MF)+1,1,LIFETIME_MF),OFFSET('Shipments and Stock - MF'!AB$14,0,(-1*LIFETIME_MF)+1,1,LIFETIME_MF))/ SUM(OFFSET('Shipments and Stock - MF'!AB$14,0,(-1*LIFETIME_MF)+1,1,LIFETIME_MF))) -> 788.709258 | AB17: =IF(AB$15-$D$15+2<=LIFETIME_MF,AB12, SUMPRODUCT(OFFSET(AB12,0,(-1*LIFETIME_MF)+1,1,LIFETIME_MF),OFFSET('Shipments and Stock - MF'!AC$14,0,(-1*LIFETIME_MF)+1,1,LIFETIME_MF))/ SUM(OFFSET('Shipments and Stock - MF'!AC$14,0,(-1*LIFETIME_MF)+1,1,LIFETIME_MF))) -> 786.6726599 | AC17: =IF(AC$15-$D$15+2<=LIFETIME_MF,AC12, SUMPRODUCT(OFFSET(AC12,0,(-1*LIFETIME_MF)+1,1,LIFETIME_MF),OFFSET('Shipments and Stock - MF'!AD$14,0,(-1*LIFETIME_MF)+1,1,LIFETIME_MF))/ SUM(OFFSET('Shipments and Stock - MF'!AD$14,0,(-1*LIFETIME_MF)+1,1,LIFETIME_MF))) -> 773.8789062 | AD17: =IF(AD$15-$D$15+2<=LIFETIME_MF,AD12, SUMPRODUCT(OFFSET(AD12,0,(-1*LIFETIME_MF)+1,1,LIFETIME_MF),OFFSET('Shipments and Stock - MF'!AE$14,0,(-1*LIFETIME_MF)+1,1,LIFETIME_MF))/ SUM(OFFSET('Shipments and Stock - MF'!AE$14,0,(-1*LIFETIME_MF)+1,1,LIFETIME_MF))) -> 761.5464447 | AE17: =IF(AE$15-$D$15+2<=LIFETIME_MF,AE12, SUMPRODUCT(OFFSET(AE12,0,(-1*LIFETIME_MF)+1,1,LIFETIME_MF),OFFSET('Shipments and Stock - MF'!AF$14,0,(-1*LIFETIME_MF)+1,1,LIFETIME_MF))/ SUM(OFFSET('Shipments and Stock - MF'!AF$14,0,(-1*LIFETIME_MF)+1,1,LIFETIME_MF))) -> 750.1714364 | AF17: =IF(AF$15-$D$15+2<=LIFETIME_MF,AF12, SUMPRODUCT(OFFSET(AF12,0,(-1*LIFETIME_MF)+1,1,LIFETIME_MF),OFFSET('Shipments and Stock - MF'!AG$14,0,(-1*LIFETIME_MF)+1,1,LIFETIME_MF))/ SUM(OFFSET('Shipments and Stock - MF'!AG$14,0,(-1*LIFETIME_MF)+1,1,LIFETIME_MF))) -> 740.9250376 | AG17: =IF(AG$15-$D$15+2<=LIFETIME_MF,AG12, SUMPRODUCT(OFFSET(AG12,0,(-1*LIFETIME_MF)+1,1,LIFETIME_MF),OFFSET('Shipments and Stock - MF'!AH$14,0,(-1*LIFETIME_MF)+1,1,LIFETIME_MF))/ SUM(OFFSET('Shipments and Stock - MF'!AH$14,0,(-1*LIFETIME_MF)+1,1,LIFETIME_MF))) -> 731.8051681 | AH17: =IF(AH$15-$D$15+2<=LIFETIME_MF,AH12, SUMPRODUCT(OFFSET(AH12,0,(-1*LIFETIME_MF)+1,1,LIFETIME_MF),OFFSET('Shipments and Stock - MF'!AI$14,0,(-1*LIFETIME_MF)+1,1,LIFETIME_MF))/ SUM(OFFSET('Shipments and Stock - MF'!AI$14,0,(-1*LIFETIME_MF)+1,1,LIFETIME_MF))) -> 722.6585541 | AI17: =IF(AI$15-$D$15+2<=LIFETIME_MF,AI12, SUMPRODUCT(OFFSET(AI12,0,(-1*LIFETIME_MF)+1,1,LIFETIME_MF),OFFSET('Shipments and Stock - MF'!AJ$14,0,(-1*LIFETIME_MF)+1,1,LIFETIME_MF))/ SUM(OFFSET('Shipments and Stock - MF'!AJ$14,0,(-1*LIFETIME_MF)+1,1,LIFETIME_MF))) -> 713.0829895 | AJ17: =IF(AJ$15-$D$15+2<=LIFETIME_MF,AJ12, SUMPRODUCT(OFFSET(AJ12,0,(-1*LIFETIME_MF)+1,1,LIFETIME_MF),OFFSET('Shipments and Stock - MF'!AK$14,0,(-1*LIFETIME_MF)+1,1,LIFETIME_MF))/ SUM(OFFSET('Shipments and Stock - MF'!AK$14,0,(-1*LIFETIME_MF)+1,1,LIFETIME_MF))) -> 703.1996794 | AK17: =IF(AK$15-$D$15+2<=LIFETIME_MF,AK12, SUMPRODUCT(OFFSET(AK12,0,(-1*LIFETIME_MF)+1,1,LIFETIME_MF),OFFSET('Shipments and Stock - MF'!AL$14,0,(-1*LIFETIME_MF)+1,1,LIFETIME_MF))/ SUM(OFFSET('Shipments and Stock - MF'!AL$14,0,(-1*LIFETIME_MF)+1,1,LIFETIME_MF))) -> 693.1625808 | AL17: =IF(AL$15-$D$15+2<=LIFETIME_MF,AL12, SUMPRODUCT(OFFSET(AL12,0,(-1*LIFETIME_MF)+1,1,LIFETIME_MF),OFFSET('Shipments and Stock - MF'!AM$14,0,(-1*LIFETIME_MF)+1,1,LIFETIME_MF))/ SUM(OFFSET('Shipments and Stock - MF'!AM$14,0,(-1*LIFETIME_MF)+1,1,LIFETIME_MF))) -> 682.9273754 | AM17: =IF(AM$15-$D$15+2<=LIFETIME_MF,AM12, SUMPRODUCT(OFFSET(AM12,0,(-1*LIFETIME_MF)+1,1,LIFETIME_MF),OFFSET('Shipments and Stock - MF'!AN$14,0,(-1*LIFETIME_MF)+1,1,LIFETIME_MF))/ SUM(OFFSET('Shipments and Stock - MF'!AN$14,0,(-1*LIFETIME_MF)+1,1,LIFETIME_MF))) -> 672.7405913 | AN17: =IF(AN$15-$D$15+2<=LIFETIME_MF,AN12, SUMPRODUCT(OFFSET(AN12,0,(-1*LIFETIME_MF)+1,1,LIFETIME_MF),OFFSET('Shipments and Stock - MF'!AO$14,0,(-1*LIFETIME_MF)+1,1,LIFETIME_MF))/ SUM(OFFSET('Shipments and Stock - MF'!AO$14,0,(-1*LIFETIME_MF)+1,1,LIFETIME_MF))) -> 662.0671269 | AO17: =IF(AO$15-$D$15+2<=LIFETIME_MF,AO12, SUMPRODUCT(OFFSET(AO12,0,(-1*LIFETIME_MF)+1,1,LIFETIME_MF),OFFSET('Shipments and Stock - MF'!AP$14,0,(-1*LIFETIME_MF)+1,1,LIFETIME_MF))/ SUM(OFFSET('Shipments and Stock - MF'!AP$14,0,(-1*LIFETIME_MF)+1,1,LIFETIME_MF))) -> 651.7440461 | AP17: =IF(AP$15-$D$15+2<=LIFETIME_MF,AP12, SUMPRODUCT(OFFSET(AP12,0,(-1*LIFETIME_MF)+1,1,LIFETIME_MF),OFFSET('Shipments and Stock - MF'!AQ$14,0,(-1*LIFETIME_MF)+1,1,LIFETIME_MF))/ SUM(OFFSET('Shipments and Stock - MF'!AQ$14,0,(-1*LIFETIME_MF)+1,1,LIFETIME_MF))) -> 642.1966038 | AQ17: =IF(AQ$15-$D$15+2<=LIFETIME_MF,AQ12, SUMPRODUCT(OFFSET(AQ12,0,(-1*LIFETIME_MF)+1,1,LIFETIME_MF),OFFSET('Shipments and Stock - MF'!AR$14,0,(-1*LIFETIME_MF)+1,1,LIFETIME_MF))/ SUM(OFFSET('Shipments and Stock - MF'!AR$14,0,(-1*LIFETIME_MF)+1,1,LIFETIME_MF))) -> 632.8288754 | AR17: =IF(AR$15-$D$15+2<=LIFETIME_MF,AR12, SUMPRODUCT(OFFSET(AR12,0,(-1*LIFETIME_MF)+1,1,LIFETIME_MF),OFFSET('Shipments and Stock - MF'!AS$14,0,(-1*LIFETIME_MF)+1,1,LIFETIME_MF))/ SUM(OFFSET('Shipments and Stock - MF'!AS$14,0,(-1*LIFETIME_MF)+1,1,LIFETIME_MF))) -> 623.4708958 | AS17: =IF(AS$15-$D$15+2<=LIFETIME_MF,AS12, SUMPRODUCT(OFFSET(AS12,0,(-1*LIFETIME_MF)+1,1,LIFETIME_MF),OFFSET('Shipments and Stock - MF'!AT$14,0,(-1*LIFETIME_MF)+1,1,LIFETIME_MF))/ SUM(OFFSET('Shipments and Stock - MF'!AT$14,0,(-1*LIFETIME_MF)+1,1,LIFETIME_MF))) -> 613.5923974 | AT17: =IF(AT$15-$D$15+2<=LIFETIME_MF,AT12, SUMPRODUCT(OFFSET(AT12,0,(-1*LIFETIME_MF)+1,1,LIFETIME_MF),OFFSET('Shipments and Stock - MF'!AU$14,0,(-1*LIFETIME_MF)+1,1,LIFETIME_MF))/ SUM(OFFSET('Shipments and Stock - MF'!AU$14,0,(-1*LIFETIME_MF)+1,1,LIFETIME_MF))) -> 602.7557845 | AU17: =IF(AU$15-$D$15+2<=LIFETIME_MF,AU12, SUMPRODUCT(OFFSET(AU12,0,(-1*LIFETIME_MF)+1,1,LIFETIME_MF),OFFSET('Shipments and Stock - MF'!AV$14,0,(-1*LIFETIME_MF)+1,1,LIFETIME_MF))/ SUM(OFFSET('Shipments and Stock - MF'!AV$14,0,(-1*LIFETIME_MF)+1,1,LIFETIME_MF))) -> 592.120936 | AV17: =IF(AV$15-$D$15+2<=LIFETIME_MF,AV12, SUMPRODUCT(OFFSET(AV12,0,(-1*LIFETIME_MF)+1,1,LIFETIME_MF),OFFSET('Shipments and Stock - MF'!AW$14,0,(-1*LIFETIME_MF)+1,1,LIFETIME_MF))/ SUM(OFFSET('Shipments and Stock - MF'!AW$14,0,(-1*LIFETIME_MF)+1,1,LIFETIME_MF))) -> 588.0302837 | AW17: =IF(AW$15-$D$15+2<=LIFETIME_MF,AW12, SUMPRODUCT(OFFSET(AW12,0,(-1*LIFETIME_MF)+1,1,LIFETIME_MF),OFFSET('Shipments and Stock - MF'!AX$14,0,(-1*LIFETIME_MF)+1,1,LIFETIME_MF))/ SUM(OFFSET('Shipments and Stock - MF'!AX$14,0,(-1*LIFETIME_MF)+1,1,LIFETIME_MF))) -> 583.5854664 | AX17: =IF(AX$15-$D$15+2<=LIFETIME_MF,AX12, SUMPRODUCT(OFFSET(AX12,0,(-1*LIFETIME_MF)+1,1,LIFETIME_MF),OFFSET('Shipments and Stock - MF'!AY$14,0,(-1*LIFETIME_MF)+1,1,LIFETIME_MF))/ SUM(OFFSET('Shipments and Stock - MF'!AY$14,0,(-1*LIFETIME_MF)+1,1,LIFETIME_MF))) -> 579.0037824 | AY17: =IF(AY$15-$D$15+2<=LIFETIME_MF,AY12, SUMPRODUCT(OFFSET(AY12,0,(-1*LIFETIME_MF)+1,1,LIFETIME_MF),OFFSET('Shipments and Stock - MF'!AZ$14,0,(-1*LIFETIME_MF)+1,1,LIFETIME_MF))/ SUM(OFFSET('Shipments and Stock - MF'!AZ$14,0,(-1*LIFETIME_MF)+1,1,LIFETIME_MF))) -> 575.0039702 | AZ17: =IF(AZ$15-$D$15+2<=LIFETIME_MF,AZ12, SUMPRODUCT(OFFSET(AZ12,0,(-1*LIFETIME_MF)+1,1,LIFETIME_MF),OFFSET('Shipments and Stock - MF'!BA$14,0,(-1*LIFETIME_MF)+1,1,LIFETIME_MF))/ SUM(OFFSET('Shipments and Stock - MF'!BA$14,0,(-1*LIFETIME_MF)+1,1,LIFETIME_MF))) -> 572.2860384 | BA17: =IF(BA$15-$D$15+2<=LIFETIME_MF,BA12, SUMPRODUCT(OFFSET(BA12,0,(-1*LIFETIME_MF)+1,1,LIFETIME_MF),OFFSET('Shipments and Stock - MF'!BB$14,0,(-1*LIFETIME_MF)+1,1,LIFETIME_MF))/ SUM(OFFSET('Shipments and Stock - MF'!BB$14,0,(-1*LIFETIME_MF)+1,1,LIFETIME_MF))) -> 569.367807 | BB17: =IF(BB$15-$D$15+2<=LIFETIME_MF,BB12, SUMPRODUCT(OFFSET(BB12,0,(-1*LIFETIME_MF)+1,1,LIFETIME_MF),OFFSET('Shipments and Stock - MF'!BC$14,0,(-1*LIFETIME_MF)+1,1,LIFETIME_MF))/ SUM(OFFSET('Shipments and Stock - MF'!BC$14,0,(-1*LIFETIME_MF)+1,1,LIFETIME_MF))) -> 566.6156873 | BC17: =IF(BC$15-$D$15+2<=LIFETIME_MF,BC12, SUMPRODUCT(OFFSET(BC12,0,(-1*LIFETIME_MF)+1,1,LIFETIME_MF),OFFSET('Shipments and Stock - MF'!BD$14,0,(-1*LIFETIME_MF)+1,1,LIFETIME_MF))/ SUM(OFFSET('Shipments and Stock - MF'!BD$14,0,(-1*LIFETIME_MF)+1,1,LIFETIME_MF))) -> 563.7156357 | BD17: =IF(BD$15-$D$15+2<=LIFETIME_MF,BD12, SUMPRODUCT(OFFSET(BD12,0,(-1*LIFETIME_MF)+1,1,LIFETIME_MF),OFFSET('Shipments and Stock - MF'!BE$14,0,(-1*LIFETIME_MF)+1,1,LIFETIME_MF))/ SUM(OFFSET('Shipments and Stock - MF'!BE$14,0,(-1*LIFETIME_MF)+1,1,LIFETIME_MF))) -> 560.6857309 | BE17: =IF(BE$15-$D$15+2<=LIFETIME_MF,BE12, SUMPRODUCT(OFFSET(BE12,0,(-1*LIFETIME_MF)+1,1,LIFETIME_MF),OFFSET('Shipments and Stock - MF'!BF$14,0,(-1*LIFETIME_MF)+1,1,LIFETIME_MF))/ SUM(OFFSET('Shipments and Stock - MF'!BF$14,0,(-1*LIFETIME_MF)+1,1,LIFETIME_MF))) -> 557.7016224

Sheet UEC-MH
C2: Weighted Average Annual UEC - Manufactured Homes
C4: NAVIGATION
C6: COMMENTS
C9: Market UEC (Shipment Weighted Average)
D10: 1981 | E10: =D10+1 -> 1982 | F10: =E10+1 -> 1983 | G10: 1984 | H10: 1985 | I10: 1986 | J10: 1987 | K10: 1988 | L10: 1989 | M10: 1990 | N10: 1991 | O10: 1992 | P10: 1993 | Q10: 1994 | R10: 1995 | S10: 1996 | T10: 1997 | U10: 1998 | V10: 1999 | W10: 2000 | X10: 2001 | Y10: 2002 | Z10: 2003 | AA10: 2004 | AB10: 2005 | AC10: 2006 | AD10: 2007 | AE10: 2008 | AF10: 2009 | AG10: 2010 | AH10: 2011 | AI10: 2012 | AJ10: 2013 | AK10: 2014 | AL10: 2015 | AM10: 2016 | AN10: 2017 | AO10: 2018 | AP10: 2019 | AQ10: 2020 | AR10: 2021 | AS10: 2022 | AT10: 2023 | AU10: 2024 | AV10: 2025 | AW10: 2026 | AX10: 2027 | AY10: 2028 | AZ10: 2029 | BA10: 2030 | BB10: 2031 | BC10: 2032 | BD10: 2033 | BE10: 2034
C11: PRE-Case UEC | D11: =FORECAST('Annual SEER'!D21,'UEC Development'!$L$36:$L$41,'UEC Development'!$C$36:$C$41) -> 760.0235835 | E11: =FORECAST('Annual SEER'!E21,'UEC Development'!$L$36:$L$41,'UEC Development'!$C$36:$C$41) -> 760.0235835 | F11: =FORECAST('Annual SEER'!F21,'UEC Development'!$L$36:$L$41,'UEC Development'!$C$36:$C$41) -> 760.0235835 | G11: =FORECAST('Annual SEER'!G21,'UEC Development'!$L$36:$L$41,'UEC Development'!$C$36:$C$41) -> 760.0235835 | H11: =FORECAST('Annual SEER'!H21,'UEC Development'!$L$36:$L$41,'UEC Development'!$C$36:$C$41) -> 760.0235835 | I11: =FORECAST('Annual SEER'!I21,'UEC Development'!$L$36:$L$41,'UEC Development'!$C$36:$C$41) -> 760.0235835 | J11: =FORECAST('Annual SEER'!J21,'UEC Development'!$L$36:$L$41,'UEC Development'!$C$36:$C$41) -> 760.0235835 | K11: =FORECAST('Annual SEER'!K21,'UEC Development'!$L$36:$L$41,'UEC Development'!$C$36:$C$41) -> 760.0235835 | L11: =FORECAST('Annual SEER'!L21,'UEC Development'!$L$36:$L$41,'UEC Development'!$C$36:$C$41) -> 760.0235835 | M11: =FORECAST('Annual SEER'!M21,'UEC Development'!$L$36:$L$41,'UEC Development'!$C$36:$C$41) -> 760.0235835 | N11: =FORECAST('Annual SEER'!N21,'UEC Development'!$L$36:$L$41,'UEC Development'!$C$36:$C$41) -> 760.0235835 | O11: =FORECAST('Annual SEER'!O21,'UEC Development'!$L$36:$L$41,'UEC Development'!$C$36:$C$41) -> 760.0235835 | P11: =FORECAST('Annual SEER'!P21,'UEC Development'!$L$36:$L$41,'UEC Development'!$C$36:$C$41) -> 760.0235835 | Q11: =FORECAST('Annual SEER'!Q21,'UEC Development'!$L$36:$L$41,'UEC Development'!$C$36:$C$41) -> 760.0235835 | R11: =FORECAST('Annual SEER'!R21,'UEC Development'!$L$36:$L$41,'UEC Development'!$C$36:$C$41) -> 760.0235835 | S11: =FORECAST('Annual SEER'!S21,'UEC Development'!$L$36:$L$41,'UEC Development'!$C$36:$C$41) -> 760.0235835 | T11: =FORECAST('Annual SEER'!T21,'UEC Development'!$L$36:$L$41,'UEC Development'!$C$36:$C$41) -> 760.0235835 | U11: =FORECAST('Annual SEER'!U21,'UEC Development'!$L$36:$L$41,'UEC Development'!$C$36:$C$41) -> 760.0235835 | V11: =FORECAST('Annual SEER'!V21,'UEC Development'!$L$36:$L$41,'UEC Development'!$C$36:$C$41) -> 760.0235835 | W11: =FORECAST('Annual SEER'!W21,'UEC Development'!$L$36:$L$41,'UEC Development'!$C$36:$C$41) -> 776.4496694 | X11: =FORECAST('Annual SEER'!X21,'UEC Development'!$L$36:$L$41,'UEC Development'!$C$36:$C$41) -> 776.4496694 | Y11: =FORECAST('Annual SEER'!Y21,'UEC Development'!$L$36:$L$41,'UEC Development'!$C$36:$C$41) -> 776.4496694 | Z11: =FORECAST('Annual SEER'!Z21,'UEC Development'!$L$36:$L$41,'UEC Development'!$C$36:$C$41) -> 776.4496694 | AA11: =FORECAST('Annual SEER'!AA21,'UEC Development'!$L$36:$L$41,'UEC Development'!$C$36:$C$41) -> 776.4496694 | AB11: =FORECAST('Annual SEER'!AB21,'UEC Development'!$L$36:$L$41,'UEC Development'!$C$36:$C$41) -> 776.4496694 | AC11: =FORECAST('Annual SEER'!AC21,'UEC Development'!$L$36:$L$41,'UEC Development'!$C$36:$C$41) -> 617.6641722 | AD11: =FORECAST('Annual SEER'!AD21,'UEC Development'!$L$36:$L$41,'UEC Development'!$C$36:$C$41) -> 617.6641722 | AE11: =FORECAST('Annual SEER'!AE21,'UEC Development'!$L$36:$L$41,'UEC Development'!$C$36:$C$41) -> 617.6641722 | AF11: =FORECAST('Annual SEER'!AF21,'UEC Development'!$L$36:$L$41,'UEC Development'!$C$36:$C$41) -> 617.6641722 | AG11: =FORECAST('Annual SEER'!AG21,'UEC Development'!$L$36:$L$41,'UEC Development'!$C$36:$C$41) -> 571.0270203 | AH11: =FORECAST('Annual SEER'!AH21,'UEC Development'!$L$36:$L$41,'UEC Development'!$C$36:$C$41) -> 570.9806521 | AI11: =FORECAST('Annual SEER'!AI21,'UEC Development'!$L$36:$L$41,'UEC Development'!$C$36:$C$41) -> 570.9470006 | AJ11: =FORECAST('Annual SEER'!AJ21,'UEC Development'!$L$36:$L$41,'UEC Development'!$C$36:$C$41) -> 570.9254996 | AK11: =FORECAST('Annual SEER'!AK21,'UEC Development'!$L$36:$L$41,'UEC Development'!$C$36:$C$41) -> 570.9077554 | AL11: =FORECAST('Annual SEER'!AL21,'UEC Development'!$L$36:$L$41,'UEC Development'!$C$36:$C$41) -> 570.8887656 | AM11: =FORECAST('Annual SEER'!AM21,'UEC Development'!$L$36:$L$41,'UEC Development'!$C$36:$C$41) -> 570.8713852 | AN11: =FORECAST('Annual SEER'!AN21,'UEC Development'!$L$36:$L$41,'UEC Development'!$C$36:$C$41) -> 566.2056275 | AO11: =FORECAST('Annual SEER'!AO21,'UEC Development'!$L$36:$L$41,'UEC Development'!$C$36:$C$41) -> 561.8727345 | AP11: =FORECAST('Annual SEER'!AP21,'UEC Development'!$L$36:$L$41,'UEC Development'!$C$36:$C$41) -> 557.5166993 | AQ11: =FORECAST('Annual SEER'!AQ21,'UEC Development'!$L$36:$L$41,'UEC Development'!$C$36:$C$41) -> 553.1384861 | AR11: =FORECAST('Annual SEER'!AR21,'UEC Development'!$L$36:$L$41,'UEC Development'!$C$36:$C$41) -> 548.7387258 | AS11: =FORECAST('Annual SEER'!AS21,'UEC Development'!$L$36:$L$41,'UEC Development'!$C$36:$C$41) -> 544.3144899 | AT11: =FORECAST('Annual SEER'!AT21,'UEC Development'!$L$36:$L$41,'UEC Development'!$C$36:$C$41) -> 539.8653989 | AU11: =FORECAST('Annual SEER'!AU21,'UEC Development'!$L$36:$L$41,'UEC Development'!$C$36:$C$41) -> 535.3914616 | AV11: =FORECAST('Annual SEER'!AV21,'UEC Development'!$L$36:$L$41,'UEC Development'!$C$36:$C$41) -> 530.8924721 | AW11: =FORECAST('Annual SEER'!AW21,'UEC Development'!$L$36:$L$41,'UEC Development'!$C$36:$C$41) -> 526.3691882 | AX11: =FORECAST('Annual SEER'!AX21,'UEC Development'!$L$36:$L$41,'UEC Development'!$C$36:$C$41) -> 521.8213718 | AY11: =FORECAST('Annual SEER'!AY21,'UEC Development'!$L$36:$L$41,'UEC Development'!$C$36:$C$41) -> 520.2079767 | AZ11: =FORECAST('Annual SEER'!AZ21,'UEC Development'!$L$36:$L$41,'UEC Development'!$C$36:$C$41) -> 518.6152204 | BA11: =FORECAST('Annual SEER'!BA21,'UEC Development'!$L$36:$L$41,'UEC Development'!$C$36:$C$41) -> 517.0168602 | BB11: =FORECAST('Annual SEER'!BB21,'UEC Development'!$L$36:$L$41,'UEC Development'!$C$36:$C$41) -> 515.4494787 | BC11: =FORECAST('Annual SEER'!BC21,'UEC Development'!$L$36:$L$41,'UEC Development'!$C$36:$C$41) -> 513.9235504 | BD11: =FORECAST('Annual SEER'!BD21,'UEC Development'!$L$36:$L$41,'UEC Development'!$C$36:$C$41) -> 512.3780116 | BE11: =FORECAST('Annual SEER'!BE21,'UEC Development'!$L$36:$L$41,'UEC Development'!$C$36:$C$41) -> 510.8097982
C12: POST-Case UEC | D12: =FORECAST('Annual SEER'!D22,'UEC Development'!$L$36:$L$41,'UEC Development'!$C$36:$C$41) -> 760.0235835 | E12: =FORECAST('Annual SEER'!E22,'UEC Development'!$L$36:$L$41,'UEC Development'!$C$36:$C$41) -> 760.0235835 | F12: =FORECAST('Annual SEER'!F22,'UEC Development'!$L$36:$L$41,'UEC Development'!$C$36:$C$41) -> 760.0235835 | G12: =FORECAST('Annual SEER'!G22,'UEC Development'!$L$36:$L$41,'UEC Development'!$C$36:$C$41) -> 760.0235835 | H12: =FORECAST('Annual SEER'!H22,'UEC Development'!$L$36:$L$41,'UEC Development'!$C$36:$C$41) -> 760.0235835 | I12: =FORECAST('Annual SEER'!I22,'UEC Development'!$L$36:$L$41,'UEC Development'!$C$36:$C$41) -> 760.0235835 | J12: =FORECAST('Annual SEER'!J22,'UEC Development'!$L$36:$L$41,'UEC Development'!$C$36:$C$41) -> 760.0235835 | K12: =FORECAST('Annual SEER'!K22,'UEC Development'!$L$36:$L$41,'UEC Development'!$C$36:$C$41) -> 760.0235835 | L12: =FORECAST('Annual SEER'!L22,'UEC Development'!$L$36:$L$41,'UEC Development'!$C$36:$C$41) -> 760.0235835 | M12: =FORECAST('Annual SEER'!M22,'UEC Development'!$L$36:$L$41,'UEC Development'!$C$36:$C$41) -> 760.0235835 | N12: =FORECAST('Annual SEER'!N22,'UEC Development'!$L$36:$L$41,'UEC Development'!$C$36:$C$41) -> 760.0235835 | O12: =FORECAST('Annual SEER'!O22,'UEC Development'!$L$36:$L$41,'UEC Development'!$C$36:$C$41) -> 760.0235835 | P12: =FORECAST('Annual SEER'!P22,'UEC Development'!$L$36:$L$41,'UEC Development'!$C$36:$C$41) -> 760.0235835 | Q12: =FORECAST('Annual SEER'!Q22,'UEC Development'!$L$36:$L$41,'UEC Development'!$C$36:$C$41) -> 760.0235835 | R12: =FORECAST('Annual SEER'!R22,'UEC Development'!$L$36:$L$41,'UEC Development'!$C$36:$C$41) -> 760.0235835 | S12: =FORECAST('Annual SEER'!S22,'UEC Development'!$L$36:$L$41,'UEC Development'!$C$36:$C$41) -> 760.0235835 | T12: =FORECAST('Annual SEER'!T22,'UEC Development'!$L$36:$L$41,'UEC Development'!$C$36:$C$41) -> 760.0235835 | U12: =FORECAST('Annual SEER'!U22,'UEC Development'!$L$36:$L$41,'UEC Development'!$C$36:$C$41) -> 760.0235835 | V12: =FORECAST('Annual SEER'!V22,'UEC Development'!$L$36:$L$41,'UEC Development'!$C$36:$C$41) -> 760.0235835 | W12: =FORECAST('Annual SEER'!W22,'UEC Development'!$L$36:$L$41,'UEC Development'!$C$36:$C$41) -> 776.4496694 | X12: =FORECAST('Annual SEER'!X22,'UEC Development'!$L$36:$L$41,'UEC Development'!$C$36:$C$41) -> 776.4496694 | Y12: =FORECAST('Annual SEER'!Y22,'UEC Development'!$L$36:$L$41,'UEC Development'!$C$36:$C$41) -> 776.4496694 | Z12: =FORECAST('Annual SEER'!Z22,'UEC Development'!$L$36:$L$41,'UEC Development'!$C$36:$C$41) -> 776.4496694 | AA12: =FORECAST('Annual SEER'!AA22,'UEC Development'!$L$36:$L$41,'UEC Development'!$C$36:$C$41) -> 776.4496694 | AB12: =FORECAST('Annual SEER'!AB22,'UEC Development'!$L$36:$L$41,'UEC Development'!$C$36:$C$41) -> 776.4496694 | AC12: =FORECAST('Annual SEER'!AC22,'UEC Development'!$L$36:$L$41,'UEC Development'!$C$36:$C$41) -> 617.6641722 | AD12: =FORECAST('Annual SEER'!AD22,'UEC Development'!$L$36:$L$41,'UEC Development'!$C$36:$C$41) -> 617.6641722 | AE12: =FORECAST('Annual SEER'!AE22,'UEC Development'!$L$36:$L$41,'UEC Development'!$C$36:$C$41) -> 617.6641722 | AF12: =FORECAST('Annual SEER'!AF22,'UEC Development'!$L$36:$L$41,'UEC Development'!$C$36:$C$41) -> 617.6641722 | AG12: =FORECAST('Annual SEER'!AG22,'UEC Development'!$L$36:$L$41,'UEC Development'!$C$36:$C$41) -> 571.0270203 | AH12: =FORECAST('Annual SEER'!AH22,'UEC Development'!$L$36:$L$41,'UEC Development'!$C$36:$C$41) -> 570.9806521 | AI12: =FORECAST('Annual SEER'!AI22,'UEC Development'!$L$36:$L$41,'UEC Development'!$C$36:$C$41) -> 570.9470006 | AJ12: =FORECAST('Annual SEER'!AJ22,'UEC Development'!$L$36:$L$41,'UEC Development'!$C$36:$C$41) -> 570.9254996 | AK12: =FORECAST('Annual SEER'!AK22,'UEC Development'!$L$36:$L$41,'UEC Development'!$C$36:$C$41) -> 570.9077554 | AL12: =FORECAST('Annual SEER'!AL22,'UEC Development'!$L$36:$L$41,'UEC Development'!$C$36:$C$41) -> 567.3944812 | AM12: =FORECAST('Annual SEER'!AM22,'UEC Development'!$L$36:$L$41,'UEC Development'!$C$36:$C$41) -> 567.3963418 | AN12: =FORECAST('Annual SEER'!AN22,'UEC Development'!$L$36:$L$41,'UEC Development'!$C$36:$C$41) -> 562.8497433 | AO12: =FORECAST('Annual SEER'!AO22,'UEC Development'!$L$36:$L$41,'UEC Development'!$C$36:$C$41) -> 558.63485 | AP12: =FORECAST('Annual SEER'!AP22,'UEC Development'!$L$36:$L$41,'UEC Development'!$C$36:$C$41) -> 554.3959437 | AQ12: =FORECAST('Annual SEER'!AQ22,'UEC Development'!$L$36:$L$41,'UEC Development'!$C$36:$C$41) -> 550.1872161 | AR12: =FORECAST('Annual SEER'!AR22,'UEC Development'!$L$36:$L$41,'UEC Development'!$C$36:$C$41) -> 545.9799613 | AS12: =FORECAST('Annual SEER'!AS22,'UEC Development'!$L$36:$L$41,'UEC Development'!$C$36:$C$41) -> 541.749114 | AT12: =FORECAST('Annual SEER'!AT22,'UEC Development'!$L$36:$L$41,'UEC Development'!$C$36:$C$41) -> 537.493857 | AU12: =FORECAST('Annual SEER'!AU22,'UEC Development'!$L$36:$L$41,'UEC Development'!$C$36:$C$41) -> 533.1267043 | AV12: =FORECAST('Annual SEER'!AV22,'UEC Development'!$L$36:$L$41,'UEC Development'!$C$36:$C$41) -> 528.6300381 | AW12: =FORECAST('Annual SEER'!AW22,'UEC Development'!$L$36:$L$41,'UEC Development'!$C$36:$C$41) -> 524.1080154 | AX12: =FORECAST('Annual SEER'!AX22,'UEC Development'!$L$36:$L$41,'UEC Development'!$C$36:$C$41) -> 519.560417 | AY12: =FORECAST('Annual SEER'!AY22,'UEC Development'!$L$36:$L$41,'UEC Development'!$C$36:$C$41) -> 517.9399129 | AZ12: =FORECAST('Annual SEER'!AZ22,'UEC Development'!$L$36:$L$41,'UEC Development'!$C$36:$C$41) -> 516.3719902 | BA12: =FORECAST('Annual SEER'!BA22,'UEC Development'!$L$36:$L$41,'UEC Development'!$C$36:$C$41) -> 514.8222862 | BB12: =FORECAST('Annual SEER'!BB22,'UEC Development'!$L$36:$L$41,'UEC Development'!$C$36:$C$41) -> 513.3026899 | BC12: =FORECAST('Annual SEER'!BC22,'UEC Development'!$L$36:$L$41,'UEC Development'!$C$36:$C$41) -> 511.8236183 | BD12: =FORECAST('Annual SEER'!BD22,'UEC Development'!$L$36:$L$41,'UEC Development'!$C$36:$C$41) -> 510.3248208 | BE12: =FORECAST('Annual SEER'!BE22,'UEC Development'!$L$36:$L$41,'UEC Development'!$C$36:$C$41) -> 508.7547104
C14: Installed UEC (Vintage Weighted Average)
D15: 1981 | E15: =D15+1 -> 1982 | F15: =E15+1 -> 1983 | G15: 1984 | H15: 1985 | I15: 1986 | J15: 1987 | K15: 1988 | L15: 1989 | M15: 1990 | N15: 1991 | O15: 1992 | P15: 1993 | Q15: 1994 | R15: 1995 | S15: 1996 | T15: 1997 | U15: 1998 | V15: 1999 | W15: 2000 | X15: 2001 | Y15: 2002 | Z15: 2003 | AA15: 2004 | AB15: 2005 | AC15: 2006 | AD15: 2007 | AE15: 2008 | AF15: 2009 | AG15: 2010 | AH15: 2011 | AI15: 2012 | AJ15: 2013 | AK15: 2014 | AL15: 2015 | AM15: 2016 | AN15: 2017 | AO15: 2018 | AP15: 2019 | AQ15: 2020 | AR15: 2021 | AS15: 2022 | AT15: 2023 | AU15: 2024 | AV15: 2025 | AW15: 2026 | AX15: 2027 | AY15: 2028 | AZ15: 2029 | BA15: 2030 | BB15: 2031 | BC15: 2032 | BD15: 2033 | BE15: 2034
C16: PRE-Case UEC | D16: =IF(D$15-$D$15+2<=LIFETIME_MH,D11, SUMPRODUCT(OFFSET(D11,0,(-1*LIFETIME_MH)+1,1,LIFETIME_MH),OFFSET('Shipments and Stock - MH'!E$14,0,(-1*LIFETIME_MH)+1,1,LIFETIME_MH))/ SUM(OFFSET('Shipments and Stock - MH'!E$14,0,(-1*LIFETIME_MH)+1,1,LIFETIME_MH))) -> 760.0235835 | E16: =IF(E$15-$D$15+2<=LIFETIME_MH,E11, SUMPRODUCT(OFFSET(E11,0,(-1*LIFETIME_MH)+1,1,LIFETIME_MH),OFFSET('Shipments and Stock - MH'!F$14,0,(-1*LIFETIME_MH)+1,1,LIFETIME_MH))/ SUM(OFFSET('Shipments and Stock - MH'!F$14,0,(-1*LIFETIME_MH)+1,1,LIFETIME_MH))) -> 760.0235835 | F16: =IF(F$15-$D$15+2<=LIFETIME_MH,F11, SUMPRODUCT(OFFSET(F11,0,(-1*LIFETIME_MH)+1,1,LIFETIME_MH),OFFSET('Shipments and Stock - MH'!G$14,0,(-1*LIFETIME_MH)+1,1,LIFETIME_MH))/ SUM(OFFSET('Shipments and Stock - MH'!G$14,0,(-1*LIFETIME_MH)+1,1,LIFETIME_MH))) -> 760.0235835 | G16: =IF(G$15-$D$15+2<=LIFETIME_MH,G11, SUMPRODUCT(OFFSET(G11,0,(-1*LIFETIME_MH)+1,1,LIFETIME_MH),OFFSET('Shipments and Stock - MH'!H$14,0,(-1*LIFETIME_MH)+1,1,LIFETIME_MH))/ SUM(OFFSET('Shipments and Stock - MH'!H$14,0,(-1*LIFETIME_MH)+1,1,LIFETIME_MH))) -> 760.0235835 | H16: =IF(H$15-$D$15+2<=LIFETIME_MH,H11, SUMPRODUCT(OFFSET(H11,0,(-1*LIFETIME_MH)+1,1,LIFETIME_MH),OFFSET('Shipments and Stock - MH'!I$14,0,(-1*LIFETIME_MH)+1,1,LIFETIME_MH))/ SUM(OFFSET('Shipments and Stock - MH'!I$14,0,(-1*LIFETIME_MH)+1,1,LIFETIME_MH))) -> 760.0235835 | I16: =IF(I$15-$D$15+2<=LIFETIME_MH,I11, SUMPRODUCT(OFFSET(I11,0,(-1*LIFETIME_MH)+1,1,LIFETIME_MH),OFFSET('Shipments and Stock - MH'!J$14,0,(-1*LIFETIME_MH)+1,1,LIFETIME_MH))/ SUM(OFFSET('Shipments and Stock - MH'!J$14,0,(-1*LIFETIME_MH)+1,1,LIFETIME_MH))) -> 760.0235835 | J16: =IF(J$15-$D$15+2<=LIFETIME_MH,J11, SUMPRODUCT(OFFSET(J11,0,(-1*LIFETIME_MH)+1,1,LIFETIME_MH),OFFSET('Shipments and Stock - MH'!K$14,0,(-1*LIFETIME_MH)+1,1,LIFETIME_MH))/ SUM(OFFSET('Shipments and Stock - MH'!K$14,0,(-1*LIFETIME_MH)+1,1,LIFETIME_MH))) -> 760.0235835 | K16: =IF(K$15-$D$15+2<=LIFETIME_MH,K11, SUMPRODUCT(OFFSET(K11,0,(-1*LIFETIME_MH)+1,1,LIFETIME_MH),OFFSET('Shipments and Stock - MH'!L$14,0,(-1*LIFETIME_MH)+1,1,LIFETIME_MH))/ SUM(OFFSET('Shipments and Stock - MH'!L$14,0,(-1*LIFETIME_MH)+1,1,LIFETIME_MH))) -> 760.0235835 | L16: =IF(L$15-$D$15+2<=LIFETIME_MH,L11, SUMPRODUCT(OFFSET(L11,0,(-1*LIFETIME_MH)+1,1,LIFETIME_MH),OFFSET('Shipments and Stock - MH'!M$14,0,(-1*LIFETIME_MH)+1,1,LIFETIME_MH))/ SUM(OFFSET('Shipments and Stock - MH'!M$14,0,(-1*LIFETIME_MH)+1,1,LIFETIME_MH))) -> 760.0235835 | M16: =IF(M$15-$D$15+2<=LIFETIME_MH,M11, SUMPRODUCT(OFFSET(M11,0,(-1*LIFETIME_MH)+1,1,LIFETIME_MH),OFFSET('Shipments and Stock - MH'!N$14,0,(-1*LIFETIME_MH)+1,1,LIFETIME_MH))/ SUM(OFFSET('Shipments and Stock - MH'!N$14,0,(-1*LIFETIME_MH)+1,1,LIFETIME_MH))) -> 760.0235835 | N16: =IF(N$15-$D$15+2<=LIFETIME_MH,N11, SUMPRODUCT(OFFSET(N11,0,(-1*LIFETIME_MH)+1,1,LIFETIME_MH),OFFSET('Shipments and Stock - MH'!O$14,0,(-1*LIFETIME_MH)+1,1,LIFETIME_MH))/ SUM(OFFSET('Shipments and Stock - MH'!O$14,0,(-1*LIFETIME_MH)+1,1,LIFETIME_MH))) -> 760.0235835 | O16: =IF(O$15-$D$15+2<=LIFETIME_MH,O11, SUMPRODUCT(OFFSET(O11,0,(-1*LIFETIME_MH)+1,1,LIFETIME_MH),OFFSET('Shipments and Stock - MH'!P$14,0,(-1*LIFETIME_MH)+1,1,LIFETIME_MH))/ SUM(OFFSET('Shipments and Stock - MH'!P$14,0,(-1*LIFETIME_MH)+1,1,LIFETIME_MH))) -> 760.0235835 | P16: =IF(P$15-$D$15+2<=LIFETIME_MH,P11, SUMPRODUCT(OFFSET(P11,0,(-1*LIFETIME_MH)+1,1,LIFETIME_MH),OFFSET('Shipments and Stock - MH'!Q$14,0,(-1*LIFETIME_MH)+1,1,LIFETIME_MH))/ SUM(OFFSET('Shipments and Stock - MH'!Q$14,0,(-1*LIFETIME_MH)+1,1,LIFETIME_MH))) -> 760.0235835 | Q16: =IF(Q$15-$D$15+2<=LIFETIME_MH,Q11, SUMPRODUCT(OFFSET(Q11,0,(-1*LIFETIME_MH)+1,1,LIFETIME_MH),OFFSET('Shipments and Stock - MH'!R$14,0,(-1*LIFETIME_MH)+1,1,LIFETIME_MH))/ SUM(OFFSET('Shipments and Stock - MH'!R$14,0,(-1*LIFETIME_MH)+1,1,LIFETIME_MH))) -> 760.0235835 | R16: =IF(R$15-$D$15+2<=LIFETIME_MH,R11, SUMPRODUCT(OFFSET(R11,0,(-1*LIFETIME_MH)+1,1,LIFETIME_MH),OFFSET('Shipments and Stock - MH'!S$14,0,(-1*LIFETIME_MH)+1,1,LIFETIME_MH))/ SUM(OFFSET('Shipments and Stock - MH'!S$14,0,(-1*LIFETIME_MH)+1,1,LIFETIME_MH))) -> 760.0235835 | S16: =IF(S$15-$D$15+2<=LIFETIME_MH,S11, SUMPRODUCT(OFFSET(S11,0,(-1*LIFETIME_MH)+1,1,LIFETIME_MH),OFFSET('Shipments and Stock - MH'!T$14,0,(-1*LIFETIME_MH)+1,1,LIFETIME_MH))/ SUM(OFFSET('Shipments and Stock - MH'!T$14,0,(-1*LIFETIME_MH)+1,1,LIFETIME_MH))) -> 760.0235835 | T16: =IF(T$15-$D$15+2<=LIFETIME_MH,T11, SUMPRODUCT(OFFSET(T11,0,(-1*LIFETIME_MH)+1,1,LIFETIME_MH),OFFSET('Shipments and Stock - MH'!U$14,0,(-1*LIFETIME_MH)+1,1,LIFETIME_MH))/ SUM(OFFSET('Shipments and Stock - MH'!U$14,0,(-1*LIFETIME_MH)+1,1,LIFETIME_MH))) -> 760.0235835 | U16: =IF(U$15-$D$15+2<=LIFETIME_MH,U11, SUMPRODUCT(OFFSET(U11,0,(-1*LIFETIME_MH)+1,1,LIFETIME_MH),OFFSET('Shipments and Stock - MH'!V$14,0,(-1*LIFETIME_MH)+1,1,LIFETIME_MH))/ SUM(OFFSET('Shipments and Stock - MH'!V$14,0,(-1*LIFETIME_MH)+1,1,LIFETIME_MH))) -> 760.0235835 | V16: =IF(V$15-$D$15+2<=LIFETIME_MH,V11, SUMPRODUCT(OFFSET(V11,0,(-1*LIFETIME_MH)+1,1,LIFETIME_MH),OFFSET('Shipments and Stock - MH'!W$14,0,(-1*LIFETIME_MH)+1,1,LIFETIME_MH))/ SUM(OFFSET('Shipments and Stock - MH'!W$14,0,(-1*LIFETIME_MH)+1,1,LIFETIME_MH))) -> 760.0235835 | W16: =IF(W$15-$D$15+2<=LIFETIME_MH,W11, SUMPRODUCT(OFFSET(W11,0,(-1*LIFETIME_MH)+1,1,LIFETIME_MH),OFFSET('Shipments and Stock - MH'!X$14,0,(-1*LIFETIME_MH)+1,1,LIFETIME_MH))/ SUM(OFFSET('Shipments and Stock - MH'!X$14,0,(-1*LIFETIME_MH)+1,1,LIFETIME_MH))) -> 761.4046476 | X16: =IF(X$15-$D$15+2<=LIFETIME_MH,X11, SUMPRODUCT(OFFSET(X11,0,(-1*LIFETIME_MH)+1,1,LIFETIME_MH),OFFSET('Shipments and Stock - MH'!Y$14,0,(-1*LIFETIME_MH)+1,1,LIFETIME_MH))/ SUM(OFFSET('Shipments and Stock - MH'!Y$14,0,(-1*LIFETIME_MH)+1,1,LIFETIME_MH))) -> 762.5685939 | Y16: =IF(Y$15-$D$15+2<=LIFETIME_MH,Y11, SUMPRODUCT(OFFSET(Y11,0,(-1*LIFETIME_MH)+1,1,LIFETIME_MH),OFFSET('Shipments and Stock - MH'!Z$14,0,(-1*LIFETIME_MH)+1,1,LIFETIME_MH))/ SUM(OFFSET('Shipments and Stock - MH'!Z$14,0,(-1*LIFETIME_MH)+1,1,LIFETIME_MH))) -> 763.7203187 | Z16: =IF(Z$15-$D$15+2<=LIFETIME_MH,Z11, SUMPRODUCT(OFFSET(Z11,0,(-1*LIFETIME_MH)+1,1,LIFETIME_MH),OFFSET('Shipments and Stock - MH'!AA$14,0,(-1*LIFETIME_MH)+1,1,LIFETIME_MH))/ SUM(OFFSET('Shipments and Stock - MH'!AA$14,0,(-1*LIFETIME_MH)+1,1,LIFETIME_MH))) -> 764.7702846 | AA16: =IF(AA$15-$D$15+2<=LIFETIME_MH,AA11, SUMPRODUCT(OFFSET(AA11,0,(-1*LIFETIME_MH)+1,1,LIFETIME_MH),OFFSET('Shipments and Stock - MH'!AB$14,0,(-1*LIFETIME_MH)+1,1,LIFETIME_MH))/ SUM(OFFSET('Shipments and Stock - MH'!AB$14,0,(-1*LIFETIME_MH)+1,1,LIFETIME_MH))) -> 765.7060357 | AB16: =IF(AB$15-$D$15+2<=LIFETIME_MH,AB11, SUMPRODUCT(OFFSET(AB11,0,(-1*LIFETIME_MH)+1,1,LIFETIME_MH),OFFSET('Shipments and Stock - MH'!AC$14,0,(-1*LIFETIME_MH)+1,1,LIFETIME_MH))/ SUM(OFFSET('Shipments and Stock - MH'!AC$14,0,(-1*LIFETIME_MH)+1,1,LIFETIME_MH))) -> 766.5447564 | AC16: =IF(AC$15-$D$15+2<=LIFETIME_MH,AC11, SUMPRODUCT(OFFSET(AC11,0,(-1*LIFETIME_MH)+1,1,LIFETIME_MH),OFFSET('Shipments and Stock - MH'!AD$14,0,(-1*LIFETIME_MH)+1,1,LIFETIME_MH))/ SUM(OFFSET('Shipments and Stock - MH'!AD$14,0,(-1*LIFETIME_MH)+1,1,LIFETIME_MH))) -> 757.5388842 | AD16: =IF(AD$15-$D$15+2<=LIFETIME_MH,AD11, SUMPRODUCT(OFFSET(AD11,0,(-1*LIFETIME_MH)+1,1,LIFETIME_MH),OFFSET('Shipments and Stock - MH'!AE$14,0,(-1*LIFETIME_MH)+1,1,LIFETIME_MH))/ SUM(OFFSET('Shipments and Stock - MH'!AE$14,0,(-1*LIFETIME_MH)+1,1,LIFETIME_MH))) -> 748.553355 | AE16: =IF(AE$15-$D$15+2<=LIFETIME_MH,AE11, SUMPRODUCT(OFFSET(AE11,0,(-1*LIFETIME_MH)+1,1,LIFETIME_MH),OFFSET('Shipments and Stock - MH'!AF$14,0,(-1*LIFETIME_MH)+1,1,LIFETIME_MH))/ SUM(OFFSET('Shipments and Stock - MH'!AF$14,0,(-1*LIFETIME_MH)+1,1,LIFETIME_MH))) -> 739.9692105 | AF16: =IF(AF$15-$D$15+2<=LIFETIME_MH,AF11, SUMPRODUCT(OFFSET(AF11,0,(-1*LIFETIME_MH)+1,1,LIFETIME_MH),OFFSET('Shipments and Stock - MH'!AG$14,0,(-1*LIFETIME_MH)+1,1,LIFETIME_MH))/ SUM(OFFSET('Shipments and Stock - MH'!AG$14,0,(-1*LIFETIME_MH)+1,1,LIFETIME_MH))) -> 731.6622008 | AG16: =IF(AG$15-$D$15+2<=LIFETIME_MH,AG11, SUMPRODUCT(OFFSET(AG11,0,(-1*LIFETIME_MH)+1,1,LIFETIME_MH),OFFSET('Shipments and Stock - MH'!AH$14,0,(-1*LIFETIME_MH)+1,1,LIFETIME_MH))/ SUM(OFFSET('Shipments and Stock - MH'!AH$14,0,(-1*LIFETIME_MH)+1,1,LIFETIME_MH))) -> 721.0060883 | AH16: =IF(AH$15-$D$15+2<=LIFETIME_MH,AH11, SUMPRODUCT(OFFSET(AH11,0,(-1*LIFETIME_MH)+1,1,LIFETIME_MH),OFFSET('Shipments and Stock - MH'!AI$14,0,(-1*LIFETIME_MH)+1,1,LIFETIME_MH))/ SUM(OFFSET('Shipments and Stock - MH'!AI$14,0,(-1*LIFETIME_MH)+1,1,LIFETIME_MH))) -> 710.7216146 | AI16: =IF(AI$15-$D$15+2<=LIFETIME_MH,AI11, SUMPRODUCT(OFFSET(AI11,0,(-1*LIFETIME_MH)+1,1,LIFETIME_MH),OFFSET('Shipments and Stock - MH'!AJ$14,0,(-1*LIFETIME_MH)+1,1,LIFETIME_MH))/ SUM(OFFSET('Shipments and Stock - MH'!AJ$14,0,(-1*LIFETIME_MH)+1,1,LIFETIME_MH))) -> 700.5987242 | AJ16: =IF(AJ$15-$D$15+2<=LIFETIME_MH,AJ11, SUMPRODUCT(OFFSET(AJ11,0,(-1*LIFETIME_MH)+1,1,LIFETIME_MH),OFFSET('Shipments and Stock - MH'!AK$14,0,(-1*LIFETIME_MH)+1,1,LIFETIME_MH))/ SUM(OFFSET('Shipments and Stock - MH'!AK$14,0,(-1*LIFETIME_MH)+1,1,LIFETIME_MH))) -> 690.0208519 | AK16: =IF(AK$15-$D$15+2<=LIFETIME_MH,AK11, SUMPRODUCT(OFFSET(AK11,0,(-1*LIFETIME_MH)+1,1,LIFETIME_MH),OFFSET('Shipments and Stock - MH'!AL$14,0,(-1*LIFETIME_MH)+1,1,LIFETIME_MH))/ SUM(OFFSET('Shipments and Stock - MH'!AL$14,0,(-1*LIFETIME_MH)+1,1,LIFETIME_MH))) -> 679.6522722 | AL16: =IF(AL$15-$D$15+2<=LIFETIME_MH,AL11, SUMPRODUCT(OFFSET(AL11,0,(-1*LIFETIME_MH)+1,1,LIFETIME_MH),OFFSET('Shipments and Stock - MH'!AM$14,0,(-1*LIFETIME_MH)+1,1,LIFETIME_MH))/ SUM(OFFSET('Shipments and Stock - MH'!AM$14,0,(-1*LIFETIME_MH)+1,1,LIFETIME_MH))) -> 669.7879855 | AM16: =IF(AM$15-$D$15+2<=LIFETIME_MH,AM11, SUMPRODUCT(OFFSET(AM11,0,(-1*LIFETIME_MH)+1,1,LIFETIME_MH),OFFSET('Shipments and Stock - MH'!AN$14,0,(-1*LIFETIME_MH)+1,1,LIFETIME_MH))/ SUM(OFFSET('Shipments and Stock - MH'!AN$14,0,(-1*LIFETIME_MH)+1,1,LIFETIME_MH))) -> 659.9069203 | AN16: =IF(AN$15-$D$15+2<=LIFETIME_MH,AN11, SUMPRODUCT(OFFSET(AN11,0,(-1*LIFETIME_MH)+1,1,LIFETIME_MH),OFFSET('Shipments and Stock - MH'!AO$14,0,(-1*LIFETIME_MH)+1,1,LIFETIME_MH))/ SUM(OFFSET('Shipments and Stock - MH'!AO$14,0,(-1*LIFETIME_MH)+1,1,LIFETIME_MH))) -> 649.6019657 | AO16: =IF(AO$15-$D$15+2<=LIFETIME_MH,AO11, SUMPRODUCT(OFFSET(AO11,0,(-1*LIFETIME_MH)+1,1,LIFETIME_MH),OFFSET('Shipments and Stock - MH'!AP$14,0,(-1*LIFETIME_MH)+1,1,LIFETIME_MH))/ SUM(OFFSET('Shipments and Stock - MH'!AP$14,0,(-1*LIFETIME_MH)+1,1,LIFETIME_MH))) -> 639.7179287 | AP16: =IF(AP$15-$D$15+2<=LIFETIME_MH,AP11, SUMPRODUCT(OFFSET(AP11,0,(-1*LIFETIME_MH)+1,1,LIFETIME_MH),OFFSET('Shipments and Stock - MH'!AQ$14,0,(-1*LIFETIME_MH)+1,1,LIFETIME_MH))/ SUM(OFFSET('Shipments and Stock - MH'!AQ$14,0,(-1*LIFETIME_MH)+1,1,LIFETIME_MH))) -> 628.0637974 | AQ16: =IF(AQ$15-$D$15+2<=LIFETIME_MH,AQ11, SUMPRODUCT(OFFSET(AQ11,0,(-1*LIFETIME_MH)+1,1,LIFETIME_MH),OFFSET('Shipments and Stock - MH'!AR$14,0,(-1*LIFETIME_MH)+1,1,LIFETIME_MH))/ SUM(OFFSET('Shipments and Stock - MH'!AR$14,0,(-1*LIFETIME_MH)+1,1,LIFETIME_MH))) -> 617.1590062 | AR16: =IF(AR$15-$D$15+2<=LIFETIME_MH,AR11, SUMPRODUCT(OFFSET(AR11,0,(-1*LIFETIME_MH)+1,1,LIFETIME_MH),OFFSET('Shipments and Stock - MH'!AS$14,0,(-1*LIFETIME_MH)+1,1,LIFETIME_MH))/ SUM(OFFSET('Shipments and Stock - MH'!AS$14,0,(-1*LIFETIME_MH)+1,1,LIFETIME_MH))) -> 605.4215345 | AS16: =IF(AS$15-$D$15+2<=LIFETIME_MH,AS11, SUMPRODUCT(OFFSET(AS11,0,(-1*LIFETIME_MH)+1,1,LIFETIME_MH),OFFSET('Shipments and Stock - MH'!AT$14,0,(-1*LIFETIME_MH)+1,1,LIFETIME_MH))/ SUM(OFFSET('Shipments and Stock - MH'!AT$14,0,(-1*LIFETIME_MH)+1,1,LIFETIME_MH))) -> 593.7198401 | AT16: =IF(AT$15-$D$15+2<=LIFETIME_MH,AT11, SUMPRODUCT(OFFSET(AT11,0,(-1*LIFETIME_MH)+1,1,LIFETIME_MH),OFFSET('Shipments and Stock - MH'!AU$14,0,(-1*LIFETIME_MH)+1,1,LIFETIME_MH))/ SUM(OFFSET('Shipments and Stock - MH'!AU$14,0,(-1*LIFETIME_MH)+1,1,LIFETIME_MH))) -> 582.284042 | AU16: =IF(AU$15-$D$15+2<=LIFETIME_MH,AU11, SUMPRODUCT(OFFSET(AU11,0,(-1*LIFETIME_MH)+1,1,LIFETIME_MH),OFFSET('Shipments and Stock - MH'!AV$14,0,(-1*LIFETIME_MH)+1,1,LIFETIME_MH))/ SUM(OFFSET('Shipments and Stock - MH'!AV$14,0,(-1*LIFETIME_MH)+1,1,LIFETIME_MH))) -> 571.0537983 | AV16: =IF(AV$15-$D$15+2<=LIFETIME_MH,AV11, SUMPRODUCT(OFFSET(AV11,0,(-1*LIFETIME_MH)+1,1,LIFETIME_MH),OFFSET('Shipments and Stock - MH'!AW$14,0,(-1*LIFETIME_MH)+1,1,LIFETIME_MH))/ SUM(OFFSET('Shipments and Stock - MH'!AW$14,0,(-1*LIFETIME_MH)+1,1,LIFETIME_MH))) -> 566.8361577 | AW16: =IF(AW$15-$D$15+2<=LIFETIME_MH,AW11, SUMPRODUCT(OFFSET(AW11,0,(-1*LIFETIME_MH)+1,1,LIFETIME_MH),OFFSET('Shipments and Stock - MH'!AX$14,0,(-1*LIFETIME_MH)+1,1,LIFETIME_MH))/ SUM(OFFSET('Shipments and Stock - MH'!AX$14,0,(-1*LIFETIME_MH)+1,1,LIFETIME_MH))) -> 562.1590421 | AX16: =IF(AX$15-$D$15+2<=LIFETIME_MH,AX11, SUMPRODUCT(OFFSET(AX11,0,(-1*LIFETIME_MH)+1,1,LIFETIME_MH),OFFSET('Shipments and Stock - MH'!AY$14,0,(-1*LIFETIME_MH)+1,1,LIFETIME_MH))/ SUM(OFFSET('Shipments and Stock - MH'!AY$14,0,(-1*LIFETIME_MH)+1,1,LIFETIME_MH))) -> 557.1801829 | AY16: =IF(AY$15-$D$15+2<=LIFETIME_MH,AY11, SUMPRODUCT(OFFSET(AY11,0,(-1*LIFETIME_MH)+1,1,LIFETIME_MH),OFFSET('Shipments and Stock - MH'!AZ$14,0,(-1*LIFETIME_MH)+1,1,LIFETIME_MH))/ SUM(OFFSET('Shipments and Stock - MH'!AZ$14,0,(-1*LIFETIME_MH)+1,1,LIFETIME_MH))) -> 552.0122894 | AZ16: =IF(AZ$15-$D$15+2<=LIFETIME_MH,AZ11, SUMPRODUCT(OFFSET(AZ11,0,(-1*LIFETIME_MH)+1,1,LIFETIME_MH),OFFSET('Shipments and Stock - MH'!BA$14,0,(-1*LIFETIME_MH)+1,1,LIFETIME_MH))/ SUM(OFFSET('Shipments and Stock - MH'!BA$14,0,(-1*LIFETIME_MH)+1,1,LIFETIME_MH))) -> 549.120315 | BA16: =IF(BA$15-$D$15+2<=LIFETIME_MH,BA11, SUMPRODUCT(OFFSET(BA11,0,(-1*LIFETIME_MH)+1,1,LIFETIME_MH),OFFSET('Shipments and Stock - MH'!BB$14,0,(-1*LIFETIME_MH)+1,1,LIFETIME_MH))/ SUM(OFFSET('Shipments and Stock - MH'!BB$14,0,(-1*LIFETIME_MH)+1,1,LIFETIME_MH))) -> 546.1018332 | BB16: =IF(BB$15-$D$15+2<=LIFETIME_MH,BB11, SUMPRODUCT(OFFSET(BB11,0,(-1*LIFETIME_MH)+1,1,LIFETIME_MH),OFFSET('Shipments and Stock - MH'!BC$14,0,(-1*LIFETIME_MH)+1,1,LIFETIME_MH))/ SUM(OFFSET('Shipments and Stock - MH'!BC$14,0,(-1*LIFETIME_MH)+1,1,LIFETIME_MH))) -> 543.2353683 | BC16: =IF(BC$15-$D$15+2<=LIFETIME_MH,BC11, SUMPRODUCT(OFFSET(BC11,0,(-1*LIFETIME_MH)+1,1,LIFETIME_MH),OFFSET('Shipments and Stock - MH'!BD$14,0,(-1*LIFETIME_MH)+1,1,LIFETIME_MH))/ SUM(OFFSET('Shipments and Stock - MH'!BD$14,0,(-1*LIFETIME_MH)+1,1,LIFETIME_MH))) -> 540.1628059 | BD16: =IF(BD$15-$D$15+2<=LIFETIME_MH,BD11, SUMPRODUCT(OFFSET(BD11,0,(-1*LIFETIME_MH)+1,1,LIFETIME_MH),OFFSET('Shipments and Stock - MH'!BE$14,0,(-1*LIFETIME_MH)+1,1,LIFETIME_MH))/ SUM(OFFSET('Shipments and Stock - MH'!BE$14,0,(-1*LIFETIME_MH)+1,1,LIFETIME_MH))) -> 537.0544419 | BE16: =IF(BE$15-$D$15+2<=LIFETIME_MH,BE11, SUMPRODUCT(OFFSET(BE11,0,(-1*LIFETIME_MH)+1,1,LIFETIME_MH),OFFSET('Shipments and Stock - MH'!BF$14,0,(-1*LIFETIME_MH)+1,1,LIFETIME_MH))/ SUM(OFFSET('Shipments and Stock - MH'!BF$14,0,(-1*LIFETIME_MH)+1,1,LIFETIME_MH))) -> 533.9953226
